Workbook

Sheet Sheet1
C2: Empresa : | H2: 61 - Comercial del Norte | T2: Página : | V2: 1
N3: LIBRO MAYOR
C4: Filtro : | G4: Desde la Subcuenta : 60000000 hasta 79999999. Desde 01/01/2010 hasta 31/12/2010. Desde el
G5: proyecto '0' hasta '0'
B6: Subcuenta | E6: 60100000 | J6: COMPRAS MATERIAS PRIMAS | R6: Saldo: | X6: 0
U7: Saldo
B8: Asiento | E8: Fecha | K8: Descripción | O8: Debe | Q8: Haber
A9: 2335 | D9: 2010-10-15 | I9: FACT.3/2010 UTE canaria | P9: 7425 | S9: 0 | W9: 7425
A10: 2511 | D10: 2010-10-31 | I10: FACT.4/2010 UTE canaria | P10: 6818.5 | S10: 0 | W10: 14243.5
A11: 2640 | D11: 2010-11-15 | I11: FACT.UN 1089700001 UTE canaria | P11: 8317.5 | S11: 0 | W11: 22561
A12: 2760 | D12: 2010-11-30 | I12: FACT.UN 1089700003 UTE canaria | P12: 10812 | S12: 0 | W12: 33373
A13: 2906 | D13: 2010-12-15 | I13: FACT. UN1089700005 UTE canaria | P13: 7092 | S13: 0 | W13: 40465
A14: 3084 | D14: 2010-12-31 | I14: FACT.UN1089700007 UTE canaria | P14: 3456 | S14: 0 | W14: 43921
L15: TOTAL SUBCUENTA : | P15: 43921 | S15: 0
B16: Subcuenta | E16: 60200000 | J16: COMPRA DE OTROS APROVISIONAMIENTOS | R16: Saldo: | X16: 0
U17: Saldo
B18: Asiento | E18: Fecha | K18: Descripción | O18: Debe | Q18: Haber
A19: 155 | D19: 2010-01-31 | I19: FACT.31025 CIAL. marpa | P19: 3429.07 | S19: 0 | W19: 3429.07
A20: 473 | D20: 2010-03-24 | I20: FACT.210262443 SIEMENS MAQUINARIA, S.A. | P20: 27.32 | S20: 0 | W20: 3456.39
A21: 486 | D21: 2010-03-25 | I21: FACT.451912 Maquinaria ESPAÑA | P21: 279.83 | S21: 0 | W21: 3736.22
A22: 1408 | D22: 2010-07-02 | I22: FACT.990474 Maquinaria ESPAÑA | P22: 101.3 | S22: 0 | W22: 3837.52
A23: 1540 | D23: 2010-07-18 | I23: FACT.FV/8883 FERRET. RDG. Y Padrón. | P23: 1343.91 | S23: 0 | W23: 5181.43
A24: 1716 | D24: 2010-08-01 | I24: FACT.1146148 Maquinaria ESPAÑA | P24: 304.32 | S24: 0 | W24: 5485.75
A25: 1750 | D25: 2010-08-11 | I25: FACT.1190260 Maquinaria ESPAÑA | P25: 357.73 | S25: 0 | W25: 5843.48
A26: 2014 | D26: 2010-09-11 | I26: FACT.1261704 Maquinaria ESPAÑA | P26: 15.2 | S26: 0 | W26: 5858.68
A27: 2015 | D27: 2010-09-11 | I27: FACT.1261705 Maquinaria ESPAÑA | P27: 109 | S27: 0 | W27: 5967.68
A28: 2033 | D28: 2010-09-12 | I28: FACT.1266265 Maquinaria ESPAÑA | P28: 235.2 | S28: 0 | W28: 6202.88
A29: 2066 | D29: 2010-09-17 | I29: FACT.FV/9068 FERRET. RDG. Y Padrón. | P29: 50.8 | S29: 0 | W29: 6253.68
A30: 2105 | D30: 2010-09-22 | I30: FACT.1309434 Maquinaria ESPAÑA | P30: 230.42 | S30: 0 | W30: 6484.1
A31: 2200 | D31: 2010-09-30 | I31: FACT.1362089 Maquinaria ESPAÑA | P31: 937 | S31: 0 | W31: 7421.1
A32: 2229 | D32: 2010-10-01 | I32: FACT.1362096 Maquinaria ESPAÑA | P32: 687.56 | S32: 0 | W32: 8108.66
A33: 2379 | D33: 2010-10-21 | I33: FACT.FV/9168 FERRET. RDG. Y Padrón. | P33: 132.89 | S33: 0 | W33: 8241.55
A34: 2399 | D34: 2010-10-23 | I34: FACT.21561 Tito, S.L. | P34: 142.8 | S34: 0 | W34: 8384.35
A35: 2403 | D35: 2010-10-23 | I35: FACT.1473446 Maquinaria ESPAÑA | P35: 89.4 | S35: 0 | W35: 8473.75
A36: 2927 | D36: 2010-12-17 | I36: FACT.FV/9422 FERRET. RDG. Y Padrón. | P36: 386.96 | S36: 0 | W36: 8860.71
L37: TOTAL SUBCUENTA : | P37: 8860.71 | S37: 0
B38: Subcuenta | E38: 60600000 | J38: DESCUENTOS SOBRE COMPRAS POR PRONTO PAGO | R38: Saldo: | X38: 0
U39: Saldo
B40: Asiento | E40: Fecha | K40: Descripción | O40: Debe | Q40: Haber
A41: 156 | D41: 2010-01-31 | I41: DTO.FACT.31025 CIAL marpa | P41: 0 | S41: 171.46 | W41: -171.46
A42: 175 | D42: 2010-02-01 | I42: DTO. FACT.30847 CIAL. marpa 2007 | P42: 0 | S42: 6.29 | W42: -177.75
A43: 1294 | D43: 2010-06-26 | I43: DTO.FACT.NV2/329 González VIERA | P43: 0 | S43: 594.02 | W43: -771.77
A44: 1923 | D44: 2010-08-31 | I44: DTO.FACTS. CIAL. marpa (INSTALACION AGUA) | P44: 0 | S44: 16.84 | W44: -788.61
A45: 2176 | D45: 2010-09-30 | I45: DTO.FACT.32441 CIAL. marpa (INSTALACION AGUA) | P45: 0 | S45: 1452.77 | W45: -2241.38
L46: TOTAL SUBCUENTA : | P46: 0 | S46: 2241.38
B47: Subcuenta | E47: 60700000 | J47: TRABAJOS REALIZADOS POR OTRAS EMPRESAS | R47: Saldo: | X47: 0
U48: Saldo
B49: Asiento | E49: Fecha | K49: Descripción | O49: Debe | Q49: Haber
A50: 5 | D50: 2010-01-02 | I50: FACT.34/2007 ROTURACIONES Y TTES. Cartell | P50: 3339 | S50: 0 | W50: 3339
A51: 74 | D51: 2010-01-16 | I51: FACT.F08/2 ROTURACIONES julio | P51: 680.75 | S51: 0 | W51: 4019.75
A52: 168 | D52: 2010-01-31 | I52: FACT.01/2010 FRANCISCO Pedro BRITO RDG. | P52: 954 | S52: 0 | W52: 4973.75
A53: 230 | D53: 2010-02-14 | I53: FACT.F08/5 ROTURACIONES julio | P53: 253.5 | S53: 0 | W53: 5227.25
A54: 359 | D54: 2010-02-28 | I54: FACT.2010.A.71 itres | P54: 244.14 | S54: 0 | W54: 5471.39
A55: 534 | D55: 2010-03-28 | I55: FACT.11/2010 ROTURACIONES Y TTES. Cartell | P55: 1590 | S55: 0 | W55: 7061.39
A56: 833 | D56: 2010-04-30 | I56: FACT.2010.A.180 itres | P56: 407.86 | S56: 0 | W56: 7469.25
A57: 1043 | D57: 2010-05-29 | I57: FACT.2010.A.219 itres | P57: 790.56 | S57: 0 | W57: 8259.81
A58: 1298 | D58: 2010-06-26 | I58: FACT.0064/08 CERRAJERIA LOS perritos | P58: 3502.62 | S58: 0 | W58: 11762.43
A59: 1322 | D59: 2010-06-27 | I59: FACT.15/2010 ROTURACIONES Y TTES. Cartell | P59: 2399.22 | S59: 0 | W59: 14161.65
A60: 1559 | D60: 2010-07-22 | I60: FACT.6781 harpa, S.L. | P60: 650 | S60: 0 | W60: 14811.65
A61: 1706 | D61: 2010-07-31 | I61: FACT.2010.A.299 itres | P61: 1548.24 | S61: 0 | W61: 16359.89
A62: 1712 | D62: 2010-07-31 | I62: FACT.16/2010 ROTURACIONES Y TTES. Cartell | P62: 480 | S62: 0 | W62: 16839.89
A63: 1748 | D63: 2010-08-08 | I63: FACT.0070/08 CERRAJERIA LOS perritos | P63: 3026 | S63: 0 | W63: 19865.89
A64: 2168 | D64: 2010-09-30 | I64: FACT.6818 harpa, S.L. | P64: 21318 | S64: 0 | W64: 41183.89
A65: 2206 | D65: 2010-09-30 | I65: FACT.2010.A.362 itres | P65: 55.86 | S65: 0 | W65: 41239.75
A66: 2472 | D66: 2010-10-28 | I66: FACT.6828 harpa, S.L. | P66: 12270 | S66: 0 | W66: 53509.75
A67: 2526 | D67: 2010-10-31 | I67: FACT.2010.A.406 itres | P67: 2165.07 | S67: 0 | W67: 55674.82
A68: 2535 | D68: 2010-10-31 | I68: FACT.25/2010 ROTURACIONES Y TTES. Cartell | P68: 2352 | S68: 0 | W68: 58026.82
A69: 2758 | D69: 2010-11-28 | I69: FACT.26/2010 ROTURACIONES Y TTES. Cartell | P69: 3744 | S69: 0 | W69: 61770.82
L70: TOTAL SUBCUENTA : | P70: 61770.82 | S70: 0
B71: Subcuenta | E71: 60700001 | J71: TRABAJOS REALIZ. POR OTRAS EMPRESA NAVE | R71: Saldo: | X71: 0
U72: Saldo
B73: Asiento | E73: Fecha | K73: Descripción | O73: Debe | Q73: Haber
A74: 964 | D74: 2010-05-21 | I74: FACT.NV2/323 González VIERA | P74: 38174.94 | S74: 0 | W74: 38174.94
A75: 1296 | D75: 2010-06-26 | I75: FACT.3/685 FONTANERIA Tito LZO. | P75: 3074.49 | S75: 0 | W75: 41249.43
A76: 2903 | D76: 2010-12-15 | I76: FACT.A/815 CERRAJERIA Los Vientos | P76: 1149 | S76: 0 | W76: 42398.43
L77: TOTAL SUBCUENTA : | P77: 42398.43 | S77: 0
B78: Subcuenta | E78: 60800000 | J78: DEVOLUCION DE COMPRAS Y OPERACIONES | R78: Saldo: | X78: 0
U79: Saldo
B80: Asiento | E80: Fecha | K80: Descripción | O80: Debe | Q80: Haber
A81: 64 | D81: 2010-01-14 | I81: DEVOL.FACTS.REPUESTOS La Isla | P81: 0 | S81: 351.87 | W81: -351.87
A82: 1331 | D82: 2010-06-27 | I82: DEVOL.1334 REPUESTOS La Isla | P82: 0 | S82: 12.34 | W82: -364.21
L83: TOTAL SUBCUENTA : | P83: 0 | S83: 364.21
B84: Subcuenta | E84: 62200000 | J84: REPARACION Y CONSERVACION | R84: Saldo: | X84: 0
U85: Saldo
B86: Asiento | E86: Fecha | K86: Descripción | O86: Debe | Q86: Haber
A87: 23 | D87: 2010-01-02 | I87: FACT.2300 TALLER Tito | P87: 120 | S87: 0 | W87: 120
A88: 50 | D88: 2010-01-10 | I88: FACT.700845 DESGASTES La Isla | P88: 330.22 | S88: 0 | W88: 450.22
A89: 57 | D89: 2010-01-11 | I89: FACT.110108 MECANIZADOS Icod | P89: 156.42 | S89: 0 | W89: 606.64
A90: 77 | D90: 2010-01-18 | I90: FACT.700879 DESGASTES La Isla | P90: 122.02 | S90: 0 | W90: 728.66
A91: 89 | D91: 2010-01-23 | I91: FACT.700904 DESGASTES La Isla | P91: 44.96 | S91: 0 | W91: 773.62
A92: 90 | D92: 2010-01-23 | I92: FACT.700899 DESGASTE La Isla | P92: 267.4 | S92: 0 | W92: 1041.02
A93: 139 | D93: 2010-01-31 | I93: FACT.153541 Maquinaria ESPAÑA | P93: 168.1 | S93: 0 | W93: 1209.12
A94: 141 | D94: 2010-01-31 | I94: FACT.700929 DESGASTES La Isla | P94: 9680.28 | S94: 0 | W94: 10889.4
A95: 170 | D95: 2010-02-01 | I95: FACT.0014/08 CERRAJERIA LOS perritos | P95: 1020 | S95: 0 | W95: 11909.4
A96: 190 | D96: 2010-02-07 | I96: FACT.2010000285 REPUESTOS La Isla | P96: 270.38 | S96: 0 | W96: 12179.78
A97: 240 | D97: 2010-02-18 | I97: FACT.701002 DESGASTES La Isla | P97: 302 | S97: 0 | W97: 12481.78
A98: 248 | D98: 2010-02-19 | I98: FACT.262335 Maquinaria ESPAÑA | P98: 237.6 | S98: 0 | W98: 12719.38
A99: 273 | D99: 2010-02-21 | I99: FACT.279180 Maquinaria ESPAÑA | P99: 484.2 | S99: 0 | W99: 13203.58
A100: 282 | D100: 2010-02-22 | I100: FACT.2010000425 REPUESTOS La Isla | P100: 725.62 | S100: 0 | W100: 13929.2
A101: 294 | D101: 2010-02-25 | I101: FACT.701025 DESGASTES La Isla | P101: 1117.6 | S101: 0 | W101: 15046.8
A102: 383 | D102: 2010-03-05 | I102: FACT.701067 DESGASTES La Isla | P102: 508.65 | S102: 0 | W102: 15555.45
A103: 445 | D103: 2010-03-15 | I103: FACT.2010000615 REPUESTOS La Isla | P103: 1600.66 | S103: 0 | W103: 17156.11
A104: 450 | D104: 2010-03-17 | I104: FACT.701100 DESGASTES La Isla | P104: 389.75 | S104: 0 | W104: 17545.86
A105: 461 | D105: 2010-03-18 | I105: FACT.2010000628 REPUESTOS La Isla | P105: 39.22 | S105: 0 | W105: 17585.08
A106: 660 | D106: 2010-04-14 | I106: FACT.701181 DESGASTES La Isla | P106: 641.2 | S106: 0 | W106: 18226.28
A107: 676 | D107: 2010-04-17 | I107: FACT.2010000878 REPUESTOS La Isla | P107: 2209.64 | S107: 0 | W107: 20435.92
A108: 726 | D108: 2010-04-26 | I108: FACT.2010000939 REPUESTOS La Isla | P108: 67.4 | S108: 0 | W108: 20503.32
A109: 884 | D109: 2010-05-09 | I109: FACT.2010001002 REPUESTOS La Isla | P109: 104.69 | S109: 0 | W109: 20608.01
A110: 901 | D110: 2010-05-13 | I110: FACT.2010001020 REPUETOS La Isla | P110: 275.99 | S110: 0 | W110: 20884
A111: 949 | D111: 2010-05-20 | I111: FACT.2010001074 REPUESTOS La Isla | P111: 541.52 | S111: 0 | W111: 21425.52
A112: 950 | D112: 2010-05-20 | I112: FACT.2010001077 REPUESTOS La Isla | P112: 203.09 | S112: 0 | W112: 21628.61
A113: 970 | D113: 2010-05-22 | I113: FACT.2267 TALLER Tito | P113: 60 | S113: 0 | W113: 21688.61
A114: 971 | D114: 2010-05-22 | I114: FACT.2268 TALLER Tito | P114: 120 | S114: 0 | W114: 21808.61
A115: 986 | D115: 2010-05-25 | I115: FACT.20800204 OPEIN | P115: 605.2 | S115: 0 | W115: 22413.81
A116: 990 | D116: 2010-05-26 | I116: FACT.1119 REPUESTOS La Isla | P116: 1087.42 | S116: 0 | W116: 23501.23
A117: 1018 | D117: 2010-05-28 | I117: FACT.2319 RODOLFO Luis MARTIN | P117: 240.48 | S117: 0 | W117: 23741.71
A118: 1030 | D118: 2010-05-29 | I118: FACT.0020100458 TrackMayor | P118: 314 | S118: 0 | W118: 24055.71
A119: 1031 | D119: 2010-05-29 | I119: FACT.0020100459 Trackotro | P119: 274 | S119: 0 | W119: 24329.71
A120: 1101 | D120: 2010-06-03 | I120: FACT.1174 REPUESTOS La Isla | P120: 1916.38 | S120: 0 | W120: 26246.09
A121: 1130 | D121: 2010-06-06 | I121: FACT.A01/12440 AUTOS HNOS.Pinto, S.L. | P121: 131.53 | S121: 0 | W121: 26377.62
A122: 1149 | D122: 2010-06-10 | I122: FACT.872931 Maquinaria ESPAÑA | P122: 39 | S122: 0 | W122: 26416.62
A123: 1172 | D123: 2010-06-12 | I123: FACT.887612 Maquinaria ESPAÑA | P123: 188.09 | S123: 0 | W123: 26604.71
A124: 1201 | D124: 2010-06-16 | I124: FACT.0054/08 CERRAJERIA LOS perritos | P124: 6089 | S124: 0 | W124: 32693.71
A125: 1229 | D125: 2010-06-18 | I125: FACT.916350 Maquinaria ESPAÑA | P125: 266.4 | S125: 0 | W125: 32960.11
A126: 1233 | D126: 2010-06-18 | I126: FACT.1266 REPUESTOS La Isla | P126: 582.7 | S126: 0 | W126: 33542.81
A127: 1234 | D127: 2010-06-19 | I127: FACT.923958 Maquinaria ESPAÑA | P127: 322.75 | S127: 0 | W127: 33865.56
A128: 1275 | D128: 2010-06-25 | I128: FACT.1322 REPUESTOS La Isla | P128: 40.92 | S128: 0 | W128: 33906.48
A129: 1299 | D129: 2010-06-26 | I129: FACT.2482 TALLER Tito | P129: 36.54 | S129: 0 | W129: 33943.02
A130: 1323 | D130: 2010-06-27 | I130: FACT.2490 TALLER Tito | P130: 29.96 | S130: 0 | W130: 33972.98
A131: 1371 | D131: 2010-06-30 | I131: FACT.F08/031 JOSE LUIS Tito RDG. | P131: 3060 | S131: 0 | W131: 37032.98
A132: 1469 | D132: 2010-07-08 | I132: FACT.1402 REPUESTOS La Isla | P132: 476.36 | S132: 0 | W132: 37509.34
A133: 1474 | D133: 2010-07-10 | I133: FACT.2543 TALLER Tito | P133: 390 | S133: 0 | W133: 37899.34
A134: 1494 | D134: 2010-07-12 | I134: FACT.20100598 Trackotro | P134: 588 | S134: 0 | W134: 38487.34
A135: 1536 | D135: 2010-07-17 | I135: FACT.1467 REPUESTOS La Isla | P135: 226.6 | S135: 0 | W135: 38713.94
A136: 1541 | D136: 2010-07-18 | I136: FACT.1077102 Maquinaria ESPAÑA | P136: 55 | S136: 0 | W136: 38768.94
A137: 1573 | D137: 2010-07-23 | I137: FACT.AV/5094 ANTONIO J. Pinto Pérez | P137: 204.11 | S137: 0 | W137: 38973.05
A138: 1704 | D138: 2010-07-31 | I138: FACT.1/581 MECANIZADOS Icod | P138: 57.62 | S138: 0 | W138: 39030.67
A139: 1765 | D139: 2010-08-14 | I139: FACT.6652 TALLER AUTOMOVIL Paco | P139: 2240.71 | S139: 0 | W139: 41271.38
A140: 1777 | D140: 2010-08-18 | I140: FACT.2010001643 REPUESTOS La Isla | P140: 250.26 | S140: 0 | W140: 41521.64
A141: 1895 | D141: 2010-08-29 | I141: FACT.20100712 Trackotro | P141: 425 | S141: 0 | W141: 41946.64
A142: 1917 | D142: 2010-08-31 | I142: FACT.FCR/6033 AUTOS HNOS. Pinto, S.L. | P142: 576.61 | S142: 0 | W142: 42523.25
A143: 2034 | D143: 2010-09-12 | I143: FACT.AV/5167 ANTONIO J. Pinto Pérez | P143: 7.96 | S143: 0 | W143: 42531.21
A144: 2067 | D144: 2010-09-17 | I144: FACT.2824 TALLER Tito | P144: 60 | S144: 0 | W144: 42591.21
A145: 2100 | D145: 2010-09-19 | I145: FACT.2010001789 REPUESTOS La Isla | P145: 1193.28 | S145: 0 | W145: 43784.49
A146: 2202 | D146: 2010-09-30 | I146: FACT.2917 TALLER Tito | P146: 30 | S146: 0 | W146: 43814.49
A147: 2203 | D147: 2010-09-30 | I147: FACT.2925 TALLER Tito | P147: 63 | S147: 0 | W147: 43877.49
A148: 2204 | D148: 2010-09-30 | I148: FACT.2877 TALLER Tito | P148: 250 | S148: 0 | W148: 44127.49
A149: 2205 | D149: 2010-09-30 | I149: FACT.2010001850 REPUESTOS La Isla | P149: 287.26 | S149: 0 | W149: 44414.75
A150: 2238 | D150: 2010-10-02 | I150: FACT.2010001856 REPUESTOS La Isla | P150: 516.61 | S150: 0 | W150: 44931.36
A151: 2321 | D151: 2010-10-13 | I151: FACT.2010001895 REPUESTOS La Isla | P151: 72.58 | S151: 0 | W151: 45003.94
A152: 2373 | D152: 2010-10-20 | I152: FACT.2010001938 REPUESTOS La Isla | P152: 1802.05 | S152: 0 | W152: 46805.99
A153: 2404 | D153: 2010-10-23 | I153: FACT.2963 TALLER Tito | P153: 60 | S153: 0 | W153: 46865.99
A154: 2474 | D154: 2010-10-28 | I154: FACT.2990 TALLER Tito | P154: 656.81 | S154: 0 | W154: 47522.8
A155: 2479 | D155: 2010-10-29 | I155: FACT.2010001993 REPUESTOS La Isla | P155: 1323.22 | S155: 0 | W155: 48846.02
A156: 2517 | D156: 2010-10-31 | I156: FACT.1/862 MECANIZADOS Icod | P156: 125.51 | S156: 0 | W156: 48971.53
A157: 2698 | D157: 2010-11-22 | I157: FACT.3074 TALLER Tito | P157: 120 | S157: 0 | W157: 49091.53
A158: 2773 | D158: 2010-11-30 | I158: FACT.899/08 Asesores Glez GESTORES | P158: 2764.17 | S158: 0 | W158: 51855.7
A159: 2904 | D159: 2010-12-15 | I159: FACT.101/2010 Controller Palmas, S.L.U. | P159: 6565.28 | S159: 0 | W159: 58420.98
A160: 2905 | D160: 2010-12-15 | I160: FACT.102/2010 Controller Palmas, S.L. | P160: 1303.8 | S160: 0 | W160: 59724.78
A161: 2963 | D161: 2010-12-19 | I161: FACT.3212 TALLER Tito | P161: 100 | S161: 0 | W161: 59824.78
A162: 2991 | D162: 2010-12-26 | I162: FACT.2010002244 REPUESTOS La Isla | P162: 397.98 | S162: 0 | W162: 60222.76
L163: TOTAL SUBCUENTA : | P163: 60222.76 | S163: 0
B164: Subcuenta | E164: 62300011 | J164: JOSE A. Glez Glez | R164: Saldo: | X164: 0
U165: Saldo
B166: Asiento | E166: Fecha | K166: Descripción | O166: Debe | Q166: Haber
A167: 20 | D167: 2010-01-02 | I167: FACT.1-2010 JOSE Glez Glez | P167: 180 | S167: 0 | W167: 180
L168: TOTAL SUBCUENTA : | P168: 180 | S168: 0
B169: Subcuenta | E169: 62400000 | J169: GASTOS TRANSPORTES | R169: Saldo: | X169: 0
U170: Saldo
B171: Asiento | E171: Fecha | K171: Descripción | O171: Debe | Q171: Haber
A172: 1177 | D172: 2010-06-12 | I172: FACT.64 LUIS A. Soto Soto | P172: 3033 | S172: 0 | W172: 3033
A173: 1749 | D173: 2010-08-09 | I173: FACT.299061 EXTACION TEXACO Peña ALTA | P173: 160 | S173: 0 | W173: 3193
A174: 1946 | D174: 2010-09-01 | I174: FACT.8125 Seur Canarias | P174: 44 | S174: 0 | W174: 3237
A175: 1947 | D175: 2010-09-01 | I175: FACT.8131 Seur Canarias | P175: 174.27 | S175: 0 | W175: 3411.27
A176: 1967 | D176: 2010-09-02 | I176: FACT.8157 Seur Canarias | P176: 86 | S176: 0 | W176: 3497.27
A177: 1975 | D177: 2010-09-04 | I177: FACT.8191 Seur Canarias | P177: 796.5 | S177: 0 | W177: 4293.77
A178: 1976 | D178: 2010-09-04 | I178: FACT.8197 Seur Canarias | P178: 826.9 | S178: 0 | W178: 5120.67
A179: 1977 | D179: 2010-09-04 | I179: FACT.8199 Seur Canarias | P179: 189.76 | S179: 0 | W179: 5310.43
A180: 1978 | D180: 2010-09-04 | I180: FACT.8201 Seur Canarias | P180: 870.19 | S180: 0 | W180: 6180.62
A181: 1979 | D181: 2010-09-04 | I181: FACT.8188 Seur Canarias | P181: 796.5 | S181: 0 | W181: 6977.12
A182: 1992 | D182: 2010-09-06 | I182: FACT.8229 Seur Canarias | P182: 173 | S182: 0 | W182: 7150.12
A183: 2001 | D183: 2010-09-09 | I183: FACT.8275 Seur Canarias | P183: 45 | S183: 0 | W183: 7195.12
A184: 2007 | D184: 2010-09-10 | I184: FACT.8290 Seur Canarias | P184: 201.86 | S184: 0 | W184: 7396.98
A185: 2020 | D185: 2010-09-11 | I185: FACT.8329 Seur Canarias | P185: 187 | S185: 0 | W185: 7583.98
A186: 2035 | D186: 2010-09-12 | I186: FACT.8339 Seur Canarias | P186: 794.7 | S186: 0 | W186: 8378.68
A187: 2036 | D187: 2010-09-12 | I187: FACT.8344 Seur Canarias | P187: 794.7 | S187: 0 | W187: 9173.38
A188: 2037 | D188: 2010-09-12 | I188: FACT.8342 Seur Canarias | P188: 794.7 | S188: 0 | W188: 9968.08
A189: 2038 | D189: 2010-09-12 | I189: FACT.8350 Seur Canarias | P189: 794.7 | S189: 0 | W189: 10762.78
A190: 2039 | D190: 2010-09-12 | I190: FACT.8352 Seur Canarias | P190: 128.52 | S190: 0 | W190: 10891.3
A191: 2049 | D191: 2010-09-15 | I191: FACT.8400 Seur Canarias | P191: 119.57 | S191: 0 | W191: 11010.87
A192: 2058 | D192: 2010-09-16 | I192: FACT.8419 Seur Canarias | P192: 80.23 | S192: 0 | W192: 11091.1
A193: 2064 | D193: 2010-09-17 | I193: FACT.8435 Seur Canarias | P193: 104 | S193: 0 | W193: 11195.1
A194: 2065 | D194: 2010-09-17 | I194: FACT.8458 Seur Canarias | P194: 140.44 | S194: 0 | W194: 11335.54
A195: 2074 | D195: 2010-09-18 | I195: FACT.8474 Seur Canarias | P195: 73.61 | S195: 0 | W195: 11409.15
A196: 2075 | D196: 2010-09-18 | I196: FACT.8477 Seur Canarias | P196: 45 | S196: 0 | W196: 11454.15
A197: 2096 | D197: 2010-09-19 | I197: FACT.8491 Seur Canarias | P197: 103 | S197: 0 | W197: 11557.15
A198: 2097 | D198: 2010-09-19 | I198: FACT.8501 Seur Canarias | P198: 772.2 | S198: 0 | W198: 12329.35
A199: 2098 | D199: 2010-09-19 | I199: FACT.8509 Seur Canarias | P199: 772.2 | S199: 0 | W199: 13101.55
A200: 2101 | D200: 2010-09-20 | I200: FACT.8524 Seur Canarias | P200: 183.24 | S200: 0 | W200: 13284.79
A201: 2103 | D201: 2010-09-22 | I201: FACT.8549 Seur Canarias | P201: 128.49 | S201: 0 | W201: 13413.28
... 488 more rows

Sheet Tabla de Datos 1
C2: Empresa : | H2: 61 - Comercial del Norte | T2: Página : | V2: 1
N3: LIBRO MAYOR
C4: Filtro : | G4: Desde la Subcuenta : 60000000 hasta 79999999. Desde 01/01/2010 hasta 31/12/2010. Desde el
G5: proyecto '0' hasta '0'
B6: Subcuenta | E6: 60100000 | R6: Saldo: | X6: 0
U7: Saldo
B8: Asiento | E8: Fecha | K8: Descripción | O8: Debe | Q8: Haber
A9: 2335 | D9: 2010-10-15 | E9: 60100000 | F9: COMPRAS MATERIAS PRIMAS | I9: FACT.3/2010 UTE canaria | P9: 7425 | S9: 0 | W9: 7425
A10: 2511 | D10: 2010-10-31 | E10: 60100001 | F10: COMPRAS MATERIAS PRIMAS | I10: FACT.4/2010 UTE canaria | P10: 6818.5 | S10: 0 | W10: 14243.5
A11: 2640 | D11: 2010-11-15 | E11: 60100002 | F11: COMPRAS MATERIAS PRIMAS | I11: FACT.UN 1089700001 UTE canaria | P11: 8317.5 | S11: 0 | W11: 22561
A12: 2760 | D12: 2010-11-30 | E12: 60100003 | F12: COMPRAS MATERIAS PRIMAS | I12: FACT.UN 1089700003 UTE canaria | P12: 10812 | S12: 0 | W12: 33373
A13: 2906 | D13: 2010-12-15 | E13: 60100004 | F13: COMPRAS MATERIAS PRIMAS | I13: FACT. UN1089700005 UTE canaria | P13: 7092 | S13: 0 | W13: 40465
A14: 3084 | D14: 2010-12-31 | E14: 60100005 | F14: COMPRAS MATERIAS PRIMAS | I14: FACT.UN1089700007 UTE canaria | P14: 3456 | S14: 0 | W14: 43921
L15: TOTAL SUBCUENTA : | P15: 43921 | S15: 0
B16: Subcuenta | E16: 60200000 | J16: COMPRA DE OTROS APROVISIONAMIENTOS | R16: Saldo: | X16: 0
U17: Saldo
B18: Asiento | E18: Fecha | K18: Descripción | O18: Debe | Q18: Haber
A19: 155 | D19: 2010-01-31 | E19: 60200000 | F19: COMPRA DE OTROS APROVISIONAMIENTOS | I19: FACT.31025 CIAL. marpa | P19: 3429.07 | S19: 0 | W19: 3429.07
A20: 473 | D20: 2010-03-24 | E20: 60200001 | F20: COMPRA DE OTROS APROVISIONAMIENTOS | I20: FACT.210262443 SIEMENS MAQUINARIA, S.A. | P20: 27.32 | S20: 0 | W20: 3456.39
A21: 486 | D21: 2010-03-25 | E21: 60200002 | F21: COMPRA DE OTROS APROVISIONAMIENTOS | I21: FACT.451912 Maquinaria ESPAÑA | P21: 279.83 | S21: 0 | W21: 3736.22
A22: 1408 | D22: 2010-07-02 | E22: 60200003 | F22: COMPRA DE OTROS APROVISIONAMIENTOS | I22: FACT.990474 Maquinaria ESPAÑA | P22: 101.3 | S22: 0 | W22: 3837.52
A23: 1540 | D23: 2010-07-18 | E23: 60200004 | F23: COMPRA DE OTROS APROVISIONAMIENTOS | I23: FACT.FV/8883 FERRET. RDG. Y Padrón. | P23: 1343.91 | S23: 0 | W23: 5181.43
A24: 1716 | D24: 2010-08-01 | E24: 60200005 | F24: COMPRA DE OTROS APROVISIONAMIENTOS | I24: FACT.1146148 Maquinaria ESPAÑA | P24: 304.32 | S24: 0 | W24: 5485.75
A25: 1750 | D25: 2010-08-11 | E25: 60200006 | F25: COMPRA DE OTROS APROVISIONAMIENTOS | I25: FACT.1190260 Maquinaria ESPAÑA | P25: 357.73 | S25: 0 | W25: 5843.48
A26: 2014 | D26: 2010-09-11 | E26: 60200007 | F26: COMPRA DE OTROS APROVISIONAMIENTOS | I26: FACT.1261704 Maquinaria ESPAÑA | P26: 15.2 | S26: 0 | W26: 5858.68
A27: 2015 | D27: 2010-09-11 | E27: 60200008 | F27: COMPRA DE OTROS APROVISIONAMIENTOS | I27: FACT.1261705 Maquinaria ESPAÑA | P27: 109 | S27: 0 | W27: 5967.68
A28: 2033 | D28: 2010-09-12 | E28: 60200009 | F28: COMPRA DE OTROS APROVISIONAMIENTOS | I28: FACT.1266265 Maquinaria ESPAÑA | P28: 235.2 | S28: 0 | W28: 6202.88
A29: 2066 | D29: 2010-09-17 | E29: 60200010 | F29: COMPRA DE OTROS APROVISIONAMIENTOS | I29: FACT.FV/9068 FERRET. RDG. Y Padrón. | P29: 50.8 | S29: 0 | W29: 6253.68
A30: 2105 | D30: 2010-09-22 | E30: 60200011 | F30: COMPRA DE OTROS APROVISIONAMIENTOS | I30: FACT.1309434 Maquinaria ESPAÑA | P30: 230.42 | S30: 0 | W30: 6484.1
A31: 2200 | D31: 2010-09-30 | E31: 60200012 | F31: COMPRA DE OTROS APROVISIONAMIENTOS | I31: FACT.1362089 Maquinaria ESPAÑA | P31: 937 | S31: 0 | W31: 7421.1
A32: 2229 | D32: 2010-10-01 | E32: 60200013 | F32: COMPRA DE OTROS APROVISIONAMIENTOS | I32: FACT.1362096 Maquinaria ESPAÑA | P32: 687.56 | S32: 0 | W32: 8108.66
A33: 2379 | D33: 2010-10-21 | E33: 60200014 | F33: COMPRA DE OTROS APROVISIONAMIENTOS | I33: FACT.FV/9168 FERRET. RDG. Y Padrón. | P33: 132.89 | S33: 0 | W33: 8241.55
A34: 2399 | D34: 2010-10-23 | E34: 60200015 | F34: COMPRA DE OTROS APROVISIONAMIENTOS | I34: FACT.21561 Tito, S.L. | P34: 142.8 | S34: 0 | W34: 8384.35
A35: 2403 | D35: 2010-10-23 | E35: 60200016 | F35: COMPRA DE OTROS APROVISIONAMIENTOS | I35: FACT.1473446 Maquinaria ESPAÑA | P35: 89.4 | S35: 0 | W35: 8473.75
A36: 2927 | D36: 2010-12-17 | E36: 60200017 | F36: COMPRA DE OTROS APROVISIONAMIENTOS | I36: FACT.FV/9422 FERRET. RDG. Y Padrón. | P36: 386.96 | S36: 0 | W36: 8860.71
L37: TOTAL SUBCUENTA : | P37: 8860.71 | S37: 0
B38: Subcuenta | E38: 60600000 | J38: DESCUENTOS SOBRE COMPRAS POR PRONTO PAGO | R38: Saldo: | X38: 0
U39: Saldo
B40: Asiento | E40: Fecha | K40: Descripción | O40: Debe | Q40: Haber
A41: 156 | D41: 2010-01-31 | E41: 60600000 | F41: DESCUENTOS SOBRE COMPRAS POR PRONTO PAGO | I41: DTO.FACT.31025 CIAL marpa | P41: 0 | S41: 171.46 | W41: -171.46
A42: 175 | D42: 2010-02-01 | E42: 60600001 | F42: DESCUENTOS SOBRE COMPRAS POR PRONTO PAGO | I42: DTO. FACT.30847 CIAL. marpa 2007 | P42: 0 | S42: 6.29 | W42: -177.75
A43: 1294 | D43: 2010-06-26 | E43: 60600002 | F43: DESCUENTOS SOBRE COMPRAS POR PRONTO PAGO | I43: DTO.FACT.NV2/329 González VIERA | P43: 0 | S43: 594.02 | W43: -771.77
A44: 1923 | D44: 2010-08-31 | E44: 60600003 | F44: DESCUENTOS SOBRE COMPRAS POR PRONTO PAGO | I44: DTO.FACTS. CIAL. marpa (INSTALACION AGUA) | P44: 0 | S44: 16.84 | W44: -788.61
A45: 2176 | D45: 2010-09-30 | E45: 60600004 | F45: DESCUENTOS SOBRE COMPRAS POR PRONTO PAGO | I45: DTO.FACT.32441 CIAL. marpa (INSTALACION AGUA) | P45: 0 | S45: 1452.77 | W45: -2241.38
L46: TOTAL SUBCUENTA : | P46: 0 | S46: 2241.38
B47: Subcuenta | E47: 60700000 | J47: TRABAJOS REALIZADOS POR OTRAS EMPRESAS | R47: Saldo: | X47: 0
U48: Saldo
B49: Asiento | E49: Fecha | K49: Descripción | O49: Debe | Q49: Haber
A50: 5 | D50: 2010-01-02 | E50: 60700000 | F50: TRABAJOS REALIZADOS POR OTRAS EMPRESAS | I50: FACT.34/2007 ROTURACIONES Y TTES. Cartell | P50: 3339 | S50: 0 | W50: 3339
A51: 74 | D51: 2010-01-16 | E51: 60700001 | F51: TRABAJOS REALIZADOS POR OTRAS EMPRESAS | I51: FACT.F08/2 ROTURACIONES julio | P51: 680.75 | S51: 0 | W51: 4019.75
A52: 168 | D52: 2010-01-31 | E52: 60700002 | F52: TRABAJOS REALIZADOS POR OTRAS EMPRESAS | I52: FACT.01/2010 FRANCISCO Pedro BRITO RDG. | P52: 954 | S52: 0 | W52: 4973.75
A53: 230 | D53: 2010-02-14 | E53: 60700003 | F53: TRABAJOS REALIZADOS POR OTRAS EMPRESAS | I53: FACT.F08/5 ROTURACIONES julio | P53: 253.5 | S53: 0 | W53: 5227.25
A54: 359 | D54: 2010-02-28 | E54: 60700004 | F54: TRABAJOS REALIZADOS POR OTRAS EMPRESAS | I54: FACT.2010.A.71 itres | P54: 244.14 | S54: 0 | W54: 5471.39
A55: 534 | D55: 2010-03-28 | E55: 60700005 | F55: TRABAJOS REALIZADOS POR OTRAS EMPRESAS | I55: FACT.11/2010 ROTURACIONES Y TTES. Cartell | P55: 1590 | S55: 0 | W55: 7061.39
A56: 833 | D56: 2010-04-30 | E56: 60700006 | F56: TRABAJOS REALIZADOS POR OTRAS EMPRESAS | I56: FACT.2010.A.180 itres | P56: 407.86 | S56: 0 | W56: 7469.25
A57: 1043 | D57: 2010-05-29 | E57: 60700007 | F57: TRABAJOS REALIZADOS POR OTRAS EMPRESAS | I57: FACT.2010.A.219 itres | P57: 790.56 | S57: 0 | W57: 8259.81
A58: 1298 | D58: 2010-06-26 | E58: 60700008 | F58: TRABAJOS REALIZADOS POR OTRAS EMPRESAS | I58: FACT.0064/08 CERRAJERIA LOS perritos | P58: 3502.62 | S58: 0 | W58: 11762.43
A59: 1322 | D59: 2010-06-27 | E59: 60700009 | F59: TRABAJOS REALIZADOS POR OTRAS EMPRESAS | I59: FACT.15/2010 ROTURACIONES Y TTES. Cartell | P59: 2399.22 | S59: 0 | W59: 14161.65
A60: 1559 | D60: 2010-07-22 | E60: 60700010 | F60: TRABAJOS REALIZADOS POR OTRAS EMPRESAS | I60: FACT.6781 harpa, S.L. | P60: 650 | S60: 0 | W60: 14811.65
A61: 1706 | D61: 2010-07-31 | E61: 60700011 | F61: TRABAJOS REALIZADOS POR OTRAS EMPRESAS | I61: FACT.2010.A.299 itres | P61: 1548.24 | S61: 0 | W61: 16359.89
A62: 1712 | D62: 2010-07-31 | E62: 60700012 | F62: TRABAJOS REALIZADOS POR OTRAS EMPRESAS | I62: FACT.16/2010 ROTURACIONES Y TTES. Cartell | P62: 480 | S62: 0 | W62: 16839.89
A63: 1748 | D63: 2010-08-08 | E63: 60700013 | F63: TRABAJOS REALIZADOS POR OTRAS EMPRESAS | I63: FACT.0070/08 CERRAJERIA LOS perritos | P63: 3026 | S63: 0 | W63: 19865.89
A64: 2168 | D64: 2010-09-30 | E64: 60700014 | F64: TRABAJOS REALIZADOS POR OTRAS EMPRESAS | I64: FACT.6818 harpa, S.L. | P64: 21318 | S64: 0 | W64: 41183.89
A65: 2206 | D65: 2010-09-30 | E65: 60700015 | F65: TRABAJOS REALIZADOS POR OTRAS EMPRESAS | I65: FACT.2010.A.362 itres | P65: 55.86 | S65: 0 | W65: 41239.75
A66: 2472 | D66: 2010-10-28 | E66: 60700016 | F66: TRABAJOS REALIZADOS POR OTRAS EMPRESAS | I66: FACT.6828 harpa, S.L. | P66: 12270 | S66: 0 | W66: 53509.75
A67: 2526 | D67: 2010-10-31 | E67: 60700017 | F67: TRABAJOS REALIZADOS POR OTRAS EMPRESAS | I67: FACT.2010.A.406 itres | P67: 2165.07 | S67: 0 | W67: 55674.82
A68: 2535 | D68: 2010-10-31 | E68: 60700018 | F68: TRABAJOS REALIZADOS POR OTRAS EMPRESAS | I68: FACT.25/2010 ROTURACIONES Y TTES. Cartell | P68: 2352 | S68: 0 | W68: 58026.82
A69: 2758 | D69: 2010-11-28 | E69: 60700019 | F69: TRABAJOS REALIZADOS POR OTRAS EMPRESAS | I69: FACT.26/2010 ROTURACIONES Y TTES. Cartell | P69: 3744 | S69: 0 | W69: 61770.82
L70: TOTAL SUBCUENTA : | P70: 61770.82 | S70: 0
B71: Subcuenta | E71: 60700001 | J71: TRABAJOS REALIZ. POR OTRAS EMPRESA NAVE | R71: Saldo: | X71: 0
U72: Saldo
B73: Asiento | E73: Fecha | K73: Descripción | O73: Debe | Q73: Haber
A74: 964 | D74: 2010-05-21 | E74: 60700001 | F74: TRABAJOS REALIZ. POR OTRAS EMPRESA NAVE | I74: FACT.NV2/323 González VIERA | P74: 38174.94 | S74: 0 | W74: 38174.94
A75: 1296 | D75: 2010-06-26 | E75: 60700001 | F75: TRABAJOS REALIZ. POR OTRAS EMPRESA NAVE | I75: FACT.3/685 FONTANERIA Tito LZO. | P75: 3074.49 | S75: 0 | W75: 41249.43
A76: 2903 | D76: 2010-12-15 | E76: 60700001 | F76: TRABAJOS REALIZ. POR OTRAS EMPRESA NAVE | I76: FACT.A/815 CERRAJERIA Los Vientos | P76: 1149 | S76: 0 | W76: 42398.43
L77: TOTAL SUBCUENTA : | P77: 42398.43 | S77: 0
B78: Subcuenta | E78: 60800000 | J78: DEVOLUCION DE COMPRAS Y OPERACIONES | R78: Saldo: | X78: 0
U79: Saldo
B80: Asiento | E80: Fecha | K80: Descripción | O80: Debe | Q80: Haber
A81: 64 | D81: 2010-01-14 | E81: 60800000 | F81: DEVOLUCION DE COMPRAS Y OPERACIONES | I81: DEVOL.FACTS.REPUESTOS La Isla | P81: 0 | S81: 351.87 | W81: -351.87
A82: 1331 | D82: 2010-06-27 | E82: 60800001 | F82: DEVOLUCION DE COMPRAS Y OPERACIONES | I82: DEVOL.1334 REPUESTOS La Isla | P82: 0 | S82: 12.34 | W82: -364.21
L83: TOTAL SUBCUENTA : | P83: 0 | S83: 364.21
B84: Subcuenta | E84: 62200000 | J84: REPARACION Y CONSERVACION | R84: Saldo: | X84: 0
U85: Saldo
B86: Asiento | E86: Fecha | K86: Descripción | O86: Debe | Q86: Haber
A87: 23 | D87: 2010-01-02 | E87: 62200000 | F87: REPARACION Y CONSERVACION | I87: FACT.2300 TALLER Tito | P87: 120 | S87: 0 | W87: 120
A88: 50 | D88: 2010-01-10 | E88: 62200001 | F88: REPARACION Y CONSERVACION | I88: FACT.700845 DESGASTES La Isla | P88: 330.22 | S88: 0 | W88: 450.22
A89: 57 | D89: 2010-01-11 | E89: 62200002 | F89: REPARACION Y CONSERVACION | I89: FACT.110108 MECANIZADOS Icod | P89: 156.42 | S89: 0 | W89: 606.64
A90: 77 | D90: 2010-01-18 | E90: 62200003 | F90: REPARACION Y CONSERVACION | I90: FACT.700879 DESGASTES La Isla | P90: 122.02 | S90: 0 | W90: 728.66
A91: 89 | D91: 2010-01-23 | E91: 62200004 | F91: REPARACION Y CONSERVACION | I91: FACT.700904 DESGASTES La Isla | P91: 44.96 | S91: 0 | W91: 773.62
A92: 90 | D92: 2010-01-23 | E92: 62200005 | F92: REPARACION Y CONSERVACION | I92: FACT.700899 DESGASTE La Isla | P92: 267.4 | S92: 0 | W92: 1041.02
A93: 139 | D93: 2010-01-31 | E93: 62200006 | F93: REPARACION Y CONSERVACION | I93: FACT.153541 Maquinaria ESPAÑA | P93: 168.1 | S93: 0 | W93: 1209.12
A94: 141 | D94: 2010-01-31 | E94: 62200007 | F94: REPARACION Y CONSERVACION | I94: FACT.700929 DESGASTES La Isla | P94: 9680.28 | S94: 0 | W94: 10889.4
A95: 170 | D95: 2010-02-01 | E95: 62200008 | F95: REPARACION Y CONSERVACION | I95: FACT.0014/08 CERRAJERIA LOS perritos | P95: 1020 | S95: 0 | W95: 11909.4
A96: 190 | D96: 2010-02-07 | E96: 62200009 | F96: REPARACION Y CONSERVACION | I96: FACT.2010000285 REPUESTOS La Isla | P96: 270.38 | S96: 0 | W96: 12179.78
A97: 240 | D97: 2010-02-18 | E97: 62200010 | F97: REPARACION Y CONSERVACION | I97: FACT.701002 DESGASTES La Isla | P97: 302 | S97: 0 | W97: 12481.78
A98: 248 | D98: 2010-02-19 | E98: 62200011 | F98: REPARACION Y CONSERVACION | I98: FACT.262335 Maquinaria ESPAÑA | P98: 237.6 | S98: 0 | W98: 12719.38
A99: 273 | D99: 2010-02-21 | E99: 62200012 | F99: REPARACION Y CONSERVACION | I99: FACT.279180 Maquinaria ESPAÑA | P99: 484.2 | S99: 0 | W99: 13203.58
A100: 282 | D100: 2010-02-22 | E100: 62200013 | F100: REPARACION Y CONSERVACION | I100: FACT.2010000425 REPUESTOS La Isla | P100: 725.62 | S100: 0 | W100: 13929.2
A101: 294 | D101: 2010-02-25 | E101: 62200014 | F101: REPARACION Y CONSERVACION | I101: FACT.701025 DESGASTES La Isla | P101: 1117.6 | S101: 0 | W101: 15046.8
A102: 383 | D102: 2010-03-05 | E102: 62200015 | F102: REPARACION Y CONSERVACION | I102: FACT.701067 DESGASTES La Isla | P102: 508.65 | S102: 0 | W102: 15555.45
A103: 445 | D103: 2010-03-15 | E103: 62200016 | F103: REPARACION Y CONSERVACION | I103: FACT.2010000615 REPUESTOS La Isla | P103: 1600.66 | S103: 0 | W103: 17156.11
A104: 450 | D104: 2010-03-17 | E104: 62200017 | F104: REPARACION Y CONSERVACION | I104: FACT.701100 DESGASTES La Isla | P104: 389.75 | S104: 0 | W104: 17545.86
A105: 461 | D105: 2010-03-18 | E105: 62200018 | F105: REPARACION Y CONSERVACION | I105: FACT.2010000628 REPUESTOS La Isla | P105: 39.22 | S105: 0 | W105: 17585.08
A106: 660 | D106: 2010-04-14 | E106: 62200019 | F106: REPARACION Y CONSERVACION | I106: FACT.701181 DESGASTES La Isla | P106: 641.2 | S106: 0 | W106: 18226.28
A107: 676 | D107: 2010-04-17 | E107: 62200020 | F107: REPARACION Y CONSERVACION | I107: FACT.2010000878 REPUESTOS La Isla | P107: 2209.64 | S107: 0 | W107: 20435.92
A108: 726 | D108: 2010-04-26 | E108: 62200021 | F108: REPARACION Y CONSERVACION | I108: FACT.2010000939 REPUESTOS La Isla | P108: 67.4 | S108: 0 | W108: 20503.32
A109: 884 | D109: 2010-05-09 | E109: 62200022 | F109: REPARACION Y CONSERVACION | I109: FACT.2010001002 REPUESTOS La Isla | P109: 104.69 | S109: 0 | W109: 20608.01
A110: 901 | D110: 2010-05-13 | E110: 62200023 | F110: REPARACION Y CONSERVACION | I110: FACT.2010001020 REPUETOS La Isla | P110: 275.99 | S110: 0 | W110: 20884
A111: 949 | D111: 2010-05-20 | E111: 62200024 | F111: REPARACION Y CONSERVACION | I111: FACT.2010001074 REPUESTOS La Isla | P111: 541.52 | S111: 0 | W111: 21425.52
A112: 950 | D112: 2010-05-20 | E112: 62200025 | F112: REPARACION Y CONSERVACION | I112: FACT.2010001077 REPUESTOS La Isla | P112: 203.09 | S112: 0 | W112: 21628.61
A113: 970 | D113: 2010-05-22 | E113: 62200026 | F113: REPARACION Y CONSERVACION | I113: FACT.2267 TALLER Tito | P113: 60 | S113: 0 | W113: 21688.61
A114: 971 | D114: 2010-05-22 | E114: 62200027 | F114: REPARACION Y CONSERVACION | I114: FACT.2268 TALLER Tito | P114: 120 | S114: 0 | W114: 21808.61
A115: 986 | D115: 2010-05-25 | E115: 62200028 | F115: REPARACION Y CONSERVACION | I115: FACT.20800204 OPEIN | P115: 605.2 | S115: 0 | W115: 22413.81
A116: 990 | D116: 2010-05-26 | E116: 62200029 | F116: REPARACION Y CONSERVACION | I116: FACT.1119 REPUESTOS La Isla | P116: 1087.42 | S116: 0 | W116: 23501.23
A117: 1018 | D117: 2010-05-28 | E117: 62200030 | F117: REPARACION Y CONSERVACION | I117: FACT.2319 RODOLFO Luis MARTIN | P117: 240.48 | S117: 0 | W117: 23741.71
A118: 1030 | D118: 2010-05-29 | E118: 62200031 | F118: REPARACION Y CONSERVACION | I118: FACT.0020100458 TrackMayor | P118: 314 | S118: 0 | W118: 24055.71
A119: 1031 | D119: 2010-05-29 | E119: 62200032 | F119: REPARACION Y CONSERVACION | I119: FACT.0020100459 Trackotro | P119: 274 | S119: 0 | W119: 24329.71
A120: 1101 | D120: 2010-06-03 | E120: 62200033 | F120: REPARACION Y CONSERVACION | I120: FACT.1174 REPUESTOS La Isla | P120: 1916.38 | S120: 0 | W120: 26246.09
A121: 1130 | D121: 2010-06-06 | E121: 62200034 | F121: REPARACION Y CONSERVACION | I121: FACT.A01/12440 AUTOS HNOS.Pinto, S.L. | P121: 131.53 | S121: 0 | W121: 26377.62
A122: 1149 | D122: 2010-06-10 | E122: 62200035 | F122: REPARACION Y CONSERVACION | I122: FACT.872931 Maquinaria ESPAÑA | P122: 39 | S122: 0 | W122: 26416.62
A123: 1172 | D123: 2010-06-12 | E123: 62200036 | F123: REPARACION Y CONSERVACION | I123: FACT.887612 Maquinaria ESPAÑA | P123: 188.09 | S123: 0 | W123: 26604.71
A124: 1201 | D124: 2010-06-16 | E124: 62200037 | F124: REPARACION Y CONSERVACION | I124: FACT.0054/08 CERRAJERIA LOS perritos | P124: 6089 | S124: 0 | W124: 32693.71
A125: 1229 | D125: 2010-06-18 | E125: 62200038 | F125: REPARACION Y CONSERVACION | I125: FACT.916350 Maquinaria ESPAÑA | P125: 266.4 | S125: 0 | W125: 32960.11
A126: 1233 | D126: 2010-06-18 | E126: 62200039 | F126: REPARACION Y CONSERVACION | I126: FACT.1266 REPUESTOS La Isla | P126: 582.7 | S126: 0 | W126: 33542.81
A127: 1234 | D127: 2010-06-19 | E127: 62200040 | F127: REPARACION Y CONSERVACION | I127: FACT.923958 Maquinaria ESPAÑA | P127: 322.75 | S127: 0 | W127: 33865.56
A128: 1275 | D128: 2010-06-25 | E128: 62200041 | F128: REPARACION Y CONSERVACION | I128: FACT.1322 REPUESTOS La Isla | P128: 40.92 | S128: 0 | W128: 33906.48
A129: 1299 | D129: 2010-06-26 | E129: 62200042 | F129: REPARACION Y CONSERVACION | I129: FACT.2482 TALLER Tito | P129: 36.54 | S129: 0 | W129: 33943.02
A130: 1323 | D130: 2010-06-27 | E130: 62200043 | F130: REPARACION Y CONSERVACION | I130: FACT.2490 TALLER Tito | P130: 29.96 | S130: 0 | W130: 33972.98
A131: 1371 | D131: 2010-06-30 | E131: 62200044 | F131: REPARACION Y CONSERVACION | I131: FACT.F08/031 JOSE LUIS Tito RDG. | P131: 3060 | S131: 0 | W131: 37032.98
A132: 1469 | D132: 2010-07-08 | E132: 62200045 | F132: REPARACION Y CONSERVACION | I132: FACT.1402 REPUESTOS La Isla | P132: 476.36 | S132: 0 | W132: 37509.34
A133: 1474 | D133: 2010-07-10 | E133: 62200046 | F133: REPARACION Y CONSERVACION | I133: FACT.2543 TALLER Tito | P133: 390 | S133: 0 | W133: 37899.34
A134: 1494 | D134: 2010-07-12 | E134: 62200047 | F134: REPARACION Y CONSERVACION | I134: FACT.20100598 Trackotro | P134: 588 | S134: 0 | W134: 38487.34
A135: 1536 | D135: 2010-07-17 | E135: 62200048 | F135: REPARACION Y CONSERVACION | I135: FACT.1467 REPUESTOS La Isla | P135: 226.6 | S135: 0 | W135: 38713.94
A136: 1541 | D136: 2010-07-18 | E136: 62200049 | F136: REPARACION Y CONSERVACION | I136: FACT.1077102 Maquinaria ESPAÑA | P136: 55 | S136: 0 | W136: 38768.94
A137: 1573 | D137: 2010-07-23 | E137: 62200050 | F137: REPARACION Y CONSERVACION | I137: FACT.AV/5094 ANTONIO J. Pinto Pérez | P137: 204.11 | S137: 0 | W137: 38973.05
A138: 1704 | D138: 2010-07-31 | E138: 62200051 | F138: REPARACION Y CONSERVACION | I138: FACT.1/581 MECANIZADOS Icod | P138: 57.62 | S138: 0 | W138: 39030.67
A139: 1765 | D139: 2010-08-14 | E139: 62200052 | F139: REPARACION Y CONSERVACION | I139: FACT.6652 TALLER AUTOMOVIL Paco | P139: 2240.71 | S139: 0 | W139: 41271.38
A140: 1777 | D140: 2010-08-18 | E140: 62200053 | F140: REPARACION Y CONSERVACION | I140: FACT.2010001643 REPUESTOS La Isla | P140: 250.26 | S140: 0 | W140: 41521.64
A141: 1895 | D141: 2010-08-29 | E141: 62200054 | F141: REPARACION Y CONSERVACION | I141: FACT.20100712 Trackotro | P141: 425 | S141: 0 | W141: 41946.64
A142: 1917 | D142: 2010-08-31 | E142: 62200055 | F142: REPARACION Y CONSERVACION | I142: FACT.FCR/6033 AUTOS HNOS. Pinto, S.L. | P142: 576.61 | S142: 0 | W142: 42523.25
A143: 2034 | D143: 2010-09-12 | E143: 62200056 | F143: REPARACION Y CONSERVACION | I143: FACT.AV/5167 ANTONIO J. Pinto Pérez | P143: 7.96 | S143: 0 | W143: 42531.21
A144: 2067 | D144: 2010-09-17 | E144: 62200057 | F144: REPARACION Y CONSERVACION | I144: FACT.2824 TALLER Tito | P144: 60 | S144: 0 | W144: 42591.21
A145: 2100 | D145: 2010-09-19 | E145: 62200058 | F145: REPARACION Y CONSERVACION | I145: FACT.2010001789 REPUESTOS La Isla | P145: 1193.28 | S145: 0 | W145: 43784.49
A146: 2202 | D146: 2010-09-30 | E146: 62200059 | F146: REPARACION Y CONSERVACION | I146: FACT.2917 TALLER Tito | P146: 30 | S146: 0 | W146: 43814.49
A147: 2203 | D147: 2010-09-30 | E147: 62200060 | F147: REPARACION Y CONSERVACION | I147: FACT.2925 TALLER Tito | P147: 63 | S147: 0 | W147: 43877.49
A148: 2204 | D148: 2010-09-30 | E148: 62200061 | F148: REPARACION Y CONSERVACION | I148: FACT.2877 TALLER Tito | P148: 250 | S148: 0 | W148: 44127.49
A149: 2205 | D149: 2010-09-30 | E149: 62200062 | F149: REPARACION Y CONSERVACION | I149: FACT.2010001850 REPUESTOS La Isla | P149: 287.26 | S149: 0 | W149: 44414.75
A150: 2238 | D150: 2010-10-02 | E150: 62200063 | F150: REPARACION Y CONSERVACION | I150: FACT.2010001856 REPUESTOS La Isla | P150: 516.61 | S150: 0 | W150: 44931.36
A151: 2321 | D151: 2010-10-13 | E151: 62200064 | F151: REPARACION Y CONSERVACION | I151: FACT.2010001895 REPUESTOS La Isla | P151: 72.58 | S151: 0 | W151: 45003.94
A152: 2373 | D152: 2010-10-20 | E152: 62200065 | F152: REPARACION Y CONSERVACION | I152: FACT.2010001938 REPUESTOS La Isla | P152: 1802.05 | S152: 0 | W152: 46805.99
A153: 2404 | D153: 2010-10-23 | E153: 62200066 | F153: REPARACION Y CONSERVACION | I153: FACT.2963 TALLER Tito | P153: 60 | S153: 0 | W153: 46865.99
A154: 2474 | D154: 2010-10-28 | E154: 62200067 | F154: REPARACION Y CONSERVACION | I154: FACT.2990 TALLER Tito | P154: 656.81 | S154: 0 | W154: 47522.8
A155: 2479 | D155: 2010-10-29 | E155: 62200068 | F155: REPARACION Y CONSERVACION | I155: FACT.2010001993 REPUESTOS La Isla | P155: 1323.22 | S155: 0 | W155: 48846.02
A156: 2517 | D156: 2010-10-31 | E156: 62200069 | F156: REPARACION Y CONSERVACION | I156: FACT.1/862 MECANIZADOS Icod | P156: 125.51 | S156: 0 | W156: 48971.53
A157: 2698 | D157: 2010-11-22 | E157: 62200070 | F157: REPARACION Y CONSERVACION | I157: FACT.3074 TALLER Tito | P157: 120 | S157: 0 | W157: 49091.53
A158: 2773 | D158: 2010-11-30 | E158: 62200071 | F158: REPARACION Y CONSERVACION | I158: FACT.899/08 Asesores Glez GESTORES | P158: 2764.17 | S158: 0 | W158: 51855.7
A159: 2904 | D159: 2010-12-15 | E159: 62200072 | F159: REPARACION Y CONSERVACION | I159: FACT.101/2010 Controller Palmas, S.L.U. | P159: 6565.28 | S159: 0 | W159: 58420.98
A160: 2905 | D160: 2010-12-15 | E160: 62200073 | F160: REPARACION Y CONSERVACION | I160: FACT.102/2010 Controller Palmas, S.L. | P160: 1303.8 | S160: 0 | W160: 59724.78
A161: 2963 | D161: 2010-12-19 | E161: 62200074 | F161: REPARACION Y CONSERVACION | I161: FACT.3212 TALLER Tito | P161: 100 | S161: 0 | W161: 59824.78
A162: 2991 | D162: 2010-12-26 | E162: 62200075 | F162: REPARACION Y CONSERVACION | I162: FACT.2010002244 REPUESTOS La Isla | P162: 397.98 | S162: 0 | W162: 60222.76
L163: TOTAL SUBCUENTA : | P163: 60222.76 | S163: 0
B164: Subcuenta | E164: 62300011 | J164: JOSE A. Glez Glez | R164: Saldo: | X164: 0
U165: Saldo
B166: Asiento | E166: Fecha | K166: Descripción | O166: Debe | Q166: Haber
A167: 20 | D167: 2010-01-02 | E167: 62300011 | F167: JOSE A. Glez Glez | I167: FACT.1-2010 JOSE Glez Glez | P167: 180 | S167: 0 | W167: 180
L168: TOTAL SUBCUENTA : | P168: 180 | S168: 0
B169: Subcuenta | E169: 62400000 | J169: GASTOS TRANSPORTES | R169: Saldo: | X169: 0
U170: Saldo
B171: Asiento | E171: Fecha | K171: Descripción | O171: Debe | Q171: Haber
A172: 1177 | D172: 2010-06-12 | E172: 62400000 | F172: GASTOS TRANSPORTES | I172: FACT.64 LUIS A. Soto Soto | P172: 3033 | S172: 0 | W172: 3033
A173: 1749 | D173: 2010-08-09 | E173: 62400001 | F173: GASTOS TRANSPORTES | I173: FACT.299061 EXTACION TEXACO Peña ALTA | P173: 160 | S173: 0 | W173: 3193
A174: 1946 | D174: 2010-09-01 | E174: 62400002 | F174: GASTOS TRANSPORTES | I174: FACT.8125 Seur Canarias | P174: 44 | S174: 0 | W174: 3237
A175: 1947 | D175: 2010-09-01 | E175: 62400003 | F175: GASTOS TRANSPORTES | I175: FACT.8131 Seur Canarias | P175: 174.27 | S175: 0 | W175: 3411.27
A176: 1967 | D176: 2010-09-02 | E176: 62400004 | F176: GASTOS TRANSPORTES | I176: FACT.8157 Seur Canarias | P176: 86 | S176: 0 | W176: 3497.27
A177: 1975 | D177: 2010-09-04 | E177: 62400005 | F177: GASTOS TRANSPORTES | I177: FACT.8191 Seur Canarias | P177: 796.5 | S177: 0 | W177: 4293.77
A178: 1976 | D178: 2010-09-04 | E178: 62400006 | F178: GASTOS TRANSPORTES | I178: FACT.8197 Seur Canarias | P178: 826.9 | S178: 0 | W178: 5120.67
A179: 1977 | D179: 2010-09-04 | E179: 62400007 | F179: GASTOS TRANSPORTES | I179: FACT.8199 Seur Canarias | P179: 189.76 | S179: 0 | W179: 5310.43
A180: 1978 | D180: 2010-09-04 | E180: 62400008 | F180: GASTOS TRANSPORTES | I180: FACT.8201 Seur Canarias | P180: 870.19 | S180: 0 | W180: 6180.62
A181: 1979 | D181: 2010-09-04 | E181: 62400009 | F181: GASTOS TRANSPORTES | I181: FACT.8188 Seur Canarias | P181: 796.5 | S181: 0 | W181: 6977.12
A182: 1992 | D182: 2010-09-06 | E182: 62400010 | F182: GASTOS TRANSPORTES | I182: FACT.8229 Seur Canarias | P182: 173 | S182: 0 | W182: 7150.12
A183: 2001 | D183: 2010-09-09 | E183: 62400011 | F183: GASTOS TRANSPORTES | I183: FACT.8275 Seur Canarias | P183: 45 | S183: 0 | W183: 7195.12
A184: 2007 | D184: 2010-09-10 | E184: 62400012 | F184: GASTOS TRANSPORTES | I184: FACT.8290 Seur Canarias | P184: 201.86 | S184: 0 | W184: 7396.98
A185: 2020 | D185: 2010-09-11 | E185: 62400013 | F185: GASTOS TRANSPORTES | I185: FACT.8329 Seur Canarias | P185: 187 | S185: 0 | W185: 7583.98
A186: 2035 | D186: 2010-09-12 | E186: 62400014 | F186: GASTOS TRANSPORTES | I186: FACT.8339 Seur Canarias | P186: 794.7 | S186: 0 | W186: 8378.68
A187: 2036 | D187: 2010-09-12 | E187: 62400015 | F187: GASTOS TRANSPORTES | I187: FACT.8344 Seur Canarias | P187: 794.7 | S187: 0 | W187: 9173.38
A188: 2037 | D188: 2010-09-12 | E188: 62400016 | F188: GASTOS TRANSPORTES | I188: FACT.8342 Seur Canarias | P188: 794.7 | S188: 0 | W188: 9968.08
A189: 2038 | D189: 2010-09-12 | E189: 62400017 | F189: GASTOS TRANSPORTES | I189: FACT.8350 Seur Canarias | P189: 794.7 | S189: 0 | W189: 10762.78
A190: 2039 | D190: 2010-09-12 | E190: 62400018 | F190: GASTOS TRANSPORTES | I190: FACT.8352 Seur Canarias | P190: 128.52 | S190: 0 | W190: 10891.3
A191: 2049 | D191: 2010-09-15 | E191: 62400019 | F191: GASTOS TRANSPORTES | I191: FACT.8400 Seur Canarias | P191: 119.57 | S191: 0 | W191: 11010.87
A192: 2058 | D192: 2010-09-16 | E192: 62400020 | F192: GASTOS TRANSPORTES | I192: FACT.8419 Seur Canarias | P192: 80.23 | S192: 0 | W192: 11091.1
A193: 2064 | D193: 2010-09-17 | E193: 62400021 | F193: GASTOS TRANSPORTES | I193: FACT.8435 Seur Canarias | P193: 104 | S193: 0 | W193: 11195.1
A194: 2065 | D194: 2010-09-17 | E194: 62400022 | F194: GASTOS TRANSPORTES | I194: FACT.8458 Seur Canarias | P194: 140.44 | S194: 0 | W194: 11335.54
A195: 2074 | D195: 2010-09-18 | E195: 62400023 | F195: GASTOS TRANSPORTES | I195: FACT.8474 Seur Canarias | P195: 73.61 | S195: 0 | W195: 11409.15
A196: 2075 | D196: 2010-09-18 | E196: 62400024 | F196: GASTOS TRANSPORTES | I196: FACT.8477 Seur Canarias | P196: 45 | S196: 0 | W196: 11454.15
A197: 2096 | D197: 2010-09-19 | E197: 62400025 | F197: GASTOS TRANSPORTES | I197: FACT.8491 Seur Canarias | P197: 103 | S197: 0 | W197: 11557.15
A198: 2097 | D198: 2010-09-19 | E198: 62400026 | F198: GASTOS TRANSPORTES | I198: FACT.8501 Seur Canarias | P198: 772.2 | S198: 0 | W198: 12329.35
A199: 2098 | D199: 2010-09-19 | E199: 62400027 | F199: GASTOS TRANSPORTES | I199: FACT.8509 Seur Canarias | P199: 772.2 | S199: 0 | W199: 13101.55
A200: 2101 | D200: 2010-09-20 | E200: 62400028 | F200: GASTOS TRANSPORTES | I200: FACT.8524 Seur Canarias | P200: 183.24 | S200: 0 | W200: 13284.79
A201: 2103 | D201: 2010-09-22 | E201: 62400029 | F201: GASTOS TRANSPORTES | I201: FACT.8549 Seur Canarias | P201: 128.49 | S201: 0 | W201: 13413.28
... 488 more rows

Sheet Tabla de Datos 2
A1: LIBRO MAYOR
B2: Empresa : | C2: 61 - ELEMENTOS PREFABRICADOS GENERALES | F2: Página : | G2: 1
C4: Filtro : | D4: Desde la Subcuenta : 60000000 hasta 79999999. Desde 01/01/2010 hasta 31/12/2010. Desde el
D5: proyecto '0' hasta '0'
A6: Asiento | B6: Fecha | C6: Subcuenta | D6: Titulo Subcuenta | E6: Descripción | F6: Debe | G6: Haber
A7: 2335 | B7: 2010-10-15 | C7: 60100000 | D7: COMPRAS MATERIAS PRIMAS | E7: FACT.3/2010 UTE canaria | F7: 7425 | G7: 0
A8: 2511 | B8: 2010-10-31 | C8: 60100001 | D8: COMPRAS MATERIAS PRIMAS | E8: FACT.4/2010 UTE canaria | F8: 6818.5 | G8: 0
A9: 2640 | B9: 2010-11-15 | C9: 60100002 | D9: COMPRAS MATERIAS PRIMAS | E9: FACT.UN 1089700001 UTE canaria | F9: 8317.5 | G9: 0
A10: 2760 | B10: 2010-11-30 | C10: 60100003 | D10: COMPRAS MATERIAS PRIMAS | E10: FACT.UN 1089700003 UTE canaria | F10: 10812 | G10: 0
A11: 2906 | B11: 2010-12-15 | C11: 60100004 | D11: COMPRAS MATERIAS PRIMAS | E11: FACT. UN1089700005 UTE canaria | F11: 7092 | G11: 0
A12: 3084 | B12: 2010-12-31 | C12: 60100005 | D12: COMPRAS MATERIAS PRIMAS | E12: FACT.UN1089700007 UTE canaria | F12: 3456 | G12: 0
A13: 155 | B13: 2010-01-31 | C13: 60200000 | D13: COMPRA DE OTROS APROVISIONAMIENTOS | E13: FACT.31025 CIAL. marpa | F13: 3429.07 | G13: 0
A14: 473 | B14: 2010-03-24 | C14: 60200001 | D14: COMPRA DE OTROS APROVISIONAMIENTOS | E14: FACT.210262443 SIEMENS MAQUINARIA, S.A. | F14: 27.32 | G14: 0
A15: 486 | B15: 2010-03-25 | C15: 60200002 | D15: COMPRA DE OTROS APROVISIONAMIENTOS | E15: FACT.451912 Maquinaria ESPAÑA | F15: 279.83 | G15: 0
A16: 1408 | B16: 2010-07-02 | C16: 60200003 | D16: COMPRA DE OTROS APROVISIONAMIENTOS | E16: FACT.990474 Maquinaria ESPAÑA | F16: 101.3 | G16: 0
A17: 1540 | B17: 2010-07-18 | C17: 60200004 | D17: COMPRA DE OTROS APROVISIONAMIENTOS | E17: FACT.FV/8883 FERRET. RDG. Y Padrón. | F17: 1343.91 | G17: 0
A18: 1716 | B18: 2010-08-01 | C18: 60200005 | D18: COMPRA DE OTROS APROVISIONAMIENTOS | E18: FACT.1146148 Maquinaria ESPAÑA | F18: 304.32 | G18: 0
A19: 1750 | B19: 2010-08-11 | C19: 60200006 | D19: COMPRA DE OTROS APROVISIONAMIENTOS | E19: FACT.1190260 Maquinaria ESPAÑA | F19: 357.73 | G19: 0
A20: 2014 | B20: 2010-09-11 | C20: 60200007 | D20: COMPRA DE OTROS APROVISIONAMIENTOS | E20: FACT.1261704 Maquinaria ESPAÑA | F20: 15.2 | G20: 0
A21: 2015 | B21: 2010-09-11 | C21: 60200008 | D21: COMPRA DE OTROS APROVISIONAMIENTOS | E21: FACT.1261705 Maquinaria ESPAÑA | F21: 109 | G21: 0
A22: 2033 | B22: 2010-09-12 | C22: 60200009 | D22: COMPRA DE OTROS APROVISIONAMIENTOS | E22: FACT.1266265 Maquinaria ESPAÑA | F22: 235.2 | G22: 0
A23: 2066 | B23: 2010-09-17 | C23: 60200010 | D23: COMPRA DE OTROS APROVISIONAMIENTOS | E23: FACT.FV/9068 FERRET. RDG. Y Padrón. | F23: 50.8 | G23: 0
A24: 2105 | B24: 2010-09-22 | C24: 60200011 | D24: COMPRA DE OTROS APROVISIONAMIENTOS | E24: FACT.1309434 Maquinaria ESPAÑA | F24: 230.42 | G24: 0
A25: 2200 | B25: 2010-09-30 | C25: 60200012 | D25: COMPRA DE OTROS APROVISIONAMIENTOS | E25: FACT.1362089 Maquinaria ESPAÑA | F25: 937 | G25: 0
A26: 2229 | B26: 2010-10-01 | C26: 60200013 | D26: COMPRA DE OTROS APROVISIONAMIENTOS | E26: FACT.1362096 Maquinaria ESPAÑA | F26: 687.56 | G26: 0
A27: 2379 | B27: 2010-10-21 | C27: 60200014 | D27: COMPRA DE OTROS APROVISIONAMIENTOS | E27: FACT.FV/9168 FERRET. RDG. Y Padrón. | F27: 132.89 | G27: 0
A28: 2399 | B28: 2010-10-23 | C28: 60200015 | D28: COMPRA DE OTROS APROVISIONAMIENTOS | E28: FACT.21561 Tito, S.L. | F28: 142.8 | G28: 0
A29: 2403 | B29: 2010-10-23 | C29: 60200016 | D29: COMPRA DE OTROS APROVISIONAMIENTOS | E29: FACT.1473446 Maquinaria ESPAÑA | F29: 89.4 | G29: 0
A30: 2927 | B30: 2010-12-17 | C30: 60200017 | D30: COMPRA DE OTROS APROVISIONAMIENTOS | E30: FACT.FV/9422 FERRET. RDG. Y Padrón. | F30: 386.96 | G30: 0
A31: 156 | B31: 2010-01-31 | C31: 60600000 | D31: DESCUENTOS SOBRE COMPRAS POR PRONTO PAGO | E31: DTO.FACT.31025 CIAL marpa | F31: 0 | G31: 171.46
A32: 175 | B32: 2010-02-01 | C32: 60600001 | D32: DESCUENTOS SOBRE COMPRAS POR PRONTO PAGO | E32: DTO. FACT.30847 CIAL. marpa 2007 | F32: 0 | G32: 6.29
A33: 1294 | B33: 2010-06-26 | C33: 60600002 | D33: DESCUENTOS SOBRE COMPRAS POR PRONTO PAGO | E33: DTO.FACT.NV2/329 González VIERA | F33: 0 | G33: 594.02
A34: 1923 | B34: 2010-08-31 | C34: 60600003 | D34: DESCUENTOS SOBRE COMPRAS POR PRONTO PAGO | E34: DTO.FACTS. CIAL. marpa (INSTALACION AGUA) | F34: 0 | G34: 16.84
A35: 2176 | B35: 2010-09-30 | C35: 60600004 | D35: DESCUENTOS SOBRE COMPRAS POR PRONTO PAGO | E35: DTO.FACT.32441 CIAL. marpa (INSTALACION AGUA) | F35: 0 | G35: 1452.77
A36: 5 | B36: 2010-01-02 | C36: 60700000 | D36: TRABAJOS REALIZADOS POR OTRAS EMPRESAS | E36: FACT.34/2007 ROTURACIONES Y TTES. Cartell | F36: 3339 | G36: 0
A37: 74 | B37: 2010-01-16 | C37: 60700001 | D37: TRABAJOS REALIZADOS POR OTRAS EMPRESAS | E37: FACT.F08/2 ROTURACIONES julio | F37: 680.75 | G37: 0
A38: 168 | B38: 2010-01-31 | C38: 60700002 | D38: TRABAJOS REALIZADOS POR OTRAS EMPRESAS | E38: FACT.01/2010 FRANCISCO Pedro BRITO RDG. | F38: 954 | G38: 0
A39: 230 | B39: 2010-02-14 | C39: 60700003 | D39: TRABAJOS REALIZADOS POR OTRAS EMPRESAS | E39: FACT.F08/5 ROTURACIONES julio | F39: 253.5 | G39: 0
A40: 359 | B40: 2010-02-28 | C40: 60700004 | D40: TRABAJOS REALIZADOS POR OTRAS EMPRESAS | E40: FACT.2010.A.71 itres | F40: 244.14 | G40: 0
A41: 534 | B41: 2010-03-28 | C41: 60700005 | D41: TRABAJOS REALIZADOS POR OTRAS EMPRESAS | E41: FACT.11/2010 ROTURACIONES Y TTES. Cartell | F41: 1590 | G41: 0
A42: 833 | B42: 2010-04-30 | C42: 60700006 | D42: TRABAJOS REALIZADOS POR OTRAS EMPRESAS | E42: FACT.2010.A.180 itres | F42: 407.86 | G42: 0
A43: 1043 | B43: 2010-05-29 | C43: 60700007 | D43: TRABAJOS REALIZADOS POR OTRAS EMPRESAS | E43: FACT.2010.A.219 itres | F43: 790.56 | G43: 0
A44: 1298 | B44: 2010-06-26 | C44: 60700008 | D44: TRABAJOS REALIZADOS POR OTRAS EMPRESAS | E44: FACT.0064/08 CERRAJERIA LOS perritos | F44: 3502.62 | G44: 0
A45: 1322 | B45: 2010-06-27 | C45: 60700009 | D45: TRABAJOS REALIZADOS POR OTRAS EMPRESAS | E45: FACT.15/2010 ROTURACIONES Y TTES. Cartell | F45: 2399.22 | G45: 0
A46: 1559 | B46: 2010-07-22 | C46: 60700010 | D46: TRABAJOS REALIZADOS POR OTRAS EMPRESAS | E46: FACT.6781 harpa, S.L. | F46: 650 | G46: 0
A47: 1706 | B47: 2010-07-31 | C47: 60700011 | D47: TRABAJOS REALIZADOS POR OTRAS EMPRESAS | E47: FACT.2010.A.299 itres | F47: 1548.24 | G47: 0
A48: 1712 | B48: 2010-07-31 | C48: 60700012 | D48: TRABAJOS REALIZADOS POR OTRAS EMPRESAS | E48: FACT.16/2010 ROTURACIONES Y TTES. Cartell | F48: 480 | G48: 0
A49: 1748 | B49: 2010-08-08 | C49: 60700013 | D49: TRABAJOS REALIZADOS POR OTRAS EMPRESAS | E49: FACT.0070/08 CERRAJERIA LOS perritos | F49: 3026 | G49: 0
A50: 2168 | B50: 2010-09-30 | C50: 60700014 | D50: TRABAJOS REALIZADOS POR OTRAS EMPRESAS | E50: FACT.6818 harpa, S.L. | F50: 21318 | G50: 0
A51: 2206 | B51: 2010-09-30 | C51: 60700015 | D51: TRABAJOS REALIZADOS POR OTRAS EMPRESAS | E51: FACT.2010.A.362 itres | F51: 55.86 | G51: 0
A52: 2472 | B52: 2010-10-28 | C52: 60700016 | D52: TRABAJOS REALIZADOS POR OTRAS EMPRESAS | E52: FACT.6828 harpa, S.L. | F52: 12270 | G52: 0
A53: 2526 | B53: 2010-10-31 | C53: 60700017 | D53: TRABAJOS REALIZADOS POR OTRAS EMPRESAS | E53: FACT.2010.A.406 itres | F53: 2165.07 | G53: 0
A54: 2535 | B54: 2010-10-31 | C54: 60700018 | D54: TRABAJOS REALIZADOS POR OTRAS EMPRESAS | E54: FACT.25/2010 ROTURACIONES Y TTES. Cartell | F54: 2352 | G54: 0
A55: 2758 | B55: 2010-11-28 | C55: 60700019 | D55: TRABAJOS REALIZADOS POR OTRAS EMPRESAS | E55: FACT.26/2010 ROTURACIONES Y TTES. Cartell | F55: 3744 | G55: 0
A56: 964 | B56: 2010-05-21 | C56: 60700001 | D56: TRABAJOS REALIZ. POR OTRAS EMPRESA NAVE | E56: FACT.NV2/323 González VIERA | F56: 38174.94 | G56: 0
A57: 1296 | B57: 2010-06-26 | C57: 60700001 | D57: TRABAJOS REALIZ. POR OTRAS EMPRESA NAVE | E57: FACT.3/685 FONTANERIA Tito LZO. | F57: 3074.49 | G57: 0
A58: 2903 | B58: 2010-12-15 | C58: 60700001 | D58: TRABAJOS REALIZ. POR OTRAS EMPRESA NAVE | E58: FACT.A/815 CERRAJERIA Los Vientos | F58: 1149 | G58: 0
A59: 64 | B59: 2010-01-14 | C59: 60800000 | D59: DEVOLUCION DE COMPRAS Y OPERACIONES | E59: DEVOL.FACTS.REPUESTOS La Isla | F59: 0 | G59: 351.87
A60: 1331 | B60: 2010-06-27 | C60: 60800001 | D60: DEVOLUCION DE COMPRAS Y OPERACIONES | E60: DEVOL.1334 REPUESTOS La Isla | F60: 0 | G60: 12.34
A61: 23 | B61: 2010-01-02 | C61: 62200000 | D61: REPARACION Y CONSERVACION | E61: FACT.2300 TALLER Tito | F61: 120 | G61: 0
A62: 50 | B62: 2010-01-10 | C62: 62200001 | D62: REPARACION Y CONSERVACION | E62: FACT.700845 DESGASTES La Isla | F62: 330.22 | G62: 0
A63: 57 | B63: 2010-01-11 | C63: 62200002 | D63: REPARACION Y CONSERVACION | E63: FACT.110108 MECANIZADOS Icod | F63: 156.42 | G63: 0
A64: 77 | B64: 2010-01-18 | C64: 62200003 | D64: REPARACION Y CONSERVACION | E64: FACT.700879 DESGASTES La Isla | F64: 122.02 | G64: 0
A65: 89 | B65: 2010-01-23 | C65: 62200004 | D65: REPARACION Y CONSERVACION | E65: FACT.700904 DESGASTES La Isla | F65: 44.96 | G65: 0
A66: 90 | B66: 2010-01-23 | C66: 62200005 | D66: REPARACION Y CONSERVACION | E66: FACT.700899 DESGASTE La Isla | F66: 267.4 | G66: 0
A67: 139 | B67: 2010-01-31 | C67: 62200006 | D67: REPARACION Y CONSERVACION | E67: FACT.153541 Maquinaria ESPAÑA | F67: 168.1 | G67: 0
A68: 141 | B68: 2010-01-31 | C68: 62200007 | D68: REPARACION Y CONSERVACION | E68: FACT.700929 DESGASTES La Isla | F68: 9680.28 | G68: 0
A69: 170 | B69: 2010-02-01 | C69: 62200008 | D69: REPARACION Y CONSERVACION | E69: FACT.0014/08 CERRAJERIA LOS perritos | F69: 1020 | G69: 0
A70: 190 | B70: 2010-02-07 | C70: 62200009 | D70: REPARACION Y CONSERVACION | E70: FACT.2010000285 REPUESTOS La Isla | F70: 270.38 | G70: 0
A71: 240 | B71: 2010-02-18 | C71: 62200010 | D71: REPARACION Y CONSERVACION | E71: FACT.701002 DESGASTES La Isla | F71: 302 | G71: 0
A72: 248 | B72: 2010-02-19 | C72: 62200011 | D72: REPARACION Y CONSERVACION | E72: FACT.262335 Maquinaria ESPAÑA | F72: 237.6 | G72: 0
A73: 273 | B73: 2010-02-21 | C73: 62200012 | D73: REPARACION Y CONSERVACION | E73: FACT.279180 Maquinaria ESPAÑA | F73: 484.2 | G73: 0
A74: 282 | B74: 2010-02-22 | C74: 62200013 | D74: REPARACION Y CONSERVACION | E74: FACT.2010000425 REPUESTOS La Isla | F74: 725.62 | G74: 0
A75: 294 | B75: 2010-02-25 | C75: 62200014 | D75: REPARACION Y CONSERVACION | E75: FACT.701025 DESGASTES La Isla | F75: 1117.6 | G75: 0
A76: 383 | B76: 2010-03-05 | C76: 62200015 | D76: REPARACION Y CONSERVACION | E76: FACT.701067 DESGASTES La Isla | F76: 508.65 | G76: 0
A77: 445 | B77: 2010-03-15 | C77: 62200016 | D77: REPARACION Y CONSERVACION | E77: FACT.2010000615 REPUESTOS La Isla | F77: 1600.66 | G77: 0
A78: 450 | B78: 2010-03-17 | C78: 62200017 | D78: REPARACION Y CONSERVACION | E78: FACT.701100 DESGASTES La Isla | F78: 389.75 | G78: 0
A79: 461 | B79: 2010-03-18 | C79: 62200018 | D79: REPARACION Y CONSERVACION | E79: FACT.2010000628 REPUESTOS La Isla | F79: 39.22 | G79: 0
A80: 660 | B80: 2010-04-14 | C80: 62200019 | D80: REPARACION Y CONSERVACION | E80: FACT.701181 DESGASTES La Isla | F80: 641.2 | G80: 0
A81: 676 | B81: 2010-04-17 | C81: 62200020 | D81: REPARACION Y CONSERVACION | E81: FACT.2010000878 REPUESTOS La Isla | F81: 2209.64 | G81: 0
A82: 726 | B82: 2010-04-26 | C82: 62200021 | D82: REPARACION Y CONSERVACION | E82: FACT.2010000939 REPUESTOS La Isla | F82: 67.4 | G82: 0
A83: 884 | B83: 2010-05-09 | C83: 62200022 | D83: REPARACION Y CONSERVACION | E83: FACT.2010001002 REPUESTOS La Isla | F83: 104.69 | G83: 0
A84: 901 | B84: 2010-05-13 | C84: 62200023 | D84: REPARACION Y CONSERVACION | E84: FACT.2010001020 REPUETOS La Isla | F84: 275.99 | G84: 0
A85: 949 | B85: 2010-05-20 | C85: 62200024 | D85: REPARACION Y CONSERVACION | E85: FACT.2010001074 REPUESTOS La Isla | F85: 541.52 | G85: 0
A86: 950 | B86: 2010-05-20 | C86: 62200025 | D86: REPARACION Y CONSERVACION | E86: FACT.2010001077 REPUESTOS La Isla | F86: 203.09 | G86: 0
A87: 970 | B87: 2010-05-22 | C87: 62200026 | D87: REPARACION Y CONSERVACION | E87: FACT.2267 TALLER Tito | F87: 60 | G87: 0
A88: 971 | B88: 2010-05-22 | C88: 62200027 | D88: REPARACION Y CONSERVACION | E88: FACT.2268 TALLER Tito | F88: 120 | G88: 0
A89: 986 | B89: 2010-05-25 | C89: 62200028 | D89: REPARACION Y CONSERVACION | E89: FACT.20800204 OPEIN | F89: 605.2 | G89: 0
A90: 990 | B90: 2010-05-26 | C90: 62200029 | D90: REPARACION Y CONSERVACION | E90: FACT.1119 REPUESTOS La Isla | F90: 1087.42 | G90: 0
A91: 1018 | B91: 2010-05-28 | C91: 62200030 | D91: REPARACION Y CONSERVACION | E91: FACT.2319 RODOLFO Luis MARTIN | F91: 240.48 | G91: 0
A92: 1030 | B92: 2010-05-29 | C92: 62200031 | D92: REPARACION Y CONSERVACION | E92: FACT.0020100458 TrackMayor | F92: 314 | G92: 0
A93: 1031 | B93: 2010-05-29 | C93: 62200032 | D93: REPARACION Y CONSERVACION | E93: FACT.0020100459 Trackotro | F93: 274 | G93: 0
A94: 1101 | B94: 2010-06-03 | C94: 62200033 | D94: REPARACION Y CONSERVACION | E94: FACT.1174 REPUESTOS La Isla | F94: 1916.38 | G94: 0
A95: 1130 | B95: 2010-06-06 | C95: 62200034 | D95: REPARACION Y CONSERVACION | E95: FACT.A01/12440 AUTOS HNOS.Pinto, S.L. | F95: 131.53 | G95: 0
A96: 1149 | B96: 2010-06-10 | C96: 62200035 | D96: REPARACION Y CONSERVACION | E96: FACT.872931 Maquinaria ESPAÑA | F96: 39 | G96: 0
A97: 1172 | B97: 2010-06-12 | C97: 62200036 | D97: REPARACION Y CONSERVACION | E97: FACT.887612 Maquinaria ESPAÑA | F97: 188.09 | G97: 0
A98: 1201 | B98: 2010-06-16 | C98: 62200037 | D98: REPARACION Y CONSERVACION | E98: FACT.0054/08 CERRAJERIA LOS perritos | F98: 6089 | G98: 0
A99: 1229 | B99: 2010-06-18 | C99: 62200038 | D99: REPARACION Y CONSERVACION | E99: FACT.916350 Maquinaria ESPAÑA | F99: 266.4 | G99: 0
A100: 1233 | B100: 2010-06-18 | C100: 62200039 | D100: REPARACION Y CONSERVACION | E100: FACT.1266 REPUESTOS La Isla | F100: 582.7 | G100: 0
A101: 1234 | B101: 2010-06-19 | C101: 62200040 | D101: REPARACION Y CONSERVACION | E101: FACT.923958 Maquinaria ESPAÑA | F101: 322.75 | G101: 0
A102: 1275 | B102: 2010-06-25 | C102: 62200041 | D102: REPARACION Y CONSERVACION | E102: FACT.1322 REPUESTOS La Isla | F102: 40.92 | G102: 0
A103: 1299 | B103: 2010-06-26 | C103: 62200042 | D103: REPARACION Y CONSERVACION | E103: FACT.2482 TALLER Tito | F103: 36.54 | G103: 0
A104: 1323 | B104: 2010-06-27 | C104: 62200043 | D104: REPARACION Y CONSERVACION | E104: FACT.2490 TALLER Tito | F104: 29.96 | G104: 0
A105: 1371 | B105: 2010-06-30 | C105: 62200044 | D105: REPARACION Y CONSERVACION | E105: FACT.F08/031 JOSE LUIS Tito RDG. | F105: 3060 | G105: 0
A106: 1469 | B106: 2010-07-08 | C106: 62200045 | D106: REPARACION Y CONSERVACION | E106: FACT.1402 REPUESTOS La Isla | F106: 476.36 | G106: 0
A107: 1474 | B107: 2010-07-10 | C107: 62200046 | D107: REPARACION Y CONSERVACION | E107: FACT.2543 TALLER Tito | F107: 390 | G107: 0
A108: 1494 | B108: 2010-07-12 | C108: 62200047 | D108: REPARACION Y CONSERVACION | E108: FACT.20100598 Trackotro | F108: 588 | G108: 0
A109: 1536 | B109: 2010-07-17 | C109: 62200048 | D109: REPARACION Y CONSERVACION | E109: FACT.1467 REPUESTOS La Isla | F109: 226.6 | G109: 0
A110: 1541 | B110: 2010-07-18 | C110: 62200049 | D110: REPARACION Y CONSERVACION | E110: FACT.1077102 Maquinaria ESPAÑA | F110: 55 | G110: 0
A111: 1573 | B111: 2010-07-23 | C111: 62200050 | D111: REPARACION Y CONSERVACION | E111: FACT.AV/5094 ANTONIO J. Pinto Pérez | F111: 204.11 | G111: 0
A112: 1704 | B112: 2010-07-31 | C112: 62200051 | D112: REPARACION Y CONSERVACION | E112: FACT.1/581 MECANIZADOS Icod | F112: 57.62 | G112: 0
A113: 1765 | B113: 2010-08-14 | C113: 62200052 | D113: REPARACION Y CONSERVACION | E113: FACT.6652 TALLER AUTOMOVIL Paco | F113: 2240.71 | G113: 0
A114: 1777 | B114: 2010-08-18 | C114: 62200053 | D114: REPARACION Y CONSERVACION | E114: FACT.2010001643 REPUESTOS La Isla | F114: 250.26 | G114: 0
A115: 1895 | B115: 2010-08-29 | C115: 62200054 | D115: REPARACION Y CONSERVACION | E115: FACT.20100712 Trackotro | F115: 425 | G115: 0
A116: 1917 | B116: 2010-08-31 | C116: 62200055 | D116: REPARACION Y CONSERVACION | E116: FACT.FCR/6033 AUTOS HNOS. Pinto, S.L. | F116: 576.61 | G116: 0
A117: 2034 | B117: 2010-09-12 | C117: 62200056 | D117: REPARACION Y CONSERVACION | E117: FACT.AV/5167 ANTONIO J. Pinto Pérez | F117: 7.96 | G117: 0
A118: 2067 | B118: 2010-09-17 | C118: 62200057 | D118: REPARACION Y CONSERVACION | E118: FACT.2824 TALLER Tito | F118: 60 | G118: 0
A119: 2100 | B119: 2010-09-19 | C119: 62200058 | D119: REPARACION Y CONSERVACION | E119: FACT.2010001789 REPUESTOS La Isla | F119: 1193.28 | G119: 0
A120: 2202 | B120: 2010-09-30 | C120: 62200059 | D120: REPARACION Y CONSERVACION | E120: FACT.2917 TALLER Tito | F120: 30 | G120: 0
A121: 2203 | B121: 2010-09-30 | C121: 62200060 | D121: REPARACION Y CONSERVACION | E121: FACT.2925 TALLER Tito | F121: 63 | G121: 0
A122: 2204 | B122: 2010-09-30 | C122: 62200061 | D122: REPARACION Y CONSERVACION | E122: FACT.2877 TALLER Tito | F122: 250 | G122: 0
A123: 2205 | B123: 2010-09-30 | C123: 62200062 | D123: REPARACION Y CONSERVACION | E123: FACT.2010001850 REPUESTOS La Isla | F123: 287.26 | G123: 0
A124: 2238 | B124: 2010-10-02 | C124: 62200063 | D124: REPARACION Y CONSERVACION | E124: FACT.2010001856 REPUESTOS La Isla | F124: 516.61 | G124: 0
A125: 2321 | B125: 2010-10-13 | C125: 62200064 | D125: REPARACION Y CONSERVACION | E125: FACT.2010001895 REPUESTOS La Isla | F125: 72.58 | G125: 0
A126: 2373 | B126: 2010-10-20 | C126: 62200065 | D126: REPARACION Y CONSERVACION | E126: FACT.2010001938 REPUESTOS La Isla | F126: 1802.05 | G126: 0
A127: 2404 | B127: 2010-10-23 | C127: 62200066 | D127: REPARACION Y CONSERVACION | E127: FACT.2963 TALLER Tito | F127: 60 | G127: 0
A128: 2474 | B128: 2010-10-28 | C128: 62200067 | D128: REPARACION Y CONSERVACION | E128: FACT.2990 TALLER Tito | F128: 656.81 | G128: 0
A129: 2479 | B129: 2010-10-29 | C129: 62200068 | D129: REPARACION Y CONSERVACION | E129: FACT.2010001993 REPUESTOS La Isla | F129: 1323.22 | G129: 0
A130: 2517 | B130: 2010-10-31 | C130: 62200069 | D130: REPARACION Y CONSERVACION | E130: FACT.1/862 MECANIZADOS Icod | F130: 125.51 | G130: 0
A131: 2698 | B131: 2010-11-22 | C131: 62200070 | D131: REPARACION Y CONSERVACION | E131: FACT.3074 TALLER Tito | F131: 120 | G131: 0
A132: 2773 | B132: 2010-11-30 | C132: 62200071 | D132: REPARACION Y CONSERVACION | E132: FACT.899/08 Asesores Glez GESTORES | F132: 2764.17 | G132: 0
A133: 2904 | B133: 2010-12-15 | C133: 62200072 | D133: REPARACION Y CONSERVACION | E133: FACT.101/2010 Controller Palmas, S.L.U. | F133: 6565.28 | G133: 0
A134: 2905 | B134: 2010-12-15 | C134: 62200073 | D134: REPARACION Y CONSERVACION | E134: FACT.102/2010 Controller Palmas, S.L. | F134: 1303.8 | G134: 0
A135: 2963 | B135: 2010-12-19 | C135: 62200074 | D135: REPARACION Y CONSERVACION | E135: FACT.3212 TALLER Tito | F135: 100 | G135: 0
A136: 2991 | B136: 2010-12-26 | C136: 62200075 | D136: REPARACION Y CONSERVACION | E136: FACT.2010002244 REPUESTOS La Isla | F136: 397.98 | G136: 0
A137: 20 | B137: 2010-01-02 | C137: 62300011 | D137: JOSE A. Glez Glez | E137: FACT.1-2010 JOSE Glez Glez | F137: 180 | G137: 0
A138: 1177 | B138: 2010-06-12 | C138: 62400000 | D138: GASTOS TRANSPORTES | E138: FACT.64 LUIS A. Soto Soto | F138: 3033 | G138: 0
A139: 1749 | B139: 2010-08-09 | C139: 62400001 | D139: GASTOS TRANSPORTES | E139: FACT.299061 EXTACION TEXACO Peña ALTA | F139: 160 | G139: 0
A140: 1946 | B140: 2010-09-01 | C140: 62400002 | D140: GASTOS TRANSPORTES | E140: FACT.8125 Seur Canarias | F140: 44 | G140: 0
A141: 1947 | B141: 2010-09-01 | C141: 62400003 | D141: GASTOS TRANSPORTES | E141: FACT.8131 Seur Canarias | F141: 174.27 | G141: 0
A142: 1967 | B142: 2010-09-02 | C142: 62400004 | D142: GASTOS TRANSPORTES | E142: FACT.8157 Seur Canarias | F142: 86 | G142: 0
A143: 1975 | B143: 2010-09-04 | C143: 62400005 | D143: GASTOS TRANSPORTES | E143: FACT.8191 Seur Canarias | F143: 796.5 | G143: 0
A144: 1976 | B144: 2010-09-04 | C144: 62400006 | D144: GASTOS TRANSPORTES | E144: FACT.8197 Seur Canarias | F144: 826.9 | G144: 0
A145: 1977 | B145: 2010-09-04 | C145: 62400007 | D145: GASTOS TRANSPORTES | E145: FACT.8199 Seur Canarias | F145: 189.76 | G145: 0
A146: 1978 | B146: 2010-09-04 | C146: 62400008 | D146: GASTOS TRANSPORTES | E146: FACT.8201 Seur Canarias | F146: 870.19 | G146: 0
A147: 1979 | B147: 2010-09-04 | C147: 62400009 | D147: GASTOS TRANSPORTES | E147: FACT.8188 Seur Canarias | F147: 796.5 | G147: 0
A148: 1992 | B148: 2010-09-06 | C148: 62400010 | D148: GASTOS TRANSPORTES | E148: FACT.8229 Seur Canarias | F148: 173 | G148: 0
A149: 2001 | B149: 2010-09-09 | C149: 62400011 | D149: GASTOS TRANSPORTES | E149: FACT.8275 Seur Canarias | F149: 45 | G149: 0
A150: 2007 | B150: 2010-09-10 | C150: 62400012 | D150: GASTOS TRANSPORTES | E150: FACT.8290 Seur Canarias | F150: 201.86 | G150: 0
A151: 2020 | B151: 2010-09-11 | C151: 62400013 | D151: GASTOS TRANSPORTES | E151: FACT.8329 Seur Canarias | F151: 187 | G151: 0
A152: 2035 | B152: 2010-09-12 | C152: 62400014 | D152: GASTOS TRANSPORTES | E152: FACT.8339 Seur Canarias | F152: 794.7 | G152: 0
A153: 2036 | B153: 2010-09-12 | C153: 62400015 | D153: GASTOS TRANSPORTES | E153: FACT.8344 Seur Canarias | F153: 794.7 | G153: 0
A154: 2037 | B154: 2010-09-12 | C154: 62400016 | D154: GASTOS TRANSPORTES | E154: FACT.8342 Seur Canarias | F154: 794.7 | G154: 0
A155: 2038 | B155: 2010-09-12 | C155: 62400017 | D155: GASTOS TRANSPORTES | E155: FACT.8350 Seur Canarias | F155: 794.7 | G155: 0
A156: 2039 | B156: 2010-09-12 | C156: 62400018 | D156: GASTOS TRANSPORTES | E156: FACT.8352 Seur Canarias | F156: 128.52 | G156: 0
A157: 2049 | B157: 2010-09-15 | C157: 62400019 | D157: GASTOS TRANSPORTES | E157: FACT.8400 Seur Canarias | F157: 119.57 | G157: 0
A158: 2058 | B158: 2010-09-16 | C158: 62400020 | D158: GASTOS TRANSPORTES | E158: FACT.8419 Seur Canarias | F158: 80.23 | G158: 0
A159: 2064 | B159: 2010-09-17 | C159: 62400021 | D159: GASTOS TRANSPORTES | E159: FACT.8435 Seur Canarias | F159: 104 | G159: 0
A160: 2065 | B160: 2010-09-17 | C160: 62400022 | D160: GASTOS TRANSPORTES | E160: FACT.8458 Seur Canarias | F160: 140.44 | G160: 0
A161: 2074 | B161: 2010-09-18 | C161: 62400023 | D161: GASTOS TRANSPORTES | E161: FACT.8474 Seur Canarias | F161: 73.61 | G161: 0
A162: 2075 | B162: 2010-09-18 | C162: 62400024 | D162: GASTOS TRANSPORTES | E162: FACT.8477 Seur Canarias | F162: 45 | G162: 0
A163: 2096 | B163: 2010-09-19 | C163: 62400025 | D163: GASTOS TRANSPORTES | E163: FACT.8491 Seur Canarias | F163: 103 | G163: 0
A164: 2097 | B164: 2010-09-19 | C164: 62400026 | D164: GASTOS TRANSPORTES | E164: FACT.8501 Seur Canarias | F164: 772.2 | G164: 0
A165: 2098 | B165: 2010-09-19 | C165: 62400027 | D165: GASTOS TRANSPORTES | E165: FACT.8509 Seur Canarias | F165: 772.2 | G165: 0
A166: 2101 | B166: 2010-09-20 | C166: 62400028 | D166: GASTOS TRANSPORTES | E166: FACT.8524 Seur Canarias | F166: 183.24 | G166: 0
A167: 2103 | B167: 2010-09-22 | C167: 62400029 | D167: GASTOS TRANSPORTES | E167: FACT.8549 Seur Canarias | F167: 128.49 | G167: 0
A168: 2104 | B168: 2010-09-22 | C168: 62400030 | D168: GASTOS TRANSPORTES | E168: FACT.20100777 Trackotro | F168: 1793.6 | G168: 0
A169: 2108 | B169: 2010-09-23 | C169: 62400031 | D169: GASTOS TRANSPORTES | E169: FACT.8584 Seur Canarias | F169: 151.23 | G169: 0
A170: 2111 | B170: 2010-09-24 | C170: 62400032 | D170: GASTOS TRANSPORTES | E170: FACT.8615 Seur Canarias | F170: 126 | G170: 0
A171: 2116 | B171: 2010-09-25 | C171: 62400033 | D171: GASTOS TRANSPORTES | E171: FACT.8637 Seur Canarias | F171: 44 | G171: 0
A172: 2117 | B172: 2010-09-25 | C172: 62400034 | D172: GASTOS TRANSPORTES | E172: FACT.8647 Seur Canarias | F172: 157.76 | G172: 0
A173: 2138 | B173: 2010-09-26 | C173: 62400035 | D173: GASTOS TRANSPORTES | E173: FACT.8654 Seur Canarias | F173: 71.89 | G173: 0
A174: 2193 | B174: 2010-09-30 | C174: 62400036 | D174: GASTOS TRANSPORTES | E174: FACT.8699 Seur Canarias | F174: 760.5 | G174: 0
A175: 2194 | B175: 2010-09-30 | C175: 62400037 | D175: GASTOS TRANSPORTES | E175: FACT.8703 Seur Canarias | F175: 760.5 | G175: 0
A176: 2195 | B176: 2010-09-30 | C176: 62400038 | D176: GASTOS TRANSPORTES | E176: FACT.300612 ESTACION TEXACO Peña ALTA | F176: 193 | G176: 0
A177: 2320 | B177: 2010-10-13 | C177: 62400039 | D177: GASTOS TRANSPORTES | E177: FACT.435 C. Candita, S.L. | F177: 25924.64 | G177: 0
A178: 2430 | B178: 2010-10-28 | C178: 62400040 | D178: GASTOS TRANSPORTES | E178: FACT.3045 LUIS A. Soto Soto | F178: 280 | G178: 0
A179: 2477 | B179: 2010-10-29 | C179: 62400041 | D179: GASTOS TRANSPORTES | E179: FACT.447 C.Candita, S.L. | F179: 1716 | G179: 0
A180: 2770 | B180: 2010-11-30 | C180: 62400042 | D180: GASTOS TRANSPORTES | E180: FACT.6845 harpa, S.L. | F180: 15198 | G180: 0
A181: 2935 | B181: 2010-12-18 | C181: 62400043 | D181: GASTOS TRANSPORTES | E181: FACT.468 C. Candita, S.L. | F181: 3486 | G181: 0
A182: 3082 | B182: 2010-12-31 | C182: 62400044 | D182: GASTOS TRANSPORTES | E182: FACT.6855 harpa, S.L. | F182: 9282 | G182: 0
A183: 167 | B183: 2010-01-31 | C183: 62600000 | D183: SERVICIOS BANCARIOS Y SIMILARES | E183: PAGO FACTS. DESGASTE La Isla 2007 | F183: 0.31 | G183: 0
A184: 1890 | B184: 2010-08-28 | C184: 62600000 | D184: SERVICIOS BANCARIOS Y SIMILARES | E184: COBRO FACT.FA8/105 CARRET. Los Vientos UTE | F184: 152.8 | G184: 0
A185: 2009 | B185: 2010-09-10 | C185: 62600000 | D185: SERVICIOS BANCARIOS Y SIMILARES | E185: COBRO FACT.FA8/154-FA8/113 CARRET. Los Vientos UTE | F185: 649.84 | G185: 0
A186: 2061 | B186: 2010-09-17 | C186: 62600000 | D186: SERVICIOS BANCARIOS Y SIMILARES | E186: COBRO FACT.FA8/164 Ruben GARCIA | F186: 0.3 | G186: 0
A187: 2091 | B187: 2010-09-18 | C187: 62600000 | D187: SERVICIOS BANCARIOS Y SIMILARES | E187: COBRO FACT.FA8/180-FA8/179 CARRET. Los Vientos UTE | F187: 246.14 | G187: 0
A188: 2290 | B188: 2010-10-08 | C188: 62600000 | D188: SERVICIOS BANCARIOS Y SIMILARES | E188: COBRO FACT.FA8/183-FA8/184 CARRET. Los Vientos UTE | F188: 278.75 | G188: 0
A189: 2409 | B189: 2010-10-24 | C189: 62600000 | D189: SERVICIOS BANCARIOS Y SIMILARES | E189: PAGO FACT.21561 Tito, S.L.U. | F189: 1.31 | G189: 0
A190: 2410 | B190: 2010-10-24 | C190: 62600000 | D190: SERVICIOS BANCARIOS Y SIMILARES | E190: PAGO FACT.2010.LZ.525 Azupar, S.L. | F190: 1.31 | G190: 0
A191: 2557 | B191: 2010-11-06 | C191: 62600000 | D191: SERVICIOS BANCARIOS Y SIMILARES | E191: COBRO FACT.FA8/206-FA8/207 CARRET. Los Vientos UTE | F191: 388.51 | G191: 0
A192: 2591 | B192: 2010-11-11 | C192: 62600000 | D192: SERVICIOS BANCARIOS Y SIMILARES | E192: PAGO SUELDO Pepe González Gómez OCTUBRE | F192: 0.9 | G192: 0
A193: 2592 | B193: 2010-11-11 | C193: 62600000 | D193: SERVICIOS BANCARIOS Y SIMILARES | E193: PAGO SUELDO Alfredo Pérez LuisOCTUBRE | F193: 0.9 | G193: 0
A194: 2593 | B194: 2010-11-11 | C194: 62600000 | D194: SERVICIOS BANCARIOS Y SIMILARES | E194: PAGO SUELDO Alfredo Pérez Luis. OCTUBRE | F194: 0.9 | G194: 0
A195: 2598 | B195: 2010-11-11 | C195: 62600000 | D195: SERVICIOS BANCARIOS Y SIMILARES | E195: PAGO SUELDO Jesus M. López Mira OCTUBRE | F195: 0.9 | G195: 0
A196: 380 | B196: 2010-03-04 | C196: 62800002 | D196: ENDESA DISTRIBUCION ELECTRICA, S.L. | E196: FACT.U0806N00000240 UNELCO | F196: 5492.19 | G196: 0
A197: 381 | B197: 2010-03-04 | C197: 62800002 | D197: ENDESA DISTRIBUCION ELECTRICA, S.L. | E197: FACT.U6808N00010710 UNELCO | F197: 776.33 | G197: 0
A198: 96 | B198: 2010-01-25 | C198: 62900000 | D198: OTROS GASTOS DE EXPLOTACION | E198: FACT.6 JUAN Siverio RAMIREZ | F198: 530.92 | G198: 0
A199: 577 | B199: 2010-03-31 | C199: 62900001 | D199: OTROS GASTOS DE EXPLOTACION | E199: FACT.11504/2010 TRANSP. HNOS. Garcia Cabrera | F199: 912 | G199: 0
A200: 662 | B200: 2010-04-15 | C200: 62900002 | D200: OTROS GASTOS DE EXPLOTACION | E200: FACT.24 JUAN Siverio RAMIREZ | F200: 818.43 | G200: 0
A201: 729 | B201: 2010-04-28 | C201: 62900003 | D201: OTROS GASTOS DE EXPLOTACION | E201: FACT.887 TRANSP. INT. Bello 2006, S.L. | F201: 180 | G201: 0
... 380 more rows

Sheet Tabla de Datos 3
A1: LIBRO MAYOR
B2: Empresa : | C2: 61 - Comercial del Norte | F2: Página : | G2: 1
C4: Filtro : | D4: Desde la Subcuenta : 60000000 hasta 79999999. Desde 01/01/2010 hasta 31/12/2010. Desde el
D5: proyecto '0' hasta '0'
A6: Asiento | B6: Fecha | C6: Subcuenta | D6: Titulo Subcuenta | E6: Descripción | F6: Debe | G6: Haber
A7: 175 | B7: 2010-02-01 | C7: 60600001 | D7: DESCUENTOS SOBRE COMPRAS POR PRONTO PAGO | E7: DTO. FACT.30847 CIAL. marpa 2007 | F7: 0 | G7: 6.29
A8: 170 | B8: 2010-02-01 | C8: 62200008 | D8: REPARACION Y CONSERVACION | E8: FACT.0014/08 CERRAJERIA LOS perritos | F8: 1020 | G8: 0
A9: 1716 | B9: 2010-08-01 | C9: 60200005 | D9: COMPRA DE OTROS APROVISIONAMIENTOS | E9: FACT.1146148 Maquinaria ESPAÑA | F9: 304.32 | G9: 0
A10: 1946 | B10: 2010-09-01 | C10: 62400002 | D10: GASTOS TRANSPORTES | E10: FACT.8125 Seur Canarias | F10: 44 | G10: 0
A11: 1947 | B11: 2010-09-01 | C11: 62400003 | D11: GASTOS TRANSPORTES | E11: FACT.8131 Seur Canarias | F11: 174.27 | G11: 0
A12: 2229 | B12: 2010-10-01 | C12: 60200013 | D12: COMPRA DE OTROS APROVISIONAMIENTOS | E12: FACT.1362096 Maquinaria ESPAÑA | F12: 687.56 | G12: 0
A13: 5 | B13: 2010-01-02 | C13: 60700000 | D13: TRABAJOS REALIZADOS POR OTRAS EMPRESAS | E13: FACT.34/2007 ROTURACIONES Y TTES. Cartell | F13: 3339 | G13: 0
A14: 23 | B14: 2010-01-02 | C14: 62200000 | D14: REPARACION Y CONSERVACION | E14: FACT.2300 TALLER Tito | F14: 120 | G14: 0
A15: 20 | B15: 2010-01-02 | C15: 62300011 | D15: JOSE A. Glez Glez | E15: FACT.1-2010 JOSE Glez Glez | F15: 180 | G15: 0
A16: 1408 | B16: 2010-07-02 | C16: 60200003 | D16: COMPRA DE OTROS APROVISIONAMIENTOS | E16: FACT.990474 Maquinaria ESPAÑA | F16: 101.3 | G16: 0
A17: 1967 | B17: 2010-09-02 | C17: 62400004 | D17: GASTOS TRANSPORTES | E17: FACT.8157 Seur Canarias | F17: 86 | G17: 0
A18: 2238 | B18: 2010-10-02 | C18: 62200063 | D18: REPARACION Y CONSERVACION | E18: FACT.2010001856 REPUESTOS La Isla | F18: 516.61 | G18: 0
A19: 2818 | B19: 2010-12-02 | C19: 62900018 | D19: OTROS GASTOS DE EXPLOTACION | E19: FACT.20101013 Trackotro | F19: 195.62 | G19: 0
A20: 1101 | B20: 2010-06-03 | C20: 62200033 | D20: REPARACION Y CONSERVACION | E20: FACT.1174 REPUESTOS La Isla | F20: 1916.38 | G20: 0
A21: 1414 | B21: 2010-07-03 | C21: 62900008 | D21: OTROS GASTOS DE EXPLOTACION | E21: INSERCION B.O.P. PLANTA DE ARIDOS IMPRENTA Teide | F21: 116.62 | G21: 0
A22: 2545 | B22: 2010-11-03 | C22: 62900013 | D22: OTROS GASTOS DE EXPLOTACION | E22: FACT.26/08 Tino F. FLEBLES PLANIF. Y SERVICIOS | F22: 3000 | G22: 0
A23: 2834 | B23: 2010-12-03 | C23: 70000221 | D23: VENTA ARENA 2% | E23: FACT.FA8/247 UTE canaria | F23: 0 | G23: 680
A24: 2835 | B24: 2010-12-03 | C24: 70000222 | D24: VENTA ARENA 2% | E24: FACT.FA8/248 UTE canaria | F24: 0 | G24: 28020.11
A25: 380 | B25: 2010-03-04 | C25: 62800002 | D25: ENDESA DISTRIBUCION ELECTRICA, S.L. | E25: FACT.U0806N00000240 UNELCO | F25: 5492.19 | G25: 0
A26: 381 | B26: 2010-03-04 | C26: 62800002 | D26: ENDESA DISTRIBUCION ELECTRICA, S.L. | E26: FACT.U6808N00010710 UNELCO | F26: 776.33 | G26: 0
A27: 592 | B27: 2010-04-04 | C27: 70000057 | D27: VENTA ARENA 2% | E27: FACT.FA8/67 JORGE Eto HDEZ. RDG. | F27: 0 | G27: 1930.57
A28: 1975 | B28: 2010-09-04 | C28: 62400005 | D28: GASTOS TRANSPORTES | E28: FACT.8191 Seur Canarias | F28: 796.5 | G28: 0
A29: 1976 | B29: 2010-09-04 | C29: 62400006 | D29: GASTOS TRANSPORTES | E29: FACT.8197 Seur Canarias | F29: 826.9 | G29: 0
A30: 1977 | B30: 2010-09-04 | C30: 62400007 | D30: GASTOS TRANSPORTES | E30: FACT.8199 Seur Canarias | F30: 189.76 | G30: 0
A31: 1978 | B31: 2010-09-04 | C31: 62400008 | D31: GASTOS TRANSPORTES | E31: FACT.8201 Seur Canarias | F31: 870.19 | G31: 0
A32: 1979 | B32: 2010-09-04 | C32: 62400009 | D32: GASTOS TRANSPORTES | E32: FACT.8188 Seur Canarias | F32: 796.5 | G32: 0
A33: 2849 | B33: 2010-12-04 | C33: 70000223 | D33: VENTA ARENA 2% | E33: FACT.FA8/249 AYTO. DE canaria | F33: 0 | G33: 10537.5
A34: 383 | B34: 2010-03-05 | C34: 62200015 | D34: REPARACION Y CONSERVACION | E34: FACT.701067 DESGASTES La Isla | F34: 508.65 | G34: 0
A35: 1110 | B35: 2010-06-05 | C35: 70000095 | D35: VENTA ARENA 2% | E35: FACT.FA8/106 Fermin FERNANDEZ CASANOVA | F35: 0 | G35: 65.32
A36: 1111 | B36: 2010-06-05 | C36: 70000096 | D36: VENTA ARENA 2% | E36: FACT.FA8/107 FERNANDO HDEZ. CPCON. | F36: 0 | G36: 61.13
A37: 1990 | B37: 2010-09-05 | C37: 70000162 | D37: VENTA ARENA 2% | E37: FACT.FA8/221 AYTO. S/A Y Salta | F37: 0 | G37: 642.29
A38: 2550 | B38: 2010-11-05 | C38: 62900014 | D38: OTROS GASTOS DE EXPLOTACION | E38: FACT.44 JUAN Siverio RAMIREZ | F38: 523.87 | G38: 0
A39: 2853 | B39: 2010-12-05 | C39: 62900019 | D39: OTROS GASTOS DE EXPLOTACION | E39: FACT.49 JUAN Siverio RAMIREZ | F39: 593.76 | G39: 0
A40: 387 | B40: 2010-03-06 | C40: 70000038 | D40: VENTA ARENA 2% | E40: FACT.FA8/45 ANTONIO J. Luis Padrón. | F40: 0 | G40: 152.68
A41: 388 | B41: 2010-03-06 | C41: 70800003 | D41: DEVOLUCIONES DE VENTAS Y OPERACIONES | E41: ABONO FA8/44 CONSTRUCCIONES Tintin | F41: 152.68 | G41: 0
A42: 853 | B42: 2010-05-06 | C42: 70000077 | D42: VENTA ARENA 2% | E42: FACT.FA8/86 CARLOS Benitez PEREZ | F42: 0 | G42: 164.23
A43: 1130 | B43: 2010-06-06 | C43: 62200034 | D43: REPARACION Y CONSERVACION | E43: FACT.A01/12440 AUTOS HNOS.Pinto, S.L. | F43: 131.53 | G43: 0
A44: 1120 | B44: 2010-06-06 | C44: 70000097 | D44: VENTA ARENA 2% | E44: FACT.FA8/109 FCO. JOSE Luis Pinto | F44: 0 | G44: 38.72
A45: 1122 | B45: 2010-06-06 | C45: 70000098 | D45: VENTA ARENA 2% | E45: FACT.FA8/108 Fermin ROCHA Tito | F45: 0 | G45: 113.89
A46: 1992 | B46: 2010-09-06 | C46: 62400010 | D46: GASTOS TRANSPORTES | E46: FACT.8229 Seur Canarias | F46: 173 | G46: 0
A47: 2557 | B47: 2010-11-06 | C47: 62600000 | D47: SERVICIOS BANCARIOS Y SIMILARES | E47: COBRO FACT.FA8/206-FA8/207 CARRET. Los Vientos UTE | F47: 388.51 | G47: 0
A48: 190 | B48: 2010-02-07 | C48: 62200009 | D48: REPARACION Y CONSERVACION | E48: FACT.2010000285 REPUESTOS La Isla | F48: 270.38 | G48: 0
A49: 188 | B49: 2010-02-07 | C49: 70000016 | D49: VENTA ARENA 2% | E49: FACT.FA8/19 ROTURACIONES AMAGAR | F49: 0 | G49: 90
A50: 401 | B50: 2010-03-07 | C50: 70000039 | D50: VENTA ARENA 2% | E50: FACT.FA8/46 J.Juan Luis Pinto | F50: 0 | G50: 14.3
A51: 2569 | B51: 2010-11-07 | C51: 64900006 | D51: OTROS GASTOS PERSONAL | E51: ANTICIPO HORAS EXTRAS IMELDO Soto Soto | F51: 640 | G51: 0
A52: 415 | B52: 2010-03-08 | C52: 70000040 | D52: VENTA ARENA 2% | E52: FACT.FA8/48 Alfredo Pérez Luis. Tito | F52: 0 | G52: 46.6
A53: 416 | B53: 2010-03-08 | C53: 70000041 | D53: VENTA ARENA 2% | E53: FACT.FA8/47 J.Juan Luis Pinto | F53: 0 | G53: 32.56
A54: 417 | B54: 2010-03-08 | C54: 70000042 | D54: VENTA ARENA 2% | E54: FACT.FA8/49 VICTOR MOISES Tatiano PEREZ | F54: 0 | G54: 21
A55: 1469 | B55: 2010-07-08 | C55: 62200045 | D55: REPARACION Y CONSERVACION | E55: FACT.1402 REPUESTOS La Isla | F55: 476.36 | G55: 0
A56: 1748 | B56: 2010-08-08 | C56: 60700013 | D56: TRABAJOS REALIZADOS POR OTRAS EMPRESAS | E56: FACT.0070/08 CERRAJERIA LOS perritos | F56: 3026 | G56: 0
A57: 2290 | B57: 2010-10-08 | C57: 62600000 | D57: SERVICIOS BANCARIOS Y SIMILARES | E57: COBRO FACT.FA8/183-FA8/184 CARRET. Los Vientos UTE | F57: 278.75 | G57: 0
A58: 884 | B58: 2010-05-09 | C58: 62200022 | D58: REPARACION Y CONSERVACION | E58: FACT.2010001002 REPUESTOS La Isla | F58: 104.69 | G58: 0
A59: 875 | B59: 2010-05-09 | C59: 70000078 | D59: VENTA ARENA 2% | E59: FACT.FA8/84 J.Juan HDEZ. PEREZ | F59: 0 | G59: 34.1
A60: 1749 | B60: 2010-08-09 | C60: 62400001 | D60: GASTOS TRANSPORTES | E60: FACT.299061 EXTACION TEXACO Peña ALTA | F60: 160 | G60: 0
A61: 2001 | B61: 2010-09-09 | C61: 62400011 | D61: GASTOS TRANSPORTES | E61: FACT.8275 Seur Canarias | F61: 45 | G61: 0
A62: 1999 | B62: 2010-09-09 | C62: 70000003 | D62: VENTA ARENA 5% | E62: FACT.FA8/179 CARRETERA Los Vientos UTE | F62: 0 | G62: 5920
A63: 2000 | B63: 2010-09-09 | C63: 70000004 | D63: VENTA ARENA 5% | E63: FACT.FA8/180 CARRETERA Los Vientos UTE | F63: 0 | G63: 175
A64: 50 | B64: 2010-01-10 | C64: 62200001 | D64: REPARACION Y CONSERVACION | E64: FACT.700845 DESGASTES La Isla | F64: 330.22 | G64: 0
A65: 421 | B65: 2010-03-10 | C65: 64000009 | D65: Eustaquio Luis MartinRODRIGUEZ | E65: SUELDO Eustaquio Luis MartinMARZO | F65: 646.58 | G65: 0
A66: 422 | B66: 2010-03-10 | C66: 64000010 | D66: Eustaquio Luis MartinRODRIGUEZ | E66: FINIQUITO Eustaquio Luis MartinMARZO | F66: 195.62 | G66: 0
A67: 419 | B67: 2010-03-10 | C67: 70000043 | D67: VENTA ARENA 2% | E67: FACT.FA8/50 J.Juan HDEZ. PEREZ | F67: 0 | G67: 70.18
A68: 1149 | B68: 2010-06-10 | C68: 62200035 | D68: REPARACION Y CONSERVACION | E68: FACT.872931 Maquinaria ESPAÑA | F68: 39 | G68: 0
A69: 1474 | B69: 2010-07-10 | C69: 62200046 | D69: REPARACION Y CONSERVACION | E69: FACT.2543 TALLER Tito | F69: 390 | G69: 0
A70: 2007 | B70: 2010-09-10 | C70: 62400012 | D70: GASTOS TRANSPORTES | E70: FACT.8290 Seur Canarias | F70: 201.86 | G70: 0
A71: 2009 | B71: 2010-09-10 | C71: 62600000 | D71: SERVICIOS BANCARIOS Y SIMILARES | E71: COBRO FACT.FA8/154-FA8/113 CARRET. Los Vientos UTE | F71: 649.84 | G71: 0
A72: 2006 | B72: 2010-09-10 | C72: 70000163 | D72: VENTA ARENA 2% | E72: FACT.FA8/181 PREFABRICADOS canaria | F72: 0 | G72: 1560.06
A73: 2298 | B73: 2010-10-10 | C73: 70000180 | D73: VENTA ARENA 2% | E73: FACT.FA8/202 UTE canaria (GASOI) | F73: 0 | G73: 1040
A74: 2299 | B74: 2010-10-10 | C74: 70000181 | D74: VENTA ARENA 2% | E74: FACT.FA8/201 UTE canaria | F74: 0 | G74: 27989.5
A75: 57 | B75: 2010-01-11 | C75: 62200002 | D75: REPARACION Y CONSERVACION | E75: FACT.110108 MECANIZADOS Icod | F75: 156.42 | G75: 0
A76: 55 | B76: 2010-01-11 | C76: 70000000 | D76: VENTA ARENA 2% | E76: FACT.FA8/1 IMELDO Soto Soto | F76: 0 | G76: 40.1
A77: 651 | B77: 2010-04-11 | C77: 77800000 | D77: INGRESOS EXCEPCIONALES | E77: DEVOL. AVAL DISA | F77: 0 | G77: 900.6
A78: 1750 | B78: 2010-08-11 | C78: 60200006 | D78: COMPRA DE OTROS APROVISIONAMIENTOS | E78: FACT.1190260 Maquinaria ESPAÑA | F78: 357.73 | G78: 0
A79: 2014 | B79: 2010-09-11 | C79: 60200007 | D79: COMPRA DE OTROS APROVISIONAMIENTOS | E79: FACT.1261704 Maquinaria ESPAÑA | F79: 15.2 | G79: 0
A80: 2015 | B80: 2010-09-11 | C80: 60200008 | D80: COMPRA DE OTROS APROVISIONAMIENTOS | E80: FACT.1261705 Maquinaria ESPAÑA | F80: 109 | G80: 0
A81: 2020 | B81: 2010-09-11 | C81: 62400013 | D81: GASTOS TRANSPORTES | E81: FACT.8329 Seur Canarias | F81: 187 | G81: 0
A82: 2023 | B82: 2010-09-11 | C82: 64900001 | D82: OTROS GASTOS PERSONAL | E82: PAGO HORAS EXTRAS Pepe González Gómez AGOSTO | F82: 320 | G82: 0
A83: 2024 | B83: 2010-09-11 | C83: 64900002 | D83: OTROS GASTOS PERSONAL | E83: PAGO HORAS EXTRAS IMELDO PEREZ AGOSTO | F83: 510 | G83: 0
A84: 2025 | B84: 2010-09-11 | C84: 64900003 | D84: OTROS GASTOS PERSONAL | E84: PAGO HORAS EXTRAS Alfredo Pérez LuisAGOSTO | F84: 160 | G84: 0
A85: 2026 | B85: 2010-09-11 | C85: 64900004 | D85: OTROS GASTOS PERSONAL | E85: PAGO HORAS EXTRAS Alfredo Pérez Luis. AGOSTO | F85: 370 | G85: 0
A86: 2591 | B86: 2010-11-11 | C86: 62600000 | D86: SERVICIOS BANCARIOS Y SIMILARES | E86: PAGO SUELDO Pepe González Gómez OCTUBRE | F86: 0.9 | G86: 0
A87: 2592 | B87: 2010-11-11 | C87: 62600000 | D87: SERVICIOS BANCARIOS Y SIMILARES | E87: PAGO SUELDO Alfredo Pérez LuisOCTUBRE | F87: 0.9 | G87: 0
A88: 2593 | B88: 2010-11-11 | C88: 62600000 | D88: SERVICIOS BANCARIOS Y SIMILARES | E88: PAGO SUELDO Alfredo Pérez Luis. OCTUBRE | F88: 0.9 | G88: 0
A89: 2598 | B89: 2010-11-11 | C89: 62600000 | D89: SERVICIOS BANCARIOS Y SIMILARES | E89: PAGO SUELDO Jesus M. López Mira OCTUBRE | F89: 0.9 | G89: 0
A90: 2583 | B90: 2010-11-11 | C90: 70000200 | D90: VENTA ARENA 2% | E90: FACT.FA8/224 CABILDO INSULAR DE Insular | F90: 0 | G90: 189.42
A91: 2892 | B91: 2010-12-11 | C91: 62900020 | D91: OTROS GASTOS DE EXPLOTACION | E91: FACT.50 JUAN Siverio RAMIREZ | F91: 650.66 | G91: 0
A92: 2888 | B92: 2010-12-11 | C92: 70000224 | D92: VENTA ARENA 2% | E92: FACT.FA8/250 Paulino HDEZ. FCO. | F92: 0 | G92: 23.32
A93: 211 | B93: 2010-02-12 | C93: 70000017 | D93: VENTA ARENA 2% | E93: FACT.FA8/20 Salva Guzman RDG. | F93: 0 | G93: 267.63
A94: 889 | B94: 2010-05-12 | C94: 70000079 | D94: VENTA ARENA 2% | E94: FACT.FA8/85 JOSE LOPE Luis BRITO | F94: 0 | G94: 30.14
A95: 1172 | B95: 2010-06-12 | C95: 62200036 | D95: REPARACION Y CONSERVACION | E95: FACT.887612 Maquinaria ESPAÑA | F95: 188.09 | G95: 0
A96: 1177 | B96: 2010-06-12 | C96: 62400000 | D96: GASTOS TRANSPORTES | E96: FACT.64 LUIS A. Soto Soto | F96: 3033 | G96: 0
A97: 1494 | B97: 2010-07-12 | C97: 62200047 | D97: REPARACION Y CONSERVACION | E97: FACT.20100598 Trackotro | F97: 588 | G97: 0
A98: 2033 | B98: 2010-09-12 | C98: 60200009 | D98: COMPRA DE OTROS APROVISIONAMIENTOS | E98: FACT.1266265 Maquinaria ESPAÑA | F98: 235.2 | G98: 0
A99: 2034 | B99: 2010-09-12 | C99: 62200056 | D99: REPARACION Y CONSERVACION | E99: FACT.AV/5167 ANTONIO J. Pinto Pérez | F99: 7.96 | G99: 0
A100: 2035 | B100: 2010-09-12 | C100: 62400014 | D100: GASTOS TRANSPORTES | E100: FACT.8339 Seur Canarias | F100: 794.7 | G100: 0
A101: 2036 | B101: 2010-09-12 | C101: 62400015 | D101: GASTOS TRANSPORTES | E101: FACT.8344 Seur Canarias | F101: 794.7 | G101: 0
A102: 2037 | B102: 2010-09-12 | C102: 62400016 | D102: GASTOS TRANSPORTES | E102: FACT.8342 Seur Canarias | F102: 794.7 | G102: 0
A103: 2038 | B103: 2010-09-12 | C103: 62400017 | D103: GASTOS TRANSPORTES | E103: FACT.8350 Seur Canarias | F103: 794.7 | G103: 0
A104: 2039 | B104: 2010-09-12 | C104: 62400018 | D104: GASTOS TRANSPORTES | E104: FACT.8352 Seur Canarias | F104: 128.52 | G104: 0
A105: 901 | B105: 2010-05-13 | C105: 62200023 | D105: REPARACION Y CONSERVACION | E105: FACT.2010001020 REPUETOS La Isla | F105: 275.99 | G105: 0
A106: 903 | B106: 2010-05-13 | C106: 62900005 | D106: OTROS GASTOS DE EXPLOTACION | E106: RECIBO CABILDO Insular TASA CALIF.TERRITORI. | F106: 44.05 | G106: 0
A107: 1185 | B107: 2010-06-13 | C107: 70000099 | D107: VENTA ARENA 2% | E107: FACT.FA8/110 Agustin AVILA AVILA | F107: 0 | G107: 117.11
A108: 2321 | B108: 2010-10-13 | C108: 62200064 | D108: REPARACION Y CONSERVACION | E108: FACT.2010001895 REPUESTOS La Isla | F108: 72.58 | G108: 0
A109: 2320 | B109: 2010-10-13 | C109: 62400039 | D109: GASTOS TRANSPORTES | E109: FACT.435 C. Candita, S.L. | F109: 25924.64 | G109: 0
A110: 2619 | B110: 2010-11-13 | C110: 70000201 | D110: VENTA ARENA 2% | E110: FACT.FA8/225 CONSTRUC. Verga | F110: 0 | G110: 106.7
A111: 64 | B111: 2010-01-14 | C111: 60800000 | D111: DEVOLUCION DE COMPRAS Y OPERACIONES | E111: DEVOL.FACTS.REPUESTOS La Isla | F111: 0 | G111: 351.87
A112: 230 | B112: 2010-02-14 | C112: 60700003 | D112: TRABAJOS REALIZADOS POR OTRAS EMPRESAS | E112: FACT.F08/5 ROTURACIONES julio | F112: 253.5 | G112: 0
A113: 223 | B113: 2010-02-14 | C113: 70000018 | D113: VENTA ARENA 2% | E113: FACT.FA8/21 CABILDO INSULAR DE Insular | F113: 0 | G113: 2192.67
A114: 224 | B114: 2010-02-14 | C114: 70800000 | D114: DEVOLUCIONES DE VENTAS Y OPERACIONES | E114: ABONO FA8/22 CABILDO INSULAR DE Insular | F114: 1040 | G114: 0
A115: 225 | B115: 2010-02-14 | C115: 70800001 | D115: DEVOLUCIONES DE VENTAS Y OPERACIONES | E115: ABONO FA8/23 CABILDO INSULAR Insular | F115: 1152.67 | G115: 0
A116: 660 | B116: 2010-04-14 | C116: 62200019 | D116: REPARACION Y CONSERVACION | E116: FACT.701181 DESGASTES La Isla | F116: 641.2 | G116: 0
A117: 1765 | B117: 2010-08-14 | C117: 62200052 | D117: REPARACION Y CONSERVACION | E117: FACT.6652 TALLER AUTOMOVIL Paco | F117: 2240.71 | G117: 0
A118: 2638 | B118: 2010-11-14 | C118: 62900015 | D118: OTROS GASTOS DE EXPLOTACION | E118: FACT.46 JUAN Siverio RAMIREZ | F118: 662.4 | G118: 0
A119: 445 | B119: 2010-03-15 | C119: 62200016 | D119: REPARACION Y CONSERVACION | E119: FACT.2010000615 REPUESTOS La Isla | F119: 1600.66 | G119: 0
A120: 662 | B120: 2010-04-15 | C120: 62900002 | D120: OTROS GASTOS DE EXPLOTACION | E120: FACT.24 JUAN Siverio RAMIREZ | F120: 818.43 | G120: 0
A121: 1507 | B121: 2010-07-15 | C121: 70000116 | D121: VENTA ARENA 2% | E121: FACT.FA8/130 JOSE Padrón. Machacado | F121: 0 | G121: 67.98
A122: 1508 | B122: 2010-07-15 | C122: 70000117 | D122: VENTA ARENA 2% | E122: FACT.FA8/131 J.Juan Luis Pinto | F122: 0 | G122: 30.36
A123: 2049 | B123: 2010-09-15 | C123: 62400019 | D123: GASTOS TRANSPORTES | E123: FACT.8400 Seur Canarias | F123: 119.57 | G123: 0
A124: 2050 | B124: 2010-09-15 | C124: 62900009 | D124: OTROS GASTOS DE EXPLOTACION | E124: FACT.38 JUAN Siverio RAMIREZ | F124: 593.76 | G124: 0
A125: 2335 | B125: 2010-10-15 | C125: 60100000 | D125: COMPRAS MATERIAS PRIMAS | E125: FACT.3/2010 UTE canaria | F125: 7425 | G125: 0
A126: 2333 | B126: 2010-10-15 | C126: 62900010 | D126: OTROS GASTOS DE EXPLOTACION | E126: FACT.2010.LZ.525 AzuparO, S.L. | F126: 126.5 | G126: 0
A127: 2640 | B127: 2010-11-15 | C127: 60100002 | D127: COMPRAS MATERIAS PRIMAS | E127: FACT.UN 1089700001 UTE canaria | F127: 8317.5 | G127: 0
A128: 2906 | B128: 2010-12-15 | C128: 60100004 | D128: COMPRAS MATERIAS PRIMAS | E128: FACT. UN1089700005 UTE canaria | F128: 7092 | G128: 0
A129: 2903 | B129: 2010-12-15 | C129: 60700001 | D129: TRABAJOS REALIZ. POR OTRAS EMPRESA NAVE | E129: FACT.A/815 CERRAJERIA Los Vientos | F129: 1149 | G129: 0
A130: 2904 | B130: 2010-12-15 | C130: 62200072 | D130: REPARACION Y CONSERVACION | E130: FACT.101/2010 Controller Palmas, S.L.U. | F130: 6565.28 | G130: 0
A131: 2905 | B131: 2010-12-15 | C131: 62200073 | D131: REPARACION Y CONSERVACION | E131: FACT.102/2010 Controller Palmas, S.L. | F131: 1303.8 | G131: 0
A132: 74 | B132: 2010-01-16 | C132: 60700001 | D132: TRABAJOS REALIZADOS POR OTRAS EMPRESAS | E132: FACT.F08/2 ROTURACIONES julio | F132: 680.75 | G132: 0
A133: 1201 | B133: 2010-06-16 | C133: 62200037 | D133: REPARACION Y CONSERVACION | E133: FACT.0054/08 CERRAJERIA LOS perritos | F133: 6089 | G133: 0
A134: 2058 | B134: 2010-09-16 | C134: 62400020 | D134: GASTOS TRANSPORTES | E134: FACT.8419 Seur Canarias | F134: 80.23 | G134: 0
A135: 2643 | B135: 2010-11-16 | C135: 66500002 | D135: INTERESES DESCUENTOS EFECTOS | E135: PAGO PAGARE VTO.16/11/08 Trackotro | F135: 195.62 | G135: 0
A136: 450 | B136: 2010-03-17 | C136: 62200017 | D136: REPARACION Y CONSERVACION | E136: FACT.701100 DESGASTES La Isla | F136: 389.75 | G136: 0
A137: 676 | B137: 2010-04-17 | C137: 62200020 | D137: REPARACION Y CONSERVACION | E137: FACT.2010000878 REPUESTOS La Isla | F137: 2209.64 | G137: 0
A138: 1209 | B138: 2010-06-17 | C138: 70000100 | D138: VENTA ARENA 2% | E138: FACT.FA8/111 Mª Begoña Padrón. PEREZ | F138: 0 | G138: 344.3
A139: 1211 | B139: 2010-06-17 | C139: 70800007 | D139: DEVOLUCIONES DE VENTAS Y OPERACIONES | E139: ABONO FACT.FA8/112 González VIERA | F139: 438.16 | G139: 0
A140: 1536 | B140: 2010-07-17 | C140: 62200048 | D140: REPARACION Y CONSERVACION | E140: FACT.1467 REPUESTOS La Isla | F140: 226.6 | G140: 0
A141: 1526 | B141: 2010-07-17 | C141: 70000118 | D141: VENTA ARENA 2% | E141: FACT.FA8/132 Berto PEREZ DIAZ | F141: 0 | G141: 46.31
A142: 2066 | B142: 2010-09-17 | C142: 60200010 | D142: COMPRA DE OTROS APROVISIONAMIENTOS | E142: FACT.FV/9068 FERRET. RDG. Y Padrón. | F142: 50.8 | G142: 0
A143: 2067 | B143: 2010-09-17 | C143: 62200057 | D143: REPARACION Y CONSERVACION | E143: FACT.2824 TALLER Tito | F143: 60 | G143: 0
A144: 2064 | B144: 2010-09-17 | C144: 62400021 | D144: GASTOS TRANSPORTES | E144: FACT.8435 Seur Canarias | F144: 104 | G144: 0
A145: 2065 | B145: 2010-09-17 | C145: 62400022 | D145: GASTOS TRANSPORTES | E145: FACT.8458 Seur Canarias | F145: 140.44 | G145: 0
A146: 2061 | B146: 2010-09-17 | C146: 62600000 | D146: SERVICIOS BANCARIOS Y SIMILARES | E146: COBRO FACT.FA8/164 Ruben GARCIA | F146: 0.3 | G146: 0
A147: 2362 | B147: 2010-10-17 | C147: 66500001 | D147: INTERESES DESCUENTOS EFECTOS | E147: PAGO FACTS. González VIERA (PAGARE VTO.26/09/08) | F147: 1255.25 | G147: 0
A148: 2346 | B148: 2010-10-17 | C148: 70000182 | D148: VENTA ARENA 2% | E148: FACT.FA8/203 CARLOS Candita | F148: 0 | G148: 380.82
A149: 2654 | B149: 2010-11-17 | C149: 70000202 | D149: VENTA ARENA 2% | E149: FACT.FA8/226 FRANSICO J. HDEZ. PEREZ | F149: 0 | G149: 167.2
A150: 2656 | B150: 2010-11-17 | C150: 70000203 | D150: VENTA ARENA 2% | E150: FACT.FA8/227 Ruben GARCIA | F150: 0 | G150: 9.9
A151: 2927 | B151: 2010-12-17 | C151: 60200017 | D151: COMPRA DE OTROS APROVISIONAMIENTOS | E151: FACT.FV/9422 FERRET. RDG. Y Padrón. | F151: 386.96 | G151: 0
A152: 77 | B152: 2010-01-18 | C152: 62200003 | D152: REPARACION Y CONSERVACION | E152: FACT.700879 DESGASTES La Isla | F152: 122.02 | G152: 0
A153: 240 | B153: 2010-02-18 | C153: 62200010 | D153: REPARACION Y CONSERVACION | E153: FACT.701002 DESGASTES La Isla | F153: 302 | G153: 0
A154: 238 | B154: 2010-02-18 | C154: 70000019 | D154: VENTA ARENA 2% | E154: FACT.FA8/24 Bety Pinto | F154: 0 | G154: 48.6
A155: 239 | B155: 2010-02-18 | C155: 70000020 | D155: VENTA ARENA 2% | E155: FACT.FA8/25 FERNANDO MEDINA Luis | F155: 0 | G155: 45.74
A156: 461 | B156: 2010-03-18 | C156: 62200018 | D156: REPARACION Y CONSERVACION | E156: FACT.2010000628 REPUESTOS La Isla | F156: 39.22 | G156: 0
A157: 1229 | B157: 2010-06-18 | C157: 62200038 | D157: REPARACION Y CONSERVACION | E157: FACT.916350 Maquinaria ESPAÑA | F157: 266.4 | G157: 0
A158: 1233 | B158: 2010-06-18 | C158: 62200039 | D158: REPARACION Y CONSERVACION | E158: FACT.1266 REPUESTOS La Isla | F158: 582.7 | G158: 0
A159: 1540 | B159: 2010-07-18 | C159: 60200004 | D159: COMPRA DE OTROS APROVISIONAMIENTOS | E159: FACT.FV/8883 FERRET. RDG. Y Padrón. | F159: 1343.91 | G159: 0
A160: 1541 | B160: 2010-07-18 | C160: 62200049 | D160: REPARACION Y CONSERVACION | E160: FACT.1077102 Maquinaria ESPAÑA | F160: 55 | G160: 0
A161: 1777 | B161: 2010-08-18 | C161: 62200053 | D161: REPARACION Y CONSERVACION | E161: FACT.2010001643 REPUESTOS La Isla | F161: 250.26 | G161: 0
A162: 2074 | B162: 2010-09-18 | C162: 62400023 | D162: GASTOS TRANSPORTES | E162: FACT.8474 Seur Canarias | F162: 73.61 | G162: 0
A163: 2075 | B163: 2010-09-18 | C163: 62400024 | D163: GASTOS TRANSPORTES | E163: FACT.8477 Seur Canarias | F163: 45 | G163: 0
A164: 2091 | B164: 2010-09-18 | C164: 62600000 | D164: SERVICIOS BANCARIOS Y SIMILARES | E164: COBRO FACT.FA8/180-FA8/179 CARRET. Los Vientos UTE | F164: 246.14 | G164: 0
A165: 2662 | B165: 2010-11-18 | C165: 70000204 | D165: VENTA ARENA 2% | E165: FACT.FA8/228 CABILDO INSULAR DE Insular | F165: 0 | G165: 450
A166: 2935 | B166: 2010-12-18 | C166: 62400043 | D166: GASTOS TRANSPORTES | E166: FACT.468 C. Candita, S.L. | F166: 3486 | G166: 0
A167: 2942 | B167: 2010-12-18 | C167: 70000225 | D167: VENTA ARENA 2% | E167: FACT.FA8/251 Gespin | F167: 0 | G167: 9180
A168: 248 | B168: 2010-02-19 | C168: 62200011 | D168: REPARACION Y CONSERVACION | E168: FACT.262335 Maquinaria ESPAÑA | F168: 237.6 | G168: 0
A169: 1234 | B169: 2010-06-19 | C169: 62200040 | D169: REPARACION Y CONSERVACION | E169: FACT.923958 Maquinaria ESPAÑA | F169: 322.75 | G169: 0
A170: 2100 | B170: 2010-09-19 | C170: 62200058 | D170: REPARACION Y CONSERVACION | E170: FACT.2010001789 REPUESTOS La Isla | F170: 1193.28 | G170: 0
A171: 2096 | B171: 2010-09-19 | C171: 62400025 | D171: GASTOS TRANSPORTES | E171: FACT.8491 Seur Canarias | F171: 103 | G171: 0
A172: 2097 | B172: 2010-09-19 | C172: 62400026 | D172: GASTOS TRANSPORTES | E172: FACT.8501 Seur Canarias | F172: 772.2 | G172: 0
A173: 2098 | B173: 2010-09-19 | C173: 62400027 | D173: GASTOS TRANSPORTES | E173: FACT.8509 Seur Canarias | F173: 772.2 | G173: 0
A174: 2963 | B174: 2010-12-19 | C174: 62200074 | D174: REPARACION Y CONSERVACION | E174: FACT.3212 TALLER Tito | F174: 100 | G174: 0
A175: 257 | B175: 2010-02-20 | C175: 70000021 | D175: VENTA ARENA 2% | E175: FACT.FA8/26 JOSE ARTURO HDEZ. | F175: 0 | G175: 46.38
A176: 949 | B176: 2010-05-20 | C176: 62200024 | D176: REPARACION Y CONSERVACION | E176: FACT.2010001074 REPUESTOS La Isla | F176: 541.52 | G176: 0
A177: 950 | B177: 2010-05-20 | C177: 62200025 | D177: REPARACION Y CONSERVACION | E177: FACT.2010001077 REPUESTOS La Isla | F177: 203.09 | G177: 0
A178: 944 | B178: 2010-05-20 | C178: 70000080 | D178: VENTA ARENA 2% | E178: FACT.FA8/90 harpa, S.L. | F178: 0 | G178: 12872
A179: 2101 | B179: 2010-09-20 | C179: 62400028 | D179: GASTOS TRANSPORTES | E179: FACT.8524 Seur Canarias | F179: 183.24 | G179: 0
A180: 2373 | B180: 2010-10-20 | C180: 62200065 | D180: REPARACION Y CONSERVACION | E180: FACT.2010001938 REPUESTOS La Isla | F180: 1802.05 | G180: 0
A181: 2368 | B181: 2010-10-20 | C181: 70000183 | D181: VENTA ARENA 2% | E181: FACT.FA8/205 Agustino MACHIN PEREZ | F181: 0 | G181: 140.36
A182: 273 | B182: 2010-02-21 | C182: 62200012 | D182: REPARACION Y CONSERVACION | E182: FACT.279180 Maquinaria ESPAÑA | F182: 484.2 | G182: 0
A183: 964 | B183: 2010-05-21 | C183: 60700001 | D183: TRABAJOS REALIZ. POR OTRAS EMPRESA NAVE | E183: FACT.NV2/323 González VIERA | F183: 38174.94 | G183: 0
A184: 1545 | B184: 2010-07-21 | C184: 70000119 | D184: VENTA ARENA 2% | E184: FACT.FA8/133 CARRETERA Los Vientos UTE | F184: 0 | G184: 4983.38
A185: 2379 | B185: 2010-10-21 | C185: 60200014 | D185: COMPRA DE OTROS APROVISIONAMIENTOS | E185: FACT.FV/9168 FERRET. RDG. Y Padrón. | F185: 132.89 | G185: 0
A186: 87 | B186: 2010-01-22 | C186: 62900003 | D186: CONSEJO INSULAR DE AGUAS DE Insular | E186: RECIBO CONSEJO INSUL. DE AGUAS (BARRANCO | F186: 6000 | G186: 0
A187: 282 | B187: 2010-02-22 | C187: 62200013 | D187: REPARACION Y CONSERVACION | E187: FACT.2010000425 REPUESTOS La Isla | F187: 725.62 | G187: 0
A188: 970 | B188: 2010-05-22 | C188: 62200026 | D188: REPARACION Y CONSERVACION | E188: FACT.2267 TALLER Tito | F188: 60 | G188: 0
A189: 971 | B189: 2010-05-22 | C189: 62200027 | D189: REPARACION Y CONSERVACION | E189: FACT.2268 TALLER Tito | F189: 120 | G189: 0
A190: 1559 | B190: 2010-07-22 | C190: 60700010 | D190: TRABAJOS REALIZADOS POR OTRAS EMPRESAS | E190: FACT.6781 harpa, S.L. | F190: 650 | G190: 0
A191: 1558 | B191: 2010-07-22 | C191: 70000120 | D191: VENTA ARENA 2% | E191: FACT.FA8/134 ROTURACIONES AMAGAR, S.L. | F191: 0 | G191: 86.9
A192: 2105 | B192: 2010-09-22 | C192: 60200011 | D192: COMPRA DE OTROS APROVISIONAMIENTOS | E192: FACT.1309434 Maquinaria ESPAÑA | F192: 230.42 | G192: 0
A193: 2103 | B193: 2010-09-22 | C193: 62400029 | D193: GASTOS TRANSPORTES | E193: FACT.8549 Seur Canarias | F193: 128.49 | G193: 0
A194: 2104 | B194: 2010-09-22 | C194: 62400030 | D194: GASTOS TRANSPORTES | E194: FACT.20100777 Trackotro | F194: 1793.6 | G194: 0
A195: 2698 | B195: 2010-11-22 | C195: 62200070 | D195: REPARACION Y CONSERVACION | E195: FACT.3074 TALLER Tito | F195: 120 | G195: 0
A196: 2699 | B196: 2010-11-22 | C196: 62900016 | D196: OTROS GASTOS DE EXPLOTACION | E196: FACT.3081 TALLER Tito | F196: 90 | G196: 0
A197: 89 | B197: 2010-01-23 | C197: 62200004 | D197: REPARACION Y CONSERVACION | E197: FACT.700904 DESGASTES La Isla | F197: 44.96 | G197: 0
A198: 90 | B198: 2010-01-23 | C198: 62200005 | D198: REPARACION Y CONSERVACION | E198: FACT.700899 DESGASTE La Isla | F198: 267.4 | G198: 0
A199: 1246 | B199: 2010-06-23 | C199: 62900006 | D199: OTROS GASTOS DE EXPLOTACION | E199: FACT.29 JUAN Siverio RAMIREZ | F199: 565.76 | G199: 0
A200: 1573 | B200: 2010-07-23 | C200: 62200050 | D200: REPARACION Y CONSERVACION | E200: FACT.AV/5094 ANTONIO J. Pinto Pérez | F200: 204.11 | G200: 0
A201: 2108 | B201: 2010-09-23 | C201: 62400031 | D201: GASTOS TRANSPORTES | E201: FACT.8584 Seur Canarias | F201: 151.23 | G201: 0
... 380 more rows

Sheet Tabla de Gastos
A3: Asiento | B3: Fecha | C3: Subcuenta | D3: Titulo Subcuenta | E3: Descripción | F3: Debe | G3: Haber | H3: 4 digitos | I3: 3 digitos | J3: 2 digitos | K3: Grupo 1 | L3: Grupo 2 | M3: Subgrupo 2 | N3: GI | O3: Tipologia | P3: Orden | Q3: Nombre cuenta | R3: Ctas | S3: Año | T3: Mes | U3: Trimestre | V3: Semana | W3: Saldo | X3: Factor
A4: 175 | B4: 2010-02-01 | C4: 60600001 | D4: DESCUENTOS SOBRE COMPRAS POR PRONTO PAGO | E4: DTO. FACT.30847 CIAL. marpa 2007 | F4: 0 | G4: 6.29 | H4: =MID(Tabla_Gtos_Ingresos7[[#This Row],[Subcuenta]],1,4) -> 6060 | I4: =VALUE(MID(Tabla_Gtos_Ingresos7[[#This Row],[4 digitos]],1,3)) -> 606 | J4: =VALUE(MID(Tabla_Gtos_Ingresos7[[#This Row],[3 digitos]],1,2)) -> 60 | K4: =VLOOKUP(Tabla_Gtos_Ingresos7[[#This Row],[3 digitos]],PGC_Gtos_e_Ingresos[],4,FALSE) -> 4.a | L4: =VLOOKUP(Tabla_Gtos_Ingresos7[[#This Row],[Grupo 1]],Tabla3[],4,FALSE) -> 4. Aprovisionamientos | M4: =VLOOKUP(Tabla_Gtos_Ingresos7[[#This Row],[Grupo 1]],Tabla3[],5,FALSE) -> 4.a Consumos de Mercaderias | N4: =VLOOKUP(Tabla_Gtos_Ingresos7[[#This Row],[Grupo 1]],Tabla3[],10,FALSE) -> G | O4: =VLOOKUP(Tabla_Gtos_Ingresos7[[#This Row],[Grupo 1]],Tabla3[],6,FALSE) -> Explotación | P4: =VLOOKUP(Tabla_Gtos_Ingresos7[[#This Row],[Grupo 1]],Tabla3[],2,FALSE) -> 4 | Q4: =VLOOKUP(Tabla_Gtos_Ingresos7[[#This Row],[3 digitos]],PGC_Gtos_e_Ingresos[],2,FALSE) -> Descuentos sobre compras por pronto pago | R4: =Tabla_Gtos_Ingresos7[[#This Row],[3 digitos]]&"/"&Tabla_Gtos_Ingresos7[[#This Row],[Nombre cuenta]] -> 606/ Descuentos sobre compras por pronto pago | S4: =YEAR(Tabla_Gtos_Ingresos7[[#This Row],[Fecha]]) -> 2010 | T4: =MONTH(Tabla_Gtos_Ingresos7[[#This Row],[Fecha]]) -> 2 | U4: =ROUNDUP(MONTH(Tabla_Gtos_Ingresos7[[#This Row],[Fecha]])/3, 0) -> 1 | V4: =WEEKNUM(Tabla_Gtos_Ingresos7[[#This Row],[Fecha]]) -> 6 | W4: =(Tabla_Gtos_Ingresos7[[#This Row],[Factor]]*Tabla_Gtos_Ingresos7[[#This Row],[Haber]])+(Tabla_Gtos_Ingresos7[[#This Row],[Factor]]*Tabla_Gtos_Ingresos7[[#This Row],[Debe]]) -> 6.29 | X4: =VLOOKUP(Tabla_Gtos_Ingresos7[[#This Row],[3 digitos]],PGC_Gtos_e_Ingresos[],3,FALSE) -> 1
A5: 170 | B5: 2010-02-01 | C5: 62200008 | D5: REPARACION Y CONSERVACION | E5: FACT.0014/08 CERRAJERIA LOS perritos | F5: 1020 | G5: 0 | H5: =MID(Tabla_Gtos_Ingresos7[[#This Row],[Subcuenta]],1,4) -> 6220 | I5: =VALUE(MID(Tabla_Gtos_Ingresos7[[#This Row],[4 digitos]],1,3)) -> 622 | J5: =VALUE(MID(Tabla_Gtos_Ingresos7[[#This Row],[3 digitos]],1,2)) -> 62 | K5: =VLOOKUP(Tabla_Gtos_Ingresos7[[#This Row],[3 digitos]],PGC_Gtos_e_Ingresos[],4,FALSE) -> 7.a | L5: =VLOOKUP(Tabla_Gtos_Ingresos7[[#This Row],[Grupo 1]],Tabla3[],4,FALSE) -> 7. Otros Gastos de Explotación | M5: =VLOOKUP(Tabla_Gtos_Ingresos7[[#This Row],[Grupo 1]],Tabla3[],5,FALSE) -> 7.a Servicios Exteriores | N5: =VLOOKUP(Tabla_Gtos_Ingresos7[[#This Row],[Grupo 1]],Tabla3[],10,FALSE) -> G | O5: =VLOOKUP(Tabla_Gtos_Ingresos7[[#This Row],[Grupo 1]],Tabla3[],6,FALSE) -> Explotación | P5: =VLOOKUP(Tabla_Gtos_Ingresos7[[#This Row],[Grupo 1]],Tabla3[],2,FALSE) -> 7 | Q5: =VLOOKUP(Tabla_Gtos_Ingresos7[[#This Row],[3 digitos]],PGC_Gtos_e_Ingresos[],2,FALSE) -> Reparaciones y conservación | R5: =Tabla_Gtos_Ingresos7[[#This Row],[3 digitos]]&"/"&Tabla_Gtos_Ingresos7[[#This Row],[Nombre cuenta]] -> 622/ Reparaciones y conservación | S5: =YEAR(Tabla_Gtos_Ingresos7[[#This Row],[Fecha]]) -> 2010 | T5: =MONTH(Tabla_Gtos_Ingresos7[[#This Row],[Fecha]]) -> 2 | U5: =ROUNDUP(MONTH(Tabla_Gtos_Ingresos7[[#This Row],[Fecha]])/3, 0) -> 1 | V5: =WEEKNUM(Tabla_Gtos_Ingresos7[[#This Row],[Fecha]]) -> 6 | W5: =(Tabla_Gtos_Ingresos7[[#This Row],[Factor]]*Tabla_Gtos_Ingresos7[[#This Row],[Haber]])+(Tabla_Gtos_Ingresos7[[#This Row],[Factor]]*Tabla_Gtos_Ingresos7[[#This Row],[Debe]]) -> -1020 | X5: =VLOOKUP(Tabla_Gtos_Ingresos7[[#This Row],[3 digitos]],PGC_Gtos_e_Ingresos[],3,FALSE) -> -1
A6: 1716 | B6: 2010-08-01 | C6: 60200005 | D6: COMPRA DE OTROS APROVISIONAMIENTOS | E6: FACT.1146148 Maquinaria ESPAÑA | F6: 304.32 | G6: 0 | H6: =MID(Tabla_Gtos_Ingresos7[[#This Row],[Subcuenta]],1,4) -> 6020 | I6: =VALUE(MID(Tabla_Gtos_Ingresos7[[#This Row],[4 digitos]],1,3)) -> 602 | J6: =VALUE(MID(Tabla_Gtos_Ingresos7[[#This Row],[3 digitos]],1,2)) -> 60 | K6: =VLOOKUP(Tabla_Gtos_Ingresos7[[#This Row],[3 digitos]],PGC_Gtos_e_Ingresos[],4,FALSE) -> 4.b | L6: =VLOOKUP(Tabla_Gtos_Ingresos7[[#This Row],[Grupo 1]],Tabla3[],4,FALSE) -> 4. Aprovisionamientos | M6: =VLOOKUP(Tabla_Gtos_Ingresos7[[#This Row],[Grupo 1]],Tabla3[],5,FALSE) -> 4.b Consumos MP y otros | N6: =VLOOKUP(Tabla_Gtos_Ingresos7[[#This Row],[Grupo 1]],Tabla3[],10,FALSE) -> G | O6: =VLOOKUP(Tabla_Gtos_Ingresos7[[#This Row],[Grupo 1]],Tabla3[],6,FALSE) -> Explotación | P6: =VLOOKUP(Tabla_Gtos_Ingresos7[[#This Row],[Grupo 1]],Tabla3[],2,FALSE) -> 4 | Q6: =VLOOKUP(Tabla_Gtos_Ingresos7[[#This Row],[3 digitos]],PGC_Gtos_e_Ingresos[],2,FALSE) -> Compras de otros aprovisionamientos | R6: =Tabla_Gtos_Ingresos7[[#This Row],[3 digitos]]&"/"&Tabla_Gtos_Ingresos7[[#This Row],[Nombre cuenta]] -> 602/ Compras de otros aprovisionamientos | S6: =YEAR(Tabla_Gtos_Ingresos7[[#This Row],[Fecha]]) -> 2010 | T6: =MONTH(Tabla_Gtos_Ingresos7[[#This Row],[Fecha]]) -> 8 | U6: =ROUNDUP(MONTH(Tabla_Gtos_Ingresos7[[#This Row],[Fecha]])/3, 0) -> 3 | V6: =WEEKNUM(Tabla_Gtos_Ingresos7[[#This Row],[Fecha]]) -> 32 | W6: =(Tabla_Gtos_Ingresos7[[#This Row],[Factor]]*Tabla_Gtos_Ingresos7[[#This Row],[Haber]])+(Tabla_Gtos_Ingresos7[[#This Row],[Factor]]*Tabla_Gtos_Ingresos7[[#This Row],[Debe]]) -> -304.32 | X6: =VLOOKUP(Tabla_Gtos_Ingresos7[[#This Row],[3 digitos]],PGC_Gtos_e_Ingresos[],3,FALSE) -> -1
A7: 1946 | B7: 2010-09-01 | C7: 62400002 | D7: GASTOS TRANSPORTES | E7: FACT.8125 Seur Canarias | F7: 44 | G7: 0 | H7: =MID(Tabla_Gtos_Ingresos7[[#This Row],[Subcuenta]],1,4) -> 6240 | I7: =VALUE(MID(Tabla_Gtos_Ingresos7[[#This Row],[4 digitos]],1,3)) -> 624 | J7: =VALUE(MID(Tabla_Gtos_Ingresos7[[#This Row],[3 digitos]],1,2)) -> 62 | K7: =VLOOKUP(Tabla_Gtos_Ingresos7[[#This Row],[3 digitos]],PGC_Gtos_e_Ingresos[],4,FALSE) -> 7.a | L7: =VLOOKUP(Tabla_Gtos_Ingresos7[[#This Row],[Grupo 1]],Tabla3[],4,FALSE) -> 7. Otros Gastos de Explotación | M7: =VLOOKUP(Tabla_Gtos_Ingresos7[[#This Row],[Grupo 1]],Tabla3[],5,FALSE) -> 7.a Servicios Exteriores | N7: =VLOOKUP(Tabla_Gtos_Ingresos7[[#This Row],[Grupo 1]],Tabla3[],10,FALSE) -> G | O7: =VLOOKUP(Tabla_Gtos_Ingresos7[[#This Row],[Grupo 1]],Tabla3[],6,FALSE) -> Explotación | P7: =VLOOKUP(Tabla_Gtos_Ingresos7[[#This Row],[Grupo 1]],Tabla3[],2,FALSE) -> 7 | Q7: =VLOOKUP(Tabla_Gtos_Ingresos7[[#This Row],[3 digitos]],PGC_Gtos_e_Ingresos[],2,FALSE) -> Transportes | R7: =Tabla_Gtos_Ingresos7[[#This Row],[3 digitos]]&"/"&Tabla_Gtos_Ingresos7[[#This Row],[Nombre cuenta]] -> 624/ Transportes | S7: =YEAR(Tabla_Gtos_Ingresos7[[#This Row],[Fecha]]) -> 2010 | T7: =MONTH(Tabla_Gtos_Ingresos7[[#This Row],[Fecha]]) -> 9 | U7: =ROUNDUP(MONTH(Tabla_Gtos_Ingresos7[[#This Row],[Fecha]])/3, 0) -> 3 | V7: =WEEKNUM(Tabla_Gtos_Ingresos7[[#This Row],[Fecha]]) -> 36 | W7: =(Tabla_Gtos_Ingresos7[[#This Row],[Factor]]*Tabla_Gtos_Ingresos7[[#This Row],[Haber]])+(Tabla_Gtos_Ingresos7[[#This Row],[Factor]]*Tabla_Gtos_Ingresos7[[#This Row],[Debe]]) -> -44 | X7: =VLOOKUP(Tabla_Gtos_Ingresos7[[#This Row],[3 digitos]],PGC_Gtos_e_Ingresos[],3,FALSE) -> -1
A8: 1947 | B8: 2010-09-01 | C8: 62400003 | D8: GASTOS TRANSPORTES | E8: FACT.8131 Seur Canarias | F8: 174.27 | G8: 0 | H8: =MID(Tabla_Gtos_Ingresos7[[#This Row],[Subcuenta]],1,4) -> 6240 | I8: =VALUE(MID(Tabla_Gtos_Ingresos7[[#This Row],[4 digitos]],1,3)) -> 624 | J8: =VALUE(MID(Tabla_Gtos_Ingresos7[[#This Row],[3 digitos]],1,2)) -> 62 | K8: =VLOOKUP(Tabla_Gtos_Ingresos7[[#This Row],[3 digitos]],PGC_Gtos_e_Ingresos[],4,FALSE) -> 7.a | L8: =VLOOKUP(Tabla_Gtos_Ingresos7[[#This Row],[Grupo 1]],Tabla3[],4,FALSE) -> 7. Otros Gastos de Explotación | M8: =VLOOKUP(Tabla_Gtos_Ingresos7[[#This Row],[Grupo 1]],Tabla3[],5,FALSE) -> 7.a Servicios Exteriores | N8: =VLOOKUP(Tabla_Gtos_Ingresos7[[#This Row],[Grupo 1]],Tabla3[],10,FALSE) -> G | O8: =VLOOKUP(Tabla_Gtos_Ingresos7[[#This Row],[Grupo 1]],Tabla3[],6,FALSE) -> Explotación | P8: =VLOOKUP(Tabla_Gtos_Ingresos7[[#This Row],[Grupo 1]],Tabla3[],2,FALSE) -> 7 | Q8: =VLOOKUP(Tabla_Gtos_Ingresos7[[#This Row],[3 digitos]],PGC_Gtos_e_Ingresos[],2,FALSE) -> Transportes | R8: =Tabla_Gtos_Ingresos7[[#This Row],[3 digitos]]&"/"&Tabla_Gtos_Ingresos7[[#This Row],[Nombre cuenta]] -> 624/ Transportes | S8: =YEAR(Tabla_Gtos_Ingresos7[[#This Row],[Fecha]]) -> 2010 | T8: =MONTH(Tabla_Gtos_Ingresos7[[#This Row],[Fecha]]) -> 9 | U8: =ROUNDUP(MONTH(Tabla_Gtos_Ingresos7[[#This Row],[Fecha]])/3, 0) -> 3 | V8: =WEEKNUM(Tabla_Gtos_Ingresos7[[#This Row],[Fecha]]) -> 36 | W8: =(Tabla_Gtos_Ingresos7[[#This Row],[Factor]]*Tabla_Gtos_Ingresos7[[#This Row],[Haber]])+(Tabla_Gtos_Ingresos7[[#This Row],[Factor]]*Tabla_Gtos_Ingresos7[[#This Row],[Debe]]) -> -174.27 | X8: =VLOOKUP(Tabla_Gtos_Ingresos7[[#This Row],[3 digitos]],PGC_Gtos_e_Ingresos[],3,FALSE) -> -1
A9: 2229 | B9: 2010-10-01 | C9: 60200013 | D9: COMPRA DE OTROS APROVISIONAMIENTOS | E9: FACT.1362096 Maquinaria ESPAÑA | F9: 687.56 | G9: 0 | H9: =MID(Tabla_Gtos_Ingresos7[[#This Row],[Subcuenta]],1,4) -> 6020 | I9: =VALUE(MID(Tabla_Gtos_Ingresos7[[#This Row],[4 digitos]],1,3)) -> 602 | J9: =VALUE(MID(Tabla_Gtos_Ingresos7[[#This Row],[3 digitos]],1,2)) -> 60 | K9: =VLOOKUP(Tabla_Gtos_Ingresos7[[#This Row],[3 digitos]],PGC_Gtos_e_Ingresos[],4,FALSE) -> 4.b | L9: =VLOOKUP(Tabla_Gtos_Ingresos7[[#This Row],[Grupo 1]],Tabla3[],4,FALSE) -> 4. Aprovisionamientos | M9: =VLOOKUP(Tabla_Gtos_Ingresos7[[#This Row],[Grupo 1]],Tabla3[],5,FALSE) -> 4.b Consumos MP y otros | N9: =VLOOKUP(Tabla_Gtos_Ingresos7[[#This Row],[Grupo 1]],Tabla3[],10,FALSE) -> G | O9: =VLOOKUP(Tabla_Gtos_Ingresos7[[#This Row],[Grupo 1]],Tabla3[],6,FALSE) -> Explotación | P9: =VLOOKUP(Tabla_Gtos_Ingresos7[[#This Row],[Grupo 1]],Tabla3[],2,FALSE) -> 4 | Q9: =VLOOKUP(Tabla_Gtos_Ingresos7[[#This Row],[3 digitos]],PGC_Gtos_e_Ingresos[],2,FALSE) -> Compras de otros aprovisionamientos | R9: =Tabla_Gtos_Ingresos7[[#This Row],[3 digitos]]&"/"&Tabla_Gtos_Ingresos7[[#This Row],[Nombre cuenta]] -> 602/ Compras de otros aprovisionamientos | S9: =YEAR(Tabla_Gtos_Ingresos7[[#This Row],[Fecha]]) -> 2010 | T9: =MONTH(Tabla_Gtos_Ingresos7[[#This Row],[Fecha]]) -> 10 | U9: =ROUNDUP(MONTH(Tabla_Gtos_Ingresos7[[#This Row],[Fecha]])/3, 0) -> 4 | V9: =WEEKNUM(Tabla_Gtos_Ingresos7[[#This Row],[Fecha]]) -> 40 | W9: =(Tabla_Gtos_Ingresos7[[#This Row],[Factor]]*Tabla_Gtos_Ingresos7[[#This Row],[Haber]])+(Tabla_Gtos_Ingresos7[[#This Row],[Factor]]*Tabla_Gtos_Ingresos7[[#This Row],[Debe]]) -> -687.56 | X9: =VLOOKUP(Tabla_Gtos_Ingresos7[[#This Row],[3 digitos]],PGC_Gtos_e_Ingresos[],3,FALSE) -> -1
A10: 5 | B10: 2010-01-02 | C10: 60700000 | D10: TRABAJOS REALIZADOS POR OTRAS EMPRESAS | E10: FACT.34/2007 ROTURACIONES Y TTES. Cartell | F10: 3339 | G10: 0 | H10: =MID(Tabla_Gtos_Ingresos7[[#This Row],[Subcuenta]],1,4) -> 6070 | I10: =VALUE(MID(Tabla_Gtos_Ingresos7[[#This Row],[4 digitos]],1,3)) -> 607 | J10: =VALUE(MID(Tabla_Gtos_Ingresos7[[#This Row],[3 digitos]],1,2)) -> 60 | K10: =VLOOKUP(Tabla_Gtos_Ingresos7[[#This Row],[3 digitos]],PGC_Gtos_e_Ingresos[],4,FALSE) -> 4.c | L10: =VLOOKUP(Tabla_Gtos_Ingresos7[[#This Row],[Grupo 1]],Tabla3[],4,FALSE) -> 4. Aprovisionamientos | M10: =VLOOKUP(Tabla_Gtos_Ingresos7[[#This Row],[Grupo 1]],Tabla3[],5,FALSE) -> 4.c Trabajos Realizados por Otras Empresas | N10: =VLOOKUP(Tabla_Gtos_Ingresos7[[#This Row],[Grupo 1]],Tabla3[],10,FALSE) -> G | O10: =VLOOKUP(Tabla_Gtos_Ingresos7[[#This Row],[Grupo 1]],Tabla3[],6,FALSE) -> Explotación | P10: =VLOOKUP(Tabla_Gtos_Ingresos7[[#This Row],[Grupo 1]],Tabla3[],2,FALSE) -> 4 | Q10: =VLOOKUP(Tabla_Gtos_Ingresos7[[#This Row],[3 digitos]],PGC_Gtos_e_Ingresos[],2,FALSE) -> Trabajos realizados por otras empresas | R10: =Tabla_Gtos_Ingresos7[[#This Row],[3 digitos]]&"/"&Tabla_Gtos_Ingresos7[[#This Row],[Nombre cuenta]] -> 607/ Trabajos realizados por otras empresas | S10: =YEAR(Tabla_Gtos_Ingresos7[[#This Row],[Fecha]]) -> 2010 | T10: =MONTH(Tabla_Gtos_Ingresos7[[#This Row],[Fecha]]) -> 1 | U10: =ROUNDUP(MONTH(Tabla_Gtos_Ingresos7[[#This Row],[Fecha]])/3, 0) -> 1 | V10: =WEEKNUM(Tabla_Gtos_Ingresos7[[#This Row],[Fecha]]) -> 1 | W10: =(Tabla_Gtos_Ingresos7[[#This Row],[Factor]]*Tabla_Gtos_Ingresos7[[#This Row],[Haber]])+(Tabla_Gtos_Ingresos7[[#This Row],[Factor]]*Tabla_Gtos_Ingresos7[[#This Row],[Debe]]) -> -3339 | X10: =VLOOKUP(Tabla_Gtos_Ingresos7[[#This Row],[3 digitos]],PGC_Gtos_e_Ingresos[],3,FALSE) -> -1
A11: 23 | B11: 2010-01-02 | C11: 62200000 | D11: REPARACION Y CONSERVACION | E11: FACT.2300 TALLER Tito | F11: 120 | G11: 0 | H11: =MID(Tabla_Gtos_Ingresos7[[#This Row],[Subcuenta]],1,4) -> 6220 | I11: =VALUE(MID(Tabla_Gtos_Ingresos7[[#This Row],[4 digitos]],1,3)) -> 622 | J11: =VALUE(MID(Tabla_Gtos_Ingresos7[[#This Row],[3 digitos]],1,2)) -> 62 | K11: =VLOOKUP(Tabla_Gtos_Ingresos7[[#This Row],[3 digitos]],PGC_Gtos_e_Ingresos[],4,FALSE) -> 7.a | L11: =VLOOKUP(Tabla_Gtos_Ingresos7[[#This Row],[Grupo 1]],Tabla3[],4,FALSE) -> 7. Otros Gastos de Explotación | M11: =VLOOKUP(Tabla_Gtos_Ingresos7[[#This Row],[Grupo 1]],Tabla3[],5,FALSE) -> 7.a Servicios Exteriores | N11: =VLOOKUP(Tabla_Gtos_Ingresos7[[#This Row],[Grupo 1]],Tabla3[],10,FALSE) -> G | O11: =VLOOKUP(Tabla_Gtos_Ingresos7[[#This Row],[Grupo 1]],Tabla3[],6,FALSE) -> Explotación | P11: =VLOOKUP(Tabla_Gtos_Ingresos7[[#This Row],[Grupo 1]],Tabla3[],2,FALSE) -> 7 | Q11: =VLOOKUP(Tabla_Gtos_Ingresos7[[#This Row],[3 digitos]],PGC_Gtos_e_Ingresos[],2,FALSE) -> Reparaciones y conservación | R11: =Tabla_Gtos_Ingresos7[[#This Row],[3 digitos]]&"/"&Tabla_Gtos_Ingresos7[[#This Row],[Nombre cuenta]] -> 622/ Reparaciones y conservación | S11: =YEAR(Tabla_Gtos_Ingresos7[[#This Row],[Fecha]]) -> 2010 | T11: =MONTH(Tabla_Gtos_Ingresos7[[#This Row],[Fecha]]) -> 1 | U11: =ROUNDUP(MONTH(Tabla_Gtos_Ingresos7[[#This Row],[Fecha]])/3, 0) -> 1 | V11: =WEEKNUM(Tabla_Gtos_Ingresos7[[#This Row],[Fecha]]) -> 1 | W11: =(Tabla_Gtos_Ingresos7[[#This Row],[Factor]]*Tabla_Gtos_Ingresos7[[#This Row],[Haber]])+(Tabla_Gtos_Ingresos7[[#This Row],[Factor]]*Tabla_Gtos_Ingresos7[[#This Row],[Debe]]) -> -120 | X11: =VLOOKUP(Tabla_Gtos_Ingresos7[[#This Row],[3 digitos]],PGC_Gtos_e_Ingresos[],3,FALSE) -> -1
A12: 20 | B12: 2010-01-02 | C12: 62300011 | D12: JOSE A. Glez Glez | E12: FACT.1-2010 JOSE Glez Glez | F12: 180 | G12: 0 | H12: =MID(Tabla_Gtos_Ingresos7[[#This Row],[Subcuenta]],1,4) -> 6230 | I12: =VALUE(MID(Tabla_Gtos_Ingresos7[[#This Row],[4 digitos]],1,3)) -> 623 | J12: =VALUE(MID(Tabla_Gtos_Ingresos7[[#This Row],[3 digitos]],1,2)) -> 62 | K12: =VLOOKUP(Tabla_Gtos_Ingresos7[[#This Row],[3 digitos]],PGC_Gtos_e_Ingresos[],4,FALSE) -> 7.a | L12: =VLOOKUP(Tabla_Gtos_Ingresos7[[#This Row],[Grupo 1]],Tabla3[],4,FALSE) -> 7. Otros Gastos de Explotación | M12: =VLOOKUP(Tabla_Gtos_Ingresos7[[#This Row],[Grupo 1]],Tabla3[],5,FALSE) -> 7.a Servicios Exteriores | N12: =VLOOKUP(Tabla_Gtos_Ingresos7[[#This Row],[Grupo 1]],Tabla3[],10,FALSE) -> G | O12: =VLOOKUP(Tabla_Gtos_Ingresos7[[#This Row],[Grupo 1]],Tabla3[],6,FALSE) -> Explotación | P12: =VLOOKUP(Tabla_Gtos_Ingresos7[[#This Row],[Grupo 1]],Tabla3[],2,FALSE) -> 7 | Q12: =VLOOKUP(Tabla_Gtos_Ingresos7[[#This Row],[3 digitos]],PGC_Gtos_e_Ingresos[],2,FALSE) -> Servicios de profesionales independientes | R12: =Tabla_Gtos_Ingresos7[[#This Row],[3 digitos]]&"/"&Tabla_Gtos_Ingresos7[[#This Row],[Nombre cuenta]] -> 623/ Servicios de profesionales independientes | S12: =YEAR(Tabla_Gtos_Ingresos7[[#This Row],[Fecha]]) -> 2010 | T12: =MONTH(Tabla_Gtos_Ingresos7[[#This Row],[Fecha]]) -> 1 | U12: =ROUNDUP(MONTH(Tabla_Gtos_Ingresos7[[#This Row],[Fecha]])/3, 0) -> 1 | V12: =WEEKNUM(Tabla_Gtos_Ingresos7[[#This Row],[Fecha]]) -> 1 | W12: =(Tabla_Gtos_Ingresos7[[#This Row],[Factor]]*Tabla_Gtos_Ingresos7[[#This Row],[Haber]])+(Tabla_Gtos_Ingresos7[[#This Row],[Factor]]*Tabla_Gtos_Ingresos7[[#This Row],[Debe]]) -> -180 | X12: =VLOOKUP(Tabla_Gtos_Ingresos7[[#This Row],[3 digitos]],PGC_Gtos_e_Ingresos[],3,FALSE) -> -1
A13: 1408 | B13: 2010-07-02 | C13: 60200003 | D13: COMPRA DE OTROS APROVISIONAMIENTOS | E13: FACT.990474 Maquinaria ESPAÑA | F13: 101.3 | G13: 0 | H13: =MID(Tabla_Gtos_Ingresos7[[#This Row],[Subcuenta]],1,4) -> 6020 | I13: =VALUE(MID(Tabla_Gtos_Ingresos7[[#This Row],[4 digitos]],1,3)) -> 602 | J13: =VALUE(MID(Tabla_Gtos_Ingresos7[[#This Row],[3 digitos]],1,2)) -> 60 | K13: =VLOOKUP(Tabla_Gtos_Ingresos7[[#This Row],[3 digitos]],PGC_Gtos_e_Ingresos[],4,FALSE) -> 4.b | L13: =VLOOKUP(Tabla_Gtos_Ingresos7[[#This Row],[Grupo 1]],Tabla3[],4,FALSE) -> 4. Aprovisionamientos | M13: =VLOOKUP(Tabla_Gtos_Ingresos7[[#This Row],[Grupo 1]],Tabla3[],5,FALSE) -> 4.b Consumos MP y otros | N13: =VLOOKUP(Tabla_Gtos_Ingresos7[[#This Row],[Grupo 1]],Tabla3[],10,FALSE) -> G | O13: =VLOOKUP(Tabla_Gtos_Ingresos7[[#This Row],[Grupo 1]],Tabla3[],6,FALSE) -> Explotación | P13: =VLOOKUP(Tabla_Gtos_Ingresos7[[#This Row],[Grupo 1]],Tabla3[],2,FALSE) -> 4 | Q13: =VLOOKUP(Tabla_Gtos_Ingresos7[[#This Row],[3 digitos]],PGC_Gtos_e_Ingresos[],2,FALSE) -> Compras de otros aprovisionamientos | R13: =Tabla_Gtos_Ingresos7[[#This Row],[3 digitos]]&"/"&Tabla_Gtos_Ingresos7[[#This Row],[Nombre cuenta]] -> 602/ Compras de otros aprovisionamientos | S13: =YEAR(Tabla_Gtos_Ingresos7[[#This Row],[Fecha]]) -> 2010 | T13: =MONTH(Tabla_Gtos_Ingresos7[[#This Row],[Fecha]]) -> 7 | U13: =ROUNDUP(MONTH(Tabla_Gtos_Ingresos7[[#This Row],[Fecha]])/3, 0) -> 3 | V13: =WEEKNUM(Tabla_Gtos_Ingresos7[[#This Row],[Fecha]]) -> 27 | W13: =(Tabla_Gtos_Ingresos7[[#This Row],[Factor]]*Tabla_Gtos_Ingresos7[[#This Row],[Haber]])+(Tabla_Gtos_Ingresos7[[#This Row],[Factor]]*Tabla_Gtos_Ingresos7[[#This Row],[Debe]]) -> -101.3 | X13: =VLOOKUP(Tabla_Gtos_Ingresos7[[#This Row],[3 digitos]],PGC_Gtos_e_Ingresos[],3,FALSE) -> -1
A14: 1967 | B14: 2010-09-02 | C14: 62400004 | D14: GASTOS TRANSPORTES | E14: FACT.8157 Seur Canarias | F14: 86 | G14: 0 | H14: =MID(Tabla_Gtos_Ingresos7[[#This Row],[Subcuenta]],1,4) -> 6240 | I14: =VALUE(MID(Tabla_Gtos_Ingresos7[[#This Row],[4 digitos]],1,3)) -> 624 | J14: =VALUE(MID(Tabla_Gtos_Ingresos7[[#This Row],[3 digitos]],1,2)) -> 62 | K14: =VLOOKUP(Tabla_Gtos_Ingresos7[[#This Row],[3 digitos]],PGC_Gtos_e_Ingresos[],4,FALSE) -> 7.a | L14: =VLOOKUP(Tabla_Gtos_Ingresos7[[#This Row],[Grupo 1]],Tabla3[],4,FALSE) -> 7. Otros Gastos de Explotación | M14: =VLOOKUP(Tabla_Gtos_Ingresos7[[#This Row],[Grupo 1]],Tabla3[],5,FALSE) -> 7.a Servicios Exteriores | N14: =VLOOKUP(Tabla_Gtos_Ingresos7[[#This Row],[Grupo 1]],Tabla3[],10,FALSE) -> G | O14: =VLOOKUP(Tabla_Gtos_Ingresos7[[#This Row],[Grupo 1]],Tabla3[],6,FALSE) -> Explotación | P14: =VLOOKUP(Tabla_Gtos_Ingresos7[[#This Row],[Grupo 1]],Tabla3[],2,FALSE) -> 7 | Q14: =VLOOKUP(Tabla_Gtos_Ingresos7[[#This Row],[3 digitos]],PGC_Gtos_e_Ingresos[],2,FALSE) -> Transportes | R14: =Tabla_Gtos_Ingresos7[[#This Row],[3 digitos]]&"/"&Tabla_Gtos_Ingresos7[[#This Row],[Nombre cuenta]] -> 624/ Transportes | S14: =YEAR(Tabla_Gtos_Ingresos7[[#This Row],[Fecha]]) -> 2010 | T14: =MONTH(Tabla_Gtos_Ingresos7[[#This Row],[Fecha]]) -> 9 | U14: =ROUNDUP(MONTH(Tabla_Gtos_Ingresos7[[#This Row],[Fecha]])/3, 0) -> 3 | V14: =WEEKNUM(Tabla_Gtos_Ingresos7[[#This Row],[Fecha]]) -> 36 | W14: =(Tabla_Gtos_Ingresos7[[#This Row],[Factor]]*Tabla_Gtos_Ingresos7[[#This Row],[Haber]])+(Tabla_Gtos_Ingresos7[[#This Row],[Factor]]*Tabla_Gtos_Ingresos7[[#This Row],[Debe]]) -> -86 | X14: =VLOOKUP(Tabla_Gtos_Ingresos7[[#This Row],[3 digitos]],PGC_Gtos_e_Ingresos[],3,FALSE) -> -1
A15: 2238 | B15: 2010-10-02 | C15: 62200063 | D15: REPARACION Y CONSERVACION | E15: FACT.2010001856 REPUESTOS La Isla | F15: 516.61 | G15: 0 | H15: =MID(Tabla_Gtos_Ingresos7[[#This Row],[Subcuenta]],1,4) -> 6220 | I15: =VALUE(MID(Tabla_Gtos_Ingresos7[[#This Row],[4 digitos]],1,3)) -> 622 | J15: =VALUE(MID(Tabla_Gtos_Ingresos7[[#This Row],[3 digitos]],1,2)) -> 62 | K15: =VLOOKUP(Tabla_Gtos_Ingresos7[[#This Row],[3 digitos]],PGC_Gtos_e_Ingresos[],4,FALSE) -> 7.a | L15: =VLOOKUP(Tabla_Gtos_Ingresos7[[#This Row],[Grupo 1]],Tabla3[],4,FALSE) -> 7. Otros Gastos de Explotación | M15: =VLOOKUP(Tabla_Gtos_Ingresos7[[#This Row],[Grupo 1]],Tabla3[],5,FALSE) -> 7.a Servicios Exteriores | N15: =VLOOKUP(Tabla_Gtos_Ingresos7[[#This Row],[Grupo 1]],Tabla3[],10,FALSE) -> G | O15: =VLOOKUP(Tabla_Gtos_Ingresos7[[#This Row],[Grupo 1]],Tabla3[],6,FALSE) -> Explotación | P15: =VLOOKUP(Tabla_Gtos_Ingresos7[[#This Row],[Grupo 1]],Tabla3[],2,FALSE) -> 7 | Q15: =VLOOKUP(Tabla_Gtos_Ingresos7[[#This Row],[3 digitos]],PGC_Gtos_e_Ingresos[],2,FALSE) -> Reparaciones y conservación | R15: =Tabla_Gtos_Ingresos7[[#This Row],[3 digitos]]&"/"&Tabla_Gtos_Ingresos7[[#This Row],[Nombre cuenta]] -> 622/ Reparaciones y conservación | S15: =YEAR(Tabla_Gtos_Ingresos7[[#This Row],[Fecha]]) -> 2010 | T15: =MONTH(Tabla_Gtos_Ingresos7[[#This Row],[Fecha]]) -> 10 | U15: =ROUNDUP(MONTH(Tabla_Gtos_Ingresos7[[#This Row],[Fecha]])/3, 0) -> 4 | V15: =WEEKNUM(Tabla_Gtos_Ingresos7[[#This Row],[Fecha]]) -> 40 | W15: =(Tabla_Gtos_Ingresos7[[#This Row],[Factor]]*Tabla_Gtos_Ingresos7[[#This Row],[Haber]])+(Tabla_Gtos_Ingresos7[[#This Row],[Factor]]*Tabla_Gtos_Ingresos7[[#This Row],[Debe]]) -> -516.61 | X15: =VLOOKUP(Tabla_Gtos_Ingresos7[[#This Row],[3 digitos]],PGC_Gtos_e_Ingresos[],3,FALSE) -> -1
A16: 2818 | B16: 2010-12-02 | C16: 62900018 | D16: OTROS GASTOS DE EXPLOTACION | E16: FACT.20101013 Trackotro | F16: 195.62 | G16: 0 | H16: =MID(Tabla_Gtos_Ingresos7[[#This Row],[Subcuenta]],1,4) -> 6290 | I16: =VALUE(MID(Tabla_Gtos_Ingresos7[[#This Row],[4 digitos]],1,3)) -> 629 | J16: =VALUE(MID(Tabla_Gtos_Ingresos7[[#This Row],[3 digitos]],1,2)) -> 62 | K16: =VLOOKUP(Tabla_Gtos_Ingresos7[[#This Row],[3 digitos]],PGC_Gtos_e_Ingresos[],4,FALSE) -> 7.a | L16: =VLOOKUP(Tabla_Gtos_Ingresos7[[#This Row],[Grupo 1]],Tabla3[],4,FALSE) -> 7. Otros Gastos de Explotación | M16: =VLOOKUP(Tabla_Gtos_Ingresos7[[#This Row],[Grupo 1]],Tabla3[],5,FALSE) -> 7.a Servicios Exteriores | N16: =VLOOKUP(Tabla_Gtos_Ingresos7[[#This Row],[Grupo 1]],Tabla3[],10,FALSE) -> G | O16: =VLOOKUP(Tabla_Gtos_Ingresos7[[#This Row],[Grupo 1]],Tabla3[],6,FALSE) -> Explotación | P16: =VLOOKUP(Tabla_Gtos_Ingresos7[[#This Row],[Grupo 1]],Tabla3[],2,FALSE) -> 7 | Q16: =VLOOKUP(Tabla_Gtos_Ingresos7[[#This Row],[3 digitos]],PGC_Gtos_e_Ingresos[],2,FALSE) -> Otros servicios | R16: =Tabla_Gtos_Ingresos7[[#This Row],[3 digitos]]&"/"&Tabla_Gtos_Ingresos7[[#This Row],[Nombre cuenta]] -> 629/ Otros servicios | S16: =YEAR(Tabla_Gtos_Ingresos7[[#This Row],[Fecha]]) -> 2010 | T16: =MONTH(Tabla_Gtos_Ingresos7[[#This Row],[Fecha]]) -> 12 | U16: =ROUNDUP(MONTH(Tabla_Gtos_Ingresos7[[#This Row],[Fecha]])/3, 0) -> 4 | V16: =WEEKNUM(Tabla_Gtos_Ingresos7[[#This Row],[Fecha]]) -> 49 | W16: =(Tabla_Gtos_Ingresos7[[#This Row],[Factor]]*Tabla_Gtos_Ingresos7[[#This Row],[Haber]])+(Tabla_Gtos_Ingresos7[[#This Row],[Factor]]*Tabla_Gtos_Ingresos7[[#This Row],[Debe]]) -> -195.62 | X16: =VLOOKUP(Tabla_Gtos_Ingresos7[[#This Row],[3 digitos]],PGC_Gtos_e_Ingresos[],3,FALSE) -> -1
A17: 1101 | B17: 2010-06-03 | C17: 62200033 | D17: REPARACION Y CONSERVACION | E17: FACT.1174 REPUESTOS La Isla | F17: 1916.38 | G17: 0 | H17: =MID(Tabla_Gtos_Ingresos7[[#This Row],[Subcuenta]],1,4) -> 6220 | I17: =VALUE(MID(Tabla_Gtos_Ingresos7[[#This Row],[4 digitos]],1,3)) -> 622 | J17: =VALUE(MID(Tabla_Gtos_Ingresos7[[#This Row],[3 digitos]],1,2)) -> 62 | K17: =VLOOKUP(Tabla_Gtos_Ingresos7[[#This Row],[3 digitos]],PGC_Gtos_e_Ingresos[],4,FALSE) -> 7.a | L17: =VLOOKUP(Tabla_Gtos_Ingresos7[[#This Row],[Grupo 1]],Tabla3[],4,FALSE) -> 7. Otros Gastos de Explotación | M17: =VLOOKUP(Tabla_Gtos_Ingresos7[[#This Row],[Grupo 1]],Tabla3[],5,FALSE) -> 7.a Servicios Exteriores | N17: =VLOOKUP(Tabla_Gtos_Ingresos7[[#This Row],[Grupo 1]],Tabla3[],10,FALSE) -> G | O17: =VLOOKUP(Tabla_Gtos_Ingresos7[[#This Row],[Grupo 1]],Tabla3[],6,FALSE) -> Explotación | P17: =VLOOKUP(Tabla_Gtos_Ingresos7[[#This Row],[Grupo 1]],Tabla3[],2,FALSE) -> 7 | Q17: =VLOOKUP(Tabla_Gtos_Ingresos7[[#This Row],[3 digitos]],PGC_Gtos_e_Ingresos[],2,FALSE) -> Reparaciones y conservación | R17: =Tabla_Gtos_Ingresos7[[#This Row],[3 digitos]]&"/"&Tabla_Gtos_Ingresos7[[#This Row],[Nombre cuenta]] -> 622/ Reparaciones y conservación | S17: =YEAR(Tabla_Gtos_Ingresos7[[#This Row],[Fecha]]) -> 2010 | T17: =MONTH(Tabla_Gtos_Ingresos7[[#This Row],[Fecha]]) -> 6 | U17: =ROUNDUP(MONTH(Tabla_Gtos_Ingresos7[[#This Row],[Fecha]])/3, 0) -> 2 | V17: =WEEKNUM(Tabla_Gtos_Ingresos7[[#This Row],[Fecha]]) -> 23 | W17: =(Tabla_Gtos_Ingresos7[[#This Row],[Factor]]*Tabla_Gtos_Ingresos7[[#This Row],[Haber]])+(Tabla_Gtos_Ingresos7[[#This Row],[Factor]]*Tabla_Gtos_Ingresos7[[#This Row],[Debe]]) -> -1916.38 | X17: =VLOOKUP(Tabla_Gtos_Ingresos7[[#This Row],[3 digitos]],PGC_Gtos_e_Ingresos[],3,FALSE) -> -1
A18: 1414 | B18: 2010-07-03 | C18: 62900008 | D18: OTROS GASTOS DE EXPLOTACION | E18: INSERCION B.O.P. PLANTA DE ARIDOS IMPRENTA Teide | F18: 116.62 | G18: 0 | H18: =MID(Tabla_Gtos_Ingresos7[[#This Row],[Subcuenta]],1,4) -> 6290 | I18: =VALUE(MID(Tabla_Gtos_Ingresos7[[#This Row],[4 digitos]],1,3)) -> 629 | J18: =VALUE(MID(Tabla_Gtos_Ingresos7[[#This Row],[3 digitos]],1,2)) -> 62 | K18: =VLOOKUP(Tabla_Gtos_Ingresos7[[#This Row],[3 digitos]],PGC_Gtos_e_Ingresos[],4,FALSE) -> 7.a | L18: =VLOOKUP(Tabla_Gtos_Ingresos7[[#This Row],[Grupo 1]],Tabla3[],4,FALSE) -> 7. Otros Gastos de Explotación | M18: =VLOOKUP(Tabla_Gtos_Ingresos7[[#This Row],[Grupo 1]],Tabla3[],5,FALSE) -> 7.a Servicios Exteriores | N18: =VLOOKUP(Tabla_Gtos_Ingresos7[[#This Row],[Grupo 1]],Tabla3[],10,FALSE) -> G | O18: =VLOOKUP(Tabla_Gtos_Ingresos7[[#This Row],[Grupo 1]],Tabla3[],6,FALSE) -> Explotación | P18: =VLOOKUP(Tabla_Gtos_Ingresos7[[#This Row],[Grupo 1]],Tabla3[],2,FALSE) -> 7 | Q18: =VLOOKUP(Tabla_Gtos_Ingresos7[[#This Row],[3 digitos]],PGC_Gtos_e_Ingresos[],2,FALSE) -> Otros servicios | R18: =Tabla_Gtos_Ingresos7[[#This Row],[3 digitos]]&"/"&Tabla_Gtos_Ingresos7[[#This Row],[Nombre cuenta]] -> 629/ Otros servicios | S18: =YEAR(Tabla_Gtos_Ingresos7[[#This Row],[Fecha]]) -> 2010 | T18: =MONTH(Tabla_Gtos_Ingresos7[[#This Row],[Fecha]]) -> 7 | U18: =ROUNDUP(MONTH(Tabla_Gtos_Ingresos7[[#This Row],[Fecha]])/3, 0) -> 3 | V18: =WEEKNUM(Tabla_Gtos_Ingresos7[[#This Row],[Fecha]]) -> 27 | W18: =(Tabla_Gtos_Ingresos7[[#This Row],[Factor]]*Tabla_Gtos_Ingresos7[[#This Row],[Haber]])+(Tabla_Gtos_Ingresos7[[#This Row],[Factor]]*Tabla_Gtos_Ingresos7[[#This Row],[Debe]]) -> -116.62 | X18: =VLOOKUP(Tabla_Gtos_Ingresos7[[#This Row],[3 digitos]],PGC_Gtos_e_Ingresos[],3,FALSE) -> -1
A19: 2545 | B19: 2010-11-03 | C19: 62900013 | D19: OTROS GASTOS DE EXPLOTACION | E19: FACT.26/08 Tino F. FLEBLES PLANIF. Y SERVICIOS | F19: 3000 | G19: 0 | H19: =MID(Tabla_Gtos_Ingresos7[[#This Row],[Subcuenta]],1,4) -> 6290 | I19: =VALUE(MID(Tabla_Gtos_Ingresos7[[#This Row],[4 digitos]],1,3)) -> 629 | J19: =VALUE(MID(Tabla_Gtos_Ingresos7[[#This Row],[3 digitos]],1,2)) -> 62 | K19: =VLOOKUP(Tabla_Gtos_Ingresos7[[#This Row],[3 digitos]],PGC_Gtos_e_Ingresos[],4,FALSE) -> 7.a | L19: =VLOOKUP(Tabla_Gtos_Ingresos7[[#This Row],[Grupo 1]],Tabla3[],4,FALSE) -> 7. Otros Gastos de Explotación | M19: =VLOOKUP(Tabla_Gtos_Ingresos7[[#This Row],[Grupo 1]],Tabla3[],5,FALSE) -> 7.a Servicios Exteriores | N19: =VLOOKUP(Tabla_Gtos_Ingresos7[[#This Row],[Grupo 1]],Tabla3[],10,FALSE) -> G | O19: =VLOOKUP(Tabla_Gtos_Ingresos7[[#This Row],[Grupo 1]],Tabla3[],6,FALSE) -> Explotación | P19: =VLOOKUP(Tabla_Gtos_Ingresos7[[#This Row],[Grupo 1]],Tabla3[],2,FALSE) -> 7 | Q19: =VLOOKUP(Tabla_Gtos_Ingresos7[[#This Row],[3 digitos]],PGC_Gtos_e_Ingresos[],2,FALSE) -> Otros servicios | R19: =Tabla_Gtos_Ingresos7[[#This Row],[3 digitos]]&"/"&Tabla_Gtos_Ingresos7[[#This Row],[Nombre cuenta]] -> 629/ Otros servicios | S19: =YEAR(Tabla_Gtos_Ingresos7[[#This Row],[Fecha]]) -> 2010 | T19: =MONTH(Tabla_Gtos_Ingresos7[[#This Row],[Fecha]]) -> 11 | U19: =ROUNDUP(MONTH(Tabla_Gtos_Ingresos7[[#This Row],[Fecha]])/3, 0) -> 4 | V19: =WEEKNUM(Tabla_Gtos_Ingresos7[[#This Row],[Fecha]]) -> 45 | W19: =(Tabla_Gtos_Ingresos7[[#This Row],[Factor]]*Tabla_Gtos_Ingresos7[[#This Row],[Haber]])+(Tabla_Gtos_Ingresos7[[#This Row],[Factor]]*Tabla_Gtos_Ingresos7[[#This Row],[Debe]]) -> -3000 | X19: =VLOOKUP(Tabla_Gtos_Ingresos7[[#This Row],[3 digitos]],PGC_Gtos_e_Ingresos[],3,FALSE) -> -1
A20: 2834 | B20: 2010-12-03 | C20: 70000221 | D20: VENTA ARENA 2% | E20: FACT.FA8/247 UTE canaria | F20: 0 | G20: 680 | H20: =MID(Tabla_Gtos_Ingresos7[[#This Row],[Subcuenta]],1,4) -> 7000 | I20: =VALUE(MID(Tabla_Gtos_Ingresos7[[#This Row],[4 digitos]],1,3)) -> 700 | J20: =VALUE(MID(Tabla_Gtos_Ingresos7[[#This Row],[3 digitos]],1,2)) -> 70 | K20: =VLOOKUP(Tabla_Gtos_Ingresos7[[#This Row],[3 digitos]],PGC_Gtos_e_Ingresos[],4,FALSE) -> 1a | L20: =VLOOKUP(Tabla_Gtos_Ingresos7[[#This Row],[Grupo 1]],Tabla3[],4,FALSE) -> 1. Importe Neto Cifra de Negocios | M20: =VLOOKUP(Tabla_Gtos_Ingresos7[[#This Row],[Grupo 1]],Tabla3[],5,FALSE) -> 1.a Ventas | N20: =VLOOKUP(Tabla_Gtos_Ingresos7[[#This Row],[Grupo 1]],Tabla3[],10,FALSE) -> I | O20: =VLOOKUP(Tabla_Gtos_Ingresos7[[#This Row],[Grupo 1]],Tabla3[],6,FALSE) -> Explotación | P20: =VLOOKUP(Tabla_Gtos_Ingresos7[[#This Row],[Grupo 1]],Tabla3[],2,FALSE) -> 1 | Q20: =VLOOKUP(Tabla_Gtos_Ingresos7[[#This Row],[3 digitos]],PGC_Gtos_e_Ingresos[],2,FALSE) -> Ventas de mercaderías | R20: =Tabla_Gtos_Ingresos7[[#This Row],[3 digitos]]&"/"&Tabla_Gtos_Ingresos7[[#This Row],[Nombre cuenta]] -> 700/ Ventas de mercaderías | S20: =YEAR(Tabla_Gtos_Ingresos7[[#This Row],[Fecha]]) -> 2010 | T20: =MONTH(Tabla_Gtos_Ingresos7[[#This Row],[Fecha]]) -> 12 | U20: =ROUNDUP(MONTH(Tabla_Gtos_Ingresos7[[#This Row],[Fecha]])/3, 0) -> 4 | V20: =WEEKNUM(Tabla_Gtos_Ingresos7[[#This Row],[Fecha]]) -> 49 | W20: =(Tabla_Gtos_Ingresos7[[#This Row],[Factor]]*Tabla_Gtos_Ingresos7[[#This Row],[Haber]])+(Tabla_Gtos_Ingresos7[[#This Row],[Factor]]*Tabla_Gtos_Ingresos7[[#This Row],[Debe]]) -> 680 | X20: =VLOOKUP(Tabla_Gtos_Ingresos7[[#This Row],[3 digitos]],PGC_Gtos_e_Ingresos[],3,FALSE) -> 1
A21: 2835 | B21: 2010-12-03 | C21: 70000222 | D21: VENTA ARENA 2% | E21: FACT.FA8/248 UTE canaria | F21: 0 | G21: 28020.11 | H21: =MID(Tabla_Gtos_Ingresos7[[#This Row],[Subcuenta]],1,4) -> 7000 | I21: =VALUE(MID(Tabla_Gtos_Ingresos7[[#This Row],[4 digitos]],1,3)) -> 700 | J21: =VALUE(MID(Tabla_Gtos_Ingresos7[[#This Row],[3 digitos]],1,2)) -> 70 | K21: =VLOOKUP(Tabla_Gtos_Ingresos7[[#This Row],[3 digitos]],PGC_Gtos_e_Ingresos[],4,FALSE) -> 1a | L21: =VLOOKUP(Tabla_Gtos_Ingresos7[[#This Row],[Grupo 1]],Tabla3[],4,FALSE) -> 1. Importe Neto Cifra de Negocios | M21: =VLOOKUP(Tabla_Gtos_Ingresos7[[#This Row],[Grupo 1]],Tabla3[],5,FALSE) -> 1.a Ventas | N21: =VLOOKUP(Tabla_Gtos_Ingresos7[[#This Row],[Grupo 1]],Tabla3[],10,FALSE) -> I | O21: =VLOOKUP(Tabla_Gtos_Ingresos7[[#This Row],[Grupo 1]],Tabla3[],6,FALSE) -> Explotación | P21: =VLOOKUP(Tabla_Gtos_Ingresos7[[#This Row],[Grupo 1]],Tabla3[],2,FALSE) -> 1 | Q21: =VLOOKUP(Tabla_Gtos_Ingresos7[[#This Row],[3 digitos]],PGC_Gtos_e_Ingresos[],2,FALSE) -> Ventas de mercaderías | R21: =Tabla_Gtos_Ingresos7[[#This Row],[3 digitos]]&"/"&Tabla_Gtos_Ingresos7[[#This Row],[Nombre cuenta]] -> 700/ Ventas de mercaderías | S21: =YEAR(Tabla_Gtos_Ingresos7[[#This Row],[Fecha]]) -> 2010 | T21: =MONTH(Tabla_Gtos_Ingresos7[[#This Row],[Fecha]]) -> 12 | U21: =ROUNDUP(MONTH(Tabla_Gtos_Ingresos7[[#This Row],[Fecha]])/3, 0) -> 4 | V21: =WEEKNUM(Tabla_Gtos_Ingresos7[[#This Row],[Fecha]]) -> 49 | W21: =(Tabla_Gtos_Ingresos7[[#This Row],[Factor]]*Tabla_Gtos_Ingresos7[[#This Row],[Haber]])+(Tabla_Gtos_Ingresos7[[#This Row],[Factor]]*Tabla_Gtos_Ingresos7[[#This Row],[Debe]]) -> 28020.11 | X21: =VLOOKUP(Tabla_Gtos_Ingresos7[[#This Row],[3 digitos]],PGC_Gtos_e_Ingresos[],3,FALSE) -> 1
A22: 380 | B22: 2010-03-04 | C22: 62800002 | D22: ENDESA DISTRIBUCION ELECTRICA, S.L. | E22: FACT.U0806N00000240 UNELCO | F22: 5492.19 | G22: 0 | H22: =MID(Tabla_Gtos_Ingresos7[[#This Row],[Subcuenta]],1,4) -> 6280 | I22: =VALUE(MID(Tabla_Gtos_Ingresos7[[#This Row],[4 digitos]],1,3)) -> 628 | J22: =VALUE(MID(Tabla_Gtos_Ingresos7[[#This Row],[3 digitos]],1,2)) -> 62 | K22: =VLOOKUP(Tabla_Gtos_Ingresos7[[#This Row],[3 digitos]],PGC_Gtos_e_Ingresos[],4,FALSE) -> 7.a | L22: =VLOOKUP(Tabla_Gtos_Ingresos7[[#This Row],[Grupo 1]],Tabla3[],4,FALSE) -> 7. Otros Gastos de Explotación | M22: =VLOOKUP(Tabla_Gtos_Ingresos7[[#This Row],[Grupo 1]],Tabla3[],5,FALSE) -> 7.a Servicios Exteriores | N22: =VLOOKUP(Tabla_Gtos_Ingresos7[[#This Row],[Grupo 1]],Tabla3[],10,FALSE) -> G | O22: =VLOOKUP(Tabla_Gtos_Ingresos7[[#This Row],[Grupo 1]],Tabla3[],6,FALSE) -> Explotación | P22: =VLOOKUP(Tabla_Gtos_Ingresos7[[#This Row],[Grupo 1]],Tabla3[],2,FALSE) -> 7 | Q22: =VLOOKUP(Tabla_Gtos_Ingresos7[[#This Row],[3 digitos]],PGC_Gtos_e_Ingresos[],2,FALSE) -> Suministros | R22: =Tabla_Gtos_Ingresos7[[#This Row],[3 digitos]]&"/"&Tabla_Gtos_Ingresos7[[#This Row],[Nombre cuenta]] -> 628/ Suministros | S22: =YEAR(Tabla_Gtos_Ingresos7[[#This Row],[Fecha]]) -> 2010 | T22: =MONTH(Tabla_Gtos_Ingresos7[[#This Row],[Fecha]]) -> 3 | U22: =ROUNDUP(MONTH(Tabla_Gtos_Ingresos7[[#This Row],[Fecha]])/3, 0) -> 1 | V22: =WEEKNUM(Tabla_Gtos_Ingresos7[[#This Row],[Fecha]]) -> 10 | W22: =(Tabla_Gtos_Ingresos7[[#This Row],[Factor]]*Tabla_Gtos_Ingresos7[[#This Row],[Haber]])+(Tabla_Gtos_Ingresos7[[#This Row],[Factor]]*Tabla_Gtos_Ingresos7[[#This Row],[Debe]]) -> -5492.19 | X22: =VLOOKUP(Tabla_Gtos_Ingresos7[[#This Row],[3 digitos]],PGC_Gtos_e_Ingresos[],3,FALSE) -> -1
A23: 381 | B23: 2010-03-04 | C23: 62800002 | D23: ENDESA DISTRIBUCION ELECTRICA, S.L. | E23: FACT.U6808N00010710 UNELCO | F23: 776.33 | G23: 0 | H23: =MID(Tabla_Gtos_Ingresos7[[#This Row],[Subcuenta]],1,4) -> 6280 | I23: =VALUE(MID(Tabla_Gtos_Ingresos7[[#This Row],[4 digitos]],1,3)) -> 628 | J23: =VALUE(MID(Tabla_Gtos_Ingresos7[[#This Row],[3 digitos]],1,2)) -> 62 | K23: =VLOOKUP(Tabla_Gtos_Ingresos7[[#This Row],[3 digitos]],PGC_Gtos_e_Ingresos[],4,FALSE) -> 7.a | L23: =VLOOKUP(Tabla_Gtos_Ingresos7[[#This Row],[Grupo 1]],Tabla3[],4,FALSE) -> 7. Otros Gastos de Explotación | M23: =VLOOKUP(Tabla_Gtos_Ingresos7[[#This Row],[Grupo 1]],Tabla3[],5,FALSE) -> 7.a Servicios Exteriores | N23: =VLOOKUP(Tabla_Gtos_Ingresos7[[#This Row],[Grupo 1]],Tabla3[],10,FALSE) -> G | O23: =VLOOKUP(Tabla_Gtos_Ingresos7[[#This Row],[Grupo 1]],Tabla3[],6,FALSE) -> Explotación | P23: =VLOOKUP(Tabla_Gtos_Ingresos7[[#This Row],[Grupo 1]],Tabla3[],2,FALSE) -> 7 | Q23: =VLOOKUP(Tabla_Gtos_Ingresos7[[#This Row],[3 digitos]],PGC_Gtos_e_Ingresos[],2,FALSE) -> Suministros | R23: =Tabla_Gtos_Ingresos7[[#This Row],[3 digitos]]&"/"&Tabla_Gtos_Ingresos7[[#This Row],[Nombre cuenta]] -> 628/ Suministros | S23: =YEAR(Tabla_Gtos_Ingresos7[[#This Row],[Fecha]]) -> 2010 | T23: =MONTH(Tabla_Gtos_Ingresos7[[#This Row],[Fecha]]) -> 3 | U23: =ROUNDUP(MONTH(Tabla_Gtos_Ingresos7[[#This Row],[Fecha]])/3, 0) -> 1 | V23: =WEEKNUM(Tabla_Gtos_Ingresos7[[#This Row],[Fecha]]) -> 10 | W23: =(Tabla_Gtos_Ingresos7[[#This Row],[Factor]]*Tabla_Gtos_Ingresos7[[#This Row],[Haber]])+(Tabla_Gtos_Ingresos7[[#This Row],[Factor]]*Tabla_Gtos_Ingresos7[[#This Row],[Debe]]) -> -776.33 | X23: =VLOOKUP(Tabla_Gtos_Ingresos7[[#This Row],[3 digitos]],PGC_Gtos_e_Ingresos[],3,FALSE) -> -1
A24: 592 | B24: 2010-04-04 | C24: 70000057 | D24: VENTA ARENA 2% | E24: FACT.FA8/67 JORGE Eto HDEZ. RDG. | F24: 0 | G24: 1930.57 | H24: =MID(Tabla_Gtos_Ingresos7[[#This Row],[Subcuenta]],1,4) -> 7000 | I24: =VALUE(MID(Tabla_Gtos_Ingresos7[[#This Row],[4 digitos]],1,3)) -> 700 | J24: =VALUE(MID(Tabla_Gtos_Ingresos7[[#This Row],[3 digitos]],1,2)) -> 70 | K24: =VLOOKUP(Tabla_Gtos_Ingresos7[[#This Row],[3 digitos]],PGC_Gtos_e_Ingresos[],4,FALSE) -> 1a | L24: =VLOOKUP(Tabla_Gtos_Ingresos7[[#This Row],[Grupo 1]],Tabla3[],4,FALSE) -> 1. Importe Neto Cifra de Negocios | M24: =VLOOKUP(Tabla_Gtos_Ingresos7[[#This Row],[Grupo 1]],Tabla3[],5,FALSE) -> 1.a Ventas | N24: =VLOOKUP(Tabla_Gtos_Ingresos7[[#This Row],[Grupo 1]],Tabla3[],10,FALSE) -> I | O24: =VLOOKUP(Tabla_Gtos_Ingresos7[[#This Row],[Grupo 1]],Tabla3[],6,FALSE) -> Explotación | P24: =VLOOKUP(Tabla_Gtos_Ingresos7[[#This Row],[Grupo 1]],Tabla3[],2,FALSE) -> 1 | Q24: =VLOOKUP(Tabla_Gtos_Ingresos7[[#This Row],[3 digitos]],PGC_Gtos_e_Ingresos[],2,FALSE) -> Ventas de mercaderías | R24: =Tabla_Gtos_Ingresos7[[#This Row],[3 digitos]]&"/"&Tabla_Gtos_Ingresos7[[#This Row],[Nombre cuenta]] -> 700/ Ventas de mercaderías | S24: =YEAR(Tabla_Gtos_Ingresos7[[#This Row],[Fecha]]) -> 2010 | T24: =MONTH(Tabla_Gtos_Ingresos7[[#This Row],[Fecha]]) -> 4 | U24: =ROUNDUP(MONTH(Tabla_Gtos_Ingresos7[[#This Row],[Fecha]])/3, 0) -> 2 | V24: =WEEKNUM(Tabla_Gtos_Ingresos7[[#This Row],[Fecha]]) -> 15 | W24: =(Tabla_Gtos_Ingresos7[[#This Row],[Factor]]*Tabla_Gtos_Ingresos7[[#This Row],[Haber]])+(Tabla_Gtos_Ingresos7[[#This Row],[Factor]]*Tabla_Gtos_Ingresos7[[#This Row],[Debe]]) -> 1930.57 | X24: =VLOOKUP(Tabla_Gtos_Ingresos7[[#This Row],[3 digitos]],PGC_Gtos_e_Ingresos[],3,FALSE) -> 1
A25: 1975 | B25: 2010-09-04 | C25: 62400005 | D25: GASTOS TRANSPORTES | E25: FACT.8191 Seur Canarias | F25: 796.5 | G25: 0 | H25: =MID(Tabla_Gtos_Ingresos7[[#This Row],[Subcuenta]],1,4) -> 6240 | I25: =VALUE(MID(Tabla_Gtos_Ingresos7[[#This Row],[4 digitos]],1,3)) -> 624 | J25: =VALUE(MID(Tabla_Gtos_Ingresos7[[#This Row],[3 digitos]],1,2)) -> 62 | K25: =VLOOKUP(Tabla_Gtos_Ingresos7[[#This Row],[3 digitos]],PGC_Gtos_e_Ingresos[],4,FALSE) -> 7.a | L25: =VLOOKUP(Tabla_Gtos_Ingresos7[[#This Row],[Grupo 1]],Tabla3[],4,FALSE) -> 7. Otros Gastos de Explotación | M25: =VLOOKUP(Tabla_Gtos_Ingresos7[[#This Row],[Grupo 1]],Tabla3[],5,FALSE) -> 7.a Servicios Exteriores | N25: =VLOOKUP(Tabla_Gtos_Ingresos7[[#This Row],[Grupo 1]],Tabla3[],10,FALSE) -> G | O25: =VLOOKUP(Tabla_Gtos_Ingresos7[[#This Row],[Grupo 1]],Tabla3[],6,FALSE) -> Explotación | P25: =VLOOKUP(Tabla_Gtos_Ingresos7[[#This Row],[Grupo 1]],Tabla3[],2,FALSE) -> 7 | Q25: =VLOOKUP(Tabla_Gtos_Ingresos7[[#This Row],[3 digitos]],PGC_Gtos_e_Ingresos[],2,FALSE) -> Transportes | R25: =Tabla_Gtos_Ingresos7[[#This Row],[3 digitos]]&"/"&Tabla_Gtos_Ingresos7[[#This Row],[Nombre cuenta]] -> 624/ Transportes | S25: =YEAR(Tabla_Gtos_Ingresos7[[#This Row],[Fecha]]) -> 2010 | T25: =MONTH(Tabla_Gtos_Ingresos7[[#This Row],[Fecha]]) -> 9 | U25: =ROUNDUP(MONTH(Tabla_Gtos_Ingresos7[[#This Row],[Fecha]])/3, 0) -> 3 | V25: =WEEKNUM(Tabla_Gtos_Ingresos7[[#This Row],[Fecha]]) -> 36 | W25: =(Tabla_Gtos_Ingresos7[[#This Row],[Factor]]*Tabla_Gtos_Ingresos7[[#This Row],[Haber]])+(Tabla_Gtos_Ingresos7[[#This Row],[Factor]]*Tabla_Gtos_Ingresos7[[#This Row],[Debe]]) -> -796.5 | X25: =VLOOKUP(Tabla_Gtos_Ingresos7[[#This Row],[3 digitos]],PGC_Gtos_e_Ingresos[],3,FALSE) -> -1
A26: 1976 | B26: 2010-09-04 | C26: 62400006 | D26: GASTOS TRANSPORTES | E26: FACT.8197 Seur Canarias | F26: 826.9 | G26: 0 | H26: =MID(Tabla_Gtos_Ingresos7[[#This Row],[Subcuenta]],1,4) -> 6240 | I26: =VALUE(MID(Tabla_Gtos_Ingresos7[[#This Row],[4 digitos]],1,3)) -> 624 | J26: =VALUE(MID(Tabla_Gtos_Ingresos7[[#This Row],[3 digitos]],1,2)) -> 62 | K26: =VLOOKUP(Tabla_Gtos_Ingresos7[[#This Row],[3 digitos]],PGC_Gtos_e_Ingresos[],4,FALSE) -> 7.a | L26: =VLOOKUP(Tabla_Gtos_Ingresos7[[#This Row],[Grupo 1]],Tabla3[],4,FALSE) -> 7. Otros Gastos de Explotación | M26: =VLOOKUP(Tabla_Gtos_Ingresos7[[#This Row],[Grupo 1]],Tabla3[],5,FALSE) -> 7.a Servicios Exteriores | N26: =VLOOKUP(Tabla_Gtos_Ingresos7[[#This Row],[Grupo 1]],Tabla3[],10,FALSE) -> G | O26: =VLOOKUP(Tabla_Gtos_Ingresos7[[#This Row],[Grupo 1]],Tabla3[],6,FALSE) -> Explotación | P26: =VLOOKUP(Tabla_Gtos_Ingresos7[[#This Row],[Grupo 1]],Tabla3[],2,FALSE) -> 7 | Q26: =VLOOKUP(Tabla_Gtos_Ingresos7[[#This Row],[3 digitos]],PGC_Gtos_e_Ingresos[],2,FALSE) -> Transportes | R26: =Tabla_Gtos_Ingresos7[[#This Row],[3 digitos]]&"/"&Tabla_Gtos_Ingresos7[[#This Row],[Nombre cuenta]] -> 624/ Transportes | S26: =YEAR(Tabla_Gtos_Ingresos7[[#This Row],[Fecha]]) -> 2010 | T26: =MONTH(Tabla_Gtos_Ingresos7[[#This Row],[Fecha]]) -> 9 | U26: =ROUNDUP(MONTH(Tabla_Gtos_Ingresos7[[#This Row],[Fecha]])/3, 0) -> 3 | V26: =WEEKNUM(Tabla_Gtos_Ingresos7[[#This Row],[Fecha]]) -> 36 | W26: =(Tabla_Gtos_Ingresos7[[#This Row],[Factor]]*Tabla_Gtos_Ingresos7[[#This Row],[Haber]])+(Tabla_Gtos_Ingresos7[[#This Row],[Factor]]*Tabla_Gtos_Ingresos7[[#This Row],[Debe]]) -> -826.9 | X26: =VLOOKUP(Tabla_Gtos_Ingresos7[[#This Row],[3 digitos]],PGC_Gtos_e_Ingresos[],3,FALSE) -> -1
A27: 1977 | B27: 2010-09-04 | C27: 62400007 | D27: GASTOS TRANSPORTES | E27: FACT.8199 Seur Canarias | F27: 189.76 | G27: 0 | H27: =MID(Tabla_Gtos_Ingresos7[[#This Row],[Subcuenta]],1,4) -> 6240 | I27: =VALUE(MID(Tabla_Gtos_Ingresos7[[#This Row],[4 digitos]],1,3)) -> 624 | J27: =VALUE(MID(Tabla_Gtos_Ingresos7[[#This Row],[3 digitos]],1,2)) -> 62 | K27: =VLOOKUP(Tabla_Gtos_Ingresos7[[#This Row],[3 digitos]],PGC_Gtos_e_Ingresos[],4,FALSE) -> 7.a | L27: =VLOOKUP(Tabla_Gtos_Ingresos7[[#This Row],[Grupo 1]],Tabla3[],4,FALSE) -> 7. Otros Gastos de Explotación | M27: =VLOOKUP(Tabla_Gtos_Ingresos7[[#This Row],[Grupo 1]],Tabla3[],5,FALSE) -> 7.a Servicios Exteriores | N27: =VLOOKUP(Tabla_Gtos_Ingresos7[[#This Row],[Grupo 1]],Tabla3[],10,FALSE) -> G | O27: =VLOOKUP(Tabla_Gtos_Ingresos7[[#This Row],[Grupo 1]],Tabla3[],6,FALSE) -> Explotación | P27: =VLOOKUP(Tabla_Gtos_Ingresos7[[#This Row],[Grupo 1]],Tabla3[],2,FALSE) -> 7 | Q27: =VLOOKUP(Tabla_Gtos_Ingresos7[[#This Row],[3 digitos]],PGC_Gtos_e_Ingresos[],2,FALSE) -> Transportes | R27: =Tabla_Gtos_Ingresos7[[#This Row],[3 digitos]]&"/"&Tabla_Gtos_Ingresos7[[#This Row],[Nombre cuenta]] -> 624/ Transportes | S27: =YEAR(Tabla_Gtos_Ingresos7[[#This Row],[Fecha]]) -> 2010 | T27: =MONTH(Tabla_Gtos_Ingresos7[[#This Row],[Fecha]]) -> 9 | U27: =ROUNDUP(MONTH(Tabla_Gtos_Ingresos7[[#This Row],[Fecha]])/3, 0) -> 3 | V27: =WEEKNUM(Tabla_Gtos_Ingresos7[[#This Row],[Fecha]]) -> 36 | W27: =(Tabla_Gtos_Ingresos7[[#This Row],[Factor]]*Tabla_Gtos_Ingresos7[[#This Row],[Haber]])+(Tabla_Gtos_Ingresos7[[#This Row],[Factor]]*Tabla_Gtos_Ingresos7[[#This Row],[Debe]]) -> -189.76 | X27: =VLOOKUP(Tabla_Gtos_Ingresos7[[#This Row],[3 digitos]],PGC_Gtos_e_Ingresos[],3,FALSE) -> -1
A28: 1978 | B28: 2010-09-04 | C28: 62400008 | D28: GASTOS TRANSPORTES | E28: FACT.8201 Seur Canarias | F28: 870.19 | G28: 0 | H28: =MID(Tabla_Gtos_Ingresos7[[#This Row],[Subcuenta]],1,4) -> 6240 | I28: =VALUE(MID(Tabla_Gtos_Ingresos7[[#This Row],[4 digitos]],1,3)) -> 624 | J28: =VALUE(MID(Tabla_Gtos_Ingresos7[[#This Row],[3 digitos]],1,2)) -> 62 | K28: =VLOOKUP(Tabla_Gtos_Ingresos7[[#This Row],[3 digitos]],PGC_Gtos_e_Ingresos[],4,FALSE) -> 7.a | L28: =VLOOKUP(Tabla_Gtos_Ingresos7[[#This Row],[Grupo 1]],Tabla3[],4,FALSE) -> 7. Otros Gastos de Explotación | M28: =VLOOKUP(Tabla_Gtos_Ingresos7[[#This Row],[Grupo 1]],Tabla3[],5,FALSE) -> 7.a Servicios Exteriores | N28: =VLOOKUP(Tabla_Gtos_Ingresos7[[#This Row],[Grupo 1]],Tabla3[],10,FALSE) -> G | O28: =VLOOKUP(Tabla_Gtos_Ingresos7[[#This Row],[Grupo 1]],Tabla3[],6,FALSE) -> Explotación | P28: =VLOOKUP(Tabla_Gtos_Ingresos7[[#This Row],[Grupo 1]],Tabla3[],2,FALSE) -> 7 | Q28: =VLOOKUP(Tabla_Gtos_Ingresos7[[#This Row],[3 digitos]],PGC_Gtos_e_Ingresos[],2,FALSE) -> Transportes | R28: =Tabla_Gtos_Ingresos7[[#This Row],[3 digitos]]&"/"&Tabla_Gtos_Ingresos7[[#This Row],[Nombre cuenta]] -> 624/ Transportes | S28: =YEAR(Tabla_Gtos_Ingresos7[[#This Row],[Fecha]]) -> 2010 | T28: =MONTH(Tabla_Gtos_Ingresos7[[#This Row],[Fecha]]) -> 9 | U28: =ROUNDUP(MONTH(Tabla_Gtos_Ingresos7[[#This Row],[Fecha]])/3, 0) -> 3 | V28: =WEEKNUM(Tabla_Gtos_Ingresos7[[#This Row],[Fecha]]) -> 36 | W28: =(Tabla_Gtos_Ingresos7[[#This Row],[Factor]]*Tabla_Gtos_Ingresos7[[#This Row],[Haber]])+(Tabla_Gtos_Ingresos7[[#This Row],[Factor]]*Tabla_Gtos_Ingresos7[[#This Row],[Debe]]) -> -870.19 | X28: =VLOOKUP(Tabla_Gtos_Ingresos7[[#This Row],[3 digitos]],PGC_Gtos_e_Ingresos[],3,FALSE) -> -1
A29: 1979 | B29: 2010-09-04 | C29: 62400009 | D29: GASTOS TRANSPORTES | E29: FACT.8188 Seur Canarias | F29: 796.5 | G29: 0 | H29: =MID(Tabla_Gtos_Ingresos7[[#This Row],[Subcuenta]],1,4) -> 6240 | I29: =VALUE(MID(Tabla_Gtos_Ingresos7[[#This Row],[4 digitos]],1,3)) -> 624 | J29: =VALUE(MID(Tabla_Gtos_Ingresos7[[#This Row],[3 digitos]],1,2)) -> 62 | K29: =VLOOKUP(Tabla_Gtos_Ingresos7[[#This Row],[3 digitos]],PGC_Gtos_e_Ingresos[],4,FALSE) -> 7.a | L29: =VLOOKUP(Tabla_Gtos_Ingresos7[[#This Row],[Grupo 1]],Tabla3[],4,FALSE) -> 7. Otros Gastos de Explotación | M29: =VLOOKUP(Tabla_Gtos_Ingresos7[[#This Row],[Grupo 1]],Tabla3[],5,FALSE) -> 7.a Servicios Exteriores | N29: =VLOOKUP(Tabla_Gtos_Ingresos7[[#This Row],[Grupo 1]],Tabla3[],10,FALSE) -> G | O29: =VLOOKUP(Tabla_Gtos_Ingresos7[[#This Row],[Grupo 1]],Tabla3[],6,FALSE) -> Explotación | P29: =VLOOKUP(Tabla_Gtos_Ingresos7[[#This Row],[Grupo 1]],Tabla3[],2,FALSE) -> 7 | Q29: =VLOOKUP(Tabla_Gtos_Ingresos7[[#This Row],[3 digitos]],PGC_Gtos_e_Ingresos[],2,FALSE) -> Transportes | R29: =Tabla_Gtos_Ingresos7[[#This Row],[3 digitos]]&"/"&Tabla_Gtos_Ingresos7[[#This Row],[Nombre cuenta]] -> 624/ Transportes | S29: =YEAR(Tabla_Gtos_Ingresos7[[#This Row],[Fecha]]) -> 2010 | T29: =MONTH(Tabla_Gtos_Ingresos7[[#This Row],[Fecha]]) -> 9 | U29: =ROUNDUP(MONTH(Tabla_Gtos_Ingresos7[[#This Row],[Fecha]])/3, 0) -> 3 | V29: =WEEKNUM(Tabla_Gtos_Ingresos7[[#This Row],[Fecha]]) -> 36 | W29: =(Tabla_Gtos_Ingresos7[[#This Row],[Factor]]*Tabla_Gtos_Ingresos7[[#This Row],[Haber]])+(Tabla_Gtos_Ingresos7[[#This Row],[Factor]]*Tabla_Gtos_Ingresos7[[#This Row],[Debe]]) -> -796.5 | X29: =VLOOKUP(Tabla_Gtos_Ingresos7[[#This Row],[3 digitos]],PGC_Gtos_e_Ingresos[],3,FALSE) -> -1
A30: 2849 | B30: 2010-12-04 | C30: 70000223 | D30: VENTA ARENA 2% | E30: FACT.FA8/249 AYTO. DE canaria | F30: 0 | G30: 10537.5 | H30: =MID(Tabla_Gtos_Ingresos7[[#This Row],[Subcuenta]],1,4) -> 7000 | I30: =VALUE(MID(Tabla_Gtos_Ingresos7[[#This Row],[4 digitos]],1,3)) -> 700 | J30: =VALUE(MID(Tabla_Gtos_Ingresos7[[#This Row],[3 digitos]],1,2)) -> 70 | K30: =VLOOKUP(Tabla_Gtos_Ingresos7[[#This Row],[3 digitos]],PGC_Gtos_e_Ingresos[],4,FALSE) -> 1a | L30: =VLOOKUP(Tabla_Gtos_Ingresos7[[#This Row],[Grupo 1]],Tabla3[],4,FALSE) -> 1. Importe Neto Cifra de Negocios | M30: =VLOOKUP(Tabla_Gtos_Ingresos7[[#This Row],[Grupo 1]],Tabla3[],5,FALSE) -> 1.a Ventas | N30: =VLOOKUP(Tabla_Gtos_Ingresos7[[#This Row],[Grupo 1]],Tabla3[],10,FALSE) -> I | O30: =VLOOKUP(Tabla_Gtos_Ingresos7[[#This Row],[Grupo 1]],Tabla3[],6,FALSE) -> Explotación | P30: =VLOOKUP(Tabla_Gtos_Ingresos7[[#This Row],[Grupo 1]],Tabla3[],2,FALSE) -> 1 | Q30: =VLOOKUP(Tabla_Gtos_Ingresos7[[#This Row],[3 digitos]],PGC_Gtos_e_Ingresos[],2,FALSE) -> Ventas de mercaderías | R30: =Tabla_Gtos_Ingresos7[[#This Row],[3 digitos]]&"/"&Tabla_Gtos_Ingresos7[[#This Row],[Nombre cuenta]] -> 700/ Ventas de mercaderías | S30: =YEAR(Tabla_Gtos_Ingresos7[[#This Row],[Fecha]]) -> 2010 | T30: =MONTH(Tabla_Gtos_Ingresos7[[#This Row],[Fecha]]) -> 12 | U30: =ROUNDUP(MONTH(Tabla_Gtos_Ingresos7[[#This Row],[Fecha]])/3, 0) -> 4 | V30: =WEEKNUM(Tabla_Gtos_Ingresos7[[#This Row],[Fecha]]) -> 49 | W30: =(Tabla_Gtos_Ingresos7[[#This Row],[Factor]]*Tabla_Gtos_Ingresos7[[#This Row],[Haber]])+(Tabla_Gtos_Ingresos7[[#This Row],[Factor]]*Tabla_Gtos_Ingresos7[[#This Row],[Debe]]) -> 10537.5 | X30: =VLOOKUP(Tabla_Gtos_Ingresos7[[#This Row],[3 digitos]],PGC_Gtos_e_Ingresos[],3,FALSE) -> 1
A31: 383 | B31: 2010-03-05 | C31: 62200015 | D31: REPARACION Y CONSERVACION | E31: FACT.701067 DESGASTES La Isla | F31: 508.65 | G31: 0 | H31: =MID(Tabla_Gtos_Ingresos7[[#This Row],[Subcuenta]],1,4) -> 6220 | I31: =VALUE(MID(Tabla_Gtos_Ingresos7[[#This Row],[4 digitos]],1,3)) -> 622 | J31: =VALUE(MID(Tabla_Gtos_Ingresos7[[#This Row],[3 digitos]],1,2)) -> 62 | K31: =VLOOKUP(Tabla_Gtos_Ingresos7[[#This Row],[3 digitos]],PGC_Gtos_e_Ingresos[],4,FALSE) -> 7.a | L31: =VLOOKUP(Tabla_Gtos_Ingresos7[[#This Row],[Grupo 1]],Tabla3[],4,FALSE) -> 7. Otros Gastos de Explotación | M31: =VLOOKUP(Tabla_Gtos_Ingresos7[[#This Row],[Grupo 1]],Tabla3[],5,FALSE) -> 7.a Servicios Exteriores | N31: =VLOOKUP(Tabla_Gtos_Ingresos7[[#This Row],[Grupo 1]],Tabla3[],10,FALSE) -> G | O31: =VLOOKUP(Tabla_Gtos_Ingresos7[[#This Row],[Grupo 1]],Tabla3[],6,FALSE) -> Explotación | P31: =VLOOKUP(Tabla_Gtos_Ingresos7[[#This Row],[Grupo 1]],Tabla3[],2,FALSE) -> 7 | Q31: =VLOOKUP(Tabla_Gtos_Ingresos7[[#This Row],[3 digitos]],PGC_Gtos_e_Ingresos[],2,FALSE) -> Reparaciones y conservación | R31: =Tabla_Gtos_Ingresos7[[#This Row],[3 digitos]]&"/"&Tabla_Gtos_Ingresos7[[#This Row],[Nombre cuenta]] -> 622/ Reparaciones y conservación | S31: =YEAR(Tabla_Gtos_Ingresos7[[#This Row],[Fecha]]) -> 2010 | T31: =MONTH(Tabla_Gtos_Ingresos7[[#This Row],[Fecha]]) -> 3 | U31: =ROUNDUP(MONTH(Tabla_Gtos_Ingresos7[[#This Row],[Fecha]])/3, 0) -> 1 | V31: =WEEKNUM(Tabla_Gtos_Ingresos7[[#This Row],[Fecha]]) -> 10 | W31: =(Tabla_Gtos_Ingresos7[[#This Row],[Factor]]*Tabla_Gtos_Ingresos7[[#This Row],[Haber]])+(Tabla_Gtos_Ingresos7[[#This Row],[Factor]]*Tabla_Gtos_Ingresos7[[#This Row],[Debe]]) -> -508.65 | X31: =VLOOKUP(Tabla_Gtos_Ingresos7[[#This Row],[3 digitos]],PGC_Gtos_e_Ingresos[],3,FALSE) -> -1
A32: 1110 | B32: 2010-06-05 | C32: 70000095 | D32: VENTA ARENA 2% | E32: FACT.FA8/106 Fermin FERNANDEZ CASANOVA | F32: 0 | G32: 65.32 | H32: =MID(Tabla_Gtos_Ingresos7[[#This Row],[Subcuenta]],1,4) -> 7000 | I32: =VALUE(MID(Tabla_Gtos_Ingresos7[[#This Row],[4 digitos]],1,3)) -> 700 | J32: =VALUE(MID(Tabla_Gtos_Ingresos7[[#This Row],[3 digitos]],1,2)) -> 70 | K32: =VLOOKUP(Tabla_Gtos_Ingresos7[[#This Row],[3 digitos]],PGC_Gtos_e_Ingresos[],4,FALSE) -> 1a | L32: =VLOOKUP(Tabla_Gtos_Ingresos7[[#This Row],[Grupo 1]],Tabla3[],4,FALSE) -> 1. Importe Neto Cifra de Negocios | M32: =VLOOKUP(Tabla_Gtos_Ingresos7[[#This Row],[Grupo 1]],Tabla3[],5,FALSE) -> 1.a Ventas | N32: =VLOOKUP(Tabla_Gtos_Ingresos7[[#This Row],[Grupo 1]],Tabla3[],10,FALSE) -> I | O32: =VLOOKUP(Tabla_Gtos_Ingresos7[[#This Row],[Grupo 1]],Tabla3[],6,FALSE) -> Explotación | P32: =VLOOKUP(Tabla_Gtos_Ingresos7[[#This Row],[Grupo 1]],Tabla3[],2,FALSE) -> 1 | Q32: =VLOOKUP(Tabla_Gtos_Ingresos7[[#This Row],[3 digitos]],PGC_Gtos_e_Ingresos[],2,FALSE) -> Ventas de mercaderías | R32: =Tabla_Gtos_Ingresos7[[#This Row],[3 digitos]]&"/"&Tabla_Gtos_Ingresos7[[#This Row],[Nombre cuenta]] -> 700/ Ventas de mercaderías | S32: =YEAR(Tabla_Gtos_Ingresos7[[#This Row],[Fecha]]) -> 2010 | T32: =MONTH(Tabla_Gtos_Ingresos7[[#This Row],[Fecha]]) -> 6 | U32: =ROUNDUP(MONTH(Tabla_Gtos_Ingresos7[[#This Row],[Fecha]])/3, 0) -> 2 | V32: =WEEKNUM(Tabla_Gtos_Ingresos7[[#This Row],[Fecha]]) -> 23 | W32: =(Tabla_Gtos_Ingresos7[[#This Row],[Factor]]*Tabla_Gtos_Ingresos7[[#This Row],[Haber]])+(Tabla_Gtos_Ingresos7[[#This Row],[Factor]]*Tabla_Gtos_Ingresos7[[#This Row],[Debe]]) -> 65.32 | X32: =VLOOKUP(Tabla_Gtos_Ingresos7[[#This Row],[3 digitos]],PGC_Gtos_e_Ingresos[],3,FALSE) -> 1
A33: 1111 | B33: 2010-06-05 | C33: 70000096 | D33: VENTA ARENA 2% | E33: FACT.FA8/107 FERNANDO HDEZ. CPCON. | F33: 0 | G33: 61.13 | H33: =MID(Tabla_Gtos_Ingresos7[[#This Row],[Subcuenta]],1,4) -> 7000 | I33: =VALUE(MID(Tabla_Gtos_Ingresos7[[#This Row],[4 digitos]],1,3)) -> 700 | J33: =VALUE(MID(Tabla_Gtos_Ingresos7[[#This Row],[3 digitos]],1,2)) -> 70 | K33: =VLOOKUP(Tabla_Gtos_Ingresos7[[#This Row],[3 digitos]],PGC_Gtos_e_Ingresos[],4,FALSE) -> 1a | L33: =VLOOKUP(Tabla_Gtos_Ingresos7[[#This Row],[Grupo 1]],Tabla3[],4,FALSE) -> 1. Importe Neto Cifra de Negocios | M33: =VLOOKUP(Tabla_Gtos_Ingresos7[[#This Row],[Grupo 1]],Tabla3[],5,FALSE) -> 1.a Ventas | N33: =VLOOKUP(Tabla_Gtos_Ingresos7[[#This Row],[Grupo 1]],Tabla3[],10,FALSE) -> I | O33: =VLOOKUP(Tabla_Gtos_Ingresos7[[#This Row],[Grupo 1]],Tabla3[],6,FALSE) -> Explotación | P33: =VLOOKUP(Tabla_Gtos_Ingresos7[[#This Row],[Grupo 1]],Tabla3[],2,FALSE) -> 1 | Q33: =VLOOKUP(Tabla_Gtos_Ingresos7[[#This Row],[3 digitos]],PGC_Gtos_e_Ingresos[],2,FALSE) -> Ventas de mercaderías | R33: =Tabla_Gtos_Ingresos7[[#This Row],[3 digitos]]&"/"&Tabla_Gtos_Ingresos7[[#This Row],[Nombre cuenta]] -> 700/ Ventas de mercaderías | S33: =YEAR(Tabla_Gtos_Ingresos7[[#This Row],[Fecha]]) -> 2010 | T33: =MONTH(Tabla_Gtos_Ingresos7[[#This Row],[Fecha]]) -> 6 | U33: =ROUNDUP(MONTH(Tabla_Gtos_Ingresos7[[#This Row],[Fecha]])/3, 0) -> 2 | V33: =WEEKNUM(Tabla_Gtos_Ingresos7[[#This Row],[Fecha]]) -> 23 | W33: =(Tabla_Gtos_Ingresos7[[#This Row],[Factor]]*Tabla_Gtos_Ingresos7[[#This Row],[Haber]])+(Tabla_Gtos_Ingresos7[[#This Row],[Factor]]*Tabla_Gtos_Ingresos7[[#This Row],[Debe]]) -> 61.13 | X33: =VLOOKUP(Tabla_Gtos_Ingresos7[[#This Row],[3 digitos]],PGC_Gtos_e_Ingresos[],3,FALSE) -> 1
A34: 1990 | B34: 2010-09-05 | C34: 70000162 | D34: VENTA ARENA 2% | E34: FACT.FA8/221 AYTO. S/A Y Salta | F34: 0 | G34: 642.29 | H34: =MID(Tabla_Gtos_Ingresos7[[#This Row],[Subcuenta]],1,4) -> 7000 | I34: =VALUE(MID(Tabla_Gtos_Ingresos7[[#This Row],[4 digitos]],1,3)) -> 700 | J34: =VALUE(MID(Tabla_Gtos_Ingresos7[[#This Row],[3 digitos]],1,2)) -> 70 | K34: =VLOOKUP(Tabla_Gtos_Ingresos7[[#This Row],[3 digitos]],PGC_Gtos_e_Ingresos[],4,FALSE) -> 1a | L34: =VLOOKUP(Tabla_Gtos_Ingresos7[[#This Row],[Grupo 1]],Tabla3[],4,FALSE) -> 1. Importe Neto Cifra de Negocios | M34: =VLOOKUP(Tabla_Gtos_Ingresos7[[#This Row],[Grupo 1]],Tabla3[],5,FALSE) -> 1.a Ventas | N34: =VLOOKUP(Tabla_Gtos_Ingresos7[[#This Row],[Grupo 1]],Tabla3[],10,FALSE) -> I | O34: =VLOOKUP(Tabla_Gtos_Ingresos7[[#This Row],[Grupo 1]],Tabla3[],6,FALSE) -> Explotación | P34: =VLOOKUP(Tabla_Gtos_Ingresos7[[#This Row],[Grupo 1]],Tabla3[],2,FALSE) -> 1 | Q34: =VLOOKUP(Tabla_Gtos_Ingresos7[[#This Row],[3 digitos]],PGC_Gtos_e_Ingresos[],2,FALSE) -> Ventas de mercaderías | R34: =Tabla_Gtos_Ingresos7[[#This Row],[3 digitos]]&"/"&Tabla_Gtos_Ingresos7[[#This Row],[Nombre cuenta]] -> 700/ Ventas de mercaderías | S34: =YEAR(Tabla_Gtos_Ingresos7[[#This Row],[Fecha]]) -> 2010 | T34: =MONTH(Tabla_Gtos_Ingresos7[[#This Row],[Fecha]]) -> 9 | U34: =ROUNDUP(MONTH(Tabla_Gtos_Ingresos7[[#This Row],[Fecha]])/3, 0) -> 3 | V34: =WEEKNUM(Tabla_Gtos_Ingresos7[[#This Row],[Fecha]]) -> 37 | W34: =(Tabla_Gtos_Ingresos7[[#This Row],[Factor]]*Tabla_Gtos_Ingresos7[[#This Row],[Haber]])+(Tabla_Gtos_Ingresos7[[#This Row],[Factor]]*Tabla_Gtos_Ingresos7[[#This Row],[Debe]]) -> 642.29 | X34: =VLOOKUP(Tabla_Gtos_Ingresos7[[#This Row],[3 digitos]],PGC_Gtos_e_Ingresos[],3,FALSE) -> 1
A35: 2550 | B35: 2010-11-05 | C35: 62900014 | D35: OTROS GASTOS DE EXPLOTACION | E35: FACT.44 JUAN Siverio RAMIREZ | F35: 523.87 | G35: 0 | H35: =MID(Tabla_Gtos_Ingresos7[[#This Row],[Subcuenta]],1,4) -> 6290 | I35: =VALUE(MID(Tabla_Gtos_Ingresos7[[#This Row],[4 digitos]],1,3)) -> 629 | J35: =VALUE(MID(Tabla_Gtos_Ingresos7[[#This Row],[3 digitos]],1,2)) -> 62 | K35: =VLOOKUP(Tabla_Gtos_Ingresos7[[#This Row],[3 digitos]],PGC_Gtos_e_Ingresos[],4,FALSE) -> 7.a | L35: =VLOOKUP(Tabla_Gtos_Ingresos7[[#This Row],[Grupo 1]],Tabla3[],4,FALSE) -> 7. Otros Gastos de Explotación | M35: =VLOOKUP(Tabla_Gtos_Ingresos7[[#This Row],[Grupo 1]],Tabla3[],5,FALSE) -> 7.a Servicios Exteriores | N35: =VLOOKUP(Tabla_Gtos_Ingresos7[[#This Row],[Grupo 1]],Tabla3[],10,FALSE) -> G | O35: =VLOOKUP(Tabla_Gtos_Ingresos7[[#This Row],[Grupo 1]],Tabla3[],6,FALSE) -> Explotación | P35: =VLOOKUP(Tabla_Gtos_Ingresos7[[#This Row],[Grupo 1]],Tabla3[],2,FALSE) -> 7 | Q35: =VLOOKUP(Tabla_Gtos_Ingresos7[[#This Row],[3 digitos]],PGC_Gtos_e_Ingresos[],2,FALSE) -> Otros servicios | R35: =Tabla_Gtos_Ingresos7[[#This Row],[3 digitos]]&"/"&Tabla_Gtos_Ingresos7[[#This Row],[Nombre cuenta]] -> 629/ Otros servicios | S35: =YEAR(Tabla_Gtos_Ingresos7[[#This Row],[Fecha]]) -> 2010 | T35: =MONTH(Tabla_Gtos_Ingresos7[[#This Row],[Fecha]]) -> 11 | U35: =ROUNDUP(MONTH(Tabla_Gtos_Ingresos7[[#This Row],[Fecha]])/3, 0) -> 4 | V35: =WEEKNUM(Tabla_Gtos_Ingresos7[[#This Row],[Fecha]]) -> 45 | W35: =(Tabla_Gtos_Ingresos7[[#This Row],[Factor]]*Tabla_Gtos_Ingresos7[[#This Row],[Haber]])+(Tabla_Gtos_Ingresos7[[#This Row],[Factor]]*Tabla_Gtos_Ingresos7[[#This Row],[Debe]]) -> -523.87 | X35: =VLOOKUP(Tabla_Gtos_Ingresos7[[#This Row],[3 digitos]],PGC_Gtos_e_Ingresos[],3,FALSE) -> -1
A36: 2853 | B36: 2010-12-05 | C36: 62900019 | D36: OTROS GASTOS DE EXPLOTACION | E36: FACT.49 JUAN Siverio RAMIREZ | F36: 593.76 | G36: 0 | H36: =MID(Tabla_Gtos_Ingresos7[[#This Row],[Subcuenta]],1,4) -> 6290 | I36: =VALUE(MID(Tabla_Gtos_Ingresos7[[#This Row],[4 digitos]],1,3)) -> 629 | J36: =VALUE(MID(Tabla_Gtos_Ingresos7[[#This Row],[3 digitos]],1,2)) -> 62 | K36: =VLOOKUP(Tabla_Gtos_Ingresos7[[#This Row],[3 digitos]],PGC_Gtos_e_Ingresos[],4,FALSE) -> 7.a | L36: =VLOOKUP(Tabla_Gtos_Ingresos7[[#This Row],[Grupo 1]],Tabla3[],4,FALSE) -> 7. Otros Gastos de Explotación | M36: =VLOOKUP(Tabla_Gtos_Ingresos7[[#This Row],[Grupo 1]],Tabla3[],5,FALSE) -> 7.a Servicios Exteriores | N36: =VLOOKUP(Tabla_Gtos_Ingresos7[[#This Row],[Grupo 1]],Tabla3[],10,FALSE) -> G | O36: =VLOOKUP(Tabla_Gtos_Ingresos7[[#This Row],[Grupo 1]],Tabla3[],6,FALSE) -> Explotación | P36: =VLOOKUP(Tabla_Gtos_Ingresos7[[#This Row],[Grupo 1]],Tabla3[],2,FALSE) -> 7 | Q36: =VLOOKUP(Tabla_Gtos_Ingresos7[[#This Row],[3 digitos]],PGC_Gtos_e_Ingresos[],2,FALSE) -> Otros servicios | R36: =Tabla_Gtos_Ingresos7[[#This Row],[3 digitos]]&"/"&Tabla_Gtos_Ingresos7[[#This Row],[Nombre cuenta]] -> 629/ Otros servicios | S36: =YEAR(Tabla_Gtos_Ingresos7[[#This Row],[Fecha]]) -> 2010 | T36: =MONTH(Tabla_Gtos_Ingresos7[[#This Row],[Fecha]]) -> 12 | U36: =ROUNDUP(MONTH(Tabla_Gtos_Ingresos7[[#This Row],[Fecha]])/3, 0) -> 4 | V36: =WEEKNUM(Tabla_Gtos_Ingresos7[[#This Row],[Fecha]]) -> 50 | W36: =(Tabla_Gtos_Ingresos7[[#This Row],[Factor]]*Tabla_Gtos_Ingresos7[[#This Row],[Haber]])+(Tabla_Gtos_Ingresos7[[#This Row],[Factor]]*Tabla_Gtos_Ingresos7[[#This Row],[Debe]]) -> -593.76 | X36: =VLOOKUP(Tabla_Gtos_Ingresos7[[#This Row],[3 digitos]],PGC_Gtos_e_Ingresos[],3,FALSE) -> -1
A37: 387 | B37: 2010-03-06 | C37: 70000038 | D37: VENTA ARENA 2% | E37: FACT.FA8/45 ANTONIO J. Luis Padrón. | F37: 0 | G37: 152.68 | H37: =MID(Tabla_Gtos_Ingresos7[[#This Row],[Subcuenta]],1,4) -> 7000 | I37: =VALUE(MID(Tabla_Gtos_Ingresos7[[#This Row],[4 digitos]],1,3)) -> 700 | J37: =VALUE(MID(Tabla_Gtos_Ingresos7[[#This Row],[3 digitos]],1,2)) -> 70 | K37: =VLOOKUP(Tabla_Gtos_Ingresos7[[#This Row],[3 digitos]],PGC_Gtos_e_Ingresos[],4,FALSE) -> 1a | L37: =VLOOKUP(Tabla_Gtos_Ingresos7[[#This Row],[Grupo 1]],Tabla3[],4,FALSE) -> 1. Importe Neto Cifra de Negocios | M37: =VLOOKUP(Tabla_Gtos_Ingresos7[[#This Row],[Grupo 1]],Tabla3[],5,FALSE) -> 1.a Ventas | N37: =VLOOKUP(Tabla_Gtos_Ingresos7[[#This Row],[Grupo 1]],Tabla3[],10,FALSE) -> I | O37: =VLOOKUP(Tabla_Gtos_Ingresos7[[#This Row],[Grupo 1]],Tabla3[],6,FALSE) -> Explotación | P37: =VLOOKUP(Tabla_Gtos_Ingresos7[[#This Row],[Grupo 1]],Tabla3[],2,FALSE) -> 1 | Q37: =VLOOKUP(Tabla_Gtos_Ingresos7[[#This Row],[3 digitos]],PGC_Gtos_e_Ingresos[],2,FALSE) -> Ventas de mercaderías | R37: =Tabla_Gtos_Ingresos7[[#This Row],[3 digitos]]&"/"&Tabla_Gtos_Ingresos7[[#This Row],[Nombre cuenta]] -> 700/ Ventas de mercaderías | S37: =YEAR(Tabla_Gtos_Ingresos7[[#This Row],[Fecha]]) -> 2010 | T37: =MONTH(Tabla_Gtos_Ingresos7[[#This Row],[Fecha]]) -> 3 | U37: =ROUNDUP(MONTH(Tabla_Gtos_Ingresos7[[#This Row],[Fecha]])/3, 0) -> 1 | V37: =WEEKNUM(Tabla_Gtos_Ingresos7[[#This Row],[Fecha]]) -> 10 | W37: =(Tabla_Gtos_Ingresos7[[#This Row],[Factor]]*Tabla_Gtos_Ingresos7[[#This Row],[Haber]])+(Tabla_Gtos_Ingresos7[[#This Row],[Factor]]*Tabla_Gtos_Ingresos7[[#This Row],[Debe]]) -> 152.68 | X37: =VLOOKUP(Tabla_Gtos_Ingresos7[[#This Row],[3 digitos]],PGC_Gtos_e_Ingresos[],3,FALSE) -> 1
A38: 388 | B38: 2010-03-06 | C38: 70800003 | D38: DEVOLUCIONES DE VENTAS Y OPERACIONES | E38: ABONO FA8/44 CONSTRUCCIONES Tintin | F38: 152.68 | G38: 0 | H38: =MID(Tabla_Gtos_Ingresos7[[#This Row],[Subcuenta]],1,4) -> 7080 | I38: =VALUE(MID(Tabla_Gtos_Ingresos7[[#This Row],[4 digitos]],1,3)) -> 708 | J38: =VALUE(MID(Tabla_Gtos_Ingresos7[[#This Row],[3 digitos]],1,2)) -> 70 | K38: =VLOOKUP(Tabla_Gtos_Ingresos7[[#This Row],[3 digitos]],PGC_Gtos_e_Ingresos[],4,FALSE) -> 1a | L38: =VLOOKUP(Tabla_Gtos_Ingresos7[[#This Row],[Grupo 1]],Tabla3[],4,FALSE) -> 1. Importe Neto Cifra de Negocios | M38: =VLOOKUP(Tabla_Gtos_Ingresos7[[#This Row],[Grupo 1]],Tabla3[],5,FALSE) -> 1.a Ventas | N38: =VLOOKUP(Tabla_Gtos_Ingresos7[[#This Row],[Grupo 1]],Tabla3[],10,FALSE) -> I | O38: =VLOOKUP(Tabla_Gtos_Ingresos7[[#This Row],[Grupo 1]],Tabla3[],6,FALSE) -> Explotación | P38: =VLOOKUP(Tabla_Gtos_Ingresos7[[#This Row],[Grupo 1]],Tabla3[],2,FALSE) -> 1 | Q38: =VLOOKUP(Tabla_Gtos_Ingresos7[[#This Row],[3 digitos]],PGC_Gtos_e_Ingresos[],2,FALSE) -> Devoluciones de ventas y operaciones similares | R38: =Tabla_Gtos_Ingresos7[[#This Row],[3 digitos]]&"/"&Tabla_Gtos_Ingresos7[[#This Row],[Nombre cuenta]] -> 708/ Devoluciones de ventas y operaciones similares | S38: =YEAR(Tabla_Gtos_Ingresos7[[#This Row],[Fecha]]) -> 2010 | T38: =MONTH(Tabla_Gtos_Ingresos7[[#This Row],[Fecha]]) -> 3 | U38: =ROUNDUP(MONTH(Tabla_Gtos_Ingresos7[[#This Row],[Fecha]])/3, 0) -> 1 | V38: =WEEKNUM(Tabla_Gtos_Ingresos7[[#This Row],[Fecha]]) -> 10 | W38: =(Tabla_Gtos_Ingresos7[[#This Row],[Factor]]*Tabla_Gtos_Ingresos7[[#This Row],[Haber]])+(Tabla_Gtos_Ingresos7[[#This Row],[Factor]]*Tabla_Gtos_Ingresos7[[#This Row],[Debe]]) -> -152.68 | X38: =VLOOKUP(Tabla_Gtos_Ingresos7[[#This Row],[3 digitos]],PGC_Gtos_e_Ingresos[],3,FALSE) -> -1
A39: 853 | B39: 2010-05-06 | C39: 70000077 | D39: VENTA ARENA 2% | E39: FACT.FA8/86 CARLOS Benitez PEREZ | F39: 0 | G39: 164.23 | H39: =MID(Tabla_Gtos_Ingresos7[[#This Row],[Subcuenta]],1,4) -> 7000 | I39: =VALUE(MID(Tabla_Gtos_Ingresos7[[#This Row],[4 digitos]],1,3)) -> 700 | J39: =VALUE(MID(Tabla_Gtos_Ingresos7[[#This Row],[3 digitos]],1,2)) -> 70 | K39: =VLOOKUP(Tabla_Gtos_Ingresos7[[#This Row],[3 digitos]],PGC_Gtos_e_Ingresos[],4,FALSE) -> 1a | L39: =VLOOKUP(Tabla_Gtos_Ingresos7[[#This Row],[Grupo 1]],Tabla3[],4,FALSE) -> 1. Importe Neto Cifra de Negocios | M39: =VLOOKUP(Tabla_Gtos_Ingresos7[[#This Row],[Grupo 1]],Tabla3[],5,FALSE) -> 1.a Ventas | N39: =VLOOKUP(Tabla_Gtos_Ingresos7[[#This Row],[Grupo 1]],Tabla3[],10,FALSE) -> I | O39: =VLOOKUP(Tabla_Gtos_Ingresos7[[#This Row],[Grupo 1]],Tabla3[],6,FALSE) -> Explotación | P39: =VLOOKUP(Tabla_Gtos_Ingresos7[[#This Row],[Grupo 1]],Tabla3[],2,FALSE) -> 1 | Q39: =VLOOKUP(Tabla_Gtos_Ingresos7[[#This Row],[3 digitos]],PGC_Gtos_e_Ingresos[],2,FALSE) -> Ventas de mercaderías | R39: =Tabla_Gtos_Ingresos7[[#This Row],[3 digitos]]&"/"&Tabla_Gtos_Ingresos7[[#This Row],[Nombre cuenta]] -> 700/ Ventas de mercaderías | S39: =YEAR(Tabla_Gtos_Ingresos7[[#This Row],[Fecha]]) -> 2010 | T39: =MONTH(Tabla_Gtos_Ingresos7[[#This Row],[Fecha]]) -> 5 | U39: =ROUNDUP(MONTH(Tabla_Gtos_Ingresos7[[#This Row],[Fecha]])/3, 0) -> 2 | V39: =WEEKNUM(Tabla_Gtos_Ingresos7[[#This Row],[Fecha]]) -> 19 | W39: =(Tabla_Gtos_Ingresos7[[#This Row],[Factor]]*Tabla_Gtos_Ingresos7[[#This Row],[Haber]])+(Tabla_Gtos_Ingresos7[[#This Row],[Factor]]*Tabla_Gtos_Ingresos7[[#This Row],[Debe]]) -> 164.23 | X39: =VLOOKUP(Tabla_Gtos_Ingresos7[[#This Row],[3 digitos]],PGC_Gtos_e_Ingresos[],3,FALSE) -> 1
A40: 1130 | B40: 2010-06-06 | C40: 62200034 | D40: REPARACION Y CONSERVACION | E40: FACT.A01/12440 AUTOS HNOS.Pinto, S.L. | F40: 131.53 | G40: 0 | H40: =MID(Tabla_Gtos_Ingresos7[[#This Row],[Subcuenta]],1,4) -> 6220 | I40: =VALUE(MID(Tabla_Gtos_Ingresos7[[#This Row],[4 digitos]],1,3)) -> 622 | J40: =VALUE(MID(Tabla_Gtos_Ingresos7[[#This Row],[3 digitos]],1,2)) -> 62 | K40: =VLOOKUP(Tabla_Gtos_Ingresos7[[#This Row],[3 digitos]],PGC_Gtos_e_Ingresos[],4,FALSE) -> 7.a | L40: =VLOOKUP(Tabla_Gtos_Ingresos7[[#This Row],[Grupo 1]],Tabla3[],4,FALSE) -> 7. Otros Gastos de Explotación | M40: =VLOOKUP(Tabla_Gtos_Ingresos7[[#This Row],[Grupo 1]],Tabla3[],5,FALSE) -> 7.a Servicios Exteriores | N40: =VLOOKUP(Tabla_Gtos_Ingresos7[[#This Row],[Grupo 1]],Tabla3[],10,FALSE) -> G | O40: =VLOOKUP(Tabla_Gtos_Ingresos7[[#This Row],[Grupo 1]],Tabla3[],6,FALSE) -> Explotación | P40: =VLOOKUP(Tabla_Gtos_Ingresos7[[#This Row],[Grupo 1]],Tabla3[],2,FALSE) -> 7 | Q40: =VLOOKUP(Tabla_Gtos_Ingresos7[[#This Row],[3 digitos]],PGC_Gtos_e_Ingresos[],2,FALSE) -> Reparaciones y conservación | R40: =Tabla_Gtos_Ingresos7[[#This Row],[3 digitos]]&"/"&Tabla_Gtos_Ingresos7[[#This Row],[Nombre cuenta]] -> 622/ Reparaciones y conservación | S40: =YEAR(Tabla_Gtos_Ingresos7[[#This Row],[Fecha]]) -> 2010 | T40: =MONTH(Tabla_Gtos_Ingresos7[[#This Row],[Fecha]]) -> 6 | U40: =ROUNDUP(MONTH(Tabla_Gtos_Ingresos7[[#This Row],[Fecha]])/3, 0) -> 2 | V40: =WEEKNUM(Tabla_Gtos_Ingresos7[[#This Row],[Fecha]]) -> 24 | W40: =(Tabla_Gtos_Ingresos7[[#This Row],[Factor]]*Tabla_Gtos_Ingresos7[[#This Row],[Haber]])+(Tabla_Gtos_Ingresos7[[#This Row],[Factor]]*Tabla_Gtos_Ingresos7[[#This Row],[Debe]]) -> -131.53 | X40: =VLOOKUP(Tabla_Gtos_Ingresos7[[#This Row],[3 digitos]],PGC_Gtos_e_Ingresos[],3,FALSE) -> -1
A41: 1120 | B41: 2010-06-06 | C41: 70000097 | D41: VENTA ARENA 2% | E41: FACT.FA8/109 FCO. JOSE Luis Pinto | F41: 0 | G41: 38.72 | H41: =MID(Tabla_Gtos_Ingresos7[[#This Row],[Subcuenta]],1,4) -> 7000 | I41: =VALUE(MID(Tabla_Gtos_Ingresos7[[#This Row],[4 digitos]],1,3)) -> 700 | J41: =VALUE(MID(Tabla_Gtos_Ingresos7[[#This Row],[3 digitos]],1,2)) -> 70 | K41: =VLOOKUP(Tabla_Gtos_Ingresos7[[#This Row],[3 digitos]],PGC_Gtos_e_Ingresos[],4,FALSE) -> 1a | L41: =VLOOKUP(Tabla_Gtos_Ingresos7[[#This Row],[Grupo 1]],Tabla3[],4,FALSE) -> 1. Importe Neto Cifra de Negocios | M41: =VLOOKUP(Tabla_Gtos_Ingresos7[[#This Row],[Grupo 1]],Tabla3[],5,FALSE) -> 1.a Ventas | N41: =VLOOKUP(Tabla_Gtos_Ingresos7[[#This Row],[Grupo 1]],Tabla3[],10,FALSE) -> I | O41: =VLOOKUP(Tabla_Gtos_Ingresos7[[#This Row],[Grupo 1]],Tabla3[],6,FALSE) -> Explotación | P41: =VLOOKUP(Tabla_Gtos_Ingresos7[[#This Row],[Grupo 1]],Tabla3[],2,FALSE) -> 1 | Q41: =VLOOKUP(Tabla_Gtos_Ingresos7[[#This Row],[3 digitos]],PGC_Gtos_e_Ingresos[],2,FALSE) -> Ventas de mercaderías | R41: =Tabla_Gtos_Ingresos7[[#This Row],[3 digitos]]&"/"&Tabla_Gtos_Ingresos7[[#This Row],[Nombre cuenta]] -> 700/ Ventas de mercaderías | S41: =YEAR(Tabla_Gtos_Ingresos7[[#This Row],[Fecha]]) -> 2010 | T41: =MONTH(Tabla_Gtos_Ingresos7[[#This Row],[Fecha]]) -> 6 | U41: =ROUNDUP(MONTH(Tabla_Gtos_Ingresos7[[#This Row],[Fecha]])/3, 0) -> 2 | V41: =WEEKNUM(Tabla_Gtos_Ingresos7[[#This Row],[Fecha]]) -> 24 | W41: =(Tabla_Gtos_Ingresos7[[#This Row],[Factor]]*Tabla_Gtos_Ingresos7[[#This Row],[Haber]])+(Tabla_Gtos_Ingresos7[[#This Row],[Factor]]*Tabla_Gtos_Ingresos7[[#This Row],[Debe]]) -> 38.72 | X41: =VLOOKUP(Tabla_Gtos_Ingresos7[[#This Row],[3 digitos]],PGC_Gtos_e_Ingresos[],3,FALSE) -> 1
A42: 1122 | B42: 2010-06-06 | C42: 70000098 | D42: VENTA ARENA 2% | E42: FACT.FA8/108 Fermin ROCHA Tito | F42: 0 | G42: 113.89 | H42: =MID(Tabla_Gtos_Ingresos7[[#This Row],[Subcuenta]],1,4) -> 7000 | I42: =VALUE(MID(Tabla_Gtos_Ingresos7[[#This Row],[4 digitos]],1,3)) -> 700 | J42: =VALUE(MID(Tabla_Gtos_Ingresos7[[#This Row],[3 digitos]],1,2)) -> 70 | K42: =VLOOKUP(Tabla_Gtos_Ingresos7[[#This Row],[3 digitos]],PGC_Gtos_e_Ingresos[],4,FALSE) -> 1a | L42: =VLOOKUP(Tabla_Gtos_Ingresos7[[#This Row],[Grupo 1]],Tabla3[],4,FALSE) -> 1. Importe Neto Cifra de Negocios | M42: =VLOOKUP(Tabla_Gtos_Ingresos7[[#This Row],[Grupo 1]],Tabla3[],5,FALSE) -> 1.a Ventas | N42: =VLOOKUP(Tabla_Gtos_Ingresos7[[#This Row],[Grupo 1]],Tabla3[],10,FALSE) -> I | O42: =VLOOKUP(Tabla_Gtos_Ingresos7[[#This Row],[Grupo 1]],Tabla3[],6,FALSE) -> Explotación | P42: =VLOOKUP(Tabla_Gtos_Ingresos7[[#This Row],[Grupo 1]],Tabla3[],2,FALSE) -> 1 | Q42: =VLOOKUP(Tabla_Gtos_Ingresos7[[#This Row],[3 digitos]],PGC_Gtos_e_Ingresos[],2,FALSE) -> Ventas de mercaderías | R42: =Tabla_Gtos_Ingresos7[[#This Row],[3 digitos]]&"/"&Tabla_Gtos_Ingresos7[[#This Row],[Nombre cuenta]] -> 700/ Ventas de mercaderías | S42: =YEAR(Tabla_Gtos_Ingresos7[[#This Row],[Fecha]]) -> 2010 | T42: =MONTH(Tabla_Gtos_Ingresos7[[#This Row],[Fecha]]) -> 6 | U42: =ROUNDUP(MONTH(Tabla_Gtos_Ingresos7[[#This Row],[Fecha]])/3, 0) -> 2 | V42: =WEEKNUM(Tabla_Gtos_Ingresos7[[#This Row],[Fecha]]) -> 24 | W42: =(Tabla_Gtos_Ingresos7[[#This Row],[Factor]]*Tabla_Gtos_Ingresos7[[#This Row],[Haber]])+(Tabla_Gtos_Ingresos7[[#This Row],[Factor]]*Tabla_Gtos_Ingresos7[[#This Row],[Debe]]) -> 113.89 | X42: =VLOOKUP(Tabla_Gtos_Ingresos7[[#This Row],[3 digitos]],PGC_Gtos_e_Ingresos[],3,FALSE) -> 1
A43: 1992 | B43: 2010-09-06 | C43: 62400010 | D43: GASTOS TRANSPORTES | E43: FACT.8229 Seur Canarias | F43: 173 | G43: 0 | H43: =MID(Tabla_Gtos_Ingresos7[[#This Row],[Subcuenta]],1,4) -> 6240 | I43: =VALUE(MID(Tabla_Gtos_Ingresos7[[#This Row],[4 digitos]],1,3)) -> 624 | J43: =VALUE(MID(Tabla_Gtos_Ingresos7[[#This Row],[3 digitos]],1,2)) -> 62 | K43: =VLOOKUP(Tabla_Gtos_Ingresos7[[#This Row],[3 digitos]],PGC_Gtos_e_Ingresos[],4,FALSE) -> 7.a | L43: =VLOOKUP(Tabla_Gtos_Ingresos7[[#This Row],[Grupo 1]],Tabla3[],4,FALSE) -> 7. Otros Gastos de Explotación | M43: =VLOOKUP(Tabla_Gtos_Ingresos7[[#This Row],[Grupo 1]],Tabla3[],5,FALSE) -> 7.a Servicios Exteriores | N43: =VLOOKUP(Tabla_Gtos_Ingresos7[[#This Row],[Grupo 1]],Tabla3[],10,FALSE) -> G | O43: =VLOOKUP(Tabla_Gtos_Ingresos7[[#This Row],[Grupo 1]],Tabla3[],6,FALSE) -> Explotación | P43: =VLOOKUP(Tabla_Gtos_Ingresos7[[#This Row],[Grupo 1]],Tabla3[],2,FALSE) -> 7 | Q43: =VLOOKUP(Tabla_Gtos_Ingresos7[[#This Row],[3 digitos]],PGC_Gtos_e_Ingresos[],2,FALSE) -> Transportes | R43: =Tabla_Gtos_Ingresos7[[#This Row],[3 digitos]]&"/"&Tabla_Gtos_Ingresos7[[#This Row],[Nombre cuenta]] -> 624/ Transportes | S43: =YEAR(Tabla_Gtos_Ingresos7[[#This Row],[Fecha]]) -> 2010 | T43: =MONTH(Tabla_Gtos_Ingresos7[[#This Row],[Fecha]]) -> 9 | U43: =ROUNDUP(MONTH(Tabla_Gtos_Ingresos7[[#This Row],[Fecha]])/3, 0) -> 3 | V43: =WEEKNUM(Tabla_Gtos_Ingresos7[[#This Row],[Fecha]]) -> 37 | W43: =(Tabla_Gtos_Ingresos7[[#This Row],[Factor]]*Tabla_Gtos_Ingresos7[[#This Row],[Haber]])+(Tabla_Gtos_Ingresos7[[#This Row],[Factor]]*Tabla_Gtos_Ingresos7[[#This Row],[Debe]]) -> -173 | X43: =VLOOKUP(Tabla_Gtos_Ingresos7[[#This Row],[3 digitos]],PGC_Gtos_e_Ingresos[],3,FALSE) -> -1
A44: 2557 | B44: 2010-11-06 | C44: 62600000 | D44: SERVICIOS BANCARIOS Y SIMILARES | E44: COBRO FACT.FA8/206-FA8/207 CARRET. Los Vientos UTE | F44: 388.51 | G44: 0 | H44: =MID(Tabla_Gtos_Ingresos7[[#This Row],[Subcuenta]],1,4) -> 6260 | I44: =VALUE(MID(Tabla_Gtos_Ingresos7[[#This Row],[4 digitos]],1,3)) -> 626 | J44: =VALUE(MID(Tabla_Gtos_Ingresos7[[#This Row],[3 digitos]],1,2)) -> 62 | K44: =VLOOKUP(Tabla_Gtos_Ingresos7[[#This Row],[3 digitos]],PGC_Gtos_e_Ingresos[],4,FALSE) -> 7.a | L44: =VLOOKUP(Tabla_Gtos_Ingresos7[[#This Row],[Grupo 1]],Tabla3[],4,FALSE) -> 7. Otros Gastos de Explotación | M44: =VLOOKUP(Tabla_Gtos_Ingresos7[[#This Row],[Grupo 1]],Tabla3[],5,FALSE) -> 7.a Servicios Exteriores | N44: =VLOOKUP(Tabla_Gtos_Ingresos7[[#This Row],[Grupo 1]],Tabla3[],10,FALSE) -> G | O44: =VLOOKUP(Tabla_Gtos_Ingresos7[[#This Row],[Grupo 1]],Tabla3[],6,FALSE) -> Explotación | P44: =VLOOKUP(Tabla_Gtos_Ingresos7[[#This Row],[Grupo 1]],Tabla3[],2,FALSE) -> 7 | Q44: =VLOOKUP(Tabla_Gtos_Ingresos7[[#This Row],[3 digitos]],PGC_Gtos_e_Ingresos[],2,FALSE) -> Servicios bancarios y similares | R44: =Tabla_Gtos_Ingresos7[[#This Row],[3 digitos]]&"/"&Tabla_Gtos_Ingresos7[[#This Row],[Nombre cuenta]] -> 626/ Servicios bancarios y similares | S44: =YEAR(Tabla_Gtos_Ingresos7[[#This Row],[Fecha]]) -> 2010 | T44: =MONTH(Tabla_Gtos_Ingresos7[[#This Row],[Fecha]]) -> 11 | U44: =ROUNDUP(MONTH(Tabla_Gtos_Ingresos7[[#This Row],[Fecha]])/3, 0) -> 4 | V44: =WEEKNUM(Tabla_Gtos_Ingresos7[[#This Row],[Fecha]]) -> 45 | W44: =(Tabla_Gtos_Ingresos7[[#This Row],[Factor]]*Tabla_Gtos_Ingresos7[[#This Row],[Haber]])+(Tabla_Gtos_Ingresos7[[#This Row],[Factor]]*Tabla_Gtos_Ingresos7[[#This Row],[Debe]]) -> -388.51 | X44: =VLOOKUP(Tabla_Gtos_Ingresos7[[#This Row],[3 digitos]],PGC_Gtos_e_Ingresos[],3,FALSE) -> -1
A45: 190 | B45: 2010-02-07 | C45: 62200009 | D45: REPARACION Y CONSERVACION | E45: FACT.2010000285 REPUESTOS La Isla | F45: 270.38 | G45: 0 | H45: =MID(Tabla_Gtos_Ingresos7[[#This Row],[Subcuenta]],1,4) -> 6220 | I45: =VALUE(MID(Tabla_Gtos_Ingresos7[[#This Row],[4 digitos]],1,3)) -> 622 | J45: =VALUE(MID(Tabla_Gtos_Ingresos7[[#This Row],[3 digitos]],1,2)) -> 62 | K45: =VLOOKUP(Tabla_Gtos_Ingresos7[[#This Row],[3 digitos]],PGC_Gtos_e_Ingresos[],4,FALSE) -> 7.a | L45: =VLOOKUP(Tabla_Gtos_Ingresos7[[#This Row],[Grupo 1]],Tabla3[],4,FALSE) -> 7. Otros Gastos de Explotación | M45: =VLOOKUP(Tabla_Gtos_Ingresos7[[#This Row],[Grupo 1]],Tabla3[],5,FALSE) -> 7.a Servicios Exteriores | N45: =VLOOKUP(Tabla_Gtos_Ingresos7[[#This Row],[Grupo 1]],Tabla3[],10,FALSE) -> G | O45: =VLOOKUP(Tabla_Gtos_Ingresos7[[#This Row],[Grupo 1]],Tabla3[],6,FALSE) -> Explotación | P45: =VLOOKUP(Tabla_Gtos_Ingresos7[[#This Row],[Grupo 1]],Tabla3[],2,FALSE) -> 7 | Q45: =VLOOKUP(Tabla_Gtos_Ingresos7[[#This Row],[3 digitos]],PGC_Gtos_e_Ingresos[],2,FALSE) -> Reparaciones y conservación | R45: =Tabla_Gtos_Ingresos7[[#This Row],[3 digitos]]&"/"&Tabla_Gtos_Ingresos7[[#This Row],[Nombre cuenta]] -> 622/ Reparaciones y conservación | S45: =YEAR(Tabla_Gtos_Ingresos7[[#This Row],[Fecha]]) -> 2010 | T45: =MONTH(Tabla_Gtos_Ingresos7[[#This Row],[Fecha]]) -> 2 | U45: =ROUNDUP(MONTH(Tabla_Gtos_Ingresos7[[#This Row],[Fecha]])/3, 0) -> 1 | V45: =WEEKNUM(Tabla_Gtos_Ingresos7[[#This Row],[Fecha]]) -> 7 | W45: =(Tabla_Gtos_Ingresos7[[#This Row],[Factor]]*Tabla_Gtos_Ingresos7[[#This Row],[Haber]])+(Tabla_Gtos_Ingresos7[[#This Row],[Factor]]*Tabla_Gtos_Ingresos7[[#This Row],[Debe]]) -> -270.38 | X45: =VLOOKUP(Tabla_Gtos_Ingresos7[[#This Row],[3 digitos]],PGC_Gtos_e_Ingresos[],3,FALSE) -> -1
A46: 188 | B46: 2010-02-07 | C46: 70000016 | D46: VENTA ARENA 2% | E46: FACT.FA8/19 ROTURACIONES AMAGAR | F46: 0 | G46: 90 | H46: =MID(Tabla_Gtos_Ingresos7[[#This Row],[Subcuenta]],1,4) -> 7000 | I46: =VALUE(MID(Tabla_Gtos_Ingresos7[[#This Row],[4 digitos]],1,3)) -> 700 | J46: =VALUE(MID(Tabla_Gtos_Ingresos7[[#This Row],[3 digitos]],1,2)) -> 70 | K46: =VLOOKUP(Tabla_Gtos_Ingresos7[[#This Row],[3 digitos]],PGC_Gtos_e_Ingresos[],4,FALSE) -> 1a | L46: =VLOOKUP(Tabla_Gtos_Ingresos7[[#This Row],[Grupo 1]],Tabla3[],4,FALSE) -> 1. Importe Neto Cifra de Negocios | M46: =VLOOKUP(Tabla_Gtos_Ingresos7[[#This Row],[Grupo 1]],Tabla3[],5,FALSE) -> 1.a Ventas | N46: =VLOOKUP(Tabla_Gtos_Ingresos7[[#This Row],[Grupo 1]],Tabla3[],10,FALSE) -> I | O46: =VLOOKUP(Tabla_Gtos_Ingresos7[[#This Row],[Grupo 1]],Tabla3[],6,FALSE) -> Explotación | P46: =VLOOKUP(Tabla_Gtos_Ingresos7[[#This Row],[Grupo 1]],Tabla3[],2,FALSE) -> 1 | Q46: =VLOOKUP(Tabla_Gtos_Ingresos7[[#This Row],[3 digitos]],PGC_Gtos_e_Ingresos[],2,FALSE) -> Ventas de mercaderías | R46: =Tabla_Gtos_Ingresos7[[#This Row],[3 digitos]]&"/"&Tabla_Gtos_Ingresos7[[#This Row],[Nombre cuenta]] -> 700/ Ventas de mercaderías | S46: =YEAR(Tabla_Gtos_Ingresos7[[#This Row],[Fecha]]) -> 2010 | T46: =MONTH(Tabla_Gtos_Ingresos7[[#This Row],[Fecha]]) -> 2 | U46: =ROUNDUP(MONTH(Tabla_Gtos_Ingresos7[[#This Row],[Fecha]])/3, 0) -> 1 | V46: =WEEKNUM(Tabla_Gtos_Ingresos7[[#This Row],[Fecha]]) -> 7 | W46: =(Tabla_Gtos_Ingresos7[[#This Row],[Factor]]*Tabla_Gtos_Ingresos7[[#This Row],[Haber]])+(Tabla_Gtos_Ingresos7[[#This Row],[Factor]]*Tabla_Gtos_Ingresos7[[#This Row],[Debe]]) -> 90 | X46: =VLOOKUP(Tabla_Gtos_Ingresos7[[#This Row],[3 digitos]],PGC_Gtos_e_Ingresos[],3,FALSE) -> 1
A47: 401 | B47: 2010-03-07 | C47: 70000039 | D47: VENTA ARENA 2% | E47: FACT.FA8/46 J.Juan Luis Pinto | F47: 0 | G47: 14.3 | H47: =MID(Tabla_Gtos_Ingresos7[[#This Row],[Subcuenta]],1,4) -> 7000 | I47: =VALUE(MID(Tabla_Gtos_Ingresos7[[#This Row],[4 digitos]],1,3)) -> 700 | J47: =VALUE(MID(Tabla_Gtos_Ingresos7[[#This Row],[3 digitos]],1,2)) -> 70 | K47: =VLOOKUP(Tabla_Gtos_Ingresos7[[#This Row],[3 digitos]],PGC_Gtos_e_Ingresos[],4,FALSE) -> 1a | L47: =VLOOKUP(Tabla_Gtos_Ingresos7[[#This Row],[Grupo 1]],Tabla3[],4,FALSE) -> 1. Importe Neto Cifra de Negocios | M47: =VLOOKUP(Tabla_Gtos_Ingresos7[[#This Row],[Grupo 1]],Tabla3[],5,FALSE) -> 1.a Ventas | N47: =VLOOKUP(Tabla_Gtos_Ingresos7[[#This Row],[Grupo 1]],Tabla3[],10,FALSE) -> I | O47: =VLOOKUP(Tabla_Gtos_Ingresos7[[#This Row],[Grupo 1]],Tabla3[],6,FALSE) -> Explotación | P47: =VLOOKUP(Tabla_Gtos_Ingresos7[[#This Row],[Grupo 1]],Tabla3[],2,FALSE) -> 1 | Q47: =VLOOKUP(Tabla_Gtos_Ingresos7[[#This Row],[3 digitos]],PGC_Gtos_e_Ingresos[],2,FALSE) -> Ventas de mercaderías | R47: =Tabla_Gtos_Ingresos7[[#This Row],[3 digitos]]&"/"&Tabla_Gtos_Ingresos7[[#This Row],[Nombre cuenta]] -> 700/ Ventas de mercaderías | S47: =YEAR(Tabla_Gtos_Ingresos7[[#This Row],[Fecha]]) -> 2010 | T47: =MONTH(Tabla_Gtos_Ingresos7[[#This Row],[Fecha]]) -> 3 | U47: =ROUNDUP(MONTH(Tabla_Gtos_Ingresos7[[#This Row],[Fecha]])/3, 0) -> 1 | V47: =WEEKNUM(Tabla_Gtos_Ingresos7[[#This Row],[Fecha]]) -> 11 | W47: =(Tabla_Gtos_Ingresos7[[#This Row],[Factor]]*Tabla_Gtos_Ingresos7[[#This Row],[Haber]])+(Tabla_Gtos_Ingresos7[[#This Row],[Factor]]*Tabla_Gtos_Ingresos7[[#This Row],[Debe]]) -> 14.3 | X47: =VLOOKUP(Tabla_Gtos_Ingresos7[[#This Row],[3 digitos]],PGC_Gtos_e_Ingresos[],3,FALSE) -> 1
A48: 2569 | B48: 2010-11-07 | C48: 64900006 | D48: OTROS GASTOS PERSONAL | E48: ANTICIPO HORAS EXTRAS IMELDO Soto Soto | F48: 640 | G48: 0 | H48: =MID(Tabla_Gtos_Ingresos7[[#This Row],[Subcuenta]],1,4) -> 6490 | I48: =VALUE(MID(Tabla_Gtos_Ingresos7[[#This Row],[4 digitos]],1,3)) -> 649 | J48: =VALUE(MID(Tabla_Gtos_Ingresos7[[#This Row],[3 digitos]],1,2)) -> 64 | K48: =VLOOKUP(Tabla_Gtos_Ingresos7[[#This Row],[3 digitos]],PGC_Gtos_e_Ingresos[],4,FALSE) -> 6.b | L48: =VLOOKUP(Tabla_Gtos_Ingresos7[[#This Row],[Grupo 1]],Tabla3[],4,FALSE) -> 6. Gtos de Personal | M48: =VLOOKUP(Tabla_Gtos_Ingresos7[[#This Row],[Grupo 1]],Tabla3[],5,FALSE) -> 6.b Cargas Sociales | N48: =VLOOKUP(Tabla_Gtos_Ingresos7[[#This Row],[Grupo 1]],Tabla3[],10,FALSE) -> G | O48: =VLOOKUP(Tabla_Gtos_Ingresos7[[#This Row],[Grupo 1]],Tabla3[],6,FALSE) -> Explotación | P48: =VLOOKUP(Tabla_Gtos_Ingresos7[[#This Row],[Grupo 1]],Tabla3[],2,FALSE) -> 6 | Q48: =VLOOKUP(Tabla_Gtos_Ingresos7[[#This Row],[3 digitos]],PGC_Gtos_e_Ingresos[],2,FALSE) -> Otros gastos sociales | R48: =Tabla_Gtos_Ingresos7[[#This Row],[3 digitos]]&"/"&Tabla_Gtos_Ingresos7[[#This Row],[Nombre cuenta]] -> 649/ Otros gastos sociales | S48: =YEAR(Tabla_Gtos_Ingresos7[[#This Row],[Fecha]]) -> 2010 | T48: =MONTH(Tabla_Gtos_Ingresos7[[#This Row],[Fecha]]) -> 11 | U48: =ROUNDUP(MONTH(Tabla_Gtos_Ingresos7[[#This Row],[Fecha]])/3, 0) -> 4 | V48: =WEEKNUM(Tabla_Gtos_Ingresos7[[#This Row],[Fecha]]) -> 46 | W48: =(Tabla_Gtos_Ingresos7[[#This Row],[Factor]]*Tabla_Gtos_Ingresos7[[#This Row],[Haber]])+(Tabla_Gtos_Ingresos7[[#This Row],[Factor]]*Tabla_Gtos_Ingresos7[[#This Row],[Debe]]) -> -640 | X48: =VLOOKUP(Tabla_Gtos_Ingresos7[[#This Row],[3 digitos]],PGC_Gtos_e_Ingresos[],3,FALSE) -> -1
A49: 415 | B49: 2010-03-08 | C49: 70000040 | D49: VENTA ARENA 2% | E49: FACT.FA8/48 Alfredo Pérez Luis. Tito | F49: 0 | G49: 46.6 | H49: =MID(Tabla_Gtos_Ingresos7[[#This Row],[Subcuenta]],1,4) -> 7000 | I49: =VALUE(MID(Tabla_Gtos_Ingresos7[[#This Row],[4 digitos]],1,3)) -> 700 | J49: =VALUE(MID(Tabla_Gtos_Ingresos7[[#This Row],[3 digitos]],1,2)) -> 70 | K49: =VLOOKUP(Tabla_Gtos_Ingresos7[[#This Row],[3 digitos]],PGC_Gtos_e_Ingresos[],4,FALSE) -> 1a | L49: =VLOOKUP(Tabla_Gtos_Ingresos7[[#This Row],[Grupo 1]],Tabla3[],4,FALSE) -> 1. Importe Neto Cifra de Negocios | M49: =VLOOKUP(Tabla_Gtos_Ingresos7[[#This Row],[Grupo 1]],Tabla3[],5,FALSE) -> 1.a Ventas | N49: =VLOOKUP(Tabla_Gtos_Ingresos7[[#This Row],[Grupo 1]],Tabla3[],10,FALSE) -> I | O49: =VLOOKUP(Tabla_Gtos_Ingresos7[[#This Row],[Grupo 1]],Tabla3[],6,FALSE) -> Explotación | P49: =VLOOKUP(Tabla_Gtos_Ingresos7[[#This Row],[Grupo 1]],Tabla3[],2,FALSE) -> 1 | Q49: =VLOOKUP(Tabla_Gtos_Ingresos7[[#This Row],[3 digitos]],PGC_Gtos_e_Ingresos[],2,FALSE) -> Ventas de mercaderías | R49: =Tabla_Gtos_Ingresos7[[#This Row],[3 digitos]]&"/"&Tabla_Gtos_Ingresos7[[#This Row],[Nombre cuenta]] -> 700/ Ventas de mercaderías | S49: =YEAR(Tabla_Gtos_Ingresos7[[#This Row],[Fecha]]) -> 2010 | T49: =MONTH(Tabla_Gtos_Ingresos7[[#This Row],[Fecha]]) -> 3 | U49: =ROUNDUP(MONTH(Tabla_Gtos_Ingresos7[[#This Row],[Fecha]])/3, 0) -> 1 | V49: =WEEKNUM(Tabla_Gtos_Ingresos7[[#This Row],[Fecha]]) -> 11 | W49: =(Tabla_Gtos_Ingresos7[[#This Row],[Factor]]*Tabla_Gtos_Ingresos7[[#This Row],[Haber]])+(Tabla_Gtos_Ingresos7[[#This Row],[Factor]]*Tabla_Gtos_Ingresos7[[#This Row],[Debe]]) -> 46.6 | X49: =VLOOKUP(Tabla_Gtos_Ingresos7[[#This Row],[3 digitos]],PGC_Gtos_e_Ingresos[],3,FALSE) -> 1
A50: 416 | B50: 2010-03-08 | C50: 70000041 | D50: VENTA ARENA 2% | E50: FACT.FA8/47 J.Juan Luis Pinto | F50: 0 | G50: 32.56 | H50: =MID(Tabla_Gtos_Ingresos7[[#This Row],[Subcuenta]],1,4) -> 7000 | I50: =VALUE(MID(Tabla_Gtos_Ingresos7[[#This Row],[4 digitos]],1,3)) -> 700 | J50: =VALUE(MID(Tabla_Gtos_Ingresos7[[#This Row],[3 digitos]],1,2)) -> 70 | K50: =VLOOKUP(Tabla_Gtos_Ingresos7[[#This Row],[3 digitos]],PGC_Gtos_e_Ingresos[],4,FALSE) -> 1a | L50: =VLOOKUP(Tabla_Gtos_Ingresos7[[#This Row],[Grupo 1]],Tabla3[],4,FALSE) -> 1. Importe Neto Cifra de Negocios | M50: =VLOOKUP(Tabla_Gtos_Ingresos7[[#This Row],[Grupo 1]],Tabla3[],5,FALSE) -> 1.a Ventas | N50: =VLOOKUP(Tabla_Gtos_Ingresos7[[#This Row],[Grupo 1]],Tabla3[],10,FALSE) -> I | O50: =VLOOKUP(Tabla_Gtos_Ingresos7[[#This Row],[Grupo 1]],Tabla3[],6,FALSE) -> Explotación | P50: =VLOOKUP(Tabla_Gtos_Ingresos7[[#This Row],[Grupo 1]],Tabla3[],2,FALSE) -> 1 | Q50: =VLOOKUP(Tabla_Gtos_Ingresos7[[#This Row],[3 digitos]],PGC_Gtos_e_Ingresos[],2,FALSE) -> Ventas de mercaderías | R50: =Tabla_Gtos_Ingresos7[[#This Row],[3 digitos]]&"/"&Tabla_Gtos_Ingresos7[[#This Row],[Nombre cuenta]] -> 700/ Ventas de mercaderías | S50: =YEAR(Tabla_Gtos_Ingresos7[[#This Row],[Fecha]]) -> 2010 | T50: =MONTH(Tabla_Gtos_Ingresos7[[#This Row],[Fecha]]) -> 3 | U50: =ROUNDUP(MONTH(Tabla_Gtos_Ingresos7[[#This Row],[Fecha]])/3, 0) -> 1 | V50: =WEEKNUM(Tabla_Gtos_Ingresos7[[#This Row],[Fecha]]) -> 11 | W50: =(Tabla_Gtos_Ingresos7[[#This Row],[Factor]]*Tabla_Gtos_Ingresos7[[#This Row],[Haber]])+(Tabla_Gtos_Ingresos7[[#This Row],[Factor]]*Tabla_Gtos_Ingresos7[[#This Row],[Debe]]) -> 32.56 | X50: =VLOOKUP(Tabla_Gtos_Ingresos7[[#This Row],[3 digitos]],PGC_Gtos_e_Ingresos[],3,FALSE) -> 1
A51: 417 | B51: 2010-03-08 | C51: 70000042 | D51: VENTA ARENA 2% | E51: FACT.FA8/49 VICTOR MOISES Tatiano PEREZ | F51: 0 | G51: 21 | H51: =MID(Tabla_Gtos_Ingresos7[[#This Row],[Subcuenta]],1,4) -> 7000 | I51: =VALUE(MID(Tabla_Gtos_Ingresos7[[#This Row],[4 digitos]],1,3)) -> 700 | J51: =VALUE(MID(Tabla_Gtos_Ingresos7[[#This Row],[3 digitos]],1,2)) -> 70 | K51: =VLOOKUP(Tabla_Gtos_Ingresos7[[#This Row],[3 digitos]],PGC_Gtos_e_Ingresos[],4,FALSE) -> 1a | L51: =VLOOKUP(Tabla_Gtos_Ingresos7[[#This Row],[Grupo 1]],Tabla3[],4,FALSE) -> 1. Importe Neto Cifra de Negocios | M51: =VLOOKUP(Tabla_Gtos_Ingresos7[[#This Row],[Grupo 1]],Tabla3[],5,FALSE) -> 1.a Ventas | N51: =VLOOKUP(Tabla_Gtos_Ingresos7[[#This Row],[Grupo 1]],Tabla3[],10,FALSE) -> I | O51: =VLOOKUP(Tabla_Gtos_Ingresos7[[#This Row],[Grupo 1]],Tabla3[],6,FALSE) -> Explotación | P51: =VLOOKUP(Tabla_Gtos_Ingresos7[[#This Row],[Grupo 1]],Tabla3[],2,FALSE) -> 1 | Q51: =VLOOKUP(Tabla_Gtos_Ingresos7[[#This Row],[3 digitos]],PGC_Gtos_e_Ingresos[],2,FALSE) -> Ventas de mercaderías | R51: =Tabla_Gtos_Ingresos7[[#This Row],[3 digitos]]&"/"&Tabla_Gtos_Ingresos7[[#This Row],[Nombre cuenta]] -> 700/ Ventas de mercaderías | S51: =YEAR(Tabla_Gtos_Ingresos7[[#This Row],[Fecha]]) -> 2010 | T51: =MONTH(Tabla_Gtos_Ingresos7[[#This Row],[Fecha]]) -> 3 | U51: =ROUNDUP(MONTH(Tabla_Gtos_Ingresos7[[#This Row],[Fecha]])/3, 0) -> 1 | V51: =WEEKNUM(Tabla_Gtos_Ingresos7[[#This Row],[Fecha]]) -> 11 | W51: =(Tabla_Gtos_Ingresos7[[#This Row],[Factor]]*Tabla_Gtos_Ingresos7[[#This Row],[Haber]])+(Tabla_Gtos_Ingresos7[[#This Row],[Factor]]*Tabla_Gtos_Ingresos7[[#This Row],[Debe]]) -> 21 | X51: =VLOOKUP(Tabla_Gtos_Ingresos7[[#This Row],[3 digitos]],PGC_Gtos_e_Ingresos[],3,FALSE) -> 1
A52: 1469 | B52: 2010-07-08 | C52: 62200045 | D52: REPARACION Y CONSERVACION | E52: FACT.1402 REPUESTOS La Isla | F52: 476.36 | G52: 0 | H52: =MID(Tabla_Gtos_Ingresos7[[#This Row],[Subcuenta]],1,4) -> 6220 | I52: =VALUE(MID(Tabla_Gtos_Ingresos7[[#This Row],[4 digitos]],1,3)) -> 622 | J52: =VALUE(MID(Tabla_Gtos_Ingresos7[[#This Row],[3 digitos]],1,2)) -> 62 | K52: =VLOOKUP(Tabla_Gtos_Ingresos7[[#This Row],[3 digitos]],PGC_Gtos_e_Ingresos[],4,FALSE) -> 7.a | L52: =VLOOKUP(Tabla_Gtos_Ingresos7[[#This Row],[Grupo 1]],Tabla3[],4,FALSE) -> 7. Otros Gastos de Explotación | M52: =VLOOKUP(Tabla_Gtos_Ingresos7[[#This Row],[Grupo 1]],Tabla3[],5,FALSE) -> 7.a Servicios Exteriores | N52: =VLOOKUP(Tabla_Gtos_Ingresos7[[#This Row],[Grupo 1]],Tabla3[],10,FALSE) -> G | O52: =VLOOKUP(Tabla_Gtos_Ingresos7[[#This Row],[Grupo 1]],Tabla3[],6,FALSE) -> Explotación | P52: =VLOOKUP(Tabla_Gtos_Ingresos7[[#This Row],[Grupo 1]],Tabla3[],2,FALSE) -> 7 | Q52: =VLOOKUP(Tabla_Gtos_Ingresos7[[#This Row],[3 digitos]],PGC_Gtos_e_Ingresos[],2,FALSE) -> Reparaciones y conservación | R52: =Tabla_Gtos_Ingresos7[[#This Row],[3 digitos]]&"/"&Tabla_Gtos_Ingresos7[[#This Row],[Nombre cuenta]] -> 622/ Reparaciones y conservación | S52: =YEAR(Tabla_Gtos_Ingresos7[[#This Row],[Fecha]]) -> 2010 | T52: =MONTH(Tabla_Gtos_Ingresos7[[#This Row],[Fecha]]) -> 7 | U52: =ROUNDUP(MONTH(Tabla_Gtos_Ingresos7[[#This Row],[Fecha]])/3, 0) -> 3 | V52: =WEEKNUM(Tabla_Gtos_Ingresos7[[#This Row],[Fecha]]) -> 28 | W52: =(Tabla_Gtos_Ingresos7[[#This Row],[Factor]]*Tabla_Gtos_Ingresos7[[#This Row],[Haber]])+(Tabla_Gtos_Ingresos7[[#This Row],[Factor]]*Tabla_Gtos_Ingresos7[[#This Row],[Debe]]) -> -476.36 | X52: =VLOOKUP(Tabla_Gtos_Ingresos7[[#This Row],[3 digitos]],PGC_Gtos_e_Ingresos[],3,FALSE) -> -1
A53: 1748 | B53: 2010-08-08 | C53: 60700013 | D53: TRABAJOS REALIZADOS POR OTRAS EMPRESAS | E53: FACT.0070/08 CERRAJERIA LOS perritos | F53: 3026 | G53: 0 | H53: =MID(Tabla_Gtos_Ingresos7[[#This Row],[Subcuenta]],1,4) -> 6070 | I53: =VALUE(MID(Tabla_Gtos_Ingresos7[[#This Row],[4 digitos]],1,3)) -> 607 | J53: =VALUE(MID(Tabla_Gtos_Ingresos7[[#This Row],[3 digitos]],1,2)) -> 60 | K53: =VLOOKUP(Tabla_Gtos_Ingresos7[[#This Row],[3 digitos]],PGC_Gtos_e_Ingresos[],4,FALSE) -> 4.c | L53: =VLOOKUP(Tabla_Gtos_Ingresos7[[#This Row],[Grupo 1]],Tabla3[],4,FALSE) -> 4. Aprovisionamientos | M53: =VLOOKUP(Tabla_Gtos_Ingresos7[[#This Row],[Grupo 1]],Tabla3[],5,FALSE) -> 4.c Trabajos Realizados por Otras Empresas | N53: =VLOOKUP(Tabla_Gtos_Ingresos7[[#This Row],[Grupo 1]],Tabla3[],10,FALSE) -> G | O53: =VLOOKUP(Tabla_Gtos_Ingresos7[[#This Row],[Grupo 1]],Tabla3[],6,FALSE) -> Explotación | P53: =VLOOKUP(Tabla_Gtos_Ingresos7[[#This Row],[Grupo 1]],Tabla3[],2,FALSE) -> 4 | Q53: =VLOOKUP(Tabla_Gtos_Ingresos7[[#This Row],[3 digitos]],PGC_Gtos_e_Ingresos[],2,FALSE) -> Trabajos realizados por otras empresas | R53: =Tabla_Gtos_Ingresos7[[#This Row],[3 digitos]]&"/"&Tabla_Gtos_Ingresos7[[#This Row],[Nombre cuenta]] -> 607/ Trabajos realizados por otras empresas | S53: =YEAR(Tabla_Gtos_Ingresos7[[#This Row],[Fecha]]) -> 2010 | T53: =MONTH(Tabla_Gtos_Ingresos7[[#This Row],[Fecha]]) -> 8 | U53: =ROUNDUP(MONTH(Tabla_Gtos_Ingresos7[[#This Row],[Fecha]])/3, 0) -> 3 | V53: =WEEKNUM(Tabla_Gtos_Ingresos7[[#This Row],[Fecha]]) -> 33 | W53: =(Tabla_Gtos_Ingresos7[[#This Row],[Factor]]*Tabla_Gtos_Ingresos7[[#This Row],[Haber]])+(Tabla_Gtos_Ingresos7[[#This Row],[Factor]]*Tabla_Gtos_Ingresos7[[#This Row],[Debe]]) -> -3026 | X53: =VLOOKUP(Tabla_Gtos_Ingresos7[[#This Row],[3 digitos]],PGC_Gtos_e_Ingresos[],3,FALSE) -> -1
A54: 2290 | B54: 2010-10-08 | C54: 62600000 | D54: SERVICIOS BANCARIOS Y SIMILARES | E54: COBRO FACT.FA8/183-FA8/184 CARRET. Los Vientos UTE | F54: 278.75 | G54: 0 | H54: =MID(Tabla_Gtos_Ingresos7[[#This Row],[Subcuenta]],1,4) -> 6260 | I54: =VALUE(MID(Tabla_Gtos_Ingresos7[[#This Row],[4 digitos]],1,3)) -> 626 | J54: =VALUE(MID(Tabla_Gtos_Ingresos7[[#This Row],[3 digitos]],1,2)) -> 62 | K54: =VLOOKUP(Tabla_Gtos_Ingresos7[[#This Row],[3 digitos]],PGC_Gtos_e_Ingresos[],4,FALSE) -> 7.a | L54: =VLOOKUP(Tabla_Gtos_Ingresos7[[#This Row],[Grupo 1]],Tabla3[],4,FALSE) -> 7. Otros Gastos de Explotación | M54: =VLOOKUP(Tabla_Gtos_Ingresos7[[#This Row],[Grupo 1]],Tabla3[],5,FALSE) -> 7.a Servicios Exteriores | N54: =VLOOKUP(Tabla_Gtos_Ingresos7[[#This Row],[Grupo 1]],Tabla3[],10,FALSE) -> G | O54: =VLOOKUP(Tabla_Gtos_Ingresos7[[#This Row],[Grupo 1]],Tabla3[],6,FALSE) -> Explotación | P54: =VLOOKUP(Tabla_Gtos_Ingresos7[[#This Row],[Grupo 1]],Tabla3[],2,FALSE) -> 7 | Q54: =VLOOKUP(Tabla_Gtos_Ingresos7[[#This Row],[3 digitos]],PGC_Gtos_e_Ingresos[],2,FALSE) -> Servicios bancarios y similares | R54: =Tabla_Gtos_Ingresos7[[#This Row],[3 digitos]]&"/"&Tabla_Gtos_Ingresos7[[#This Row],[Nombre cuenta]] -> 626/ Servicios bancarios y similares | S54: =YEAR(Tabla_Gtos_Ingresos7[[#This Row],[Fecha]]) -> 2010 | T54: =MONTH(Tabla_Gtos_Ingresos7[[#This Row],[Fecha]]) -> 10 | U54: =ROUNDUP(MONTH(Tabla_Gtos_Ingresos7[[#This Row],[Fecha]])/3, 0) -> 4 | V54: =WEEKNUM(Tabla_Gtos_Ingresos7[[#This Row],[Fecha]]) -> 41 | W54: =(Tabla_Gtos_Ingresos7[[#This Row],[Factor]]*Tabla_Gtos_Ingresos7[[#This Row],[Haber]])+(Tabla_Gtos_Ingresos7[[#This Row],[Factor]]*Tabla_Gtos_Ingresos7[[#This Row],[Debe]]) -> -278.75 | X54: =VLOOKUP(Tabla_Gtos_Ingresos7[[#This Row],[3 digitos]],PGC_Gtos_e_Ingresos[],3,FALSE) -> -1
A55: 884 | B55: 2010-05-09 | C55: 62200022 | D55: REPARACION Y CONSERVACION | E55: FACT.2010001002 REPUESTOS La Isla | F55: 104.69 | G55: 0 | H55: =MID(Tabla_Gtos_Ingresos7[[#This Row],[Subcuenta]],1,4) -> 6220 | I55: =VALUE(MID(Tabla_Gtos_Ingresos7[[#This Row],[4 digitos]],1,3)) -> 622 | J55: =VALUE(MID(Tabla_Gtos_Ingresos7[[#This Row],[3 digitos]],1,2)) -> 62 | K55: =VLOOKUP(Tabla_Gtos_Ingresos7[[#This Row],[3 digitos]],PGC_Gtos_e_Ingresos[],4,FALSE) -> 7.a | L55: =VLOOKUP(Tabla_Gtos_Ingresos7[[#This Row],[Grupo 1]],Tabla3[],4,FALSE) -> 7. Otros Gastos de Explotación | M55: =VLOOKUP(Tabla_Gtos_Ingresos7[[#This Row],[Grupo 1]],Tabla3[],5,FALSE) -> 7.a Servicios Exteriores | N55: =VLOOKUP(Tabla_Gtos_Ingresos7[[#This Row],[Grupo 1]],Tabla3[],10,FALSE) -> G | O55: =VLOOKUP(Tabla_Gtos_Ingresos7[[#This Row],[Grupo 1]],Tabla3[],6,FALSE) -> Explotación | P55: =VLOOKUP(Tabla_Gtos_Ingresos7[[#This Row],[Grupo 1]],Tabla3[],2,FALSE) -> 7 | Q55: =VLOOKUP(Tabla_Gtos_Ingresos7[[#This Row],[3 digitos]],PGC_Gtos_e_Ingresos[],2,FALSE) -> Reparaciones y conservación | R55: =Tabla_Gtos_Ingresos7[[#This Row],[3 digitos]]&"/"&Tabla_Gtos_Ingresos7[[#This Row],[Nombre cuenta]] -> 622/ Reparaciones y conservación | S55: =YEAR(Tabla_Gtos_Ingresos7[[#This Row],[Fecha]]) -> 2010 | T55: =MONTH(Tabla_Gtos_Ingresos7[[#This Row],[Fecha]]) -> 5 | U55: =ROUNDUP(MONTH(Tabla_Gtos_Ingresos7[[#This Row],[Fecha]])/3, 0) -> 2 | V55: =WEEKNUM(Tabla_Gtos_Ingresos7[[#This Row],[Fecha]]) -> 20 | W55: =(Tabla_Gtos_Ingresos7[[#This Row],[Factor]]*Tabla_Gtos_Ingresos7[[#This Row],[Haber]])+(Tabla_Gtos_Ingresos7[[#This Row],[Factor]]*Tabla_Gtos_Ingresos7[[#This Row],[Debe]]) -> -104.69 | X55: =VLOOKUP(Tabla_Gtos_Ingresos7[[#This Row],[3 digitos]],PGC_Gtos_e_Ingresos[],3,FALSE) -> -1
A56: 875 | B56: 2010-05-09 | C56: 70000078 | D56: VENTA ARENA 2% | E56: FACT.FA8/84 J.Juan HDEZ. PEREZ | F56: 0 | G56: 34.1 | H56: =MID(Tabla_Gtos_Ingresos7[[#This Row],[Subcuenta]],1,4) -> 7000 | I56: =VALUE(MID(Tabla_Gtos_Ingresos7[[#This Row],[4 digitos]],1,3)) -> 700 | J56: =VALUE(MID(Tabla_Gtos_Ingresos7[[#This Row],[3 digitos]],1,2)) -> 70 | K56: =VLOOKUP(Tabla_Gtos_Ingresos7[[#This Row],[3 digitos]],PGC_Gtos_e_Ingresos[],4,FALSE) -> 1a | L56: =VLOOKUP(Tabla_Gtos_Ingresos7[[#This Row],[Grupo 1]],Tabla3[],4,FALSE) -> 1. Importe Neto Cifra de Negocios | M56: =VLOOKUP(Tabla_Gtos_Ingresos7[[#This Row],[Grupo 1]],Tabla3[],5,FALSE) -> 1.a Ventas | N56: =VLOOKUP(Tabla_Gtos_Ingresos7[[#This Row],[Grupo 1]],Tabla3[],10,FALSE) -> I | O56: =VLOOKUP(Tabla_Gtos_Ingresos7[[#This Row],[Grupo 1]],Tabla3[],6,FALSE) -> Explotación | P56: =VLOOKUP(Tabla_Gtos_Ingresos7[[#This Row],[Grupo 1]],Tabla3[],2,FALSE) -> 1 | Q56: =VLOOKUP(Tabla_Gtos_Ingresos7[[#This Row],[3 digitos]],PGC_Gtos_e_Ingresos[],2,FALSE) -> Ventas de mercaderías | R56: =Tabla_Gtos_Ingresos7[[#This Row],[3 digitos]]&"/"&Tabla_Gtos_Ingresos7[[#This Row],[Nombre cuenta]] -> 700/ Ventas de mercaderías | S56: =YEAR(Tabla_Gtos_Ingresos7[[#This Row],[Fecha]]) -> 2010 | T56: =MONTH(Tabla_Gtos_Ingresos7[[#This Row],[Fecha]]) -> 5 | U56: =ROUNDUP(MONTH(Tabla_Gtos_Ingresos7[[#This Row],[Fecha]])/3, 0) -> 2 | V56: =WEEKNUM(Tabla_Gtos_Ingresos7[[#This Row],[Fecha]]) -> 20 | W56: =(Tabla_Gtos_Ingresos7[[#This Row],[Factor]]*Tabla_Gtos_Ingresos7[[#This Row],[Haber]])+(Tabla_Gtos_Ingresos7[[#This Row],[Factor]]*Tabla_Gtos_Ingresos7[[#This Row],[Debe]]) -> 34.1 | X56: =VLOOKUP(Tabla_Gtos_Ingresos7[[#This Row],[3 digitos]],PGC_Gtos_e_Ingresos[],3,FALSE) -> 1
A57: 1749 | B57: 2010-08-09 | C57: 62400001 | D57: GASTOS TRANSPORTES | E57: FACT.299061 EXTACION TEXACO Peña ALTA | F57: 160 | G57: 0 | H57: =MID(Tabla_Gtos_Ingresos7[[#This Row],[Subcuenta]],1,4) -> 6240 | I57: =VALUE(MID(Tabla_Gtos_Ingresos7[[#This Row],[4 digitos]],1,3)) -> 624 | J57: =VALUE(MID(Tabla_Gtos_Ingresos7[[#This Row],[3 digitos]],1,2)) -> 62 | K57: =VLOOKUP(Tabla_Gtos_Ingresos7[[#This Row],[3 digitos]],PGC_Gtos_e_Ingresos[],4,FALSE) -> 7.a | L57: =VLOOKUP(Tabla_Gtos_Ingresos7[[#This Row],[Grupo 1]],Tabla3[],4,FALSE) -> 7. Otros Gastos de Explotación | M57: =VLOOKUP(Tabla_Gtos_Ingresos7[[#This Row],[Grupo 1]],Tabla3[],5,FALSE) -> 7.a Servicios Exteriores | N57: =VLOOKUP(Tabla_Gtos_Ingresos7[[#This Row],[Grupo 1]],Tabla3[],10,FALSE) -> G | O57: =VLOOKUP(Tabla_Gtos_Ingresos7[[#This Row],[Grupo 1]],Tabla3[],6,FALSE) -> Explotación | P57: =VLOOKUP(Tabla_Gtos_Ingresos7[[#This Row],[Grupo 1]],Tabla3[],2,FALSE) -> 7 | Q57: =VLOOKUP(Tabla_Gtos_Ingresos7[[#This Row],[3 digitos]],PGC_Gtos_e_Ingresos[],2,FALSE) -> Transportes | R57: =Tabla_Gtos_Ingresos7[[#This Row],[3 digitos]]&"/"&Tabla_Gtos_Ingresos7[[#This Row],[Nombre cuenta]] -> 624/ Transportes | S57: =YEAR(Tabla_Gtos_Ingresos7[[#This Row],[Fecha]]) -> 2010 | T57: =MONTH(Tabla_Gtos_Ingresos7[[#This Row],[Fecha]]) -> 8 | U57: =ROUNDUP(MONTH(Tabla_Gtos_Ingresos7[[#This Row],[Fecha]])/3, 0) -> 3 | V57: =WEEKNUM(Tabla_Gtos_Ingresos7[[#This Row],[Fecha]]) -> 33 | W57: =(Tabla_Gtos_Ingresos7[[#This Row],[Factor]]*Tabla_Gtos_Ingresos7[[#This Row],[Haber]])+(Tabla_Gtos_Ingresos7[[#This Row],[Factor]]*Tabla_Gtos_Ingresos7[[#This Row],[Debe]]) -> -160 | X57: =VLOOKUP(Tabla_Gtos_Ingresos7[[#This Row],[3 digitos]],PGC_Gtos_e_Ingresos[],3,FALSE) -> -1
A58: 2001 | B58: 2010-09-09 | C58: 62400011 | D58: GASTOS TRANSPORTES | E58: FACT.8275 Seur Canarias | F58: 45 | G58: 0 | H58: =MID(Tabla_Gtos_Ingresos7[[#This Row],[Subcuenta]],1,4) -> 6240 | I58: =VALUE(MID(Tabla_Gtos_Ingresos7[[#This Row],[4 digitos]],1,3)) -> 624 | J58: =VALUE(MID(Tabla_Gtos_Ingresos7[[#This Row],[3 digitos]],1,2)) -> 62 | K58: =VLOOKUP(Tabla_Gtos_Ingresos7[[#This Row],[3 digitos]],PGC_Gtos_e_Ingresos[],4,FALSE) -> 7.a | L58: =VLOOKUP(Tabla_Gtos_Ingresos7[[#This Row],[Grupo 1]],Tabla3[],4,FALSE) -> 7. Otros Gastos de Explotación | M58: =VLOOKUP(Tabla_Gtos_Ingresos7[[#This Row],[Grupo 1]],Tabla3[],5,FALSE) -> 7.a Servicios Exteriores | N58: =VLOOKUP(Tabla_Gtos_Ingresos7[[#This Row],[Grupo 1]],Tabla3[],10,FALSE) -> G | O58: =VLOOKUP(Tabla_Gtos_Ingresos7[[#This Row],[Grupo 1]],Tabla3[],6,FALSE) -> Explotación | P58: =VLOOKUP(Tabla_Gtos_Ingresos7[[#This Row],[Grupo 1]],Tabla3[],2,FALSE) -> 7 | Q58: =VLOOKUP(Tabla_Gtos_Ingresos7[[#This Row],[3 digitos]],PGC_Gtos_e_Ingresos[],2,FALSE) -> Transportes | R58: =Tabla_Gtos_Ingresos7[[#This Row],[3 digitos]]&"/"&Tabla_Gtos_Ingresos7[[#This Row],[Nombre cuenta]] -> 624/ Transportes | S58: =YEAR(Tabla_Gtos_Ingresos7[[#This Row],[Fecha]]) -> 2010 | T58: =MONTH(Tabla_Gtos_Ingresos7[[#This Row],[Fecha]]) -> 9 | U58: =ROUNDUP(MONTH(Tabla_Gtos_Ingresos7[[#This Row],[Fecha]])/3, 0) -> 3 | V58: =WEEKNUM(Tabla_Gtos_Ingresos7[[#This Row],[Fecha]]) -> 37 | W58: =(Tabla_Gtos_Ingresos7[[#This Row],[Factor]]*Tabla_Gtos_Ingresos7[[#This Row],[Haber]])+(Tabla_Gtos_Ingresos7[[#This Row],[Factor]]*Tabla_Gtos_Ingresos7[[#This Row],[Debe]]) -> -45 | X58: =VLOOKUP(Tabla_Gtos_Ingresos7[[#This Row],[3 digitos]],PGC_Gtos_e_Ingresos[],3,FALSE) -> -1
A59: 1999 | B59: 2010-09-09 | C59: 70000003 | D59: VENTA ARENA 5% | E59: FACT.FA8/179 CARRETERA Los Vientos UTE | F59: 0 | G59: 5920 | H59: =MID(Tabla_Gtos_Ingresos7[[#This Row],[Subcuenta]],1,4) -> 7000 | I59: =VALUE(MID(Tabla_Gtos_Ingresos7[[#This Row],[4 digitos]],1,3)) -> 700 | J59: =VALUE(MID(Tabla_Gtos_Ingresos7[[#This Row],[3 digitos]],1,2)) -> 70 | K59: =VLOOKUP(Tabla_Gtos_Ingresos7[[#This Row],[3 digitos]],PGC_Gtos_e_Ingresos[],4,FALSE) -> 1a | L59: =VLOOKUP(Tabla_Gtos_Ingresos7[[#This Row],[Grupo 1]],Tabla3[],4,FALSE) -> 1. Importe Neto Cifra de Negocios | M59: =VLOOKUP(Tabla_Gtos_Ingresos7[[#This Row],[Grupo 1]],Tabla3[],5,FALSE) -> 1.a Ventas | N59: =VLOOKUP(Tabla_Gtos_Ingresos7[[#This Row],[Grupo 1]],Tabla3[],10,FALSE) -> I | O59: =VLOOKUP(Tabla_Gtos_Ingresos7[[#This Row],[Grupo 1]],Tabla3[],6,FALSE) -> Explotación | P59: =VLOOKUP(Tabla_Gtos_Ingresos7[[#This Row],[Grupo 1]],Tabla3[],2,FALSE) -> 1 | Q59: =VLOOKUP(Tabla_Gtos_Ingresos7[[#This Row],[3 digitos]],PGC_Gtos_e_Ingresos[],2,FALSE) -> Ventas de mercaderías | R59: =Tabla_Gtos_Ingresos7[[#This Row],[3 digitos]]&"/"&Tabla_Gtos_Ingresos7[[#This Row],[Nombre cuenta]] -> 700/ Ventas de mercaderías | S59: =YEAR(Tabla_Gtos_Ingresos7[[#This Row],[Fecha]]) -> 2010 | T59: =MONTH(Tabla_Gtos_Ingresos7[[#This Row],[Fecha]]) -> 9 | U59: =ROUNDUP(MONTH(Tabla_Gtos_Ingresos7[[#This Row],[Fecha]])/3, 0) -> 3 | V59: =WEEKNUM(Tabla_Gtos_Ingresos7[[#This Row],[Fecha]]) -> 37 | W59: =(Tabla_Gtos_Ingresos7[[#This Row],[Factor]]*Tabla_Gtos_Ingresos7[[#This Row],[Haber]])+(Tabla_Gtos_Ingresos7[[#This Row],[Factor]]*Tabla_Gtos_Ingresos7[[#This Row],[Debe]]) -> 5920 | X59: =VLOOKUP(Tabla_Gtos_Ingresos7[[#This Row],[3 digitos]],PGC_Gtos_e_Ingresos[],3,FALSE) -> 1
A60: 2000 | B60: 2010-09-09 | C60: 70000004 | D60: VENTA ARENA 5% | E60: FACT.FA8/180 CARRETERA Los Vientos UTE | F60: 0 | G60: 175 | H60: =MID(Tabla_Gtos_Ingresos7[[#This Row],[Subcuenta]],1,4) -> 7000 | I60: =VALUE(MID(Tabla_Gtos_Ingresos7[[#This Row],[4 digitos]],1,3)) -> 700 | J60: =VALUE(MID(Tabla_Gtos_Ingresos7[[#This Row],[3 digitos]],1,2)) -> 70 | K60: =VLOOKUP(Tabla_Gtos_Ingresos7[[#This Row],[3 digitos]],PGC_Gtos_e_Ingresos[],4,FALSE) -> 1a | L60: =VLOOKUP(Tabla_Gtos_Ingresos7[[#This Row],[Grupo 1]],Tabla3[],4,FALSE) -> 1. Importe Neto Cifra de Negocios | M60: =VLOOKUP(Tabla_Gtos_Ingresos7[[#This Row],[Grupo 1]],Tabla3[],5,FALSE) -> 1.a Ventas | N60: =VLOOKUP(Tabla_Gtos_Ingresos7[[#This Row],[Grupo 1]],Tabla3[],10,FALSE) -> I | O60: =VLOOKUP(Tabla_Gtos_Ingresos7[[#This Row],[Grupo 1]],Tabla3[],6,FALSE) -> Explotación | P60: =VLOOKUP(Tabla_Gtos_Ingresos7[[#This Row],[Grupo 1]],Tabla3[],2,FALSE) -> 1 | Q60: =VLOOKUP(Tabla_Gtos_Ingresos7[[#This Row],[3 digitos]],PGC_Gtos_e_Ingresos[],2,FALSE) -> Ventas de mercaderías | R60: =Tabla_Gtos_Ingresos7[[#This Row],[3 digitos]]&"/"&Tabla_Gtos_Ingresos7[[#This Row],[Nombre cuenta]] -> 700/ Ventas de mercaderías | S60: =YEAR(Tabla_Gtos_Ingresos7[[#This Row],[Fecha]]) -> 2010 | T60: =MONTH(Tabla_Gtos_Ingresos7[[#This Row],[Fecha]]) -> 9 | U60: =ROUNDUP(MONTH(Tabla_Gtos_Ingresos7[[#This Row],[Fecha]])/3, 0) -> 3 | V60: =WEEKNUM(Tabla_Gtos_Ingresos7[[#This Row],[Fecha]]) -> 37 | W60: =(Tabla_Gtos_Ingresos7[[#This Row],[Factor]]*Tabla_Gtos_Ingresos7[[#This Row],[Haber]])+(Tabla_Gtos_Ingresos7[[#This Row],[Factor]]*Tabla_Gtos_Ingresos7[[#This Row],[Debe]]) -> 175 | X60: =VLOOKUP(Tabla_Gtos_Ingresos7[[#This Row],[3 digitos]],PGC_Gtos_e_Ingresos[],3,FALSE) -> 1
A61: 50 | B61: 2010-01-10 | C61: 62200001 | D61: REPARACION Y CONSERVACION | E61: FACT.700845 DESGASTES La Isla | F61: 330.22 | G61: 0 | H61: =MID(Tabla_Gtos_Ingresos7[[#This Row],[Subcuenta]],1,4) -> 6220 | I61: =VALUE(MID(Tabla_Gtos_Ingresos7[[#This Row],[4 digitos]],1,3)) -> 622 | J61: =VALUE(MID(Tabla_Gtos_Ingresos7[[#This Row],[3 digitos]],1,2)) -> 62 | K61: =VLOOKUP(Tabla_Gtos_Ingresos7[[#This Row],[3 digitos]],PGC_Gtos_e_Ingresos[],4,FALSE) -> 7.a | L61: =VLOOKUP(Tabla_Gtos_Ingresos7[[#This Row],[Grupo 1]],Tabla3[],4,FALSE) -> 7. Otros Gastos de Explotación | M61: =VLOOKUP(Tabla_Gtos_Ingresos7[[#This Row],[Grupo 1]],Tabla3[],5,FALSE) -> 7.a Servicios Exteriores | N61: =VLOOKUP(Tabla_Gtos_Ingresos7[[#This Row],[Grupo 1]],Tabla3[],10,FALSE) -> G | O61: =VLOOKUP(Tabla_Gtos_Ingresos7[[#This Row],[Grupo 1]],Tabla3[],6,FALSE) -> Explotación | P61: =VLOOKUP(Tabla_Gtos_Ingresos7[[#This Row],[Grupo 1]],Tabla3[],2,FALSE) -> 7 | Q61: =VLOOKUP(Tabla_Gtos_Ingresos7[[#This Row],[3 digitos]],PGC_Gtos_e_Ingresos[],2,FALSE) -> Reparaciones y conservación | R61: =Tabla_Gtos_Ingresos7[[#This Row],[3 digitos]]&"/"&Tabla_Gtos_Ingresos7[[#This Row],[Nombre cuenta]] -> 622/ Reparaciones y conservación | S61: =YEAR(Tabla_Gtos_Ingresos7[[#This Row],[Fecha]]) -> 2010 | T61: =MONTH(Tabla_Gtos_Ingresos7[[#This Row],[Fecha]]) -> 1 | U61: =ROUNDUP(MONTH(Tabla_Gtos_Ingresos7[[#This Row],[Fecha]])/3, 0) -> 1 | V61: =WEEKNUM(Tabla_Gtos_Ingresos7[[#This Row],[Fecha]]) -> 3 | W61: =(Tabla_Gtos_Ingresos7[[#This Row],[Factor]]*Tabla_Gtos_Ingresos7[[#This Row],[Haber]])+(Tabla_Gtos_Ingresos7[[#This Row],[Factor]]*Tabla_Gtos_Ingresos7[[#This Row],[Debe]]) -> -330.22 | X61: =VLOOKUP(Tabla_Gtos_Ingresos7[[#This Row],[3 digitos]],PGC_Gtos_e_Ingresos[],3,FALSE) -> -1
A62: 421 | B62: 2010-03-10 | C62: 64000009 | D62: Eustaquio Luis MartinRODRIGUEZ | E62: SUELDO Eustaquio Luis MartinMARZO | F62: 646.58 | G62: 0 | H62: =MID(Tabla_Gtos_Ingresos7[[#This Row],[Subcuenta]],1,4) -> 6400 | I62: =VALUE(MID(Tabla_Gtos_Ingresos7[[#This Row],[4 digitos]],1,3)) -> 640 | J62: =VALUE(MID(Tabla_Gtos_Ingresos7[[#This Row],[3 digitos]],1,2)) -> 64 | K62: =VLOOKUP(Tabla_Gtos_Ingresos7[[#This Row],[3 digitos]],PGC_Gtos_e_Ingresos[],4,FALSE) -> 6.a | L62: =VLOOKUP(Tabla_Gtos_Ingresos7[[#This Row],[Grupo 1]],Tabla3[],4,FALSE) -> 6. Gtos de Personal | M62: =VLOOKUP(Tabla_Gtos_Ingresos7[[#This Row],[Grupo 1]],Tabla3[],5,FALSE) -> 6.a Sueldos y Salarios | N62: =VLOOKUP(Tabla_Gtos_Ingresos7[[#This Row],[Grupo 1]],Tabla3[],10,FALSE) -> G | O62: =VLOOKUP(Tabla_Gtos_Ingresos7[[#This Row],[Grupo 1]],Tabla3[],6,FALSE) -> Explotación | P62: =VLOOKUP(Tabla_Gtos_Ingresos7[[#This Row],[Grupo 1]],Tabla3[],2,FALSE) -> 6 | Q62: =VLOOKUP(Tabla_Gtos_Ingresos7[[#This Row],[3 digitos]],PGC_Gtos_e_Ingresos[],2,FALSE) -> Sueldos y salarios | R62: =Tabla_Gtos_Ingresos7[[#This Row],[3 digitos]]&"/"&Tabla_Gtos_Ingresos7[[#This Row],[Nombre cuenta]] -> 640/ Sueldos y salarios | S62: =YEAR(Tabla_Gtos_Ingresos7[[#This Row],[Fecha]]) -> 2010 | T62: =MONTH(Tabla_Gtos_Ingresos7[[#This Row],[Fecha]]) -> 3 | U62: =ROUNDUP(MONTH(Tabla_Gtos_Ingresos7[[#This Row],[Fecha]])/3, 0) -> 1 | V62: =WEEKNUM(Tabla_Gtos_Ingresos7[[#This Row],[Fecha]]) -> 11 | W62: =(Tabla_Gtos_Ingresos7[[#This Row],[Factor]]*Tabla_Gtos_Ingresos7[[#This Row],[Haber]])+(Tabla_Gtos_Ingresos7[[#This Row],[Factor]]*Tabla_Gtos_Ingresos7[[#This Row],[Debe]]) -> -646.58 | X62: =VLOOKUP(Tabla_Gtos_Ingresos7[[#This Row],[3 digitos]],PGC_Gtos_e_Ingresos[],3,FALSE) -> -1
A63: 422 | B63: 2010-03-10 | C63: 64000010 | D63: Eustaquio Luis MartinRODRIGUEZ | E63: FINIQUITO Eustaquio Luis MartinMARZO | F63: 195.62 | G63: 0 | H63: =MID(Tabla_Gtos_Ingresos7[[#This Row],[Subcuenta]],1,4) -> 6400 | I63: =VALUE(MID(Tabla_Gtos_Ingresos7[[#This Row],[4 digitos]],1,3)) -> 640 | J63: =VALUE(MID(Tabla_Gtos_Ingresos7[[#This Row],[3 digitos]],1,2)) -> 64 | K63: =VLOOKUP(Tabla_Gtos_Ingresos7[[#This Row],[3 digitos]],PGC_Gtos_e_Ingresos[],4,FALSE) -> 6.a | L63: =VLOOKUP(Tabla_Gtos_Ingresos7[[#This Row],[Grupo 1]],Tabla3[],4,FALSE) -> 6. Gtos de Personal | M63: =VLOOKUP(Tabla_Gtos_Ingresos7[[#This Row],[Grupo 1]],Tabla3[],5,FALSE) -> 6.a Sueldos y Salarios | N63: =VLOOKUP(Tabla_Gtos_Ingresos7[[#This Row],[Grupo 1]],Tabla3[],10,FALSE) -> G | O63: =VLOOKUP(Tabla_Gtos_Ingresos7[[#This Row],[Grupo 1]],Tabla3[],6,FALSE) -> Explotación | P63: =VLOOKUP(Tabla_Gtos_Ingresos7[[#This Row],[Grupo 1]],Tabla3[],2,FALSE) -> 6 | Q63: =VLOOKUP(Tabla_Gtos_Ingresos7[[#This Row],[3 digitos]],PGC_Gtos_e_Ingresos[],2,FALSE) -> Sueldos y salarios | R63: =Tabla_Gtos_Ingresos7[[#This Row],[3 digitos]]&"/"&Tabla_Gtos_Ingresos7[[#This Row],[Nombre cuenta]] -> 640/ Sueldos y salarios | S63: =YEAR(Tabla_Gtos_Ingresos7[[#This Row],[Fecha]]) -> 2010 | T63: =MONTH(Tabla_Gtos_Ingresos7[[#This Row],[Fecha]]) -> 3 | U63: =ROUNDUP(MONTH(Tabla_Gtos_Ingresos7[[#This Row],[Fecha]])/3, 0) -> 1 | V63: =WEEKNUM(Tabla_Gtos_Ingresos7[[#This Row],[Fecha]]) -> 11 | W63: =(Tabla_Gtos_Ingresos7[[#This Row],[Factor]]*Tabla_Gtos_Ingresos7[[#This Row],[Haber]])+(Tabla_Gtos_Ingresos7[[#This Row],[Factor]]*Tabla_Gtos_Ingresos7[[#This Row],[Debe]]) -> -195.62 | X63: =VLOOKUP(Tabla_Gtos_Ingresos7[[#This Row],[3 digitos]],PGC_Gtos_e_Ingresos[],3,FALSE) -> -1
A64: 419 | B64: 2010-03-10 | C64: 70000043 | D64: VENTA ARENA 2% | E64: FACT.FA8/50 J.Juan HDEZ. PEREZ | F64: 0 | G64: 70.18 | H64: =MID(Tabla_Gtos_Ingresos7[[#This Row],[Subcuenta]],1,4) -> 7000 | I64: =VALUE(MID(Tabla_Gtos_Ingresos7[[#This Row],[4 digitos]],1,3)) -> 700 | J64: =VALUE(MID(Tabla_Gtos_Ingresos7[[#This Row],[3 digitos]],1,2)) -> 70 | K64: =VLOOKUP(Tabla_Gtos_Ingresos7[[#This Row],[3 digitos]],PGC_Gtos_e_Ingresos[],4,FALSE) -> 1a | L64: =VLOOKUP(Tabla_Gtos_Ingresos7[[#This Row],[Grupo 1]],Tabla3[],4,FALSE) -> 1. Importe Neto Cifra de Negocios | M64: =VLOOKUP(Tabla_Gtos_Ingresos7[[#This Row],[Grupo 1]],Tabla3[],5,FALSE) -> 1.a Ventas | N64: =VLOOKUP(Tabla_Gtos_Ingresos7[[#This Row],[Grupo 1]],Tabla3[],10,FALSE) -> I | O64: =VLOOKUP(Tabla_Gtos_Ingresos7[[#This Row],[Grupo 1]],Tabla3[],6,FALSE) -> Explotación | P64: =VLOOKUP(Tabla_Gtos_Ingresos7[[#This Row],[Grupo 1]],Tabla3[],2,FALSE) -> 1 | Q64: =VLOOKUP(Tabla_Gtos_Ingresos7[[#This Row],[3 digitos]],PGC_Gtos_e_Ingresos[],2,FALSE) -> Ventas de mercaderías | R64: =Tabla_Gtos_Ingresos7[[#This Row],[3 digitos]]&"/"&Tabla_Gtos_Ingresos7[[#This Row],[Nombre cuenta]] -> 700/ Ventas de mercaderías | S64: =YEAR(Tabla_Gtos_Ingresos7[[#This Row],[Fecha]]) -> 2010 | T64: =MONTH(Tabla_Gtos_Ingresos7[[#This Row],[Fecha]]) -> 3 | U64: =ROUNDUP(MONTH(Tabla_Gtos_Ingresos7[[#This Row],[Fecha]])/3, 0) -> 1 | V64: =WEEKNUM(Tabla_Gtos_Ingresos7[[#This Row],[Fecha]]) -> 11 | W64: =(Tabla_Gtos_Ingresos7[[#This Row],[Factor]]*Tabla_Gtos_Ingresos7[[#This Row],[Haber]])+(Tabla_Gtos_Ingresos7[[#This Row],[Factor]]*Tabla_Gtos_Ingresos7[[#This Row],[Debe]]) -> 70.18 | X64: =VLOOKUP(Tabla_Gtos_Ingresos7[[#This Row],[3 digitos]],PGC_Gtos_e_Ingresos[],3,FALSE) -> 1
A65: 1149 | B65: 2010-06-10 | C65: 62200035 | D65: REPARACION Y CONSERVACION | E65: FACT.872931 Maquinaria ESPAÑA | F65: 39 | G65: 0 | H65: =MID(Tabla_Gtos_Ingresos7[[#This Row],[Subcuenta]],1,4) -> 6220 | I65: =VALUE(MID(Tabla_Gtos_Ingresos7[[#This Row],[4 digitos]],1,3)) -> 622 | J65: =VALUE(MID(Tabla_Gtos_Ingresos7[[#This Row],[3 digitos]],1,2)) -> 62 | K65: =VLOOKUP(Tabla_Gtos_Ingresos7[[#This Row],[3 digitos]],PGC_Gtos_e_Ingresos[],4,FALSE) -> 7.a | L65: =VLOOKUP(Tabla_Gtos_Ingresos7[[#This Row],[Grupo 1]],Tabla3[],4,FALSE) -> 7. Otros Gastos de Explotación | M65: =VLOOKUP(Tabla_Gtos_Ingresos7[[#This Row],[Grupo 1]],Tabla3[],5,FALSE) -> 7.a Servicios Exteriores | N65: =VLOOKUP(Tabla_Gtos_Ingresos7[[#This Row],[Grupo 1]],Tabla3[],10,FALSE) -> G | O65: =VLOOKUP(Tabla_Gtos_Ingresos7[[#This Row],[Grupo 1]],Tabla3[],6,FALSE) -> Explotación | P65: =VLOOKUP(Tabla_Gtos_Ingresos7[[#This Row],[Grupo 1]],Tabla3[],2,FALSE) -> 7 | Q65: =VLOOKUP(Tabla_Gtos_Ingresos7[[#This Row],[3 digitos]],PGC_Gtos_e_Ingresos[],2,FALSE) -> Reparaciones y conservación | R65: =Tabla_Gtos_Ingresos7[[#This Row],[3 digitos]]&"/"&Tabla_Gtos_Ingresos7[[#This Row],[Nombre cuenta]] -> 622/ Reparaciones y conservación | S65: =YEAR(Tabla_Gtos_Ingresos7[[#This Row],[Fecha]]) -> 2010 | T65: =MONTH(Tabla_Gtos_Ingresos7[[#This Row],[Fecha]]) -> 6 | U65: =ROUNDUP(MONTH(Tabla_Gtos_Ingresos7[[#This Row],[Fecha]])/3, 0) -> 2 | V65: =WEEKNUM(Tabla_Gtos_Ingresos7[[#This Row],[Fecha]]) -> 24 | W65: =(Tabla_Gtos_Ingresos7[[#This Row],[Factor]]*Tabla_Gtos_Ingresos7[[#This Row],[Haber]])+(Tabla_Gtos_Ingresos7[[#This Row],[Factor]]*Tabla_Gtos_Ingresos7[[#This Row],[Debe]]) -> -39 | X65: =VLOOKUP(Tabla_Gtos_Ingresos7[[#This Row],[3 digitos]],PGC_Gtos_e_Ingresos[],3,FALSE) -> -1
A66: 1474 | B66: 2010-07-10 | C66: 62200046 | D66: REPARACION Y CONSERVACION | E66: FACT.2543 TALLER Tito | F66: 390 | G66: 0 | H66: =MID(Tabla_Gtos_Ingresos7[[#This Row],[Subcuenta]],1,4) -> 6220 | I66: =VALUE(MID(Tabla_Gtos_Ingresos7[[#This Row],[4 digitos]],1,3)) -> 622 | J66: =VALUE(MID(Tabla_Gtos_Ingresos7[[#This Row],[3 digitos]],1,2)) -> 62 | K66: =VLOOKUP(Tabla_Gtos_Ingresos7[[#This Row],[3 digitos]],PGC_Gtos_e_Ingresos[],4,FALSE) -> 7.a | L66: =VLOOKUP(Tabla_Gtos_Ingresos7[[#This Row],[Grupo 1]],Tabla3[],4,FALSE) -> 7. Otros Gastos de Explotación | M66: =VLOOKUP(Tabla_Gtos_Ingresos7[[#This Row],[Grupo 1]],Tabla3[],5,FALSE) -> 7.a Servicios Exteriores | N66: =VLOOKUP(Tabla_Gtos_Ingresos7[[#This Row],[Grupo 1]],Tabla3[],10,FALSE) -> G | O66: =VLOOKUP(Tabla_Gtos_Ingresos7[[#This Row],[Grupo 1]],Tabla3[],6,FALSE) -> Explotación | P66: =VLOOKUP(Tabla_Gtos_Ingresos7[[#This Row],[Grupo 1]],Tabla3[],2,FALSE) -> 7 | Q66: =VLOOKUP(Tabla_Gtos_Ingresos7[[#This Row],[3 digitos]],PGC_Gtos_e_Ingresos[],2,FALSE) -> Reparaciones y conservación | R66: =Tabla_Gtos_Ingresos7[[#This Row],[3 digitos]]&"/"&Tabla_Gtos_Ingresos7[[#This Row],[Nombre cuenta]] -> 622/ Reparaciones y conservación | S66: =YEAR(Tabla_Gtos_Ingresos7[[#This Row],[Fecha]]) -> 2010 | T66: =MONTH(Tabla_Gtos_Ingresos7[[#This Row],[Fecha]]) -> 7 | U66: =ROUNDUP(MONTH(Tabla_Gtos_Ingresos7[[#This Row],[Fecha]])/3, 0) -> 3 | V66: =WEEKNUM(Tabla_Gtos_Ingresos7[[#This Row],[Fecha]]) -> 28 | W66: =(Tabla_Gtos_Ingresos7[[#This Row],[Factor]]*Tabla_Gtos_Ingresos7[[#This Row],[Haber]])+(Tabla_Gtos_Ingresos7[[#This Row],[Factor]]*Tabla_Gtos_Ingresos7[[#This Row],[Debe]]) -> -390 | X66: =VLOOKUP(Tabla_Gtos_Ingresos7[[#This Row],[3 digitos]],PGC_Gtos_e_Ingresos[],3,FALSE) -> -1
A67: 2007 | B67: 2010-09-10 | C67: 62400012 | D67: GASTOS TRANSPORTES | E67: FACT.8290 Seur Canarias | F67: 201.86 | G67: 0 | H67: =MID(Tabla_Gtos_Ingresos7[[#This Row],[Subcuenta]],1,4) -> 6240 | I67: =VALUE(MID(Tabla_Gtos_Ingresos7[[#This Row],[4 digitos]],1,3)) -> 624 | J67: =VALUE(MID(Tabla_Gtos_Ingresos7[[#This Row],[3 digitos]],1,2)) -> 62 | K67: =VLOOKUP(Tabla_Gtos_Ingresos7[[#This Row],[3 digitos]],PGC_Gtos_e_Ingresos[],4,FALSE) -> 7.a | L67: =VLOOKUP(Tabla_Gtos_Ingresos7[[#This Row],[Grupo 1]],Tabla3[],4,FALSE) -> 7. Otros Gastos de Explotación | M67: =VLOOKUP(Tabla_Gtos_Ingresos7[[#This Row],[Grupo 1]],Tabla3[],5,FALSE) -> 7.a Servicios Exteriores | N67: =VLOOKUP(Tabla_Gtos_Ingresos7[[#This Row],[Grupo 1]],Tabla3[],10,FALSE) -> G | O67: =VLOOKUP(Tabla_Gtos_Ingresos7[[#This Row],[Grupo 1]],Tabla3[],6,FALSE) -> Explotación | P67: =VLOOKUP(Tabla_Gtos_Ingresos7[[#This Row],[Grupo 1]],Tabla3[],2,FALSE) -> 7 | Q67: =VLOOKUP(Tabla_Gtos_Ingresos7[[#This Row],[3 digitos]],PGC_Gtos_e_Ingresos[],2,FALSE) -> Transportes | R67: =Tabla_Gtos_Ingresos7[[#This Row],[3 digitos]]&"/"&Tabla_Gtos_Ingresos7[[#This Row],[Nombre cuenta]] -> 624/ Transportes | S67: =YEAR(Tabla_Gtos_Ingresos7[[#This Row],[Fecha]]) -> 2010 | T67: =MONTH(Tabla_Gtos_Ingresos7[[#This Row],[Fecha]]) -> 9 | U67: =ROUNDUP(MONTH(Tabla_Gtos_Ingresos7[[#This Row],[Fecha]])/3, 0) -> 3 | V67: =WEEKNUM(Tabla_Gtos_Ingresos7[[#This Row],[Fecha]]) -> 37 | W67: =(Tabla_Gtos_Ingresos7[[#This Row],[Factor]]*Tabla_Gtos_Ingresos7[[#This Row],[Haber]])+(Tabla_Gtos_Ingresos7[[#This Row],[Factor]]*Tabla_Gtos_Ingresos7[[#This Row],[Debe]]) -> -201.86 | X67: =VLOOKUP(Tabla_Gtos_Ingresos7[[#This Row],[3 digitos]],PGC_Gtos_e_Ingresos[],3,FALSE) -> -1
A68: 2009 | B68: 2010-09-10 | C68: 62600000 | D68: SERVICIOS BANCARIOS Y SIMILARES | E68: COBRO FACT.FA8/154-FA8/113 CARRET. Los Vientos UTE | F68: 649.84 | G68: 0 | H68: =MID(Tabla_Gtos_Ingresos7[[#This Row],[Subcuenta]],1,4) -> 6260 | I68: =VALUE(MID(Tabla_Gtos_Ingresos7[[#This Row],[4 digitos]],1,3)) -> 626 | J68: =VALUE(MID(Tabla_Gtos_Ingresos7[[#This Row],[3 digitos]],1,2)) -> 62 | K68: =VLOOKUP(Tabla_Gtos_Ingresos7[[#This Row],[3 digitos]],PGC_Gtos_e_Ingresos[],4,FALSE) -> 7.a | L68: =VLOOKUP(Tabla_Gtos_Ingresos7[[#This Row],[Grupo 1]],Tabla3[],4,FALSE) -> 7. Otros Gastos de Explotación | M68: =VLOOKUP(Tabla_Gtos_Ingresos7[[#This Row],[Grupo 1]],Tabla3[],5,FALSE) -> 7.a Servicios Exteriores | N68: =VLOOKUP(Tabla_Gtos_Ingresos7[[#This Row],[Grupo 1]],Tabla3[],10,FALSE) -> G | O68: =VLOOKUP(Tabla_Gtos_Ingresos7[[#This Row],[Grupo 1]],Tabla3[],6,FALSE) -> Explotación | P68: =VLOOKUP(Tabla_Gtos_Ingresos7[[#This Row],[Grupo 1]],Tabla3[],2,FALSE) -> 7 | Q68: =VLOOKUP(Tabla_Gtos_Ingresos7[[#This Row],[3 digitos]],PGC_Gtos_e_Ingresos[],2,FALSE) -> Servicios bancarios y similares | R68: =Tabla_Gtos_Ingresos7[[#This Row],[3 digitos]]&"/"&Tabla_Gtos_Ingresos7[[#This Row],[Nombre cuenta]] -> 626/ Servicios bancarios y similares | S68: =YEAR(Tabla_Gtos_Ingresos7[[#This Row],[Fecha]]) -> 2010 | T68: =MONTH(Tabla_Gtos_Ingresos7[[#This Row],[Fecha]]) -> 9 | U68: =ROUNDUP(MONTH(Tabla_Gtos_Ingresos7[[#This Row],[Fecha]])/3, 0) -> 3 | V68: =WEEKNUM(Tabla_Gtos_Ingresos7[[#This Row],[Fecha]]) -> 37 | W68: =(Tabla_Gtos_Ingresos7[[#This Row],[Factor]]*Tabla_Gtos_Ingresos7[[#This Row],[Haber]])+(Tabla_Gtos_Ingresos7[[#This Row],[Factor]]*Tabla_Gtos_Ingresos7[[#This Row],[Debe]]) -> -649.84 | X68: =VLOOKUP(Tabla_Gtos_Ingresos7[[#This Row],[3 digitos]],PGC_Gtos_e_Ingresos[],3,FALSE) -> -1
A69: 2006 | B69: 2010-09-10 | C69: 70000163 | D69: VENTA ARENA 2% | E69: FACT.FA8/181 PREFABRICADOS canaria | F69: 0 | G69: 1560.06 | H69: =MID(Tabla_Gtos_Ingresos7[[#This Row],[Subcuenta]],1,4) -> 7000 | I69: =VALUE(MID(Tabla_Gtos_Ingresos7[[#This Row],[4 digitos]],1,3)) -> 700 | J69: =VALUE(MID(Tabla_Gtos_Ingresos7[[#This Row],[3 digitos]],1,2)) -> 70 | K69: =VLOOKUP(Tabla_Gtos_Ingresos7[[#This Row],[3 digitos]],PGC_Gtos_e_Ingresos[],4,FALSE) -> 1a | L69: =VLOOKUP(Tabla_Gtos_Ingresos7[[#This Row],[Grupo 1]],Tabla3[],4,FALSE) -> 1. Importe Neto Cifra de Negocios | M69: =VLOOKUP(Tabla_Gtos_Ingresos7[[#This Row],[Grupo 1]],Tabla3[],5,FALSE) -> 1.a Ventas | N69: =VLOOKUP(Tabla_Gtos_Ingresos7[[#This Row],[Grupo 1]],Tabla3[],10,FALSE) -> I | O69: =VLOOKUP(Tabla_Gtos_Ingresos7[[#This Row],[Grupo 1]],Tabla3[],6,FALSE) -> Explotación | P69: =VLOOKUP(Tabla_Gtos_Ingresos7[[#This Row],[Grupo 1]],Tabla3[],2,FALSE) -> 1 | Q69: =VLOOKUP(Tabla_Gtos_Ingresos7[[#This Row],[3 digitos]],PGC_Gtos_e_Ingresos[],2,FALSE) -> Ventas de mercaderías | R69: =Tabla_Gtos_Ingresos7[[#This Row],[3 digitos]]&"/"&Tabla_Gtos_Ingresos7[[#This Row],[Nombre cuenta]] -> 700/ Ventas de mercaderías | S69: =YEAR(Tabla_Gtos_Ingresos7[[#This Row],[Fecha]]) -> 2010 | T69: =MONTH(Tabla_Gtos_Ingresos7[[#This Row],[Fecha]]) -> 9 | U69: =ROUNDUP(MONTH(Tabla_Gtos_Ingresos7[[#This Row],[Fecha]])/3, 0) -> 3 | V69: =WEEKNUM(Tabla_Gtos_Ingresos7[[#This Row],[Fecha]]) -> 37 | W69: =(Tabla_Gtos_Ingresos7[[#This Row],[Factor]]*Tabla_Gtos_Ingresos7[[#This Row],[Haber]])+(Tabla_Gtos_Ingresos7[[#This Row],[Factor]]*Tabla_Gtos_Ingresos7[[#This Row],[Debe]]) -> 1560.06 | X69: =VLOOKUP(Tabla_Gtos_Ingresos7[[#This Row],[3 digitos]],PGC_Gtos_e_Ingresos[],3,FALSE) -> 1
A70: 2298 | B70: 2010-10-10 | C70: 70000180 | D70: VENTA ARENA 2% | E70: FACT.FA8/202 UTE canaria (GASOI) | F70: 0 | G70: 1040 | H70: =MID(Tabla_Gtos_Ingresos7[[#This Row],[Subcuenta]],1,4) -> 7000 | I70: =VALUE(MID(Tabla_Gtos_Ingresos7[[#This Row],[4 digitos]],1,3)) -> 700 | J70: =VALUE(MID(Tabla_Gtos_Ingresos7[[#This Row],[3 digitos]],1,2)) -> 70 | K70: =VLOOKUP(Tabla_Gtos_Ingresos7[[#This Row],[3 digitos]],PGC_Gtos_e_Ingresos[],4,FALSE) -> 1a | L70: =VLOOKUP(Tabla_Gtos_Ingresos7[[#This Row],[Grupo 1]],Tabla3[],4,FALSE) -> 1. Importe Neto Cifra de Negocios | M70: =VLOOKUP(Tabla_Gtos_Ingresos7[[#This Row],[Grupo 1]],Tabla3[],5,FALSE) -> 1.a Ventas | N70: =VLOOKUP(Tabla_Gtos_Ingresos7[[#This Row],[Grupo 1]],Tabla3[],10,FALSE) -> I | O70: =VLOOKUP(Tabla_Gtos_Ingresos7[[#This Row],[Grupo 1]],Tabla3[],6,FALSE) -> Explotación | P70: =VLOOKUP(Tabla_Gtos_Ingresos7[[#This Row],[Grupo 1]],Tabla3[],2,FALSE) -> 1 | Q70: =VLOOKUP(Tabla_Gtos_Ingresos7[[#This Row],[3 digitos]],PGC_Gtos_e_Ingresos[],2,FALSE) -> Ventas de mercaderías | R70: =Tabla_Gtos_Ingresos7[[#This Row],[3 digitos]]&"/"&Tabla_Gtos_Ingresos7[[#This Row],[Nombre cuenta]] -> 700/ Ventas de mercaderías | S70: =YEAR(Tabla_Gtos_Ingresos7[[#This Row],[Fecha]]) -> 2010 | T70: =MONTH(Tabla_Gtos_Ingresos7[[#This Row],[Fecha]]) -> 10 | U70: =ROUNDUP(MONTH(Tabla_Gtos_Ingresos7[[#This Row],[Fecha]])/3, 0) -> 4 | V70: =WEEKNUM(Tabla_Gtos_Ingresos7[[#This Row],[Fecha]]) -> 42 | W70: =(Tabla_Gtos_Ingresos7[[#This Row],[Factor]]*Tabla_Gtos_Ingresos7[[#This Row],[Haber]])+(Tabla_Gtos_Ingresos7[[#This Row],[Factor]]*Tabla_Gtos_Ingresos7[[#This Row],[Debe]]) -> 1040 | X70: =VLOOKUP(Tabla_Gtos_Ingresos7[[#This Row],[3 digitos]],PGC_Gtos_e_Ingresos[],3,FALSE) -> 1
A71: 2299 | B71: 2010-10-10 | C71: 70000181 | D71: VENTA ARENA 2% | E71: FACT.FA8/201 UTE canaria | F71: 0 | G71: 27989.5 | H71: =MID(Tabla_Gtos_Ingresos7[[#This Row],[Subcuenta]],1,4) -> 7000 | I71: =VALUE(MID(Tabla_Gtos_Ingresos7[[#This Row],[4 digitos]],1,3)) -> 700 | J71: =VALUE(MID(Tabla_Gtos_Ingresos7[[#This Row],[3 digitos]],1,2)) -> 70 | K71: =VLOOKUP(Tabla_Gtos_Ingresos7[[#This Row],[3 digitos]],PGC_Gtos_e_Ingresos[],4,FALSE) -> 1a | L71: =VLOOKUP(Tabla_Gtos_Ingresos7[[#This Row],[Grupo 1]],Tabla3[],4,FALSE) -> 1. Importe Neto Cifra de Negocios | M71: =VLOOKUP(Tabla_Gtos_Ingresos7[[#This Row],[Grupo 1]],Tabla3[],5,FALSE) -> 1.a Ventas | N71: =VLOOKUP(Tabla_Gtos_Ingresos7[[#This Row],[Grupo 1]],Tabla3[],10,FALSE) -> I | O71: =VLOOKUP(Tabla_Gtos_Ingresos7[[#This Row],[Grupo 1]],Tabla3[],6,FALSE) -> Explotación | P71: =VLOOKUP(Tabla_Gtos_Ingresos7[[#This Row],[Grupo 1]],Tabla3[],2,FALSE) -> 1 | Q71: =VLOOKUP(Tabla_Gtos_Ingresos7[[#This Row],[3 digitos]],PGC_Gtos_e_Ingresos[],2,FALSE) -> Ventas de mercaderías | R71: =Tabla_Gtos_Ingresos7[[#This Row],[3 digitos]]&"/"&Tabla_Gtos_Ingresos7[[#This Row],[Nombre cuenta]] -> 700/ Ventas de mercaderías | S71: =YEAR(Tabla_Gtos_Ingresos7[[#This Row],[Fecha]]) -> 2010 | T71: =MONTH(Tabla_Gtos_Ingresos7[[#This Row],[Fecha]]) -> 10 | U71: =ROUNDUP(MONTH(Tabla_Gtos_Ingresos7[[#This Row],[Fecha]])/3, 0) -> 4 | V71: =WEEKNUM(Tabla_Gtos_Ingresos7[[#This Row],[Fecha]]) -> 42 | W71: =(Tabla_Gtos_Ingresos7[[#This Row],[Factor]]*Tabla_Gtos_Ingresos7[[#This Row],[Haber]])+(Tabla_Gtos_Ingresos7[[#This Row],[Factor]]*Tabla_Gtos_Ingresos7[[#This Row],[Debe]]) -> 27989.5 | X71: =VLOOKUP(Tabla_Gtos_Ingresos7[[#This Row],[3 digitos]],PGC_Gtos_e_Ingresos[],3,FALSE) -> 1
A72: 57 | B72: 2010-01-11 | C72: 62200002 | D72: REPARACION Y CONSERVACION | E72: FACT.110108 MECANIZADOS Icod | F72: 156.42 | G72: 0 | H72: =MID(Tabla_Gtos_Ingresos7[[#This Row],[Subcuenta]],1,4) -> 6220 | I72: =VALUE(MID(Tabla_Gtos_Ingresos7[[#This Row],[4 digitos]],1,3)) -> 622 | J72: =VALUE(MID(Tabla_Gtos_Ingresos7[[#This Row],[3 digitos]],1,2)) -> 62 | K72: =VLOOKUP(Tabla_Gtos_Ingresos7[[#This Row],[3 digitos]],PGC_Gtos_e_Ingresos[],4,FALSE) -> 7.a | L72: =VLOOKUP(Tabla_Gtos_Ingresos7[[#This Row],[Grupo 1]],Tabla3[],4,FALSE) -> 7. Otros Gastos de Explotación | M72: =VLOOKUP(Tabla_Gtos_Ingresos7[[#This Row],[Grupo 1]],Tabla3[],5,FALSE) -> 7.a Servicios Exteriores | N72: =VLOOKUP(Tabla_Gtos_Ingresos7[[#This Row],[Grupo 1]],Tabla3[],10,FALSE) -> G | O72: =VLOOKUP(Tabla_Gtos_Ingresos7[[#This Row],[Grupo 1]],Tabla3[],6,FALSE) -> Explotación | P72: =VLOOKUP(Tabla_Gtos_Ingresos7[[#This Row],[Grupo 1]],Tabla3[],2,FALSE) -> 7 | Q72: =VLOOKUP(Tabla_Gtos_Ingresos7[[#This Row],[3 digitos]],PGC_Gtos_e_Ingresos[],2,FALSE) -> Reparaciones y conservación | R72: =Tabla_Gtos_Ingresos7[[#This Row],[3 digitos]]&"/"&Tabla_Gtos_Ingresos7[[#This Row],[Nombre cuenta]] -> 622/ Reparaciones y conservación | S72: =YEAR(Tabla_Gtos_Ingresos7[[#This Row],[Fecha]]) -> 2010 | T72: =MONTH(Tabla_Gtos_Ingresos7[[#This Row],[Fecha]]) -> 1 | U72: =ROUNDUP(MONTH(Tabla_Gtos_Ingresos7[[#This Row],[Fecha]])/3, 0) -> 1 | V72: =WEEKNUM(Tabla_Gtos_Ingresos7[[#This Row],[Fecha]]) -> 3 | W72: =(Tabla_Gtos_Ingresos7[[#This Row],[Factor]]*Tabla_Gtos_Ingresos7[[#This Row],[Haber]])+(Tabla_Gtos_Ingresos7[[#This Row],[Factor]]*Tabla_Gtos_Ingresos7[[#This Row],[Debe]]) -> -156.42 | X72: =VLOOKUP(Tabla_Gtos_Ingresos7[[#This Row],[3 digitos]],PGC_Gtos_e_Ingresos[],3,FALSE) -> -1
A73: 55 | B73: 2010-01-11 | C73: 70000000 | D73: VENTA ARENA 2% | E73: FACT.FA8/1 IMELDO Soto Soto | F73: 0 | G73: 40.1 | H73: =MID(Tabla_Gtos_Ingresos7[[#This Row],[Subcuenta]],1,4) -> 7000 | I73: =VALUE(MID(Tabla_Gtos_Ingresos7[[#This Row],[4 digitos]],1,3)) -> 700 | J73: =VALUE(MID(Tabla_Gtos_Ingresos7[[#This Row],[3 digitos]],1,2)) -> 70 | K73: =VLOOKUP(Tabla_Gtos_Ingresos7[[#This Row],[3 digitos]],PGC_Gtos_e_Ingresos[],4,FALSE) -> 1a | L73: =VLOOKUP(Tabla_Gtos_Ingresos7[[#This Row],[Grupo 1]],Tabla3[],4,FALSE) -> 1. Importe Neto Cifra de Negocios | M73: =VLOOKUP(Tabla_Gtos_Ingresos7[[#This Row],[Grupo 1]],Tabla3[],5,FALSE) -> 1.a Ventas | N73: =VLOOKUP(Tabla_Gtos_Ingresos7[[#This Row],[Grupo 1]],Tabla3[],10,FALSE) -> I | O73: =VLOOKUP(Tabla_Gtos_Ingresos7[[#This Row],[Grupo 1]],Tabla3[],6,FALSE) -> Explotación | P73: =VLOOKUP(Tabla_Gtos_Ingresos7[[#This Row],[Grupo 1]],Tabla3[],2,FALSE) -> 1 | Q73: =VLOOKUP(Tabla_Gtos_Ingresos7[[#This Row],[3 digitos]],PGC_Gtos_e_Ingresos[],2,FALSE) -> Ventas de mercaderías | R73: =Tabla_Gtos_Ingresos7[[#This Row],[3 digitos]]&"/"&Tabla_Gtos_Ingresos7[[#This Row],[Nombre cuenta]] -> 700/ Ventas de mercaderías | S73: =YEAR(Tabla_Gtos_Ingresos7[[#This Row],[Fecha]]) -> 2010 | T73: =MONTH(Tabla_Gtos_Ingresos7[[#This Row],[Fecha]]) -> 1 | U73: =ROUNDUP(MONTH(Tabla_Gtos_Ingresos7[[#This Row],[Fecha]])/3, 0) -> 1 | V73: =WEEKNUM(Tabla_Gtos_Ingresos7[[#This Row],[Fecha]]) -> 3 | W73: =(Tabla_Gtos_Ingresos7[[#This Row],[Factor]]*Tabla_Gtos_Ingresos7[[#This Row],[Haber]])+(Tabla_Gtos_Ingresos7[[#This Row],[Factor]]*Tabla_Gtos_Ingresos7[[#This Row],[Debe]]) -> 40.1 | X73: =VLOOKUP(Tabla_Gtos_Ingresos7[[#This Row],[3 digitos]],PGC_Gtos_e_Ingresos[],3,FALSE) -> 1
A74: 651 | B74: 2010-04-11 | C74: 77800000 | D74: INGRESOS EXCEPCIONALES | E74: DEVOL. AVAL DISA | F74: 0 | G74: 900.6 | H74: =MID(Tabla_Gtos_Ingresos7[[#This Row],[Subcuenta]],1,4) -> 7780 | I74: =VALUE(MID(Tabla_Gtos_Ingresos7[[#This Row],[4 digitos]],1,3)) -> 778 | J74: =VALUE(MID(Tabla_Gtos_Ingresos7[[#This Row],[3 digitos]],1,2)) -> 77 | K74: =VLOOKUP(Tabla_Gtos_Ingresos7[[#This Row],[3 digitos]],PGC_Gtos_e_Ingresos[],4,FALSE) -> 13. | L74: =VLOOKUP(Tabla_Gtos_Ingresos7[[#This Row],[Grupo 1]],Tabla3[],4,FALSE) -> 13. Otros Resultados | M74: =VLOOKUP(Tabla_Gtos_Ingresos7[[#This Row],[Grupo 1]],Tabla3[],5,FALSE) -> 13. Otros Resultados | N74: =VLOOKUP(Tabla_Gtos_Ingresos7[[#This Row],[Grupo 1]],Tabla3[],10,FALSE) -> G | O74: =VLOOKUP(Tabla_Gtos_Ingresos7[[#This Row],[Grupo 1]],Tabla3[],6,FALSE) -> Explotación | P74: =VLOOKUP(Tabla_Gtos_Ingresos7[[#This Row],[Grupo 1]],Tabla3[],2,FALSE) -> 13 | Q74: =VLOOKUP(Tabla_Gtos_Ingresos7[[#This Row],[3 digitos]],PGC_Gtos_e_Ingresos[],2,FALSE) -> Ingresos excepcionales. | R74: =Tabla_Gtos_Ingresos7[[#This Row],[3 digitos]]&"/"&Tabla_Gtos_Ingresos7[[#This Row],[Nombre cuenta]] -> 778/ Ingresos excepcionales. | S74: =YEAR(Tabla_Gtos_Ingresos7[[#This Row],[Fecha]]) -> 2010 | T74: =MONTH(Tabla_Gtos_Ingresos7[[#This Row],[Fecha]]) -> 4 | U74: =ROUNDUP(MONTH(Tabla_Gtos_Ingresos7[[#This Row],[Fecha]])/3, 0) -> 2 | V74: =WEEKNUM(Tabla_Gtos_Ingresos7[[#This Row],[Fecha]]) -> 16 | W74: =(Tabla_Gtos_Ingresos7[[#This Row],[Factor]]*Tabla_Gtos_Ingresos7[[#This Row],[Haber]])+(Tabla_Gtos_Ingresos7[[#This Row],[Factor]]*Tabla_Gtos_Ingresos7[[#This Row],[Debe]]) -> 900.6 | X74: =VLOOKUP(Tabla_Gtos_Ingresos7[[#This Row],[3 digitos]],PGC_Gtos_e_Ingresos[],3,FALSE) -> 1
A75: 1750 | B75: 2010-08-11 | C75: 60200006 | D75: COMPRA DE OTROS APROVISIONAMIENTOS | E75: FACT.1190260 Maquinaria ESPAÑA | F75: 357.73 | G75: 0 | H75: =MID(Tabla_Gtos_Ingresos7[[#This Row],[Subcuenta]],1,4) -> 6020 | I75: =VALUE(MID(Tabla_Gtos_Ingresos7[[#This Row],[4 digitos]],1,3)) -> 602 | J75: =VALUE(MID(Tabla_Gtos_Ingresos7[[#This Row],[3 digitos]],1,2)) -> 60 | K75: =VLOOKUP(Tabla_Gtos_Ingresos7[[#This Row],[3 digitos]],PGC_Gtos_e_Ingresos[],4,FALSE) -> 4.b | L75: =VLOOKUP(Tabla_Gtos_Ingresos7[[#This Row],[Grupo 1]],Tabla3[],4,FALSE) -> 4. Aprovisionamientos | M75: =VLOOKUP(Tabla_Gtos_Ingresos7[[#This Row],[Grupo 1]],Tabla3[],5,FALSE) -> 4.b Consumos MP y otros | N75: =VLOOKUP(Tabla_Gtos_Ingresos7[[#This Row],[Grupo 1]],Tabla3[],10,FALSE) -> G | O75: =VLOOKUP(Tabla_Gtos_Ingresos7[[#This Row],[Grupo 1]],Tabla3[],6,FALSE) -> Explotación | P75: =VLOOKUP(Tabla_Gtos_Ingresos7[[#This Row],[Grupo 1]],Tabla3[],2,FALSE) -> 4 | Q75: =VLOOKUP(Tabla_Gtos_Ingresos7[[#This Row],[3 digitos]],PGC_Gtos_e_Ingresos[],2,FALSE) -> Compras de otros aprovisionamientos | R75: =Tabla_Gtos_Ingresos7[[#This Row],[3 digitos]]&"/"&Tabla_Gtos_Ingresos7[[#This Row],[Nombre cuenta]] -> 602/ Compras de otros aprovisionamientos | S75: =YEAR(Tabla_Gtos_Ingresos7[[#This Row],[Fecha]]) -> 2010 | T75: =MONTH(Tabla_Gtos_Ingresos7[[#This Row],[Fecha]]) -> 8 | U75: =ROUNDUP(MONTH(Tabla_Gtos_Ingresos7[[#This Row],[Fecha]])/3, 0) -> 3 | V75: =WEEKNUM(Tabla_Gtos_Ingresos7[[#This Row],[Fecha]]) -> 33 | W75: =(Tabla_Gtos_Ingresos7[[#This Row],[Factor]]*Tabla_Gtos_Ingresos7[[#This Row],[Haber]])+(Tabla_Gtos_Ingresos7[[#This Row],[Factor]]*Tabla_Gtos_Ingresos7[[#This Row],[Debe]]) -> -357.73 | X75: =VLOOKUP(Tabla_Gtos_Ingresos7[[#This Row],[3 digitos]],PGC_Gtos_e_Ingresos[],3,FALSE) -> -1
A76: 2014 | B76: 2010-09-11 | C76: 60200007 | D76: COMPRA DE OTROS APROVISIONAMIENTOS | E76: FACT.1261704 Maquinaria ESPAÑA | F76: 15.2 | G76: 0 | H76: =MID(Tabla_Gtos_Ingresos7[[#This Row],[Subcuenta]],1,4) -> 6020 | I76: =VALUE(MID(Tabla_Gtos_Ingresos7[[#This Row],[4 digitos]],1,3)) -> 602 | J76: =VALUE(MID(Tabla_Gtos_Ingresos7[[#This Row],[3 digitos]],1,2)) -> 60 | K76: =VLOOKUP(Tabla_Gtos_Ingresos7[[#This Row],[3 digitos]],PGC_Gtos_e_Ingresos[],4,FALSE) -> 4.b | L76: =VLOOKUP(Tabla_Gtos_Ingresos7[[#This Row],[Grupo 1]],Tabla3[],4,FALSE) -> 4. Aprovisionamientos | M76: =VLOOKUP(Tabla_Gtos_Ingresos7[[#This Row],[Grupo 1]],Tabla3[],5,FALSE) -> 4.b Consumos MP y otros | N76: =VLOOKUP(Tabla_Gtos_Ingresos7[[#This Row],[Grupo 1]],Tabla3[],10,FALSE) -> G | O76: =VLOOKUP(Tabla_Gtos_Ingresos7[[#This Row],[Grupo 1]],Tabla3[],6,FALSE) -> Explotación | P76: =VLOOKUP(Tabla_Gtos_Ingresos7[[#This Row],[Grupo 1]],Tabla3[],2,FALSE) -> 4 | Q76: =VLOOKUP(Tabla_Gtos_Ingresos7[[#This Row],[3 digitos]],PGC_Gtos_e_Ingresos[],2,FALSE) -> Compras de otros aprovisionamientos | R76: =Tabla_Gtos_Ingresos7[[#This Row],[3 digitos]]&"/"&Tabla_Gtos_Ingresos7[[#This Row],[Nombre cuenta]] -> 602/ Compras de otros aprovisionamientos | S76: =YEAR(Tabla_Gtos_Ingresos7[[#This Row],[Fecha]]) -> 2010 | T76: =MONTH(Tabla_Gtos_Ingresos7[[#This Row],[Fecha]]) -> 9 | U76: =ROUNDUP(MONTH(Tabla_Gtos_Ingresos7[[#This Row],[Fecha]])/3, 0) -> 3 | V76: =WEEKNUM(Tabla_Gtos_Ingresos7[[#This Row],[Fecha]]) -> 37 | W76: =(Tabla_Gtos_Ingresos7[[#This Row],[Factor]]*Tabla_Gtos_Ingresos7[[#This Row],[Haber]])+(Tabla_Gtos_Ingresos7[[#This Row],[Factor]]*Tabla_Gtos_Ingresos7[[#This Row],[Debe]]) -> -15.2 | X76: =VLOOKUP(Tabla_Gtos_Ingresos7[[#This Row],[3 digitos]],PGC_Gtos_e_Ingresos[],3,FALSE) -> -1
A77: 2015 | B77: 2010-09-11 | C77: 60200008 | D77: COMPRA DE OTROS APROVISIONAMIENTOS | E77: FACT.1261705 Maquinaria ESPAÑA | F77: 109 | G77: 0 | H77: =MID(Tabla_Gtos_Ingresos7[[#This Row],[Subcuenta]],1,4) -> 6020 | I77: =VALUE(MID(Tabla_Gtos_Ingresos7[[#This Row],[4 digitos]],1,3)) -> 602 | J77: =VALUE(MID(Tabla_Gtos_Ingresos7[[#This Row],[3 digitos]],1,2)) -> 60 | K77: =VLOOKUP(Tabla_Gtos_Ingresos7[[#This Row],[3 digitos]],PGC_Gtos_e_Ingresos[],4,FALSE) -> 4.b | L77: =VLOOKUP(Tabla_Gtos_Ingresos7[[#This Row],[Grupo 1]],Tabla3[],4,FALSE) -> 4. Aprovisionamientos | M77: =VLOOKUP(Tabla_Gtos_Ingresos7[[#This Row],[Grupo 1]],Tabla3[],5,FALSE) -> 4.b Consumos MP y otros | N77: =VLOOKUP(Tabla_Gtos_Ingresos7[[#This Row],[Grupo 1]],Tabla3[],10,FALSE) -> G | O77: =VLOOKUP(Tabla_Gtos_Ingresos7[[#This Row],[Grupo 1]],Tabla3[],6,FALSE) -> Explotación | P77: =VLOOKUP(Tabla_Gtos_Ingresos7[[#This Row],[Grupo 1]],Tabla3[],2,FALSE) -> 4 | Q77: =VLOOKUP(Tabla_Gtos_Ingresos7[[#This Row],[3 digitos]],PGC_Gtos_e_Ingresos[],2,FALSE) -> Compras de otros aprovisionamientos | R77: =Tabla_Gtos_Ingresos7[[#This Row],[3 digitos]]&"/"&Tabla_Gtos_Ingresos7[[#This Row],[Nombre cuenta]] -> 602/ Compras de otros aprovisionamientos | S77: =YEAR(Tabla_Gtos_Ingresos7[[#This Row],[Fecha]]) -> 2010 | T77: =MONTH(Tabla_Gtos_Ingresos7[[#This Row],[Fecha]]) -> 9 | U77: =ROUNDUP(MONTH(Tabla_Gtos_Ingresos7[[#This Row],[Fecha]])/3, 0) -> 3 | V77: =WEEKNUM(Tabla_Gtos_Ingresos7[[#This Row],[Fecha]]) -> 37 | W77: =(Tabla_Gtos_Ingresos7[[#This Row],[Factor]]*Tabla_Gtos_Ingresos7[[#This Row],[Haber]])+(Tabla_Gtos_Ingresos7[[#This Row],[Factor]]*Tabla_Gtos_Ingresos7[[#This Row],[Debe]]) -> -109 | X77: =VLOOKUP(Tabla_Gtos_Ingresos7[[#This Row],[3 digitos]],PGC_Gtos_e_Ingresos[],3,FALSE) -> -1
A78: 2020 | B78: 2010-09-11 | C78: 62400013 | D78: GASTOS TRANSPORTES | E78: FACT.8329 Seur Canarias | F78: 187 | G78: 0 | H78: =MID(Tabla_Gtos_Ingresos7[[#This Row],[Subcuenta]],1,4) -> 6240 | I78: =VALUE(MID(Tabla_Gtos_Ingresos7[[#This Row],[4 digitos]],1,3)) -> 624 | J78: =VALUE(MID(Tabla_Gtos_Ingresos7[[#This Row],[3 digitos]],1,2)) -> 62 | K78: =VLOOKUP(Tabla_Gtos_Ingresos7[[#This Row],[3 digitos]],PGC_Gtos_e_Ingresos[],4,FALSE) -> 7.a | L78: =VLOOKUP(Tabla_Gtos_Ingresos7[[#This Row],[Grupo 1]],Tabla3[],4,FALSE) -> 7. Otros Gastos de Explotación | M78: =VLOOKUP(Tabla_Gtos_Ingresos7[[#This Row],[Grupo 1]],Tabla3[],5,FALSE) -> 7.a Servicios Exteriores | N78: =VLOOKUP(Tabla_Gtos_Ingresos7[[#This Row],[Grupo 1]],Tabla3[],10,FALSE) -> G | O78: =VLOOKUP(Tabla_Gtos_Ingresos7[[#This Row],[Grupo 1]],Tabla3[],6,FALSE) -> Explotación | P78: =VLOOKUP(Tabla_Gtos_Ingresos7[[#This Row],[Grupo 1]],Tabla3[],2,FALSE) -> 7 | Q78: =VLOOKUP(Tabla_Gtos_Ingresos7[[#This Row],[3 digitos]],PGC_Gtos_e_Ingresos[],2,FALSE) -> Transportes | R78: =Tabla_Gtos_Ingresos7[[#This Row],[3 digitos]]&"/"&Tabla_Gtos_Ingresos7[[#This Row],[Nombre cuenta]] -> 624/ Transportes | S78: =YEAR(Tabla_Gtos_Ingresos7[[#This Row],[Fecha]]) -> 2010 | T78: =MONTH(Tabla_Gtos_Ingresos7[[#This Row],[Fecha]]) -> 9 | U78: =ROUNDUP(MONTH(Tabla_Gtos_Ingresos7[[#This Row],[Fecha]])/3, 0) -> 3 | V78: =WEEKNUM(Tabla_Gtos_Ingresos7[[#This Row],[Fecha]]) -> 37 | W78: =(Tabla_Gtos_Ingresos7[[#This Row],[Factor]]*Tabla_Gtos_Ingresos7[[#This Row],[Haber]])+(Tabla_Gtos_Ingresos7[[#This Row],[Factor]]*Tabla_Gtos_Ingresos7[[#This Row],[Debe]]) -> -187 | X78: =VLOOKUP(Tabla_Gtos_Ingresos7[[#This Row],[3 digitos]],PGC_Gtos_e_Ingresos[],3,FALSE) -> -1
A79: 2023 | B79: 2010-09-11 | C79: 64900001 | D79: OTROS GASTOS PERSONAL | E79: PAGO HORAS EXTRAS Pepe González Gómez AGOSTO | F79: 320 | G79: 0 | H79: =MID(Tabla_Gtos_Ingresos7[[#This Row],[Subcuenta]],1,4) -> 6490 | I79: =VALUE(MID(Tabla_Gtos_Ingresos7[[#This Row],[4 digitos]],1,3)) -> 649 | J79: =VALUE(MID(Tabla_Gtos_Ingresos7[[#This Row],[3 digitos]],1,2)) -> 64 | K79: =VLOOKUP(Tabla_Gtos_Ingresos7[[#This Row],[3 digitos]],PGC_Gtos_e_Ingresos[],4,FALSE) -> 6.b | L79: =VLOOKUP(Tabla_Gtos_Ingresos7[[#This Row],[Grupo 1]],Tabla3[],4,FALSE) -> 6. Gtos de Personal | M79: =VLOOKUP(Tabla_Gtos_Ingresos7[[#This Row],[Grupo 1]],Tabla3[],5,FALSE) -> 6.b Cargas Sociales | N79: =VLOOKUP(Tabla_Gtos_Ingresos7[[#This Row],[Grupo 1]],Tabla3[],10,FALSE) -> G | O79: =VLOOKUP(Tabla_Gtos_Ingresos7[[#This Row],[Grupo 1]],Tabla3[],6,FALSE) -> Explotación | P79: =VLOOKUP(Tabla_Gtos_Ingresos7[[#This Row],[Grupo 1]],Tabla3[],2,FALSE) -> 6 | Q79: =VLOOKUP(Tabla_Gtos_Ingresos7[[#This Row],[3 digitos]],PGC_Gtos_e_Ingresos[],2,FALSE) -> Otros gastos sociales | R79: =Tabla_Gtos_Ingresos7[[#This Row],[3 digitos]]&"/"&Tabla_Gtos_Ingresos7[[#This Row],[Nombre cuenta]] -> 649/ Otros gastos sociales | S79: =YEAR(Tabla_Gtos_Ingresos7[[#This Row],[Fecha]]) -> 2010 | T79: =MONTH(Tabla_Gtos_Ingresos7[[#This Row],[Fecha]]) -> 9 | U79: =ROUNDUP(MONTH(Tabla_Gtos_Ingresos7[[#This Row],[Fecha]])/3, 0) -> 3 | V79: =WEEKNUM(Tabla_Gtos_Ingresos7[[#This Row],[Fecha]]) -> 37 | W79: =(Tabla_Gtos_Ingresos7[[#This Row],[Factor]]*Tabla_Gtos_Ingresos7[[#This Row],[Haber]])+(Tabla_Gtos_Ingresos7[[#This Row],[Factor]]*Tabla_Gtos_Ingresos7[[#This Row],[Debe]]) -> -320 | X79: =VLOOKUP(Tabla_Gtos_Ingresos7[[#This Row],[3 digitos]],PGC_Gtos_e_Ingresos[],3,FALSE) -> -1
A80: 2024 | B80: 2010-09-11 | C80: 64900002 | D80: OTROS GASTOS PERSONAL | E80: PAGO HORAS EXTRAS IMELDO PEREZ AGOSTO | F80: 510 | G80: 0 | H80: =MID(Tabla_Gtos_Ingresos7[[#This Row],[Subcuenta]],1,4) -> 6490 | I80: =VALUE(MID(Tabla_Gtos_Ingresos7[[#This Row],[4 digitos]],1,3)) -> 649 | J80: =VALUE(MID(Tabla_Gtos_Ingresos7[[#This Row],[3 digitos]],1,2)) -> 64 | K80: =VLOOKUP(Tabla_Gtos_Ingresos7[[#This Row],[3 digitos]],PGC_Gtos_e_Ingresos[],4,FALSE) -> 6.b | L80: =VLOOKUP(Tabla_Gtos_Ingresos7[[#This Row],[Grupo 1]],Tabla3[],4,FALSE) -> 6. Gtos de Personal | M80: =VLOOKUP(Tabla_Gtos_Ingresos7[[#This Row],[Grupo 1]],Tabla3[],5,FALSE) -> 6.b Cargas Sociales | N80: =VLOOKUP(Tabla_Gtos_Ingresos7[[#This Row],[Grupo 1]],Tabla3[],10,FALSE) -> G | O80: =VLOOKUP(Tabla_Gtos_Ingresos7[[#This Row],[Grupo 1]],Tabla3[],6,FALSE) -> Explotación | P80: =VLOOKUP(Tabla_Gtos_Ingresos7[[#This Row],[Grupo 1]],Tabla3[],2,FALSE) -> 6 | Q80: =VLOOKUP(Tabla_Gtos_Ingresos7[[#This Row],[3 digitos]],PGC_Gtos_e_Ingresos[],2,FALSE) -> Otros gastos sociales | R80: =Tabla_Gtos_Ingresos7[[#This Row],[3 digitos]]&"/"&Tabla_Gtos_Ingresos7[[#This Row],[Nombre cuenta]] -> 649/ Otros gastos sociales | S80: =YEAR(Tabla_Gtos_Ingresos7[[#This Row],[Fecha]]) -> 2010 | T80: =MONTH(Tabla_Gtos_Ingresos7[[#This Row],[Fecha]]) -> 9 | U80: =ROUNDUP(MONTH(Tabla_Gtos_Ingresos7[[#This Row],[Fecha]])/3, 0) -> 3 | V80: =WEEKNUM(Tabla_Gtos_Ingresos7[[#This Row],[Fecha]]) -> 37 | W80: =(Tabla_Gtos_Ingresos7[[#This Row],[Factor]]*Tabla_Gtos_Ingresos7[[#This Row],[Haber]])+(Tabla_Gtos_Ingresos7[[#This Row],[Factor]]*Tabla_Gtos_Ingresos7[[#This Row],[Debe]]) -> -510 | X80: =VLOOKUP(Tabla_Gtos_Ingresos7[[#This Row],[3 digitos]],PGC_Gtos_e_Ingresos[],3,FALSE) -> -1
A81: 2025 | B81: 2010-09-11 | C81: 64900003 | D81: OTROS GASTOS PERSONAL | E81: PAGO HORAS EXTRAS Alfredo Pérez LuisAGOSTO | F81: 160 | G81: 0 | H81: =MID(Tabla_Gtos_Ingresos7[[#This Row],[Subcuenta]],1,4) -> 6490 | I81: =VALUE(MID(Tabla_Gtos_Ingresos7[[#This Row],[4 digitos]],1,3)) -> 649 | J81: =VALUE(MID(Tabla_Gtos_Ingresos7[[#This Row],[3 digitos]],1,2)) -> 64 | K81: =VLOOKUP(Tabla_Gtos_Ingresos7[[#This Row],[3 digitos]],PGC_Gtos_e_Ingresos[],4,FALSE) -> 6.b | L81: =VLOOKUP(Tabla_Gtos_Ingresos7[[#This Row],[Grupo 1]],Tabla3[],4,FALSE) -> 6. Gtos de Personal | M81: =VLOOKUP(Tabla_Gtos_Ingresos7[[#This Row],[Grupo 1]],Tabla3[],5,FALSE) -> 6.b Cargas Sociales | N81: =VLOOKUP(Tabla_Gtos_Ingresos7[[#This Row],[Grupo 1]],Tabla3[],10,FALSE) -> G | O81: =VLOOKUP(Tabla_Gtos_Ingresos7[[#This Row],[Grupo 1]],Tabla3[],6,FALSE) -> Explotación | P81: =VLOOKUP(Tabla_Gtos_Ingresos7[[#This Row],[Grupo 1]],Tabla3[],2,FALSE) -> 6 | Q81: =VLOOKUP(Tabla_Gtos_Ingresos7[[#This Row],[3 digitos]],PGC_Gtos_e_Ingresos[],2,FALSE) -> Otros gastos sociales | R81: =Tabla_Gtos_Ingresos7[[#This Row],[3 digitos]]&"/"&Tabla_Gtos_Ingresos7[[#This Row],[Nombre cuenta]] -> 649/ Otros gastos sociales | S81: =YEAR(Tabla_Gtos_Ingresos7[[#This Row],[Fecha]]) -> 2010 | T81: =MONTH(Tabla_Gtos_Ingresos7[[#This Row],[Fecha]]) -> 9 | U81: =ROUNDUP(MONTH(Tabla_Gtos_Ingresos7[[#This Row],[Fecha]])/3, 0) -> 3 | V81: =WEEKNUM(Tabla_Gtos_Ingresos7[[#This Row],[Fecha]]) -> 37 | W81: =(Tabla_Gtos_Ingresos7[[#This Row],[Factor]]*Tabla_Gtos_Ingresos7[[#This Row],[Haber]])+(Tabla_Gtos_Ingresos7[[#This Row],[Factor]]*Tabla_Gtos_Ingresos7[[#This Row],[Debe]]) -> -160 | X81: =VLOOKUP(Tabla_Gtos_Ingresos7[[#This Row],[3 digitos]],PGC_Gtos_e_Ingresos[],3,FALSE) -> -1
A82: 2026 | B82: 2010-09-11 | C82: 64900004 | D82: OTROS GASTOS PERSONAL | E82: PAGO HORAS EXTRAS Alfredo Pérez Luis. AGOSTO | F82: 370 | G82: 0 | H82: =MID(Tabla_Gtos_Ingresos7[[#This Row],[Subcuenta]],1,4) -> 6490 | I82: =VALUE(MID(Tabla_Gtos_Ingresos7[[#This Row],[4 digitos]],1,3)) -> 649 | J82: =VALUE(MID(Tabla_Gtos_Ingresos7[[#This Row],[3 digitos]],1,2)) -> 64 | K82: =VLOOKUP(Tabla_Gtos_Ingresos7[[#This Row],[3 digitos]],PGC_Gtos_e_Ingresos[],4,FALSE) -> 6.b | L82: =VLOOKUP(Tabla_Gtos_Ingresos7[[#This Row],[Grupo 1]],Tabla3[],4,FALSE) -> 6. Gtos de Personal | M82: =VLOOKUP(Tabla_Gtos_Ingresos7[[#This Row],[Grupo 1]],Tabla3[],5,FALSE) -> 6.b Cargas Sociales | N82: =VLOOKUP(Tabla_Gtos_Ingresos7[[#This Row],[Grupo 1]],Tabla3[],10,FALSE) -> G | O82: =VLOOKUP(Tabla_Gtos_Ingresos7[[#This Row],[Grupo 1]],Tabla3[],6,FALSE) -> Explotación | P82: =VLOOKUP(Tabla_Gtos_Ingresos7[[#This Row],[Grupo 1]],Tabla3[],2,FALSE) -> 6 | Q82: =VLOOKUP(Tabla_Gtos_Ingresos7[[#This Row],[3 digitos]],PGC_Gtos_e_Ingresos[],2,FALSE) -> Otros gastos sociales | R82: =Tabla_Gtos_Ingresos7[[#This Row],[3 digitos]]&"/"&Tabla_Gtos_Ingresos7[[#This Row],[Nombre cuenta]] -> 649/ Otros gastos sociales | S82: =YEAR(Tabla_Gtos_Ingresos7[[#This Row],[Fecha]]) -> 2010 | T82: =MONTH(Tabla_Gtos_Ingresos7[[#This Row],[Fecha]]) -> 9 | U82: =ROUNDUP(MONTH(Tabla_Gtos_Ingresos7[[#This Row],[Fecha]])/3, 0) -> 3 | V82: =WEEKNUM(Tabla_Gtos_Ingresos7[[#This Row],[Fecha]]) -> 37 | W82: =(Tabla_Gtos_Ingresos7[[#This Row],[Factor]]*Tabla_Gtos_Ingresos7[[#This Row],[Haber]])+(Tabla_Gtos_Ingresos7[[#This Row],[Factor]]*Tabla_Gtos_Ingresos7[[#This Row],[Debe]]) -> -370 | X82: =VLOOKUP(Tabla_Gtos_Ingresos7[[#This Row],[3 digitos]],PGC_Gtos_e_Ingresos[],3,FALSE) -> -1
A83: 2591 | B83: 2010-11-11 | C83: 62600000 | D83: SERVICIOS BANCARIOS Y SIMILARES | E83: PAGO SUELDO Pepe González Gómez OCTUBRE | F83: 0.9 | G83: 0 | H83: =MID(Tabla_Gtos_Ingresos7[[#This Row],[Subcuenta]],1,4) -> 6260 | I83: =VALUE(MID(Tabla_Gtos_Ingresos7[[#This Row],[4 digitos]],1,3)) -> 626 | J83: =VALUE(MID(Tabla_Gtos_Ingresos7[[#This Row],[3 digitos]],1,2)) -> 62 | K83: =VLOOKUP(Tabla_Gtos_Ingresos7[[#This Row],[3 digitos]],PGC_Gtos_e_Ingresos[],4,FALSE) -> 7.a | L83: =VLOOKUP(Tabla_Gtos_Ingresos7[[#This Row],[Grupo 1]],Tabla3[],4,FALSE) -> 7. Otros Gastos de Explotación | M83: =VLOOKUP(Tabla_Gtos_Ingresos7[[#This Row],[Grupo 1]],Tabla3[],5,FALSE) -> 7.a Servicios Exteriores | N83: =VLOOKUP(Tabla_Gtos_Ingresos7[[#This Row],[Grupo 1]],Tabla3[],10,FALSE) -> G | O83: =VLOOKUP(Tabla_Gtos_Ingresos7[[#This Row],[Grupo 1]],Tabla3[],6,FALSE) -> Explotación | P83: =VLOOKUP(Tabla_Gtos_Ingresos7[[#This Row],[Grupo 1]],Tabla3[],2,FALSE) -> 7 | Q83: =VLOOKUP(Tabla_Gtos_Ingresos7[[#This Row],[3 digitos]],PGC_Gtos_e_Ingresos[],2,FALSE) -> Servicios bancarios y similares | R83: =Tabla_Gtos_Ingresos7[[#This Row],[3 digitos]]&"/"&Tabla_Gtos_Ingresos7[[#This Row],[Nombre cuenta]] -> 626/ Servicios bancarios y similares | S83: =YEAR(Tabla_Gtos_Ingresos7[[#This Row],[Fecha]]) -> 2010 | T83: =MONTH(Tabla_Gtos_Ingresos7[[#This Row],[Fecha]]) -> 11 | U83: =ROUNDUP(MONTH(Tabla_Gtos_Ingresos7[[#This Row],[Fecha]])/3, 0) -> 4 | V83: =WEEKNUM(Tabla_Gtos_Ingresos7[[#This Row],[Fecha]]) -> 46 | W83: =(Tabla_Gtos_Ingresos7[[#This Row],[Factor]]*Tabla_Gtos_Ingresos7[[#This Row],[Haber]])+(Tabla_Gtos_Ingresos7[[#This Row],[Factor]]*Tabla_Gtos_Ingresos7[[#This Row],[Debe]]) -> -0.9 | X83: =VLOOKUP(Tabla_Gtos_Ingresos7[[#This Row],[3 digitos]],PGC_Gtos_e_Ingresos[],3,FALSE) -> -1
A84: 2592 | B84: 2010-11-11 | C84: 62600000 | D84: SERVICIOS BANCARIOS Y SIMILARES | E84: PAGO SUELDO Alfredo Pérez LuisOCTUBRE | F84: 0.9 | G84: 0 | H84: =MID(Tabla_Gtos_Ingresos7[[#This Row],[Subcuenta]],1,4) -> 6260 | I84: =VALUE(MID(Tabla_Gtos_Ingresos7[[#This Row],[4 digitos]],1,3)) -> 626 | J84: =VALUE(MID(Tabla_Gtos_Ingresos7[[#This Row],[3 digitos]],1,2)) -> 62 | K84: =VLOOKUP(Tabla_Gtos_Ingresos7[[#This Row],[3 digitos]],PGC_Gtos_e_Ingresos[],4,FALSE) -> 7.a | L84: =VLOOKUP(Tabla_Gtos_Ingresos7[[#This Row],[Grupo 1]],Tabla3[],4,FALSE) -> 7. Otros Gastos de Explotación | M84: =VLOOKUP(Tabla_Gtos_Ingresos7[[#This Row],[Grupo 1]],Tabla3[],5,FALSE) -> 7.a Servicios Exteriores | N84: =VLOOKUP(Tabla_Gtos_Ingresos7[[#This Row],[Grupo 1]],Tabla3[],10,FALSE) -> G | O84: =VLOOKUP(Tabla_Gtos_Ingresos7[[#This Row],[Grupo 1]],Tabla3[],6,FALSE) -> Explotación | P84: =VLOOKUP(Tabla_Gtos_Ingresos7[[#This Row],[Grupo 1]],Tabla3[],2,FALSE) -> 7 | Q84: =VLOOKUP(Tabla_Gtos_Ingresos7[[#This Row],[3 digitos]],PGC_Gtos_e_Ingresos[],2,FALSE) -> Servicios bancarios y similares | R84: =Tabla_Gtos_Ingresos7[[#This Row],[3 digitos]]&"/"&Tabla_Gtos_Ingresos7[[#This Row],[Nombre cuenta]] -> 626/ Servicios bancarios y similares | S84: =YEAR(Tabla_Gtos_Ingresos7[[#This Row],[Fecha]]) -> 2010 | T84: =MONTH(Tabla_Gtos_Ingresos7[[#This Row],[Fecha]]) -> 11 | U84: =ROUNDUP(MONTH(Tabla_Gtos_Ingresos7[[#This Row],[Fecha]])/3, 0) -> 4 | V84: =WEEKNUM(Tabla_Gtos_Ingresos7[[#This Row],[Fecha]]) -> 46 | W84: =(Tabla_Gtos_Ingresos7[[#This Row],[Factor]]*Tabla_Gtos_Ingresos7[[#This Row],[Haber]])+(Tabla_Gtos_Ingresos7[[#This Row],[Factor]]*Tabla_Gtos_Ingresos7[[#This Row],[Debe]]) -> -0.9 | X84: =VLOOKUP(Tabla_Gtos_Ingresos7[[#This Row],[3 digitos]],PGC_Gtos_e_Ingresos[],3,FALSE) -> -1
A85: 2593 | B85: 2010-11-11 | C85: 62600000 | D85: SERVICIOS BANCARIOS Y SIMILARES | E85: PAGO SUELDO Alfredo Pérez Luis. OCTUBRE | F85: 0.9 | G85: 0 | H85: =MID(Tabla_Gtos_Ingresos7[[#This Row],[Subcuenta]],1,4) -> 6260 | I85: =VALUE(MID(Tabla_Gtos_Ingresos7[[#This Row],[4 digitos]],1,3)) -> 626 | J85: =VALUE(MID(Tabla_Gtos_Ingresos7[[#This Row],[3 digitos]],1,2)) -> 62 | K85: =VLOOKUP(Tabla_Gtos_Ingresos7[[#This Row],[3 digitos]],PGC_Gtos_e_Ingresos[],4,FALSE) -> 7.a | L85: =VLOOKUP(Tabla_Gtos_Ingresos7[[#This Row],[Grupo 1]],Tabla3[],4,FALSE) -> 7. Otros Gastos de Explotación | M85: =VLOOKUP(Tabla_Gtos_Ingresos7[[#This Row],[Grupo 1]],Tabla3[],5,FALSE) -> 7.a Servicios Exteriores | N85: =VLOOKUP(Tabla_Gtos_Ingresos7[[#This Row],[Grupo 1]],Tabla3[],10,FALSE) -> G | O85: =VLOOKUP(Tabla_Gtos_Ingresos7[[#This Row],[Grupo 1]],Tabla3[],6,FALSE) -> Explotación | P85: =VLOOKUP(Tabla_Gtos_Ingresos7[[#This Row],[Grupo 1]],Tabla3[],2,FALSE) -> 7 | Q85: =VLOOKUP(Tabla_Gtos_Ingresos7[[#This Row],[3 digitos]],PGC_Gtos_e_Ingresos[],2,FALSE) -> Servicios bancarios y similares | R85: =Tabla_Gtos_Ingresos7[[#This Row],[3 digitos]]&"/"&Tabla_Gtos_Ingresos7[[#This Row],[Nombre cuenta]] -> 626/ Servicios bancarios y similares | S85: =YEAR(Tabla_Gtos_Ingresos7[[#This Row],[Fecha]]) -> 2010 | T85: =MONTH(Tabla_Gtos_Ingresos7[[#This Row],[Fecha]]) -> 11 | U85: =ROUNDUP(MONTH(Tabla_Gtos_Ingresos7[[#This Row],[Fecha]])/3, 0) -> 4 | V85: =WEEKNUM(Tabla_Gtos_Ingresos7[[#This Row],[Fecha]]) -> 46 | W85: =(Tabla_Gtos_Ingresos7[[#This Row],[Factor]]*Tabla_Gtos_Ingresos7[[#This Row],[Haber]])+(Tabla_Gtos_Ingresos7[[#This Row],[Factor]]*Tabla_Gtos_Ingresos7[[#This Row],[Debe]]) -> -0.9 | X85: =VLOOKUP(Tabla_Gtos_Ingresos7[[#This Row],[3 digitos]],PGC_Gtos_e_Ingresos[],3,FALSE) -> -1
A86: 2598 | B86: 2010-11-11 | C86: 62600000 | D86: SERVICIOS BANCARIOS Y SIMILARES | E86: PAGO SUELDO Jesus M. López Mira OCTUBRE | F86: 0.9 | G86: 0 | H86: =MID(Tabla_Gtos_Ingresos7[[#This Row],[Subcuenta]],1,4) -> 6260 | I86: =VALUE(MID(Tabla_Gtos_Ingresos7[[#This Row],[4 digitos]],1,3)) -> 626 | J86: =VALUE(MID(Tabla_Gtos_Ingresos7[[#This Row],[3 digitos]],1,2)) -> 62 | K86: =VLOOKUP(Tabla_Gtos_Ingresos7[[#This Row],[3 digitos]],PGC_Gtos_e_Ingresos[],4,FALSE) -> 7.a | L86: =VLOOKUP(Tabla_Gtos_Ingresos7[[#This Row],[Grupo 1]],Tabla3[],4,FALSE) -> 7. Otros Gastos de Explotación | M86: =VLOOKUP(Tabla_Gtos_Ingresos7[[#This Row],[Grupo 1]],Tabla3[],5,FALSE) -> 7.a Servicios Exteriores | N86: =VLOOKUP(Tabla_Gtos_Ingresos7[[#This Row],[Grupo 1]],Tabla3[],10,FALSE) -> G | O86: =VLOOKUP(Tabla_Gtos_Ingresos7[[#This Row],[Grupo 1]],Tabla3[],6,FALSE) -> Explotación | P86: =VLOOKUP(Tabla_Gtos_Ingresos7[[#This Row],[Grupo 1]],Tabla3[],2,FALSE) -> 7 | Q86: =VLOOKUP(Tabla_Gtos_Ingresos7[[#This Row],[3 digitos]],PGC_Gtos_e_Ingresos[],2,FALSE) -> Servicios bancarios y similares | R86: =Tabla_Gtos_Ingresos7[[#This Row],[3 digitos]]&"/"&Tabla_Gtos_Ingresos7[[#This Row],[Nombre cuenta]] -> 626/ Servicios bancarios y similares | S86: =YEAR(Tabla_Gtos_Ingresos7[[#This Row],[Fecha]]) -> 2010 | T86: =MONTH(Tabla_Gtos_Ingresos7[[#This Row],[Fecha]]) -> 11 | U86: =ROUNDUP(MONTH(Tabla_Gtos_Ingresos7[[#This Row],[Fecha]])/3, 0) -> 4 | V86: =WEEKNUM(Tabla_Gtos_Ingresos7[[#This Row],[Fecha]]) -> 46 | W86: =(Tabla_Gtos_Ingresos7[[#This Row],[Factor]]*Tabla_Gtos_Ingresos7[[#This Row],[Haber]])+(Tabla_Gtos_Ingresos7[[#This Row],[Factor]]*Tabla_Gtos_Ingresos7[[#This Row],[Debe]]) -> -0.9 | X86: =VLOOKUP(Tabla_Gtos_Ingresos7[[#This Row],[3 digitos]],PGC_Gtos_e_Ingresos[],3,FALSE) -> -1
A87: 2583 | B87: 2010-11-11 | C87: 70000200 | D87: VENTA ARENA 2% | E87: FACT.FA8/224 CABILDO INSULAR DE Insular | F87: 0 | G87: 189.42 | H87: =MID(Tabla_Gtos_Ingresos7[[#This Row],[Subcuenta]],1,4) -> 7000 | I87: =VALUE(MID(Tabla_Gtos_Ingresos7[[#This Row],[4 digitos]],1,3)) -> 700 | J87: =VALUE(MID(Tabla_Gtos_Ingresos7[[#This Row],[3 digitos]],1,2)) -> 70 | K87: =VLOOKUP(Tabla_Gtos_Ingresos7[[#This Row],[3 digitos]],PGC_Gtos_e_Ingresos[],4,FALSE) -> 1a | L87: =VLOOKUP(Tabla_Gtos_Ingresos7[[#This Row],[Grupo 1]],Tabla3[],4,FALSE) -> 1. Importe Neto Cifra de Negocios | M87: =VLOOKUP(Tabla_Gtos_Ingresos7[[#This Row],[Grupo 1]],Tabla3[],5,FALSE) -> 1.a Ventas | N87: =VLOOKUP(Tabla_Gtos_Ingresos7[[#This Row],[Grupo 1]],Tabla3[],10,FALSE) -> I | O87: =VLOOKUP(Tabla_Gtos_Ingresos7[[#This Row],[Grupo 1]],Tabla3[],6,FALSE) -> Explotación | P87: =VLOOKUP(Tabla_Gtos_Ingresos7[[#This Row],[Grupo 1]],Tabla3[],2,FALSE) -> 1 | Q87: =VLOOKUP(Tabla_Gtos_Ingresos7[[#This Row],[3 digitos]],PGC_Gtos_e_Ingresos[],2,FALSE) -> Ventas de mercaderías | R87: =Tabla_Gtos_Ingresos7[[#This Row],[3 digitos]]&"/"&Tabla_Gtos_Ingresos7[[#This Row],[Nombre cuenta]] -> 700/ Ventas de mercaderías | S87: =YEAR(Tabla_Gtos_Ingresos7[[#This Row],[Fecha]]) -> 2010 | T87: =MONTH(Tabla_Gtos_Ingresos7[[#This Row],[Fecha]]) -> 11 | U87: =ROUNDUP(MONTH(Tabla_Gtos_Ingresos7[[#This Row],[Fecha]])/3, 0) -> 4 | V87: =WEEKNUM(Tabla_Gtos_Ingresos7[[#This Row],[Fecha]]) -> 46 | W87: =(Tabla_Gtos_Ingresos7[[#This Row],[Factor]]*Tabla_Gtos_Ingresos7[[#This Row],[Haber]])+(Tabla_Gtos_Ingresos7[[#This Row],[Factor]]*Tabla_Gtos_Ingresos7[[#This Row],[Debe]]) -> 189.42 | X87: =VLOOKUP(Tabla_Gtos_Ingresos7[[#This Row],[3 digitos]],PGC_Gtos_e_Ingresos[],3,FALSE) -> 1
A88: 2892 | B88: 2010-12-11 | C88: 62900020 | D88: OTROS GASTOS DE EXPLOTACION | E88: FACT.50 JUAN Siverio RAMIREZ | F88: 650.66 | G88: 0 | H88: =MID(Tabla_Gtos_Ingresos7[[#This Row],[Subcuenta]],1,4) -> 6290 | I88: =VALUE(MID(Tabla_Gtos_Ingresos7[[#This Row],[4 digitos]],1,3)) -> 629 | J88: =VALUE(MID(Tabla_Gtos_Ingresos7[[#This Row],[3 digitos]],1,2)) -> 62 | K88: =VLOOKUP(Tabla_Gtos_Ingresos7[[#This Row],[3 digitos]],PGC_Gtos_e_Ingresos[],4,FALSE) -> 7.a | L88: =VLOOKUP(Tabla_Gtos_Ingresos7[[#This Row],[Grupo 1]],Tabla3[],4,FALSE) -> 7. Otros Gastos de Explotación | M88: =VLOOKUP(Tabla_Gtos_Ingresos7[[#This Row],[Grupo 1]],Tabla3[],5,FALSE) -> 7.a Servicios Exteriores | N88: =VLOOKUP(Tabla_Gtos_Ingresos7[[#This Row],[Grupo 1]],Tabla3[],10,FALSE) -> G | O88: =VLOOKUP(Tabla_Gtos_Ingresos7[[#This Row],[Grupo 1]],Tabla3[],6,FALSE) -> Explotación | P88: =VLOOKUP(Tabla_Gtos_Ingresos7[[#This Row],[Grupo 1]],Tabla3[],2,FALSE) -> 7 | Q88: =VLOOKUP(Tabla_Gtos_Ingresos7[[#This Row],[3 digitos]],PGC_Gtos_e_Ingresos[],2,FALSE) -> Otros servicios | R88: =Tabla_Gtos_Ingresos7[[#This Row],[3 digitos]]&"/"&Tabla_Gtos_Ingresos7[[#This Row],[Nombre cuenta]] -> 629/ Otros servicios | S88: =YEAR(Tabla_Gtos_Ingresos7[[#This Row],[Fecha]]) -> 2010 | T88: =MONTH(Tabla_Gtos_Ingresos7[[#This Row],[Fecha]]) -> 12 | U88: =ROUNDUP(MONTH(Tabla_Gtos_Ingresos7[[#This Row],[Fecha]])/3, 0) -> 4 | V88: =WEEKNUM(Tabla_Gtos_Ingresos7[[#This Row],[Fecha]]) -> 50 | W88: =(Tabla_Gtos_Ingresos7[[#This Row],[Factor]]*Tabla_Gtos_Ingresos7[[#This Row],[Haber]])+(Tabla_Gtos_Ingresos7[[#This Row],[Factor]]*Tabla_Gtos_Ingresos7[[#This Row],[Debe]]) -> -650.66 | X88: =VLOOKUP(Tabla_Gtos_Ingresos7[[#This Row],[3 digitos]],PGC_Gtos_e_Ingresos[],3,FALSE) -> -1
A89: 2888 | B89: 2010-12-11 | C89: 70000224 | D89: VENTA ARENA 2% | E89: FACT.FA8/250 Paulino HDEZ. FCO. | F89: 0 | G89: 23.32 | H89: =MID(Tabla_Gtos_Ingresos7[[#This Row],[Subcuenta]],1,4) -> 7000 | I89: =VALUE(MID(Tabla_Gtos_Ingresos7[[#This Row],[4 digitos]],1,3)) -> 700 | J89: =VALUE(MID(Tabla_Gtos_Ingresos7[[#This Row],[3 digitos]],1,2)) -> 70 | K89: =VLOOKUP(Tabla_Gtos_Ingresos7[[#This Row],[3 digitos]],PGC_Gtos_e_Ingresos[],4,FALSE) -> 1a | L89: =VLOOKUP(Tabla_Gtos_Ingresos7[[#This Row],[Grupo 1]],Tabla3[],4,FALSE) -> 1. Importe Neto Cifra de Negocios | M89: =VLOOKUP(Tabla_Gtos_Ingresos7[[#This Row],[Grupo 1]],Tabla3[],5,FALSE) -> 1.a Ventas | N89: =VLOOKUP(Tabla_Gtos_Ingresos7[[#This Row],[Grupo 1]],Tabla3[],10,FALSE) -> I | O89: =VLOOKUP(Tabla_Gtos_Ingresos7[[#This Row],[Grupo 1]],Tabla3[],6,FALSE) -> Explotación | P89: =VLOOKUP(Tabla_Gtos_Ingresos7[[#This Row],[Grupo 1]],Tabla3[],2,FALSE) -> 1 | Q89: =VLOOKUP(Tabla_Gtos_Ingresos7[[#This Row],[3 digitos]],PGC_Gtos_e_Ingresos[],2,FALSE) -> Ventas de mercaderías | R89: =Tabla_Gtos_Ingresos7[[#This Row],[3 digitos]]&"/"&Tabla_Gtos_Ingresos7[[#This Row],[Nombre cuenta]] -> 700/ Ventas de mercaderías | S89: =YEAR(Tabla_Gtos_Ingresos7[[#This Row],[Fecha]]) -> 2010 | T89: =MONTH(Tabla_Gtos_Ingresos7[[#This Row],[Fecha]]) -> 12 | U89: =ROUNDUP(MONTH(Tabla_Gtos_Ingresos7[[#This Row],[Fecha]])/3, 0) -> 4 | V89: =WEEKNUM(Tabla_Gtos_Ingresos7[[#This Row],[Fecha]]) -> 50 | W89: =(Tabla_Gtos_Ingresos7[[#This Row],[Factor]]*Tabla_Gtos_Ingresos7[[#This Row],[Haber]])+(Tabla_Gtos_Ingresos7[[#This Row],[Factor]]*Tabla_Gtos_Ingresos7[[#This Row],[Debe]]) -> 23.32 | X89: =VLOOKUP(Tabla_Gtos_Ingresos7[[#This Row],[3 digitos]],PGC_Gtos_e_Ingresos[],3,FALSE) -> 1
A90: 211 | B90: 2010-02-12 | C90: 70000017 | D90: VENTA ARENA 2% | E90: FACT.FA8/20 Salva Guzman RDG. | F90: 0 | G90: 267.63 | H90: =MID(Tabla_Gtos_Ingresos7[[#This Row],[Subcuenta]],1,4) -> 7000 | I90: =VALUE(MID(Tabla_Gtos_Ingresos7[[#This Row],[4 digitos]],1,3)) -> 700 | J90: =VALUE(MID(Tabla_Gtos_Ingresos7[[#This Row],[3 digitos]],1,2)) -> 70 | K90: =VLOOKUP(Tabla_Gtos_Ingresos7[[#This Row],[3 digitos]],PGC_Gtos_e_Ingresos[],4,FALSE) -> 1a | L90: =VLOOKUP(Tabla_Gtos_Ingresos7[[#This Row],[Grupo 1]],Tabla3[],4,FALSE) -> 1. Importe Neto Cifra de Negocios | M90: =VLOOKUP(Tabla_Gtos_Ingresos7[[#This Row],[Grupo 1]],Tabla3[],5,FALSE) -> 1.a Ventas | N90: =VLOOKUP(Tabla_Gtos_Ingresos7[[#This Row],[Grupo 1]],Tabla3[],10,FALSE) -> I | O90: =VLOOKUP(Tabla_Gtos_Ingresos7[[#This Row],[Grupo 1]],Tabla3[],6,FALSE) -> Explotación | P90: =VLOOKUP(Tabla_Gtos_Ingresos7[[#This Row],[Grupo 1]],Tabla3[],2,FALSE) -> 1 | Q90: =VLOOKUP(Tabla_Gtos_Ingresos7[[#This Row],[3 digitos]],PGC_Gtos_e_Ingresos[],2,FALSE) -> Ventas de mercaderías | R90: =Tabla_Gtos_Ingresos7[[#This Row],[3 digitos]]&"/"&Tabla_Gtos_Ingresos7[[#This Row],[Nombre cuenta]] -> 700/ Ventas de mercaderías | S90: =YEAR(Tabla_Gtos_Ingresos7[[#This Row],[Fecha]]) -> 2010 | T90: =MONTH(Tabla_Gtos_Ingresos7[[#This Row],[Fecha]]) -> 2 | U90: =ROUNDUP(MONTH(Tabla_Gtos_Ingresos7[[#This Row],[Fecha]])/3, 0) -> 1 | V90: =WEEKNUM(Tabla_Gtos_Ingresos7[[#This Row],[Fecha]]) -> 7 | W90: =(Tabla_Gtos_Ingresos7[[#This Row],[Factor]]*Tabla_Gtos_Ingresos7[[#This Row],[Haber]])+(Tabla_Gtos_Ingresos7[[#This Row],[Factor]]*Tabla_Gtos_Ingresos7[[#This Row],[Debe]]) -> 267.63 | X90: =VLOOKUP(Tabla_Gtos_Ingresos7[[#This Row],[3 digitos]],PGC_Gtos_e_Ingresos[],3,FALSE) -> 1
A91: 889 | B91: 2010-05-12 | C91: 70000079 | D91: VENTA ARENA 2% | E91: FACT.FA8/85 JOSE LOPE Luis BRITO | F91: 0 | G91: 30.14 | H91: =MID(Tabla_Gtos_Ingresos7[[#This Row],[Subcuenta]],1,4) -> 7000 | I91: =VALUE(MID(Tabla_Gtos_Ingresos7[[#This Row],[4 digitos]],1,3)) -> 700 | J91: =VALUE(MID(Tabla_Gtos_Ingresos7[[#This Row],[3 digitos]],1,2)) -> 70 | K91: =VLOOKUP(Tabla_Gtos_Ingresos7[[#This Row],[3 digitos]],PGC_Gtos_e_Ingresos[],4,FALSE) -> 1a | L91: =VLOOKUP(Tabla_Gtos_Ingresos7[[#This Row],[Grupo 1]],Tabla3[],4,FALSE) -> 1. Importe Neto Cifra de Negocios | M91: =VLOOKUP(Tabla_Gtos_Ingresos7[[#This Row],[Grupo 1]],Tabla3[],5,FALSE) -> 1.a Ventas | N91: =VLOOKUP(Tabla_Gtos_Ingresos7[[#This Row],[Grupo 1]],Tabla3[],10,FALSE) -> I | O91: =VLOOKUP(Tabla_Gtos_Ingresos7[[#This Row],[Grupo 1]],Tabla3[],6,FALSE) -> Explotación | P91: =VLOOKUP(Tabla_Gtos_Ingresos7[[#This Row],[Grupo 1]],Tabla3[],2,FALSE) -> 1 | Q91: =VLOOKUP(Tabla_Gtos_Ingresos7[[#This Row],[3 digitos]],PGC_Gtos_e_Ingresos[],2,FALSE) -> Ventas de mercaderías | R91: =Tabla_Gtos_Ingresos7[[#This Row],[3 digitos]]&"/"&Tabla_Gtos_Ingresos7[[#This Row],[Nombre cuenta]] -> 700/ Ventas de mercaderías | S91: =YEAR(Tabla_Gtos_Ingresos7[[#This Row],[Fecha]]) -> 2010 | T91: =MONTH(Tabla_Gtos_Ingresos7[[#This Row],[Fecha]]) -> 5 | U91: =ROUNDUP(MONTH(Tabla_Gtos_Ingresos7[[#This Row],[Fecha]])/3, 0) -> 2 | V91: =WEEKNUM(Tabla_Gtos_Ingresos7[[#This Row],[Fecha]]) -> 20 | W91: =(Tabla_Gtos_Ingresos7[[#This Row],[Factor]]*Tabla_Gtos_Ingresos7[[#This Row],[Haber]])+(Tabla_Gtos_Ingresos7[[#This Row],[Factor]]*Tabla_Gtos_Ingresos7[[#This Row],[Debe]]) -> 30.14 | X91: =VLOOKUP(Tabla_Gtos_Ingresos7[[#This Row],[3 digitos]],PGC_Gtos_e_Ingresos[],3,FALSE) -> 1
A92: 1172 | B92: 2010-06-12 | C92: 62200036 | D92: REPARACION Y CONSERVACION | E92: FACT.887612 Maquinaria ESPAÑA | F92: 188.09 | G92: 0 | H92: =MID(Tabla_Gtos_Ingresos7[[#This Row],[Subcuenta]],1,4) -> 6220 | I92: =VALUE(MID(Tabla_Gtos_Ingresos7[[#This Row],[4 digitos]],1,3)) -> 622 | J92: =VALUE(MID(Tabla_Gtos_Ingresos7[[#This Row],[3 digitos]],1,2)) -> 62 | K92: =VLOOKUP(Tabla_Gtos_Ingresos7[[#This Row],[3 digitos]],PGC_Gtos_e_Ingresos[],4,FALSE) -> 7.a | L92: =VLOOKUP(Tabla_Gtos_Ingresos7[[#This Row],[Grupo 1]],Tabla3[],4,FALSE) -> 7. Otros Gastos de Explotación | M92: =VLOOKUP(Tabla_Gtos_Ingresos7[[#This Row],[Grupo 1]],Tabla3[],5,FALSE) -> 7.a Servicios Exteriores | N92: =VLOOKUP(Tabla_Gtos_Ingresos7[[#This Row],[Grupo 1]],Tabla3[],10,FALSE) -> G | O92: =VLOOKUP(Tabla_Gtos_Ingresos7[[#This Row],[Grupo 1]],Tabla3[],6,FALSE) -> Explotación | P92: =VLOOKUP(Tabla_Gtos_Ingresos7[[#This Row],[Grupo 1]],Tabla3[],2,FALSE) -> 7 | Q92: =VLOOKUP(Tabla_Gtos_Ingresos7[[#This Row],[3 digitos]],PGC_Gtos_e_Ingresos[],2,FALSE) -> Reparaciones y conservación | R92: =Tabla_Gtos_Ingresos7[[#This Row],[3 digitos]]&"/"&Tabla_Gtos_Ingresos7[[#This Row],[Nombre cuenta]] -> 622/ Reparaciones y conservación | S92: =YEAR(Tabla_Gtos_Ingresos7[[#This Row],[Fecha]]) -> 2010 | T92: =MONTH(Tabla_Gtos_Ingresos7[[#This Row],[Fecha]]) -> 6 | U92: =ROUNDUP(MONTH(Tabla_Gtos_Ingresos7[[#This Row],[Fecha]])/3, 0) -> 2 | V92: =WEEKNUM(Tabla_Gtos_Ingresos7[[#This Row],[Fecha]]) -> 24 | W92: =(Tabla_Gtos_Ingresos7[[#This Row],[Factor]]*Tabla_Gtos_Ingresos7[[#This Row],[Haber]])+(Tabla_Gtos_Ingresos7[[#This Row],[Factor]]*Tabla_Gtos_Ingresos7[[#This Row],[Debe]]) -> -188.09 | X92: =VLOOKUP(Tabla_Gtos_Ingresos7[[#This Row],[3 digitos]],PGC_Gtos_e_Ingresos[],3,FALSE) -> -1
A93: 1177 | B93: 2010-06-12 | C93: 62400000 | D93: GASTOS TRANSPORTES | E93: FACT.64 LUIS A. Soto Soto | F93: 3033 | G93: 0 | H93: =MID(Tabla_Gtos_Ingresos7[[#This Row],[Subcuenta]],1,4) -> 6240 | I93: =VALUE(MID(Tabla_Gtos_Ingresos7[[#This Row],[4 digitos]],1,3)) -> 624 | J93: =VALUE(MID(Tabla_Gtos_Ingresos7[[#This Row],[3 digitos]],1,2)) -> 62 | K93: =VLOOKUP(Tabla_Gtos_Ingresos7[[#This Row],[3 digitos]],PGC_Gtos_e_Ingresos[],4,FALSE) -> 7.a | L93: =VLOOKUP(Tabla_Gtos_Ingresos7[[#This Row],[Grupo 1]],Tabla3[],4,FALSE) -> 7. Otros Gastos de Explotación | M93: =VLOOKUP(Tabla_Gtos_Ingresos7[[#This Row],[Grupo 1]],Tabla3[],5,FALSE) -> 7.a Servicios Exteriores | N93: =VLOOKUP(Tabla_Gtos_Ingresos7[[#This Row],[Grupo 1]],Tabla3[],10,FALSE) -> G | O93: =VLOOKUP(Tabla_Gtos_Ingresos7[[#This Row],[Grupo 1]],Tabla3[],6,FALSE) -> Explotación | P93: =VLOOKUP(Tabla_Gtos_Ingresos7[[#This Row],[Grupo 1]],Tabla3[],2,FALSE) -> 7 | Q93: =VLOOKUP(Tabla_Gtos_Ingresos7[[#This Row],[3 digitos]],PGC_Gtos_e_Ingresos[],2,FALSE) -> Transportes | R93: =Tabla_Gtos_Ingresos7[[#This Row],[3 digitos]]&"/"&Tabla_Gtos_Ingresos7[[#This Row],[Nombre cuenta]] -> 624/ Transportes | S93: =YEAR(Tabla_Gtos_Ingresos7[[#This Row],[Fecha]]) -> 2010 | T93: =MONTH(Tabla_Gtos_Ingresos7[[#This Row],[Fecha]]) -> 6 | U93: =ROUNDUP(MONTH(Tabla_Gtos_Ingresos7[[#This Row],[Fecha]])/3, 0) -> 2 | V93: =WEEKNUM(Tabla_Gtos_Ingresos7[[#This Row],[Fecha]]) -> 24 | W93: =(Tabla_Gtos_Ingresos7[[#This Row],[Factor]]*Tabla_Gtos_Ingresos7[[#This Row],[Haber]])+(Tabla_Gtos_Ingresos7[[#This Row],[Factor]]*Tabla_Gtos_Ingresos7[[#This Row],[Debe]]) -> -3033 | X93: =VLOOKUP(Tabla_Gtos_Ingresos7[[#This Row],[3 digitos]],PGC_Gtos_e_Ingresos[],3,FALSE) -> -1
A94: 1494 | B94: 2010-07-12 | C94: 62200047 | D94: REPARACION Y CONSERVACION | E94: FACT.20100598 Trackotro | F94: 588 | G94: 0 | H94: =MID(Tabla_Gtos_Ingresos7[[#This Row],[Subcuenta]],1,4) -> 6220 | I94: =VALUE(MID(Tabla_Gtos_Ingresos7[[#This Row],[4 digitos]],1,3)) -> 622 | J94: =VALUE(MID(Tabla_Gtos_Ingresos7[[#This Row],[3 digitos]],1,2)) -> 62 | K94: =VLOOKUP(Tabla_Gtos_Ingresos7[[#This Row],[3 digitos]],PGC_Gtos_e_Ingresos[],4,FALSE) -> 7.a | L94: =VLOOKUP(Tabla_Gtos_Ingresos7[[#This Row],[Grupo 1]],Tabla3[],4,FALSE) -> 7. Otros Gastos de Explotación | M94: =VLOOKUP(Tabla_Gtos_Ingresos7[[#This Row],[Grupo 1]],Tabla3[],5,FALSE) -> 7.a Servicios Exteriores | N94: =VLOOKUP(Tabla_Gtos_Ingresos7[[#This Row],[Grupo 1]],Tabla3[],10,FALSE) -> G | O94: =VLOOKUP(Tabla_Gtos_Ingresos7[[#This Row],[Grupo 1]],Tabla3[],6,FALSE) -> Explotación | P94: =VLOOKUP(Tabla_Gtos_Ingresos7[[#This Row],[Grupo 1]],Tabla3[],2,FALSE) -> 7 | Q94: =VLOOKUP(Tabla_Gtos_Ingresos7[[#This Row],[3 digitos]],PGC_Gtos_e_Ingresos[],2,FALSE) -> Reparaciones y conservación | R94: =Tabla_Gtos_Ingresos7[[#This Row],[3 digitos]]&"/"&Tabla_Gtos_Ingresos7[[#This Row],[Nombre cuenta]] -> 622/ Reparaciones y conservación | S94: =YEAR(Tabla_Gtos_Ingresos7[[#This Row],[Fecha]]) -> 2010 | T94: =MONTH(Tabla_Gtos_Ingresos7[[#This Row],[Fecha]]) -> 7 | U94: =ROUNDUP(MONTH(Tabla_Gtos_Ingresos7[[#This Row],[Fecha]])/3, 0) -> 3 | V94: =WEEKNUM(Tabla_Gtos_Ingresos7[[#This Row],[Fecha]]) -> 29 | W94: =(Tabla_Gtos_Ingresos7[[#This Row],[Factor]]*Tabla_Gtos_Ingresos7[[#This Row],[Haber]])+(Tabla_Gtos_Ingresos7[[#This Row],[Factor]]*Tabla_Gtos_Ingresos7[[#This Row],[Debe]]) -> -588 | X94: =VLOOKUP(Tabla_Gtos_Ingresos7[[#This Row],[3 digitos]],PGC_Gtos_e_Ingresos[],3,FALSE) -> -1
A95: 2033 | B95: 2010-09-12 | C95: 60200009 | D95: COMPRA DE OTROS APROVISIONAMIENTOS | E95: FACT.1266265 Maquinaria ESPAÑA | F95: 235.2 | G95: 0 | H95: =MID(Tabla_Gtos_Ingresos7[[#This Row],[Subcuenta]],1,4) -> 6020 | I95: =VALUE(MID(Tabla_Gtos_Ingresos7[[#This Row],[4 digitos]],1,3)) -> 602 | J95: =VALUE(MID(Tabla_Gtos_Ingresos7[[#This Row],[3 digitos]],1,2)) -> 60 | K95: =VLOOKUP(Tabla_Gtos_Ingresos7[[#This Row],[3 digitos]],PGC_Gtos_e_Ingresos[],4,FALSE) -> 4.b | L95: =VLOOKUP(Tabla_Gtos_Ingresos7[[#This Row],[Grupo 1]],Tabla3[],4,FALSE) -> 4. Aprovisionamientos | M95: =VLOOKUP(Tabla_Gtos_Ingresos7[[#This Row],[Grupo 1]],Tabla3[],5,FALSE) -> 4.b Consumos MP y otros | N95: =VLOOKUP(Tabla_Gtos_Ingresos7[[#This Row],[Grupo 1]],Tabla3[],10,FALSE) -> G | O95: =VLOOKUP(Tabla_Gtos_Ingresos7[[#This Row],[Grupo 1]],Tabla3[],6,FALSE) -> Explotación | P95: =VLOOKUP(Tabla_Gtos_Ingresos7[[#This Row],[Grupo 1]],Tabla3[],2,FALSE) -> 4 | Q95: =VLOOKUP(Tabla_Gtos_Ingresos7[[#This Row],[3 digitos]],PGC_Gtos_e_Ingresos[],2,FALSE) -> Compras de otros aprovisionamientos | R95: =Tabla_Gtos_Ingresos7[[#This Row],[3 digitos]]&"/"&Tabla_Gtos_Ingresos7[[#This Row],[Nombre cuenta]] -> 602/ Compras de otros aprovisionamientos | S95: =YEAR(Tabla_Gtos_Ingresos7[[#This Row],[Fecha]]) -> 2010 | T95: =MONTH(Tabla_Gtos_Ingresos7[[#This Row],[Fecha]]) -> 9 | U95: =ROUNDUP(MONTH(Tabla_Gtos_Ingresos7[[#This Row],[Fecha]])/3, 0) -> 3 | V95: =WEEKNUM(Tabla_Gtos_Ingresos7[[#This Row],[Fecha]]) -> 38 | W95: =(Tabla_Gtos_Ingresos7[[#This Row],[Factor]]*Tabla_Gtos_Ingresos7[[#This Row],[Haber]])+(Tabla_Gtos_Ingresos7[[#This Row],[Factor]]*Tabla_Gtos_Ingresos7[[#This Row],[Debe]]) -> -235.2 | X95: =VLOOKUP(Tabla_Gtos_Ingresos7[[#This Row],[3 digitos]],PGC_Gtos_e_Ingresos[],3,FALSE) -> -1
A96: 2034 | B96: 2010-09-12 | C96: 62200056 | D96: REPARACION Y CONSERVACION | E96: FACT.AV/5167 ANTONIO J. Pinto Pérez | F96: 7.96 | G96: 0 | H96: =MID(Tabla_Gtos_Ingresos7[[#This Row],[Subcuenta]],1,4) -> 6220 | I96: =VALUE(MID(Tabla_Gtos_Ingresos7[[#This Row],[4 digitos]],1,3)) -> 622 | J96: =VALUE(MID(Tabla_Gtos_Ingresos7[[#This Row],[3 digitos]],1,2)) -> 62 | K96: =VLOOKUP(Tabla_Gtos_Ingresos7[[#This Row],[3 digitos]],PGC_Gtos_e_Ingresos[],4,FALSE) -> 7.a | L96: =VLOOKUP(Tabla_Gtos_Ingresos7[[#This Row],[Grupo 1]],Tabla3[],4,FALSE) -> 7. Otros Gastos de Explotación | M96: =VLOOKUP(Tabla_Gtos_Ingresos7[[#This Row],[Grupo 1]],Tabla3[],5,FALSE) -> 7.a Servicios Exteriores | N96: =VLOOKUP(Tabla_Gtos_Ingresos7[[#This Row],[Grupo 1]],Tabla3[],10,FALSE) -> G | O96: =VLOOKUP(Tabla_Gtos_Ingresos7[[#This Row],[Grupo 1]],Tabla3[],6,FALSE) -> Explotación | P96: =VLOOKUP(Tabla_Gtos_Ingresos7[[#This Row],[Grupo 1]],Tabla3[],2,FALSE) -> 7 | Q96: =VLOOKUP(Tabla_Gtos_Ingresos7[[#This Row],[3 digitos]],PGC_Gtos_e_Ingresos[],2,FALSE) -> Reparaciones y conservación | R96: =Tabla_Gtos_Ingresos7[[#This Row],[3 digitos]]&"/"&Tabla_Gtos_Ingresos7[[#This Row],[Nombre cuenta]] -> 622/ Reparaciones y conservación | S96: =YEAR(Tabla_Gtos_Ingresos7[[#This Row],[Fecha]]) -> 2010 | T96: =MONTH(Tabla_Gtos_Ingresos7[[#This Row],[Fecha]]) -> 9 | U96: =ROUNDUP(MONTH(Tabla_Gtos_Ingresos7[[#This Row],[Fecha]])/3, 0) -> 3 | V96: =WEEKNUM(Tabla_Gtos_Ingresos7[[#This Row],[Fecha]]) -> 38 | W96: =(Tabla_Gtos_Ingresos7[[#This Row],[Factor]]*Tabla_Gtos_Ingresos7[[#This Row],[Haber]])+(Tabla_Gtos_Ingresos7[[#This Row],[Factor]]*Tabla_Gtos_Ingresos7[[#This Row],[Debe]]) -> -7.96 | X96: =VLOOKUP(Tabla_Gtos_Ingresos7[[#This Row],[3 digitos]],PGC_Gtos_e_Ingresos[],3,FALSE) -> -1
A97: 2035 | B97: 2010-09-12 | C97: 62400014 | D97: GASTOS TRANSPORTES | E97: FACT.8339 Seur Canarias | F97: 794.7 | G97: 0 | H97: =MID(Tabla_Gtos_Ingresos7[[#This Row],[Subcuenta]],1,4) -> 6240 | I97: =VALUE(MID(Tabla_Gtos_Ingresos7[[#This Row],[4 digitos]],1,3)) -> 624 | J97: =VALUE(MID(Tabla_Gtos_Ingresos7[[#This Row],[3 digitos]],1,2)) -> 62 | K97: =VLOOKUP(Tabla_Gtos_Ingresos7[[#This Row],[3 digitos]],PGC_Gtos_e_Ingresos[],4,FALSE) -> 7.a | L97: =VLOOKUP(Tabla_Gtos_Ingresos7[[#This Row],[Grupo 1]],Tabla3[],4,FALSE) -> 7. Otros Gastos de Explotación | M97: =VLOOKUP(Tabla_Gtos_Ingresos7[[#This Row],[Grupo 1]],Tabla3[],5,FALSE) -> 7.a Servicios Exteriores | N97: =VLOOKUP(Tabla_Gtos_Ingresos7[[#This Row],[Grupo 1]],Tabla3[],10,FALSE) -> G | O97: =VLOOKUP(Tabla_Gtos_Ingresos7[[#This Row],[Grupo 1]],Tabla3[],6,FALSE) -> Explotación | P97: =VLOOKUP(Tabla_Gtos_Ingresos7[[#This Row],[Grupo 1]],Tabla3[],2,FALSE) -> 7 | Q97: =VLOOKUP(Tabla_Gtos_Ingresos7[[#This Row],[3 digitos]],PGC_Gtos_e_Ingresos[],2,FALSE) -> Transportes | R97: =Tabla_Gtos_Ingresos7[[#This Row],[3 digitos]]&"/"&Tabla_Gtos_Ingresos7[[#This Row],[Nombre cuenta]] -> 624/ Transportes | S97: =YEAR(Tabla_Gtos_Ingresos7[[#This Row],[Fecha]]) -> 2010 | T97: =MONTH(Tabla_Gtos_Ingresos7[[#This Row],[Fecha]]) -> 9 | U97: =ROUNDUP(MONTH(Tabla_Gtos_Ingresos7[[#This Row],[Fecha]])/3, 0) -> 3 | V97: =WEEKNUM(Tabla_Gtos_Ingresos7[[#This Row],[Fecha]]) -> 38 | W97: =(Tabla_Gtos_Ingresos7[[#This Row],[Factor]]*Tabla_Gtos_Ingresos7[[#This Row],[Haber]])+(Tabla_Gtos_Ingresos7[[#This Row],[Factor]]*Tabla_Gtos_Ingresos7[[#This Row],[Debe]]) -> -794.7 | X97: =VLOOKUP(Tabla_Gtos_Ingresos7[[#This Row],[3 digitos]],PGC_Gtos_e_Ingresos[],3,FALSE) -> -1
A98: 2036 | B98: 2010-09-12 | C98: 62400015 | D98: GASTOS TRANSPORTES | E98: FACT.8344 Seur Canarias | F98: 794.7 | G98: 0 | H98: =MID(Tabla_Gtos_Ingresos7[[#This Row],[Subcuenta]],1,4) -> 6240 | I98: =VALUE(MID(Tabla_Gtos_Ingresos7[[#This Row],[4 digitos]],1,3)) -> 624 | J98: =VALUE(MID(Tabla_Gtos_Ingresos7[[#This Row],[3 digitos]],1,2)) -> 62 | K98: =VLOOKUP(Tabla_Gtos_Ingresos7[[#This Row],[3 digitos]],PGC_Gtos_e_Ingresos[],4,FALSE) -> 7.a | L98: =VLOOKUP(Tabla_Gtos_Ingresos7[[#This Row],[Grupo 1]],Tabla3[],4,FALSE) -> 7. Otros Gastos de Explotación | M98: =VLOOKUP(Tabla_Gtos_Ingresos7[[#This Row],[Grupo 1]],Tabla3[],5,FALSE) -> 7.a Servicios Exteriores | N98: =VLOOKUP(Tabla_Gtos_Ingresos7[[#This Row],[Grupo 1]],Tabla3[],10,FALSE) -> G | O98: =VLOOKUP(Tabla_Gtos_Ingresos7[[#This Row],[Grupo 1]],Tabla3[],6,FALSE) -> Explotación | P98: =VLOOKUP(Tabla_Gtos_Ingresos7[[#This Row],[Grupo 1]],Tabla3[],2,FALSE) -> 7 | Q98: =VLOOKUP(Tabla_Gtos_Ingresos7[[#This Row],[3 digitos]],PGC_Gtos_e_Ingresos[],2,FALSE) -> Transportes | R98: =Tabla_Gtos_Ingresos7[[#This Row],[3 digitos]]&"/"&Tabla_Gtos_Ingresos7[[#This Row],[Nombre cuenta]] -> 624/ Transportes | S98: =YEAR(Tabla_Gtos_Ingresos7[[#This Row],[Fecha]]) -> 2010 | T98: =MONTH(Tabla_Gtos_Ingresos7[[#This Row],[Fecha]]) -> 9 | U98: =ROUNDUP(MONTH(Tabla_Gtos_Ingresos7[[#This Row],[Fecha]])/3, 0) -> 3 | V98: =WEEKNUM(Tabla_Gtos_Ingresos7[[#This Row],[Fecha]]) -> 38 | W98: =(Tabla_Gtos_Ingresos7[[#This Row],[Factor]]*Tabla_Gtos_Ingresos7[[#This Row],[Haber]])+(Tabla_Gtos_Ingresos7[[#This Row],[Factor]]*Tabla_Gtos_Ingresos7[[#This Row],[Debe]]) -> -794.7 | X98: =VLOOKUP(Tabla_Gtos_Ingresos7[[#This Row],[3 digitos]],PGC_Gtos_e_Ingresos[],3,FALSE) -> -1
A99: 2037 | B99: 2010-09-12 | C99: 62400016 | D99: GASTOS TRANSPORTES | E99: FACT.8342 Seur Canarias | F99: 794.7 | G99: 0 | H99: =MID(Tabla_Gtos_Ingresos7[[#This Row],[Subcuenta]],1,4) -> 6240 | I99: =VALUE(MID(Tabla_Gtos_Ingresos7[[#This Row],[4 digitos]],1,3)) -> 624 | J99: =VALUE(MID(Tabla_Gtos_Ingresos7[[#This Row],[3 digitos]],1,2)) -> 62 | K99: =VLOOKUP(Tabla_Gtos_Ingresos7[[#This Row],[3 digitos]],PGC_Gtos_e_Ingresos[],4,FALSE) -> 7.a | L99: =VLOOKUP(Tabla_Gtos_Ingresos7[[#This Row],[Grupo 1]],Tabla3[],4,FALSE) -> 7. Otros Gastos de Explotación | M99: =VLOOKUP(Tabla_Gtos_Ingresos7[[#This Row],[Grupo 1]],Tabla3[],5,FALSE) -> 7.a Servicios Exteriores | N99: =VLOOKUP(Tabla_Gtos_Ingresos7[[#This Row],[Grupo 1]],Tabla3[],10,FALSE) -> G | O99: =VLOOKUP(Tabla_Gtos_Ingresos7[[#This Row],[Grupo 1]],Tabla3[],6,FALSE) -> Explotación | P99: =VLOOKUP(Tabla_Gtos_Ingresos7[[#This Row],[Grupo 1]],Tabla3[],2,FALSE) -> 7 | Q99: =VLOOKUP(Tabla_Gtos_Ingresos7[[#This Row],[3 digitos]],PGC_Gtos_e_Ingresos[],2,FALSE) -> Transportes | R99: =Tabla_Gtos_Ingresos7[[#This Row],[3 digitos]]&"/"&Tabla_Gtos_Ingresos7[[#This Row],[Nombre cuenta]] -> 624/ Transportes | S99: =YEAR(Tabla_Gtos_Ingresos7[[#This Row],[Fecha]]) -> 2010 | T99: =MONTH(Tabla_Gtos_Ingresos7[[#This Row],[Fecha]]) -> 9 | U99: =ROUNDUP(MONTH(Tabla_Gtos_Ingresos7[[#This Row],[Fecha]])/3, 0) -> 3 | V99: =WEEKNUM(Tabla_Gtos_Ingresos7[[#This Row],[Fecha]]) -> 38 | W99: =(Tabla_Gtos_Ingresos7[[#This Row],[Factor]]*Tabla_Gtos_Ingresos7[[#This Row],[Haber]])+(Tabla_Gtos_Ingresos7[[#This Row],[Factor]]*Tabla_Gtos_Ingresos7[[#This Row],[Debe]]) -> -794.7 | X99: =VLOOKUP(Tabla_Gtos_Ingresos7[[#This Row],[3 digitos]],PGC_Gtos_e_Ingresos[],3,FALSE) -> -1
A100: 2038 | B100: 2010-09-12 | C100: 62400017 | D100: GASTOS TRANSPORTES | E100: FACT.8350 Seur Canarias | F100: 794.7 | G100: 0 | H100: =MID(Tabla_Gtos_Ingresos7[[#This Row],[Subcuenta]],1,4) -> 6240 | I100: =VALUE(MID(Tabla_Gtos_Ingresos7[[#This Row],[4 digitos]],1,3)) -> 624 | J100: =VALUE(MID(Tabla_Gtos_Ingresos7[[#This Row],[3 digitos]],1,2)) -> 62 | K100: =VLOOKUP(Tabla_Gtos_Ingresos7[[#This Row],[3 digitos]],PGC_Gtos_e_Ingresos[],4,FALSE) -> 7.a | L100: =VLOOKUP(Tabla_Gtos_Ingresos7[[#This Row],[Grupo 1]],Tabla3[],4,FALSE) -> 7. Otros Gastos de Explotación | M100: =VLOOKUP(Tabla_Gtos_Ingresos7[[#This Row],[Grupo 1]],Tabla3[],5,FALSE) -> 7.a Servicios Exteriores | N100: =VLOOKUP(Tabla_Gtos_Ingresos7[[#This Row],[Grupo 1]],Tabla3[],10,FALSE) -> G | O100: =VLOOKUP(Tabla_Gtos_Ingresos7[[#This Row],[Grupo 1]],Tabla3[],6,FALSE) -> Explotación | P100: =VLOOKUP(Tabla_Gtos_Ingresos7[[#This Row],[Grupo 1]],Tabla3[],2,FALSE) -> 7 | Q100: =VLOOKUP(Tabla_Gtos_Ingresos7[[#This Row],[3 digitos]],PGC_Gtos_e_Ingresos[],2,FALSE) -> Transportes | R100: =Tabla_Gtos_Ingresos7[[#This Row],[3 digitos]]&"/"&Tabla_Gtos_Ingresos7[[#This Row],[Nombre cuenta]] -> 624/ Transportes | S100: =YEAR(Tabla_Gtos_Ingresos7[[#This Row],[Fecha]]) -> 2010 | T100: =MONTH(Tabla_Gtos_Ingresos7[[#This Row],[Fecha]]) -> 9 | U100: =ROUNDUP(MONTH(Tabla_Gtos_Ingresos7[[#This Row],[Fecha]])/3, 0) -> 3 | V100: =WEEKNUM(Tabla_Gtos_Ingresos7[[#This Row],[Fecha]]) -> 38 | W100: =(Tabla_Gtos_Ingresos7[[#This Row],[Factor]]*Tabla_Gtos_Ingresos7[[#This Row],[Haber]])+(Tabla_Gtos_Ingresos7[[#This Row],[Factor]]*Tabla_Gtos_Ingresos7[[#This Row],[Debe]]) -> -794.7 | X100: =VLOOKUP(Tabla_Gtos_Ingresos7[[#This Row],[3 digitos]],PGC_Gtos_e_Ingresos[],3,FALSE) -> -1
A101: 2039 | B101: 2010-09-12 | C101: 62400018 | D101: GASTOS TRANSPORTES | E101: FACT.8352 Seur Canarias | F101: 128.52 | G101: 0 | H101: =MID(Tabla_Gtos_Ingresos7[[#This Row],[Subcuenta]],1,4) -> 6240 | I101: =VALUE(MID(Tabla_Gtos_Ingresos7[[#This Row],[4 digitos]],1,3)) -> 624 | J101: =VALUE(MID(Tabla_Gtos_Ingresos7[[#This Row],[3 digitos]],1,2)) -> 62 | K101: =VLOOKUP(Tabla_Gtos_Ingresos7[[#This Row],[3 digitos]],PGC_Gtos_e_Ingresos[],4,FALSE) -> 7.a | L101: =VLOOKUP(Tabla_Gtos_Ingresos7[[#This Row],[Grupo 1]],Tabla3[],4,FALSE) -> 7. Otros Gastos de Explotación | M101: =VLOOKUP(Tabla_Gtos_Ingresos7[[#This Row],[Grupo 1]],Tabla3[],5,FALSE) -> 7.a Servicios Exteriores | N101: =VLOOKUP(Tabla_Gtos_Ingresos7[[#This Row],[Grupo 1]],Tabla3[],10,FALSE) -> G | O101: =VLOOKUP(Tabla_Gtos_Ingresos7[[#This Row],[Grupo 1]],Tabla3[],6,FALSE) -> Explotación | P101: =VLOOKUP(Tabla_Gtos_Ingresos7[[#This Row],[Grupo 1]],Tabla3[],2,FALSE) -> 7 | Q101: =VLOOKUP(Tabla_Gtos_Ingresos7[[#This Row],[3 digitos]],PGC_Gtos_e_Ingresos[],2,FALSE) -> Transportes | R101: =Tabla_Gtos_Ingresos7[[#This Row],[3 digitos]]&"/"&Tabla_Gtos_Ingresos7[[#This Row],[Nombre cuenta]] -> 624/ Transportes | S101: =YEAR(Tabla_Gtos_Ingresos7[[#This Row],[Fecha]]) -> 2010 | T101: =MONTH(Tabla_Gtos_Ingresos7[[#This Row],[Fecha]]) -> 9 | U101: =ROUNDUP(MONTH(Tabla_Gtos_Ingresos7[[#This Row],[Fecha]])/3, 0) -> 3 | V101: =WEEKNUM(Tabla_Gtos_Ingresos7[[#This Row],[Fecha]]) -> 38 | W101: =(Tabla_Gtos_Ingresos7[[#This Row],[Factor]]*Tabla_Gtos_Ingresos7[[#This Row],[Haber]])+(Tabla_Gtos_Ingresos7[[#This Row],[Factor]]*Tabla_Gtos_Ingresos7[[#This Row],[Debe]]) -> -128.52 | X101: =VLOOKUP(Tabla_Gtos_Ingresos7[[#This Row],[3 digitos]],PGC_Gtos_e_Ingresos[],3,FALSE) -> -1
A102: 901 | B102: 2010-05-13 | C102: 62200023 | D102: REPARACION Y CONSERVACION | E102: FACT.2010001020 REPUETOS La Isla | F102: 275.99 | G102: 0 | H102: =MID(Tabla_Gtos_Ingresos7[[#This Row],[Subcuenta]],1,4) -> 6220 | I102: =VALUE(MID(Tabla_Gtos_Ingresos7[[#This Row],[4 digitos]],1,3)) -> 622 | J102: =VALUE(MID(Tabla_Gtos_Ingresos7[[#This Row],[3 digitos]],1,2)) -> 62 | K102: =VLOOKUP(Tabla_Gtos_Ingresos7[[#This Row],[3 digitos]],PGC_Gtos_e_Ingresos[],4,FALSE) -> 7.a | L102: =VLOOKUP(Tabla_Gtos_Ingresos7[[#This Row],[Grupo 1]],Tabla3[],4,FALSE) -> 7. Otros Gastos de Explotación | M102: =VLOOKUP(Tabla_Gtos_Ingresos7[[#This Row],[Grupo 1]],Tabla3[],5,FALSE) -> 7.a Servicios Exteriores | N102: =VLOOKUP(Tabla_Gtos_Ingresos7[[#This Row],[Grupo 1]],Tabla3[],10,FALSE) -> G | O102: =VLOOKUP(Tabla_Gtos_Ingresos7[[#This Row],[Grupo 1]],Tabla3[],6,FALSE) -> Explotación | P102: =VLOOKUP(Tabla_Gtos_Ingresos7[[#This Row],[Grupo 1]],Tabla3[],2,FALSE) -> 7 | Q102: =VLOOKUP(Tabla_Gtos_Ingresos7[[#This Row],[3 digitos]],PGC_Gtos_e_Ingresos[],2,FALSE) -> Reparaciones y conservación | R102: =Tabla_Gtos_Ingresos7[[#This Row],[3 digitos]]&"/"&Tabla_Gtos_Ingresos7[[#This Row],[Nombre cuenta]] -> 622/ Reparaciones y conservación | S102: =YEAR(Tabla_Gtos_Ingresos7[[#This Row],[Fecha]]) -> 2010 | T102: =MONTH(Tabla_Gtos_Ingresos7[[#This Row],[Fecha]]) -> 5 | U102: =ROUNDUP(MONTH(Tabla_Gtos_Ingresos7[[#This Row],[Fecha]])/3, 0) -> 2 | V102: =WEEKNUM(Tabla_Gtos_Ingresos7[[#This Row],[Fecha]]) -> 20 | W102: =(Tabla_Gtos_Ingresos7[[#This Row],[Factor]]*Tabla_Gtos_Ingresos7[[#This Row],[Haber]])+(Tabla_Gtos_Ingresos7[[#This Row],[Factor]]*Tabla_Gtos_Ingresos7[[#This Row],[Debe]]) -> -275.99 | X102: =VLOOKUP(Tabla_Gtos_Ingresos7[[#This Row],[3 digitos]],PGC_Gtos_e_Ingresos[],3,FALSE) -> -1
A103: 903 | B103: 2010-05-13 | C103: 62900005 | D103: OTROS GASTOS DE EXPLOTACION | E103: RECIBO CABILDO Insular TASA CALIF.TERRITORI. | F103: 44.05 | G103: 0 | H103: =MID(Tabla_Gtos_Ingresos7[[#This Row],[Subcuenta]],1,4) -> 6290 | I103: =VALUE(MID(Tabla_Gtos_Ingresos7[[#This Row],[4 digitos]],1,3)) -> 629 | J103: =VALUE(MID(Tabla_Gtos_Ingresos7[[#This Row],[3 digitos]],1,2)) -> 62 | K103: =VLOOKUP(Tabla_Gtos_Ingresos7[[#This Row],[3 digitos]],PGC_Gtos_e_Ingresos[],4,FALSE) -> 7.a | L103: =VLOOKUP(Tabla_Gtos_Ingresos7[[#This Row],[Grupo 1]],Tabla3[],4,FALSE) -> 7. Otros Gastos de Explotación | M103: =VLOOKUP(Tabla_Gtos_Ingresos7[[#This Row],[Grupo 1]],Tabla3[],5,FALSE) -> 7.a Servicios Exteriores | N103: =VLOOKUP(Tabla_Gtos_Ingresos7[[#This Row],[Grupo 1]],Tabla3[],10,FALSE) -> G | O103: =VLOOKUP(Tabla_Gtos_Ingresos7[[#This Row],[Grupo 1]],Tabla3[],6,FALSE) -> Explotación | P103: =VLOOKUP(Tabla_Gtos_Ingresos7[[#This Row],[Grupo 1]],Tabla3[],2,FALSE) -> 7 | Q103: =VLOOKUP(Tabla_Gtos_Ingresos7[[#This Row],[3 digitos]],PGC_Gtos_e_Ingresos[],2,FALSE) -> Otros servicios | R103: =Tabla_Gtos_Ingresos7[[#This Row],[3 digitos]]&"/"&Tabla_Gtos_Ingresos7[[#This Row],[Nombre cuenta]] -> 629/ Otros servicios | S103: =YEAR(Tabla_Gtos_Ingresos7[[#This Row],[Fecha]]) -> 2010 | T103: =MONTH(Tabla_Gtos_Ingresos7[[#This Row],[Fecha]]) -> 5 | U103: =ROUNDUP(MONTH(Tabla_Gtos_Ingresos7[[#This Row],[Fecha]])/3, 0) -> 2 | V103: =WEEKNUM(Tabla_Gtos_Ingresos7[[#This Row],[Fecha]]) -> 20 | W103: =(Tabla_Gtos_Ingresos7[[#This Row],[Factor]]*Tabla_Gtos_Ingresos7[[#This Row],[Haber]])+(Tabla_Gtos_Ingresos7[[#This Row],[Factor]]*Tabla_Gtos_Ingresos7[[#This Row],[Debe]]) -> -44.05 | X103: =VLOOKUP(Tabla_Gtos_Ingresos7[[#This Row],[3 digitos]],PGC_Gtos_e_Ingresos[],3,FALSE) -> -1
A104: 1185 | B104: 2010-06-13 | C104: 70000099 | D104: VENTA ARENA 2% | E104: FACT.FA8/110 Agustin AVILA AVILA | F104: 0 | G104: 117.11 | H104: =MID(Tabla_Gtos_Ingresos7[[#This Row],[Subcuenta]],1,4) -> 7000 | I104: =VALUE(MID(Tabla_Gtos_Ingresos7[[#This Row],[4 digitos]],1,3)) -> 700 | J104: =VALUE(MID(Tabla_Gtos_Ingresos7[[#This Row],[3 digitos]],1,2)) -> 70 | K104: =VLOOKUP(Tabla_Gtos_Ingresos7[[#This Row],[3 digitos]],PGC_Gtos_e_Ingresos[],4,FALSE) -> 1a | L104: =VLOOKUP(Tabla_Gtos_Ingresos7[[#This Row],[Grupo 1]],Tabla3[],4,FALSE) -> 1. Importe Neto Cifra de Negocios | M104: =VLOOKUP(Tabla_Gtos_Ingresos7[[#This Row],[Grupo 1]],Tabla3[],5,FALSE) -> 1.a Ventas | N104: =VLOOKUP(Tabla_Gtos_Ingresos7[[#This Row],[Grupo 1]],Tabla3[],10,FALSE) -> I | O104: =VLOOKUP(Tabla_Gtos_Ingresos7[[#This Row],[Grupo 1]],Tabla3[],6,FALSE) -> Explotación | P104: =VLOOKUP(Tabla_Gtos_Ingresos7[[#This Row],[Grupo 1]],Tabla3[],2,FALSE) -> 1 | Q104: =VLOOKUP(Tabla_Gtos_Ingresos7[[#This Row],[3 digitos]],PGC_Gtos_e_Ingresos[],2,FALSE) -> Ventas de mercaderías | R104: =Tabla_Gtos_Ingresos7[[#This Row],[3 digitos]]&"/"&Tabla_Gtos_Ingresos7[[#This Row],[Nombre cuenta]] -> 700/ Ventas de mercaderías | S104: =YEAR(Tabla_Gtos_Ingresos7[[#This Row],[Fecha]]) -> 2010 | T104: =MONTH(Tabla_Gtos_Ingresos7[[#This Row],[Fecha]]) -> 6 | U104: =ROUNDUP(MONTH(Tabla_Gtos_Ingresos7[[#This Row],[Fecha]])/3, 0) -> 2 | V104: =WEEKNUM(Tabla_Gtos_Ingresos7[[#This Row],[Fecha]]) -> 25 | W104: =(Tabla_Gtos_Ingresos7[[#This Row],[Factor]]*Tabla_Gtos_Ingresos7[[#This Row],[Haber]])+(Tabla_Gtos_Ingresos7[[#This Row],[Factor]]*Tabla_Gtos_Ingresos7[[#This Row],[Debe]]) -> 117.11 | X104: =VLOOKUP(Tabla_Gtos_Ingresos7[[#This Row],[3 digitos]],PGC_Gtos_e_Ingresos[],3,FALSE) -> 1
A105: 2321 | B105: 2010-10-13 | C105: 62200064 | D105: REPARACION Y CONSERVACION | E105: FACT.2010001895 REPUESTOS La Isla | F105: 72.58 | G105: 0 | H105: =MID(Tabla_Gtos_Ingresos7[[#This Row],[Subcuenta]],1,4) -> 6220 | I105: =VALUE(MID(Tabla_Gtos_Ingresos7[[#This Row],[4 digitos]],1,3)) -> 622 | J105: =VALUE(MID(Tabla_Gtos_Ingresos7[[#This Row],[3 digitos]],1,2)) -> 62 | K105: =VLOOKUP(Tabla_Gtos_Ingresos7[[#This Row],[3 digitos]],PGC_Gtos_e_Ingresos[],4,FALSE) -> 7.a | L105: =VLOOKUP(Tabla_Gtos_Ingresos7[[#This Row],[Grupo 1]],Tabla3[],4,FALSE) -> 7. Otros Gastos de Explotación | M105: =VLOOKUP(Tabla_Gtos_Ingresos7[[#This Row],[Grupo 1]],Tabla3[],5,FALSE) -> 7.a Servicios Exteriores | N105: =VLOOKUP(Tabla_Gtos_Ingresos7[[#This Row],[Grupo 1]],Tabla3[],10,FALSE) -> G | O105: =VLOOKUP(Tabla_Gtos_Ingresos7[[#This Row],[Grupo 1]],Tabla3[],6,FALSE) -> Explotación | P105: =VLOOKUP(Tabla_Gtos_Ingresos7[[#This Row],[Grupo 1]],Tabla3[],2,FALSE) -> 7 | Q105: =VLOOKUP(Tabla_Gtos_Ingresos7[[#This Row],[3 digitos]],PGC_Gtos_e_Ingresos[],2,FALSE) -> Reparaciones y conservación | R105: =Tabla_Gtos_Ingresos7[[#This Row],[3 digitos]]&"/"&Tabla_Gtos_Ingresos7[[#This Row],[Nombre cuenta]] -> 622/ Reparaciones y conservación | S105: =YEAR(Tabla_Gtos_Ingresos7[[#This Row],[Fecha]]) -> 2010 | T105: =MONTH(Tabla_Gtos_Ingresos7[[#This Row],[Fecha]]) -> 10 | U105: =ROUNDUP(MONTH(Tabla_Gtos_Ingresos7[[#This Row],[Fecha]])/3, 0) -> 4 | V105: =WEEKNUM(Tabla_Gtos_Ingresos7[[#This Row],[Fecha]]) -> 42 | W105: =(Tabla_Gtos_Ingresos7[[#This Row],[Factor]]*Tabla_Gtos_Ingresos7[[#This Row],[Haber]])+(Tabla_Gtos_Ingresos7[[#This Row],[Factor]]*Tabla_Gtos_Ingresos7[[#This Row],[Debe]]) -> -72.58 | X105: =VLOOKUP(Tabla_Gtos_Ingresos7[[#This Row],[3 digitos]],PGC_Gtos_e_Ingresos[],3,FALSE) -> -1
A106: 2320 | B106: 2010-10-13 | C106: 62400039 | D106: GASTOS TRANSPORTES | E106: FACT.435 C. Candita, S.L. | F106: 25924.64 | G106: 0 | H106: =MID(Tabla_Gtos_Ingresos7[[#This Row],[Subcuenta]],1,4) -> 6240 | I106: =VALUE(MID(Tabla_Gtos_Ingresos7[[#This Row],[4 digitos]],1,3)) -> 624 | J106: =VALUE(MID(Tabla_Gtos_Ingresos7[[#This Row],[3 digitos]],1,2)) -> 62 | K106: =VLOOKUP(Tabla_Gtos_Ingresos7[[#This Row],[3 digitos]],PGC_Gtos_e_Ingresos[],4,FALSE) -> 7.a | L106: =VLOOKUP(Tabla_Gtos_Ingresos7[[#This Row],[Grupo 1]],Tabla3[],4,FALSE) -> 7. Otros Gastos de Explotación | M106: =VLOOKUP(Tabla_Gtos_Ingresos7[[#This Row],[Grupo 1]],Tabla3[],5,FALSE) -> 7.a Servicios Exteriores | N106: =VLOOKUP(Tabla_Gtos_Ingresos7[[#This Row],[Grupo 1]],Tabla3[],10,FALSE) -> G | O106: =VLOOKUP(Tabla_Gtos_Ingresos7[[#This Row],[Grupo 1]],Tabla3[],6,FALSE) -> Explotación | P106: =VLOOKUP(Tabla_Gtos_Ingresos7[[#This Row],[Grupo 1]],Tabla3[],2,FALSE) -> 7 | Q106: =VLOOKUP(Tabla_Gtos_Ingresos7[[#This Row],[3 digitos]],PGC_Gtos_e_Ingresos[],2,FALSE) -> Transportes | R106: =Tabla_Gtos_Ingresos7[[#This Row],[3 digitos]]&"/"&Tabla_Gtos_Ingresos7[[#This Row],[Nombre cuenta]] -> 624/ Transportes | S106: =YEAR(Tabla_Gtos_Ingresos7[[#This Row],[Fecha]]) -> 2010 | T106: =MONTH(Tabla_Gtos_Ingresos7[[#This Row],[Fecha]]) -> 10 | U106: =ROUNDUP(MONTH(Tabla_Gtos_Ingresos7[[#This Row],[Fecha]])/3, 0) -> 4 | V106: =WEEKNUM(Tabla_Gtos_Ingresos7[[#This Row],[Fecha]]) -> 42 | W106: =(Tabla_Gtos_Ingresos7[[#This Row],[Factor]]*Tabla_Gtos_Ingresos7[[#This Row],[Haber]])+(Tabla_Gtos_Ingresos7[[#This Row],[Factor]]*Tabla_Gtos_Ingresos7[[#This Row],[Debe]]) -> -25924.64 | X106: =VLOOKUP(Tabla_Gtos_Ingresos7[[#This Row],[3 digitos]],PGC_Gtos_e_Ingresos[],3,FALSE) -> -1
A107: 2619 | B107: 2010-11-13 | C107: 70000201 | D107: VENTA ARENA 2% | E107: FACT.FA8/225 CONSTRUC. Verga | F107: 0 | G107: 106.7 | H107: =MID(Tabla_Gtos_Ingresos7[[#This Row],[Subcuenta]],1,4) -> 7000 | I107: =VALUE(MID(Tabla_Gtos_Ingresos7[[#This Row],[4 digitos]],1,3)) -> 700 | J107: =VALUE(MID(Tabla_Gtos_Ingresos7[[#This Row],[3 digitos]],1,2)) -> 70 | K107: =VLOOKUP(Tabla_Gtos_Ingresos7[[#This Row],[3 digitos]],PGC_Gtos_e_Ingresos[],4,FALSE) -> 1a | L107: =VLOOKUP(Tabla_Gtos_Ingresos7[[#This Row],[Grupo 1]],Tabla3[],4,FALSE) -> 1. Importe Neto Cifra de Negocios | M107: =VLOOKUP(Tabla_Gtos_Ingresos7[[#This Row],[Grupo 1]],Tabla3[],5,FALSE) -> 1.a Ventas | N107: =VLOOKUP(Tabla_Gtos_Ingresos7[[#This Row],[Grupo 1]],Tabla3[],10,FALSE) -> I | O107: =VLOOKUP(Tabla_Gtos_Ingresos7[[#This Row],[Grupo 1]],Tabla3[],6,FALSE) -> Explotación | P107: =VLOOKUP(Tabla_Gtos_Ingresos7[[#This Row],[Grupo 1]],Tabla3[],2,FALSE) -> 1 | Q107: =VLOOKUP(Tabla_Gtos_Ingresos7[[#This Row],[3 digitos]],PGC_Gtos_e_Ingresos[],2,FALSE) -> Ventas de mercaderías | R107: =Tabla_Gtos_Ingresos7[[#This Row],[3 digitos]]&"/"&Tabla_Gtos_Ingresos7[[#This Row],[Nombre cuenta]] -> 700/ Ventas de mercaderías | S107: =YEAR(Tabla_Gtos_Ingresos7[[#This Row],[Fecha]]) -> 2010 | T107: =MONTH(Tabla_Gtos_Ingresos7[[#This Row],[Fecha]]) -> 11 | U107: =ROUNDUP(MONTH(Tabla_Gtos_Ingresos7[[#This Row],[Fecha]])/3, 0) -> 4 | V107: =WEEKNUM(Tabla_Gtos_Ingresos7[[#This Row],[Fecha]]) -> 46 | W107: =(Tabla_Gtos_Ingresos7[[#This Row],[Factor]]*Tabla_Gtos_Ingresos7[[#This Row],[Haber]])+(Tabla_Gtos_Ingresos7[[#This Row],[Factor]]*Tabla_Gtos_Ingresos7[[#This Row],[Debe]]) -> 106.7 | X107: =VLOOKUP(Tabla_Gtos_Ingresos7[[#This Row],[3 digitos]],PGC_Gtos_e_Ingresos[],3,FALSE) -> 1
A108: 64 | B108: 2010-01-14 | C108: 60800000 | D108: DEVOLUCION DE COMPRAS Y OPERACIONES | E108: DEVOL.FACTS.REPUESTOS La Isla | F108: 0 | G108: 351.87 | H108: =MID(Tabla_Gtos_Ingresos7[[#This Row],[Subcuenta]],1,4) -> 6080 | I108: =VALUE(MID(Tabla_Gtos_Ingresos7[[#This Row],[4 digitos]],1,3)) -> 608 | J108: =VALUE(MID(Tabla_Gtos_Ingresos7[[#This Row],[3 digitos]],1,2)) -> 60 | K108: =VLOOKUP(Tabla_Gtos_Ingresos7[[#This Row],[3 digitos]],PGC_Gtos_e_Ingresos[],4,FALSE) -> 4.a | L108: =VLOOKUP(Tabla_Gtos_Ingresos7[[#This Row],[Grupo 1]],Tabla3[],4,FALSE) -> 4. Aprovisionamientos | M108: =VLOOKUP(Tabla_Gtos_Ingresos7[[#This Row],[Grupo 1]],Tabla3[],5,FALSE) -> 4.a Consumos de Mercaderias | N108: =VLOOKUP(Tabla_Gtos_Ingresos7[[#This Row],[Grupo 1]],Tabla3[],10,FALSE) -> G | O108: =VLOOKUP(Tabla_Gtos_Ingresos7[[#This Row],[Grupo 1]],Tabla3[],6,FALSE) -> Explotación | P108: =VLOOKUP(Tabla_Gtos_Ingresos7[[#This Row],[Grupo 1]],Tabla3[],2,FALSE) -> 4 | Q108: =VLOOKUP(Tabla_Gtos_Ingresos7[[#This Row],[3 digitos]],PGC_Gtos_e_Ingresos[],2,FALSE) -> Devoluciones de compras y operaciones similares | R108: =Tabla_Gtos_Ingresos7[[#This Row],[3 digitos]]&"/"&Tabla_Gtos_Ingresos7[[#This Row],[Nombre cuenta]] -> 608/ Devoluciones de compras y operaciones similares | S108: =YEAR(Tabla_Gtos_Ingresos7[[#This Row],[Fecha]]) -> 2010 | T108: =MONTH(Tabla_Gtos_Ingresos7[[#This Row],[Fecha]]) -> 1 | U108: =ROUNDUP(MONTH(Tabla_Gtos_Ingresos7[[#This Row],[Fecha]])/3, 0) -> 1 | V108: =WEEKNUM(Tabla_Gtos_Ingresos7[[#This Row],[Fecha]]) -> 3 | W108: =(Tabla_Gtos_Ingresos7[[#This Row],[Factor]]*Tabla_Gtos_Ingresos7[[#This Row],[Haber]])+(Tabla_Gtos_Ingresos7[[#This Row],[Factor]]*Tabla_Gtos_Ingresos7[[#This Row],[Debe]]) -> 351.87 | X108: =VLOOKUP(Tabla_Gtos_Ingresos7[[#This Row],[3 digitos]],PGC_Gtos_e_Ingresos[],3,FALSE) -> 1
A109: 230 | B109: 2010-02-14 | C109: 60700003 | D109: TRABAJOS REALIZADOS POR OTRAS EMPRESAS | E109: FACT.F08/5 ROTURACIONES julio | F109: 253.5 | G109: 0 | H109: =MID(Tabla_Gtos_Ingresos7[[#This Row],[Subcuenta]],1,4) -> 6070 | I109: =VALUE(MID(Tabla_Gtos_Ingresos7[[#This Row],[4 digitos]],1,3)) -> 607 | J109: =VALUE(MID(Tabla_Gtos_Ingresos7[[#This Row],[3 digitos]],1,2)) -> 60 | K109: =VLOOKUP(Tabla_Gtos_Ingresos7[[#This Row],[3 digitos]],PGC_Gtos_e_Ingresos[],4,FALSE) -> 4.c | L109: =VLOOKUP(Tabla_Gtos_Ingresos7[[#This Row],[Grupo 1]],Tabla3[],4,FALSE) -> 4. Aprovisionamientos | M109: =VLOOKUP(Tabla_Gtos_Ingresos7[[#This Row],[Grupo 1]],Tabla3[],5,FALSE) -> 4.c Trabajos Realizados por Otras Empresas | N109: =VLOOKUP(Tabla_Gtos_Ingresos7[[#This Row],[Grupo 1]],Tabla3[],10,FALSE) -> G | O109: =VLOOKUP(Tabla_Gtos_Ingresos7[[#This Row],[Grupo 1]],Tabla3[],6,FALSE) -> Explotación | P109: =VLOOKUP(Tabla_Gtos_Ingresos7[[#This Row],[Grupo 1]],Tabla3[],2,FALSE) -> 4 | Q109: =VLOOKUP(Tabla_Gtos_Ingresos7[[#This Row],[3 digitos]],PGC_Gtos_e_Ingresos[],2,FALSE) -> Trabajos realizados por otras empresas | R109: =Tabla_Gtos_Ingresos7[[#This Row],[3 digitos]]&"/"&Tabla_Gtos_Ingresos7[[#This Row],[Nombre cuenta]] -> 607/ Trabajos realizados por otras empresas | S109: =YEAR(Tabla_Gtos_Ingresos7[[#This Row],[Fecha]]) -> 2010 | T109: =MONTH(Tabla_Gtos_Ingresos7[[#This Row],[Fecha]]) -> 2 | U109: =ROUNDUP(MONTH(Tabla_Gtos_Ingresos7[[#This Row],[Fecha]])/3, 0) -> 1 | V109: =WEEKNUM(Tabla_Gtos_Ingresos7[[#This Row],[Fecha]]) -> 8 | W109: =(Tabla_Gtos_Ingresos7[[#This Row],[Factor]]*Tabla_Gtos_Ingresos7[[#This Row],[Haber]])+(Tabla_Gtos_Ingresos7[[#This Row],[Factor]]*Tabla_Gtos_Ingresos7[[#This Row],[Debe]]) -> -253.5 | X109: =VLOOKUP(Tabla_Gtos_Ingresos7[[#This Row],[3 digitos]],PGC_Gtos_e_Ingresos[],3,FALSE) -> -1
A110: 223 | B110: 2010-02-14 | C110: 70000018 | D110: VENTA ARENA 2% | E110: FACT.FA8/21 CABILDO INSULAR DE Insular | F110: 0 | G110: 2192.67 | H110: =MID(Tabla_Gtos_Ingresos7[[#This Row],[Subcuenta]],1,4) -> 7000 | I110: =VALUE(MID(Tabla_Gtos_Ingresos7[[#This Row],[4 digitos]],1,3)) -> 700 | J110: =VALUE(MID(Tabla_Gtos_Ingresos7[[#This Row],[3 digitos]],1,2)) -> 70 | K110: =VLOOKUP(Tabla_Gtos_Ingresos7[[#This Row],[3 digitos]],PGC_Gtos_e_Ingresos[],4,FALSE) -> 1a | L110: =VLOOKUP(Tabla_Gtos_Ingresos7[[#This Row],[Grupo 1]],Tabla3[],4,FALSE) -> 1. Importe Neto Cifra de Negocios | M110: =VLOOKUP(Tabla_Gtos_Ingresos7[[#This Row],[Grupo 1]],Tabla3[],5,FALSE) -> 1.a Ventas | N110: =VLOOKUP(Tabla_Gtos_Ingresos7[[#This Row],[Grupo 1]],Tabla3[],10,FALSE) -> I | O110: =VLOOKUP(Tabla_Gtos_Ingresos7[[#This Row],[Grupo 1]],Tabla3[],6,FALSE) -> Explotación | P110: =VLOOKUP(Tabla_Gtos_Ingresos7[[#This Row],[Grupo 1]],Tabla3[],2,FALSE) -> 1 | Q110: =VLOOKUP(Tabla_Gtos_Ingresos7[[#This Row],[3 digitos]],PGC_Gtos_e_Ingresos[],2,FALSE) -> Ventas de mercaderías | R110: =Tabla_Gtos_Ingresos7[[#This Row],[3 digitos]]&"/"&Tabla_Gtos_Ingresos7[[#This Row],[Nombre cuenta]] -> 700/ Ventas de mercaderías | S110: =YEAR(Tabla_Gtos_Ingresos7[[#This Row],[Fecha]]) -> 2010 | T110: =MONTH(Tabla_Gtos_Ingresos7[[#This Row],[Fecha]]) -> 2 | U110: =ROUNDUP(MONTH(Tabla_Gtos_Ingresos7[[#This Row],[Fecha]])/3, 0) -> 1 | V110: =WEEKNUM(Tabla_Gtos_Ingresos7[[#This Row],[Fecha]]) -> 8 | W110: =(Tabla_Gtos_Ingresos7[[#This Row],[Factor]]*Tabla_Gtos_Ingresos7[[#This Row],[Haber]])+(Tabla_Gtos_Ingresos7[[#This Row],[Factor]]*Tabla_Gtos_Ingresos7[[#This Row],[Debe]]) -> 2192.67 | X110: =VLOOKUP(Tabla_Gtos_Ingresos7[[#This Row],[3 digitos]],PGC_Gtos_e_Ingresos[],3,FALSE) -> 1
A111: 224 | B111: 2010-02-14 | C111: 70800000 | D111: DEVOLUCIONES DE VENTAS Y OPERACIONES | E111: ABONO FA8/22 CABILDO INSULAR DE Insular | F111: 1040 | G111: 0 | H111: =MID(Tabla_Gtos_Ingresos7[[#This Row],[Subcuenta]],1,4) -> 7080 | I111: =VALUE(MID(Tabla_Gtos_Ingresos7[[#This Row],[4 digitos]],1,3)) -> 708 | J111: =VALUE(MID(Tabla_Gtos_Ingresos7[[#This Row],[3 digitos]],1,2)) -> 70 | K111: =VLOOKUP(Tabla_Gtos_Ingresos7[[#This Row],[3 digitos]],PGC_Gtos_e_Ingresos[],4,FALSE) -> 1a | L111: =VLOOKUP(Tabla_Gtos_Ingresos7[[#This Row],[Grupo 1]],Tabla3[],4,FALSE) -> 1. Importe Neto Cifra de Negocios | M111: =VLOOKUP(Tabla_Gtos_Ingresos7[[#This Row],[Grupo 1]],Tabla3[],5,FALSE) -> 1.a Ventas | N111: =VLOOKUP(Tabla_Gtos_Ingresos7[[#This Row],[Grupo 1]],Tabla3[],10,FALSE) -> I | O111: =VLOOKUP(Tabla_Gtos_Ingresos7[[#This Row],[Grupo 1]],Tabla3[],6,FALSE) -> Explotación | P111: =VLOOKUP(Tabla_Gtos_Ingresos7[[#This Row],[Grupo 1]],Tabla3[],2,FALSE) -> 1 | Q111: =VLOOKUP(Tabla_Gtos_Ingresos7[[#This Row],[3 digitos]],PGC_Gtos_e_Ingresos[],2,FALSE) -> Devoluciones de ventas y operaciones similares | R111: =Tabla_Gtos_Ingresos7[[#This Row],[3 digitos]]&"/"&Tabla_Gtos_Ingresos7[[#This Row],[Nombre cuenta]] -> 708/ Devoluciones de ventas y operaciones similares | S111: =YEAR(Tabla_Gtos_Ingresos7[[#This Row],[Fecha]]) -> 2010 | T111: =MONTH(Tabla_Gtos_Ingresos7[[#This Row],[Fecha]]) -> 2 | U111: =ROUNDUP(MONTH(Tabla_Gtos_Ingresos7[[#This Row],[Fecha]])/3, 0) -> 1 | V111: =WEEKNUM(Tabla_Gtos_Ingresos7[[#This Row],[Fecha]]) -> 8 | W111: =(Tabla_Gtos_Ingresos7[[#This Row],[Factor]]*Tabla_Gtos_Ingresos7[[#This Row],[Haber]])+(Tabla_Gtos_Ingresos7[[#This Row],[Factor]]*Tabla_Gtos_Ingresos7[[#This Row],[Debe]]) -> -1040 | X111: =VLOOKUP(Tabla_Gtos_Ingresos7[[#This Row],[3 digitos]],PGC_Gtos_e_Ingresos[],3,FALSE) -> -1
A112: 225 | B112: 2010-02-14 | C112: 70800001 | D112: DEVOLUCIONES DE VENTAS Y OPERACIONES | E112: ABONO FA8/23 CABILDO INSULAR Insular | F112: 1152.67 | G112: 0 | H112: =MID(Tabla_Gtos_Ingresos7[[#This Row],[Subcuenta]],1,4) -> 7080 | I112: =VALUE(MID(Tabla_Gtos_Ingresos7[[#This Row],[4 digitos]],1,3)) -> 708 | J112: =VALUE(MID(Tabla_Gtos_Ingresos7[[#This Row],[3 digitos]],1,2)) -> 70 | K112: =VLOOKUP(Tabla_Gtos_Ingresos7[[#This Row],[3 digitos]],PGC_Gtos_e_Ingresos[],4,FALSE) -> 1a | L112: =VLOOKUP(Tabla_Gtos_Ingresos7[[#This Row],[Grupo 1]],Tabla3[],4,FALSE) -> 1. Importe Neto Cifra de Negocios | M112: =VLOOKUP(Tabla_Gtos_Ingresos7[[#This Row],[Grupo 1]],Tabla3[],5,FALSE) -> 1.a Ventas | N112: =VLOOKUP(Tabla_Gtos_Ingresos7[[#This Row],[Grupo 1]],Tabla3[],10,FALSE) -> I | O112: =VLOOKUP(Tabla_Gtos_Ingresos7[[#This Row],[Grupo 1]],Tabla3[],6,FALSE) -> Explotación | P112: =VLOOKUP(Tabla_Gtos_Ingresos7[[#This Row],[Grupo 1]],Tabla3[],2,FALSE) -> 1 | Q112: =VLOOKUP(Tabla_Gtos_Ingresos7[[#This Row],[3 digitos]],PGC_Gtos_e_Ingresos[],2,FALSE) -> Devoluciones de ventas y operaciones similares | R112: =Tabla_Gtos_Ingresos7[[#This Row],[3 digitos]]&"/"&Tabla_Gtos_Ingresos7[[#This Row],[Nombre cuenta]] -> 708/ Devoluciones de ventas y operaciones similares | S112: =YEAR(Tabla_Gtos_Ingresos7[[#This Row],[Fecha]]) -> 2010 | T112: =MONTH(Tabla_Gtos_Ingresos7[[#This Row],[Fecha]]) -> 2 | U112: =ROUNDUP(MONTH(Tabla_Gtos_Ingresos7[[#This Row],[Fecha]])/3, 0) -> 1 | V112: =WEEKNUM(Tabla_Gtos_Ingresos7[[#This Row],[Fecha]]) -> 8 | W112: =(Tabla_Gtos_Ingresos7[[#This Row],[Factor]]*Tabla_Gtos_Ingresos7[[#This Row],[Haber]])+(Tabla_Gtos_Ingresos7[[#This Row],[Factor]]*Tabla_Gtos_Ingresos7[[#This Row],[Debe]]) -> -1152.67 | X112: =VLOOKUP(Tabla_Gtos_Ingresos7[[#This Row],[3 digitos]],PGC_Gtos_e_Ingresos[],3,FALSE) -> -1
A113: 660 | B113: 2010-04-14 | C113: 62200019 | D113: REPARACION Y CONSERVACION | E113: FACT.701181 DESGASTES La Isla | F113: 641.2 | G113: 0 | H113: =MID(Tabla_Gtos_Ingresos7[[#This Row],[Subcuenta]],1,4) -> 6220 | I113: =VALUE(MID(Tabla_Gtos_Ingresos7[[#This Row],[4 digitos]],1,3)) -> 622 | J113: =VALUE(MID(Tabla_Gtos_Ingresos7[[#This Row],[3 digitos]],1,2)) -> 62 | K113: =VLOOKUP(Tabla_Gtos_Ingresos7[[#This Row],[3 digitos]],PGC_Gtos_e_Ingresos[],4,FALSE) -> 7.a | L113: =VLOOKUP(Tabla_Gtos_Ingresos7[[#This Row],[Grupo 1]],Tabla3[],4,FALSE) -> 7. Otros Gastos de Explotación | M113: =VLOOKUP(Tabla_Gtos_Ingresos7[[#This Row],[Grupo 1]],Tabla3[],5,FALSE) -> 7.a Servicios Exteriores | N113: =VLOOKUP(Tabla_Gtos_Ingresos7[[#This Row],[Grupo 1]],Tabla3[],10,FALSE) -> G | O113: =VLOOKUP(Tabla_Gtos_Ingresos7[[#This Row],[Grupo 1]],Tabla3[],6,FALSE) -> Explotación | P113: =VLOOKUP(Tabla_Gtos_Ingresos7[[#This Row],[Grupo 1]],Tabla3[],2,FALSE) -> 7 | Q113: =VLOOKUP(Tabla_Gtos_Ingresos7[[#This Row],[3 digitos]],PGC_Gtos_e_Ingresos[],2,FALSE) -> Reparaciones y conservación | R113: =Tabla_Gtos_Ingresos7[[#This Row],[3 digitos]]&"/"&Tabla_Gtos_Ingresos7[[#This Row],[Nombre cuenta]] -> 622/ Reparaciones y conservación | S113: =YEAR(Tabla_Gtos_Ingresos7[[#This Row],[Fecha]]) -> 2010 | T113: =MONTH(Tabla_Gtos_Ingresos7[[#This Row],[Fecha]]) -> 4 | U113: =ROUNDUP(MONTH(Tabla_Gtos_Ingresos7[[#This Row],[Fecha]])/3, 0) -> 2 | V113: =WEEKNUM(Tabla_Gtos_Ingresos7[[#This Row],[Fecha]]) -> 16 | W113: =(Tabla_Gtos_Ingresos7[[#This Row],[Factor]]*Tabla_Gtos_Ingresos7[[#This Row],[Haber]])+(Tabla_Gtos_Ingresos7[[#This Row],[Factor]]*Tabla_Gtos_Ingresos7[[#This Row],[Debe]]) -> -641.2 | X113: =VLOOKUP(Tabla_Gtos_Ingresos7[[#This Row],[3 digitos]],PGC_Gtos_e_Ingresos[],3,FALSE) -> -1
A114: 1765 | B114: 2010-08-14 | C114: 62200052 | D114: REPARACION Y CONSERVACION | E114: FACT.6652 TALLER AUTOMOVIL Paco | F114: 2240.71 | G114: 0 | H114: =MID(Tabla_Gtos_Ingresos7[[#This Row],[Subcuenta]],1,4) -> 6220 | I114: =VALUE(MID(Tabla_Gtos_Ingresos7[[#This Row],[4 digitos]],1,3)) -> 622 | J114: =VALUE(MID(Tabla_Gtos_Ingresos7[[#This Row],[3 digitos]],1,2)) -> 62 | K114: =VLOOKUP(Tabla_Gtos_Ingresos7[[#This Row],[3 digitos]],PGC_Gtos_e_Ingresos[],4,FALSE) -> 7.a | L114: =VLOOKUP(Tabla_Gtos_Ingresos7[[#This Row],[Grupo 1]],Tabla3[],4,FALSE) -> 7. Otros Gastos de Explotación | M114: =VLOOKUP(Tabla_Gtos_Ingresos7[[#This Row],[Grupo 1]],Tabla3[],5,FALSE) -> 7.a Servicios Exteriores | N114: =VLOOKUP(Tabla_Gtos_Ingresos7[[#This Row],[Grupo 1]],Tabla3[],10,FALSE) -> G | O114: =VLOOKUP(Tabla_Gtos_Ingresos7[[#This Row],[Grupo 1]],Tabla3[],6,FALSE) -> Explotación | P114: =VLOOKUP(Tabla_Gtos_Ingresos7[[#This Row],[Grupo 1]],Tabla3[],2,FALSE) -> 7 | Q114: =VLOOKUP(Tabla_Gtos_Ingresos7[[#This Row],[3 digitos]],PGC_Gtos_e_Ingresos[],2,FALSE) -> Reparaciones y conservación | R114: =Tabla_Gtos_Ingresos7[[#This Row],[3 digitos]]&"/"&Tabla_Gtos_Ingresos7[[#This Row],[Nombre cuenta]] -> 622/ Reparaciones y conservación | S114: =YEAR(Tabla_Gtos_Ingresos7[[#This Row],[Fecha]]) -> 2010 | T114: =MONTH(Tabla_Gtos_Ingresos7[[#This Row],[Fecha]]) -> 8 | U114: =ROUNDUP(MONTH(Tabla_Gtos_Ingresos7[[#This Row],[Fecha]])/3, 0) -> 3 | V114: =WEEKNUM(Tabla_Gtos_Ingresos7[[#This Row],[Fecha]]) -> 33 | W114: =(Tabla_Gtos_Ingresos7[[#This Row],[Factor]]*Tabla_Gtos_Ingresos7[[#This Row],[Haber]])+(Tabla_Gtos_Ingresos7[[#This Row],[Factor]]*Tabla_Gtos_Ingresos7[[#This Row],[Debe]]) -> -2240.71 | X114: =VLOOKUP(Tabla_Gtos_Ingresos7[[#This Row],[3 digitos]],PGC_Gtos_e_Ingresos[],3,FALSE) -> -1
A115: 2638 | B115: 2010-11-14 | C115: 62900015 | D115: OTROS GASTOS DE EXPLOTACION | E115: FACT.46 JUAN Siverio RAMIREZ | F115: 662.4 | G115: 0 | H115: =MID(Tabla_Gtos_Ingresos7[[#This Row],[Subcuenta]],1,4) -> 6290 | I115: =VALUE(MID(Tabla_Gtos_Ingresos7[[#This Row],[4 digitos]],1,3)) -> 629 | J115: =VALUE(MID(Tabla_Gtos_Ingresos7[[#This Row],[3 digitos]],1,2)) -> 62 | K115: =VLOOKUP(Tabla_Gtos_Ingresos7[[#This Row],[3 digitos]],PGC_Gtos_e_Ingresos[],4,FALSE) -> 7.a | L115: =VLOOKUP(Tabla_Gtos_Ingresos7[[#This Row],[Grupo 1]],Tabla3[],4,FALSE) -> 7. Otros Gastos de Explotación | M115: =VLOOKUP(Tabla_Gtos_Ingresos7[[#This Row],[Grupo 1]],Tabla3[],5,FALSE) -> 7.a Servicios Exteriores | N115: =VLOOKUP(Tabla_Gtos_Ingresos7[[#This Row],[Grupo 1]],Tabla3[],10,FALSE) -> G | O115: =VLOOKUP(Tabla_Gtos_Ingresos7[[#This Row],[Grupo 1]],Tabla3[],6,FALSE) -> Explotación | P115: =VLOOKUP(Tabla_Gtos_Ingresos7[[#This Row],[Grupo 1]],Tabla3[],2,FALSE) -> 7 | Q115: =VLOOKUP(Tabla_Gtos_Ingresos7[[#This Row],[3 digitos]],PGC_Gtos_e_Ingresos[],2,FALSE) -> Otros servicios | R115: =Tabla_Gtos_Ingresos7[[#This Row],[3 digitos]]&"/"&Tabla_Gtos_Ingresos7[[#This Row],[Nombre cuenta]] -> 629/ Otros servicios | S115: =YEAR(Tabla_Gtos_Ingresos7[[#This Row],[Fecha]]) -> 2010 | T115: =MONTH(Tabla_Gtos_Ingresos7[[#This Row],[Fecha]]) -> 11 | U115: =ROUNDUP(MONTH(Tabla_Gtos_Ingresos7[[#This Row],[Fecha]])/3, 0) -> 4 | V115: =WEEKNUM(Tabla_Gtos_Ingresos7[[#This Row],[Fecha]]) -> 47 | W115: =(Tabla_Gtos_Ingresos7[[#This Row],[Factor]]*Tabla_Gtos_Ingresos7[[#This Row],[Haber]])+(Tabla_Gtos_Ingresos7[[#This Row],[Factor]]*Tabla_Gtos_Ingresos7[[#This Row],[Debe]]) -> -662.4 | X115: =VLOOKUP(Tabla_Gtos_Ingresos7[[#This Row],[3 digitos]],PGC_Gtos_e_Ingresos[],3,FALSE) -> -1
A116: 445 | B116: 2010-03-15 | C116: 62200016 | D116: REPARACION Y CONSERVACION | E116: FACT.2010000615 REPUESTOS La Isla | F116: 1600.66 | G116: 0 | H116: =MID(Tabla_Gtos_Ingresos7[[#This Row],[Subcuenta]],1,4) -> 6220 | I116: =VALUE(MID(Tabla_Gtos_Ingresos7[[#This Row],[4 digitos]],1,3)) -> 622 | J116: =VALUE(MID(Tabla_Gtos_Ingresos7[[#This Row],[3 digitos]],1,2)) -> 62 | K116: =VLOOKUP(Tabla_Gtos_Ingresos7[[#This Row],[3 digitos]],PGC_Gtos_e_Ingresos[],4,FALSE) -> 7.a | L116: =VLOOKUP(Tabla_Gtos_Ingresos7[[#This Row],[Grupo 1]],Tabla3[],4,FALSE) -> 7. Otros Gastos de Explotación | M116: =VLOOKUP(Tabla_Gtos_Ingresos7[[#This Row],[Grupo 1]],Tabla3[],5,FALSE) -> 7.a Servicios Exteriores | N116: =VLOOKUP(Tabla_Gtos_Ingresos7[[#This Row],[Grupo 1]],Tabla3[],10,FALSE) -> G | O116: =VLOOKUP(Tabla_Gtos_Ingresos7[[#This Row],[Grupo 1]],Tabla3[],6,FALSE) -> Explotación | P116: =VLOOKUP(Tabla_Gtos_Ingresos7[[#This Row],[Grupo 1]],Tabla3[],2,FALSE) -> 7 | Q116: =VLOOKUP(Tabla_Gtos_Ingresos7[[#This Row],[3 digitos]],PGC_Gtos_e_Ingresos[],2,FALSE) -> Reparaciones y conservación | R116: =Tabla_Gtos_Ingresos7[[#This Row],[3 digitos]]&"/"&Tabla_Gtos_Ingresos7[[#This Row],[Nombre cuenta]] -> 622/ Reparaciones y conservación | S116: =YEAR(Tabla_Gtos_Ingresos7[[#This Row],[Fecha]]) -> 2010 | T116: =MONTH(Tabla_Gtos_Ingresos7[[#This Row],[Fecha]]) -> 3 | U116: =ROUNDUP(MONTH(Tabla_Gtos_Ingresos7[[#This Row],[Fecha]])/3, 0) -> 1 | V116: =WEEKNUM(Tabla_Gtos_Ingresos7[[#This Row],[Fecha]]) -> 12 | W116: =(Tabla_Gtos_Ingresos7[[#This Row],[Factor]]*Tabla_Gtos_Ingresos7[[#This Row],[Haber]])+(Tabla_Gtos_Ingresos7[[#This Row],[Factor]]*Tabla_Gtos_Ingresos7[[#This Row],[Debe]]) -> -1600.66 | X116: =VLOOKUP(Tabla_Gtos_Ingresos7[[#This Row],[3 digitos]],PGC_Gtos_e_Ingresos[],3,FALSE) -> -1
